{"text_format":"1","workbook":"xlsx","n_sheets":1,"sheets":["Contratos_2020"],"not_rendered":{"charts":0,"images":0,"macros":1,"external_links":1,"defined_names":4,"comments":1,"pivot_tables":0},"unopened":[],"bounds":{"document_bytes":16777216,"sheet_cells":100000,"rows_first":2000,"rows_last":500,"rows_between":2000,"halvings":0,"cell_chars":16384,"cell_head_chars":4096},"cells_cut":0,"cells_raw":0,"read":"whole","date_system":"1900"}

{"sheet":"Contratos_2020","index":0,"n_rows":388,"n_cols":50,"rows_kept":388,"cut":false,"hidden":false,"merged":[[1,0,3,49]]}
[]
["ANEXO CONTRACTUAL DE LA VIGENCIA 2020"]
[]
[]
[]
["TIPO DE PROCESO","MODALIDAD DE SELECCIÓN","ESTADO ","N° PROCESO","N° De Contrato","% De tiempo del contrato transcurrido","CONTRATISTA","IDENTIFICACIÓN","REPRESENTANTE LEGAL","CEDULA REPRESENTANTE","CONFORMACION CONSORCIO ","LINK DE SECOP","OBJETO DEL CONTRATO","TIPO DE RECURSO / GASTO","N° CDP","VALOR CDP","NUMERO PROYECTO","NOMBRE PROYECTO / RECURSOS ","FECHA DE SUSCRIPCION","FECHA INICIO ACTA","FECHA TERMINACION CONTRATO INCLUYENDO PRORROGAS Y ADICIONES","VALOR TOTAL CONTRATO","TIEMPO DEL CONTRATO MESES","HONORARIOS MENSUAULES","N° RP ","VALOR RP","SUPERVISOR","APOYO A LA SUPERVISIÓN","DEPENDENCIA","NUMERO DE PÓLIZA","VIGENCIA DESDE POLIZA","VIGENCIA HASTA POLIZA","FECHA SUSPENSIÓN INICIAL","FECHA SUSPENSIÓN FINAL","PLAZO SUSPENSIÓN","UNIDAD PLAZO","CEDENTE","CESIONARIO","FECHA CESIÓN","FECHA ADICIÓN","TIEMPO DE LA ADICION","UNIDAD PLAZO","VALOR ADICIÓN","FECHA PRÓRROGA","PLAZO PRÓRROGA","UNIDAD PLAZO","FECHA ADICIÓN","TIEMPO DE LA ADICION","UNIDAD PLAZO","VALOR ADICIÓN"]
["CONTRATACION DIRECTA","Contratos de prestación de servicios","EN EJECUCION","FDLK-CD-1-2020","CPS-001-2020",{"$f":"VLOOKUP(E7,[1]Hoja1!D$3:E$393,2,0)","v":0.77935222672064774},"DIANA CAROLINA CAMACHO ESCOBAR ",1030594415,"DIANA CAROLINA CAMACHO ESCOBAR ",1030594415,null,"https://community.secop.gov.co/Public/Tendering/OpportunityDetail/Index?noticeUID=CO1.NTC.1084923&isFromPublicArea=True&isModal=False","PRESTAR LOS SERVICIOS PROFESIONALES PARA LA OPERACIÓN, SEGUIMIENTO Y CUMPLIMIENTO DE LOS PROCESOS Y PROCEDIMIENTOS DEL SERVICIO APOYO ECONÓMICO TIPO C, REQUERIDOS PARA EL OPORTUNO Y ADECUADO REGISTRO, CRUCE Y REPORTE DE LOS DATOS EN EL SISTEMA MISIONAL – SIRBE, QUE CONTRIBUYAN A LA GARANTÍA DE LOS DERECHOS DE LA POBLACIÓN MAYOR EN EL MARCO DE LA POLÍTICA PÚBLICA SOCIAL PARA EL ENVEJECIMIENTO Y LA VEJEZ EN EL DISTRITO CAPITAL A CARGO DE LA ALCALDÍA LOCAL DE KENNEDY","INVERSIÓN ",522,60264533,1378,"Igualdad y autonomía para una Kennedy incluyente","2020-02-04","2020-02-06","2021-06-14",60264533,10.933333333333334,5511999.9695121953,522,60264533,"LEONARDO ALEXANDER RODRíCUEZ LÓPÉZ","RICARDO RODRIGUEZ GARCIA","PLANEACION","380-47-994000103089","2020-02-04","2021-07-07","2020-02-12","2020-03-31",48,"DIAS","NA","NA","NA","2021-01-01",5,"MESES",30132267,"2021-01-01",5,"MESES","NA","NA","NA","NA"]
["CONTRATACION DIRECTA","Contratos de prestación de servicios","EN EJECUCION","FDLK-CD-2-2020","CPS-002-2020",{"$f":"VLOOKUP(E8,[1]Hoja1!D$3:E$393,2,0)","v":0.99212598425196852},"DELIA ISABEL LIZARAZO BALLESTEROS",1012340392,"DELIA ISABEL LIZARAZO BALLESTEROS",1012340392,null,"https://community.secop.gov.co/Public/Tendering/OpportunityDetail/Index?noticeUID=CO1.NTC.1092494&isFromPublicArea=True&isModal=False","PRESTAR LOS SERVICIOS DE APOYO ADMINISTRATIVO Y ASISTENCIAL EN ASUNTOS RELACIONADOS CON MEDIO AMBIENTE EN EL ÁREA DE GESTIÓN POLICIVA JURÍDICA DE LA ALCALDÍA LOCAL DE KENNEDY","INVERSIÓN ",507,27467000,1363,"Fortalecimiento de la gestión local y de las acciones de vigilancia y control","2020-02-06","2020-02-13","2021-02-28",27467000,11,2497000,507,27467000,"LEONARDO ALEXANDER RODRíCUEZ LÓPÉZ","NORMA LETICIA GUZMAN RIMOLLI","GESTION POLICIVA Y JURIDICA","380-47-994000103225","2020-02-07","2021-07-10","2020-02-24","2020-07-09",136,"DIAS","NA","NA","NA","2021-01-01",2,"MESES",4994000,"2021-01-01",2,"MESES","NA","NA","NA","NA"]
["CONTRATACION DIRECTA","Contratos de prestación de servicios","TERMINADO","FDLK-CD-3-2020","CPS-003-2020",{"$f":"VLOOKUP(E9,[1]Hoja1!D$3:E$393,2,0)","v":1},"DEYSI YADIRA CASALLAS GOMEZ",53101194,"DEYSI YADIRA CASALLAS GOMEZ",53101194,null,"https://community.secop.gov.co/Public/Tendering/OpportunityDetail/Index?noticeUID=CO1.NTC.1092453&isFromPublicArea=True&isModal=False","PRESTAR SUS SERVICIOS DE APOYO AL ÁREA DE GESTIÓN DE DESARROLLO LOCAL EN LA IMPLEMENTACIÓN, MANEJO, VALIDACIÓN Y ACTUALIZACIÓN DE LA INFORMACIÓN EN LOS APLICATIVOS INSTITUCIONALES.","INVERSIÓN ",600,"14.840.000",1363,"Fortalecimiento de la gestión local y de las acciones de vigilancia y control","2020-02-06","2020-02-13","2020-08-12",14840000,4,3710000,626,14840000,"LEONARDO ALEXANDER RODRíCUEZ LÓPÉZ","YULLIET PATRICIA LLERENA AVENDAÑO","ADMINISTRATIVO Y FINANCIERO","380- 47- 994000103436","2020-06-02","2020-11-02","NA",0,"NA","NA","NA","NA","NA","2020-06-12",60,"DIAS",7420000,"2020-06-12",60,"DIAS","NA","NA","NA","NA"]
["CONTRATACION DIRECTA","Contratos de prestación de servicios","TERMINADO","FDLK-CD-4-2020","CPS-004-2020",{"$f":"VLOOKUP(E10,[1]Hoja1!D$3:E$393,2,0)","v":1},"DERLY KATHERINE SANCHEZ",52847676,"DERLY KATHERINE SANCHEZ",52847676,null,"https://community.secop.gov.co/Public/Tendering/OpportunityDetail/Index?noticeUID=CO1.NTC.1093265&isFromPublicArea=True&isModal=False","PRESTACIÓN DE SERVICIOS PROFESIONALES PARA APOYAR AL ALCALDE(SA) LOCAL EN LA PROMOCIÓN, ACOMPAÑAMIENTO, COORDINACIÓN Y ATENCIÓN DE LAS INSTANCIAS DE COORDINACIÓN INTERINSTITUCIONALES Y LAS INSTANCIAS DE PARTICIPACIÓN LOCALES, ASÍ COMO LOS PROCESOS COMUNITARIOS EN LA LOCALIDAD.","INVERSIÓN ",601,22048000,1371,"Fortalecimiento de la participación","2020-02-06","2020-02-10","2020-06-09",22048000,4,5512000,624,22048000,"LEONARDO ALEXANDER RODRíCUEZ LÓPÉZ","AMANDA MILENA GONZALEZ","PLANEACION","380-47-994000103223","2020-07-02","2020-12-10","NA",0,"NA","NA","NA","NA","NA","NA","NA","NA","NA","NA","NA","NA","NA","NA","NA","NA"]
["CONTRATACION DIRECTA","Contratos de prestación de servicios","TERMINADO","FDLK-CD-5-2020","CPS-005-2020",{"$f":"VLOOKUP(E11,[1]Hoja1!D$3:E$393,2,0)","v":1},"MONICA VIVIANA PORRAS BEDOYA",52396873,"MONICA VIVIANA PORRAS BEDOYA",52396873,null,"https://community.secop.gov.co/Public/Tendering/OpportunityDetail/Index?noticeUID=CO1.NTC.1095554&isFromPublicArea=True&isModal=False","PRESTAR SUS SERVICIOS PROFESIONALES A LA ALCALDÍA LOCAL DE KENNEDY APOYANDO LOS PROCESOS, PROYECTOS Y PROGRAMAS DE PARTICIPACIÓN LOCAL","INVERSIÓN ",602,22048000,1371,"Fortalecimiento de la participación","2020-02-07","2020-02-12","2020-08-11",22048000,4,5512000,630,22048000,"LEONARDO ALEXANDER RODRíCUEZ LÓPÉZ","DERLY KATHERINE SANCHEZ ","PARTICIPACION","310 47 994000004461","2020-02-07","15/12/2020","NA",0,"NA","NA","NA","NA","NA","2020-06-11",60,"DIAS",11024000,"2020-06-11",60,"DIAS","NA","NA","NA","NA"]
["CONTRATACION DIRECTA","Contratos de prestación de servicios","TERMINADO","FDLK-CD-6-2020","CPS-006-2020",{"$f":"VLOOKUP(E12,[1]Hoja1!D$3:E$393,2,0)","v":1},"EDILBERTO RODRIGUEZ GARZON",79325319,"EDILBERTO RODRIGUEZ GARZON",79325319,null,"https://community.secop.gov.co/Public/Tendering/OpportunityDetail/Index?noticeUID=CO1.NTC.1095796&isFromPublicArea=True&isModal=False","PRESTAR SUS SERVICIOS PROFESIONALES A LA ALCALDÍA LOCAL DE KENNEDY APOYANDO LOS PROCESOS, PROYECTOS Y PROGRAMAS DE PARTICIPACIÓN LOCAL ","INVERSIÓN ",604,22048000,1371,"Fortalecimiento de la participación","2020-02-07","2020-06-17","2020-08-16",22048000,4,5512000,638,22048000,"LEONARDO ALEXANDER RODRíCUEZ LÓPÉZ","DERLY KATHERINE SANCHEZ ","PARTICIPACION","310 47 994000103375","2020-02-07","15/12/2020","NA",0,"NA","NA","NA","NA","NA","2020-06-16",60,"DIAS",11024000,"2020-06-16",60,"DIAS","NA","NA","NA","NA"]
["CONTRATACION DIRECTA","Contratos de prestación de servicios","TERMINADO","FDLK-CD-7-2020","CPS-007-2020",{"$f":"VLOOKUP(E13,[1]Hoja1!D$3:E$393,2,0)","v":1},"MARIA BERNARDA GÓMEZ JIMENEZ",52379149,"MARIA BERNARDA GÓMEZ JIMENEZ",52379149,null,"https://community.secop.gov.co/Public/Tendering/OpportunityDetail/Index?noticeUID=CO1.NTC.1104424&isFromPublicArea=True&isModal=False","APOYAR LA GESTIÓN DOCUMENTAL DE LA ALCALDÍA LOCAL, ACOMPAÑANDO   AL   EQUIPO JURÍDICO   DE   DEPURACIÓN EN LAS LABORES OPERATIVAS   QUE   GENERA EL PROCESO DE IMPULSO DE LAS ACTUACIONES ADMINISTRATIVAS EXISTENTES EN LAS DIFERENTES ALCALDÍAS LOCALES","INVERSIÓN ",612,9988000,1363,"Fortalecimiento de la gestión local y de las acciones de vigilancia y control","2020-02-12","2020-06-17","2020-08-16",9988000,4,2497000,644,9988000,"LEONARDO ALEXANDER RODRíCUEZ LÓPÉZ","NORMA LETICIA GUZMAN RIMOLLI","GESTION POLICIVA Y JURIDICA","310 47 994000103604","2020-12-02","15/12/2020","NA",0,"NA","NA","NA","NA","NA","2020-06-16",60,"DIAS",4994000,"2020-06-16",60,"DIAS","NA","NA","NA","NA"]
["CONTRATACION DIRECTA","Contratos de prestación de servicios","TERMINADO","FDLK-CD-8-2020","CPS-008-2020",{"$f":"VLOOKUP(E14,[1]Hoja1!D$3:E$393,2,0)","v":1},"MIRIAN YANIVE SUAREZ SANTOS",52473538,"MIRIAN YANIVE SUAREZ SANTOS",52473538,null,"https://community.secop.gov.co/Public/Tendering/OpportunityDetail/Index?noticeUID=CO1.NTC.1110867&isFromPublicArea=True&isModal=False","APOYAR JURÍDICAMENTE LA EJECUCIÓN DE LAS ACCIONES REQUERIDAS PARA LA DEPURACIÓN DE LAS ACTUACIONES ADMINISTRATIVAS QUE CURSAN EN LA ALCALDÍA LOCAL","INVERSIÓN ",611,22048000,1363,"Fortalecimiento de la gestión local y de las acciones de vigilancia y control","2020-02-14","2020-02-18","2020-06-17",22048000,4,5512000,649,22048000,"LEONARDO ALEXANDER RODRíCUEZ LÓPÉZ","NORMA LETICIA GUZMAN RIMOLLI","Seguridad","37-44-101033897","2020-02-17","16/12/2020","NA",0,"NA","NA","NA","NA","NA","NA","NA","NA","NA","NA","NA","NA","NA","NA","NA","NA"]
["CONTRATACION DIRECTA","Contratos de prestación de servicios","EN EJECUCION","FDLK-CD-9-2020","CPS-009-2020",{"$f":"VLOOKUP(E15,[1]Hoja1!D$3:E$393,2,0)","v":0.99199999999999999},"NOLBA RUBIELA CASTRO CRUZ",1018410635,"NOLBA RUBIELA CASTRO CRUZ",1018410635,null,"https://community.secop.gov.co/Public/Tendering/OpportunityDetail/Index?noticeUID=CO1.NTC.1111272&isFromPublicArea=True&isModal=False","PRESTAR LOS SERVICIOS DE APOYO EN LAS ACCIONES ENCAMINADAS AL RESTABLECIMIENTO DE LA ARMONÍA, PAZ, SEGURIDAD Y CONVIVENCIA CIUDADANA, EN LA LOCALIDAD DE KENNEDY","INVERSIÓN ",613,25819500,1376,"Fortalecimiento de seguridad e iniciativa de convivencia en la localidad de\nKennedy","2020-02-14","2020-02-19","2021-02-28",25819500,10.5,2459000,650,25819500,"LEONARDO ALEXANDER RODRíCUEZ LÓPÉZ","NORMA LETICIA GUZMAN RIMOLLI","GESTION POLICIVA Y JURIDICA","\t21-46-10104077","2020-02-17","2021-10-07","2020-07-03","2020-10-23",112,"DIAS","NA","NA","NA","2021-01-01",2,"MESES",4918000,"2021-01-01",2,"MESES","NA","NA","NA","NA"]
["CONTRATACION DIRECTA","Contratos de prestación de servicios","TERMINADO","FDLK-CD-10-2020","CPS-010-2020",{"$f":"VLOOKUP(E16,[1]Hoja1!D$3:E$393,2,0)","v":1},"SANDRA PATRICIA RINCON GOMEZ",52021745,"SANDRA PATRICIA RINCON GOMEZ",52021745,null,"https://community.secop.gov.co/Public/Tendering/OpportunityDetail/Index?noticeUID=CO1.NTC.1118581&isFromPublicArea=True&isModal=False","PRESNTACION DE SERVICIOS PROFESIONALES A LA ALCALDIA LOCAL DE KENNEDY APOYANDO AL DESPACHO DEL ALCALDE LOCAL EN LO RELACIONADO CON LOS PROCESOS, PROYECTOS O PROGRAMAS O PLANES Y ACCIONES DE PARTICIPACION LOCAL","INVERSIÓN ",614,22048000,1371,"Fortalecimiento de la participación","2020-02-19","2020-02-21","2020-08-20",22048000,4,5512000,664,22048000,"LEONARDO ALEXANDER RODRíCUEZ LÓPÉZ","ANIBAL  FERNANDO OSPINA","PARTICIPACION","15-44-101224455","18/02/2020","19/12/2020","NA",0,"NA","NA","NA","NA","NA","2020-06-18",60,"DIAS",11024000,"2020-06-18",60,"DIAS","NA","NA","NA","NA"]
["CONTRATACION DIRECTA","Contratos de prestación de servicios","EN EJECUCION","FDLK-CD-11-2020","CPS-011-2020",{"$f":"VLOOKUP(E17,[1]Hoja1!D$3:E$393,2,0)","v":0.99202127659574468},"KAROLAY SANCHEZ RAMOS",1007561466,"KAROLAY SANCHEZ RAMOS",1007561466,null,"https://community.secop.gov.co/Public/Tendering/OpportunityDetail/Index?noticeUID=CO1.NTC.1112272&isFromPublicArea=True&isModal=False","PRESTAR LOS SERVICIOS DE APOYO AL FONDO DE DESARROLLO LOCAL DE KENNEDY EN LAS ACTIVIDADES DE RADICACION Y CORRESPONDENCIA ","INVERSIÓN ",539,22053267,1363,"Fortalecimiento de la gestión local y de las acciones de vigilancia y control","2020-02-14","2020-02-18","2021-02-28",22053267,10.466666666666667,2107000.0318471338,651,22053267,"LEONARDO ALEXANDER RODRíCUEZ LÓPÉZ","MARIA DEL PILAR MUÑOZ TORRES","ADMINISTRATIVO Y FINANCIERO","310 47 994000103683","18/02/2020","2021-03-07","2020-04-01","2020-06-01",61,"DIAS","NA","NA","NA","2021-01-01",2,"MESES",4214000,"2021-01-01",2,"MESES","NA","NA","NA","NA"]
["CONTRATACION DIRECTA","Contratos de prestación de servicios","EN EJECUCION","FDLK-CD-12-2020","CPS-012-2020",{"$f":"VLOOKUP(E18,[1]Hoja1!D$3:E$393,2,0)","v":0.99202127659574468},"SANDRA ESPERANZA CLAVIJO RAMOS",1030551811,"SANDRA ESPERANZA CLAVIJO RAMOS",1030551811,null,"https://community.secop.gov.co/Public/Tendering/OpportunityDetail/Index?noticeUID=CO1.NTC.1115273&isFromPublicArea=True&isModal=False","APOYAR JURÍDICAMENTE LA EJECUCIÓN DE LAS ACCIONES REQUERIDAS PARA LA DEPURACIÓN DE LAS ACTUACIONES ADMINISTRATIVAS QUE CURSAN EN LA ALCALDÍA LOCAL","INVERSIÓN ",608,57876000,1363,"Fortalecimiento de la gestión local y de las acciones de vigilancia y control","2020-02-17","2020-02-18","2021-02-28",57876000,10.5,5512000,653,57876000,"LEONARDO ALEXANDER RODRíCUEZ LÓPÉZ","NORMA LETICIA GUZMAN RIMOLLI","GESTION POLICIVA Y JURIDICA","310 47 994000103733","17/02/2020","2021-06-07","2020-09-01","2020-09-30",29,"DIAS","NA","NA","NA","2021-01-01",2,"MESES",11024000,"2021-01-01",2,"MESES","NA","NA","NA","NA"]
["CONTRATACION DIRECTA","Contratos de prestación de servicios","EN EJECUCION","FDLK-CD-13-2020","CPS-013-2020",{"$f":"VLOOKUP(E19,[1]Hoja1!D$3:E$393,2,0)","v":0.99195710455764075},"MARTHA CECILIA OSPINA TRIANA",39654684,"MARTHA CECILIA OSPINA TRIANA",39654684,null,"https://community.secop.gov.co/Public/Tendering/OpportunityDetail/Index?noticeUID=CO1.NTC.1118094&isFromPublicArea=True&isModal=False","PRESTAR SERVICIO DE APOYO A LA GESTION A TRAVES DE LA ATENCION AL PUBLICO DESDE LA RECEPCION DE LAS INSPECCIONES DE POLICIA DE LA ALCALDIA LOCAL DE KENNEDY","INVERSIÓN ",624,27467000,1363,"Fortalecimiento de la gestión local y de las acciones de vigilancia y control","2020-02-18","2020-02-21","2021-02-28",27467000,11,2497000,655,27467000,"LEONARDO ALEXANDER RODRíCUEZ LÓPÉZ","GUSTAVO VANEGAS RUIZ","Inspecciones","310 47 994000103780","2020-02-18","2021-03-07","NA",0,"NA","NA","NA","NA","NA","2021-01-01",2,"MESES",4994000,"2021-01-01",2,"MESES","NA","NA","NA","NA"]
["CONTRATACION DIRECTA","Contratos de prestación de servicios","EN EJECUCION","FDLK-CD-14-2020","CPS-014-2020",{"$f":"VLOOKUP(E20,[1]Hoja1!D$3:E$393,2,0)","v":0.99195710455764075},"XIMENA ANDREA APONTE RINCON",1069741350,"XIMENA ANDREA APONTE RINCON",1069741350,null,"https://community.secop.gov.co/Public/Tendering/OpportunityDetail/Index?noticeUID=CO1.NTC.1122682&isFromPublicArea=True&isModal=False","PRESTAR SUS SERVICIOS PROFESIONALES PARA EL APOYO DE LA ETAPA DE COBRO PERSUASIVO DE LOS PROCESOS SANCIONATORIOS A CARGO DEL GRUPO DEL ÁREA DE GESTIÓN POLICIVA JURIDICA DE LA ALCALDÍA LOCAL DE KENNEDY","INVERSIÓN ",609,57876000,1363,"Fortalecimiento de la gestión local y de las acciones de vigilancia y control","2020-02-20","2020-02-21","2021-02-28",57876000,10.5,5512000,663,57876000,"LEONARDO ALEXANDER RODRíCUEZ LÓPÉZ","NORMA LETICIA GUZMAN RIMOLLI","GESTION POLICIVA Y JURIDICA","310 47 994000103865","20/02/2020","06707/2021","NA",0,"NA","NA","NA","NA","NA","2021-01-01",2,"MESES",11024000,"2021-01-01",2,"MESES","NA","NA","NA","NA"]
["CONTRATACION DIRECTA","Contratos de prestación de servicios","TERMINADO","FDLK-CD-15-2020","CPS-015-2020",{"$f":"VLOOKUP(E21,[1]Hoja1!D$3:E$393,2,0)","v":1},"CATALINA ESPERANZA CORTES GONZALEZ",1012327086,"CATALINA ESPERANZA CORTES GONZALEZ",1012327086,null,"https://community.secop.gov.co/Public/Tendering/OpportunityDetail/Index?noticeUID=CO1.NTC.1125662&isFromPublicArea=True&isModal=False","PRESTACIÓN DE SERVICIOS PROFESIONALES PARA PARA LA OPERACIÓN, PRESTACIÓN SEGUIMIENTO Y CUMPLIMIENTO DE LOS PROCEDIMIENTOS ADMINISTRATIVOS, OPERATIVOS Y PROGRAMÁTICOS DEL SERVICIO APOYO ECONÓMICO TIPO C, QUE CONTRIBUYAN A LA GARANTÍA DE LOS DERECHOS DE LA POBLACIÓN MAYOR EN EL MARCO DE LA POLÍTICA PÚBLICA SOCIAL PARA EL ENVEJECIMIENTO Y LA VEJEZ EN EL DISTRITO CAPITAL A CARGO DE LA ALCALDÍA LOCAL DE KENNEDY","INVERSIÓN ",627,"22.048.000",1378,"Igualdad y autonomía para una Kennedy incluyente","2020-02-21","2020-02-28","2020-08-27",20684000,4,5171000,689,20684000,"LEONARDO ALEXANDER RODRíCUEZ LÓPÉZ","GIUSSEPE SALVATORE SCOPPETTA TORRES","PLANEACION","310 47 994000104070","21/02/2020","27/12/2020","NA",0,"NA","NA","NA","NA","NA","2020-06-26",60,"DIAS",10342000,"2020-06-26",60,"DIAS","NA","NA","NA","NA"]
["CONTRATACION DIRECTA","Contratos de prestación de servicios","TERMINADO","FDLK-CD-16-2020","CPS-016-2020",{"$f":"VLOOKUP(E22,[1]Hoja1!D$3:E$393,2,0)","v":1},"GIUSEPPE SALVATORE SCOPPETTA TORRES",79791538,"GIUSEPPE SALVATORE SCOPPETTA TORRES",79791538,null,"https://community.secop.gov.co/Public/Tendering/OpportunityDetail/Index?noticeUID=CO1.NTC.1126096&isFromPublicArea=True&isModal=False","PRESTACIÓN DE SERVICIOS PROFESIONALES PARA LIDERAR Y GARANTIZAR LA IMPLEMENTACIÓN Y SEGUIMIENTO DE LOS PROCESOS Y PROCEDIMIENTOS DEL SERVICIO SOCIAL.","INVERSIÓN ",626,"22.824.000",1378,"Igualdad y autonomía para una Kennedy incluyente","2020-02-21","2020-02-25","2020-08-23",22824000,4,5706000,690,22824000,"LEONARDO ALEXANDER RODRíCUEZ LÓPÉZ","MARIA DEL PILAR MUJICA SANDOVAL","PLANEACION","310 47 994000103913","24/272020","27/12/2020","NA",0,"NA","NA","NA","NA","NA","2020-06-23",60,"DIAS",11412000,"2020-06-23",60,"DIAS","NA","NA","NA","NA"]
["CONTRATACION DIRECTA","Contratos de prestación de servicios","TERMINADO","FDLK-CD-17-2020","CPS-017-2020",{"$f":"VLOOKUP(E23,[1]Hoja1!D$3:E$393,2,0)","v":1},"SONIA ELIZABETH ALVAREZ HIGUERA",52409752,"SONIA ELIZABETH ALVAREZ HIGUERA",52409752,null,"https://community.secop.gov.co/Public/Tendering/OpportunityDetail/Index?noticeUID=CO1.NTC.1131430&isFromPublicArea=True&isModal=False","PRESTACIÓN DE SERVICIOS PROFESIONALES PARA PARA LA OPERACIÓN, PRESTACIÓN SEGUIMIENTO Y CUMPLIMIENTO DE LOS PROCEDIMIENTOS ADMINISTRATIVOS, OPERATIVOS Y PROGRAMÁTICOS DEL SERVICIO APOYO ECONÓMICO TIPO C, QUE CONTRIBUYAN A LA GARANTÍA DE LOS DERECHOS DE LA POBLACIÓN MAYOR EN EL MARCO DE LA POLÍTICA PÚBLICA SOCIAL PARA EL ENVEJECIMIENTO Y LA VEJEZ EN EL DISTRITO CAPITAL A CARGO DE LA ALCALDÍA LOCAL DE KENNEDY","INVERSIÓN ",628,22048000,1378,"Igualdad y autonomía para una Kennedy incluyente","2020-02-25","2020-02-28","2020-06-27",20684000,4,5171000,720,20684000,"LEONARDO ALEXANDER RODRíCUEZ LÓPÉZ","GIUSSEPE SALVATORE SCOPPETTA TORRES","PLANEACION","310 47 994000103968","25/02/2020","29/12/2020","NA",0,"NA","NA","NA","NA","NA","NA","NA","NA","NA","NA","NA","NA","NA","NA","NA","NA"]
["CONTRATACION DIRECTA","Contratos de prestación de servicios","TERMINADO","FDLK-CD-18-2020","CPS-018-2020",{"$f":"VLOOKUP(E24,[1]Hoja1!D$3:E$393,2,0)","v":1},"JUDITH JACKELIN RAMOS ANGULO",1089512891,"JUDITH JACKELIN RAMOS ANGULO",1089512891,null,"https://community.secop.gov.co/Public/Tendering/OpportunityDetail/Index?noticeUID=CO1.NTC.1135035&isFromPublicArea=True&isModal=False","PRESTACIÓN DE SERVICIOS PROFESIONALES APOYANDO AL(A) ALCALDE(SA) LOCAL EN EL FORTALECIMIENTO E INCLUSIÓN DE LAS COMUNIDADES NEGRAS, AFROCOLOMBIANAS Y PALENQUERAS EN EL MARCO DE LA POLÍTICA PÚBLICA DISTRITAL AFRODESCENDIENTES Y LOS ESPACIOS DE PARTICIPACIÓN","INVERSIÓN ",603,22048000,1371,"Fortalecimiento de la participación","2020-02-27","2020-03-04","2020-09-02",22048000,4,5512000,718,22048000,"LEONARDO ALEXANDER RODRíCUEZ LÓPÉZ","DERLY KATHERINE SANCHEZ ","PARTICIPACION","33-46-101022291","27/2/2020","2021-05-01","NA",0,"NA","NA","NA","NA","NA","2020-07-03",60,"DIAS",11024000,"2020-07-03",60,"DIAS","NA","NA","NA","NA"]
["CONTRATACION DIRECTA","Contratos de prestación de servicios","TERMINADO","FDLK-CD-19-2020","CPS-019-2020",{"$f":"VLOOKUP(E25,[1]Hoja1!D$3:E$393,2,0)","v":1},"RAQUEL ANDREA DEVIA HERNANDEZ","53.076.898","RAQUEL ANDREA DEVIA HERNANDEZ","53.076.898",null,"https://community.secop.gov.co/Public/Tendering/OpportunityDetail/Index?noticeUID=CO1.NTC.1135116&isFromPublicArea=True&isModal=False","PRESTACIÓN DE SERVICIOS PROFESIONALES PARA LA OPERACIÓN, PRESTACIÓN SEGUIMIENTO Y CUMPLIMIENTO DE LOS PROCEDIMIENTOS ADMINISTRATIVOS, OPERATIVOS Y PROGRAMÁTICOS DEL SERVICIO APOYO ECONÓMICO TIPO C, QUE CONTRIBUYAN A LA GARANTÍA DE LOS DERECHOS DE LA POBLACIÓN MAYOR EN EL MARCO DE LA POLÍTICA PÚBLICA SOCIAL PARA EL ENVEJECIMIENTO Y LA VEJEZ EN EL DISTRITO CAPITAL A CARGO DE LA ALCALDÍA LOCAL DE KENNEDY","INVERSIÓN ",629,22048000,1378,"Igualdad y autonomía para una Kennedy incluyente","2020-02-27","2020-02-28","2020-06-27",20684000,4,5171000,721,20684000,"LEONARDO ALEXANDER RODRíCUEZ LÓPÉZ","GIUSSEPE SALVATORE SCOPPETTA TORRES","PLANEACION",1146101012838,"27/2/2020","30/12/2020","NA",0,"NA","NA","NA","NA","NA","NA","NA","NA","NA","NA","NA","NA","NA","NA","NA","NA"]
["CONTRATACION DIRECTA","Contratos de prestación de servicios","TERMINADO","FDLK-CD-20-2020","CPS-020-2020",{"$f":"VLOOKUP(E26,[1]Hoja1!D$3:E$393,2,0)","v":1},"HECTOR DUARTE MENDEZ",1030523881,"HECTOR DUARTE MENDEZ",1030523881,null,"https://community.secop.gov.co/Public/Tendering/OpportunityDetail/Index?noticeUID=CO1.NTC.1135915&isFromPublicArea=True&isModal=False","APOYAR JURÍDICAMENTE LA EJECUCIÓN DE LAS ACCIONES REQUERIDAS PARA LA DEPURACIÓN DE LAS ACTUACIONES ADMINISTRATIVAS QUE CURSAN EN LA ALCALDÍA LOCAL.","INVERSIÓN ",665,22048000,1363,"Fortalecimiento de la gestión local y de las acciones de vigilancia y control","2020-02-27","2020-03-02","2020-09-01",22048000,4,5512000,727,22048000,"LEONARDO ALEXANDER RODRíCUEZ LÓPÉZ","NORMA LETICIA GUZMAN RIMOLLI","GESTION POLICIVA Y JURIDICA","21-44-101318698","2020-07-02","2021-07-01","NA",0,"NA","NA","NA","NA","NA","2020-07-01",60,"DIAS",11024000,"2020-07-01",60,"DIAS","NA","NA","NA","NA"]
["CONTRATACION DIRECTA","Contratos de prestación de servicios","TERMINADO","FDLK-CD-21-2020","CPS-021-2020",{"$f":"VLOOKUP(E27,[1]Hoja1!D$3:E$393,2,0)","v":1},"MALEIDY ALEXANDRA MARTÍNEZ CHAVES",52235022,"MALEIDY ALEXANDRA MARTÍNEZ CHAVES",52235022,null,"https://community.secop.gov.co/Public/Tendering/OpportunityDetail/Index?noticeUID=CO1.NTC.1135490&isFromPublicArea=True&isModal=False","PRESTACIÓN DE SERVICIOS PROFESIONALES PARA PARA LA OPERACIÓN, PRESTACIÓN SEGUIMIENTO Y CUMPLIMIENTO DE LOS PROCEDIMIENTOS ADMINISTRATIVOS, OPERATIVOS Y PROGRAMÁTICOS DEL SERVICIO APOYO ECONÓMICO TIPO C, QUE CONTRIBUYAN A LA GARANTÍA DE LOS DERECHOS DE LA POBLACIÓN MAYOR EN EL MARCO DE LA POLÍTICA PÚBLICA SOCIAL PARA EL ENVEJECIMIENTO Y LA VEJEZ EN EL DISTRITO CAPITAL A CARGO DE LA ALCALDÍA LOCAL DE KENNEDY.","INVERSIÓN ",630,22048000,1378,"Igualdad y autonomía para una Kennedy incluyente","2020-02-27","2020-03-06","2020-07-05",20684000,4,5171000,726,20684000,"LEONARDO ALEXANDER RODRíCUEZ LÓPÉZ","GIUSSEPE SALVATORE SCOPPETTA TORRES","PLANEACION","15-44-101224949","27/2/2020","2021-05-01","NA",0,"NA","NA","NA","NA","NA","NA","NA","NA","NA","NA","NA","NA","NA","NA","NA","NA"]
["CONTRATACION DIRECTA","Contratos de prestación de servicios","TERMINADO","FDLK-CD-22-2020","CPS-022-2020",{"$f":"VLOOKUP(E28,[1]Hoja1!D$3:E$393,2,0)","v":1},"JOHN WILLIAM RUIZ VARGAS",80228752,"JOHN WILLIAM RUIZ VARGAS",80228752,null,"https://community.secop.gov.co/Public/Tendering/OpportunityDetail/Index?noticeUID=CO1.NTC.1136783&isFromPublicArea=True&isModal=False","PRESTAR LOS SERVICIOS DE APOYO EN EL MANTENIMIENTO DE LOS INMUEBLES EN LOS CUALES SE DESARROLLE LA MISIONALIDAD DE LA ALCALDÍA LOCAL DE KENNEDY Y LA JUNTA ADMINISTRADORA LOCAL DE KENNEDY.","INVERSIÓN ",693,9988000,1363,"Fortalecimiento de la gestión local y de las acciones de vigilancia y control","2020-02-27","2020-03-02","2020-08-31",9988000,4,2497000,734,9988000,"LEONARDO ALEXANDER RODRíCUEZ LÓPÉZ","MARIA DEL PILAR MUÑOZ TORRES","ADMINISTRATIVO Y FINANCIERO","390 47 994000104084","28/02/2020","2021-03-01","NA",0,"NA","NA","NA","NA","NA","2020-07-01",60,"DIAS",4994000,"2020-07-01",60,"DIAS","NA","NA","NA","NA"]
["CONTRATACION DIRECTA","Contratos de prestación de servicios","TERMINADO","FDLK-CD-23-2020","CPS-023-2020",{"$f":"VLOOKUP(E29,[1]Hoja1!D$3:E$393,2,0)","v":1},"MONICA PATRICIA GUARNIZO DIAZ",1024460834,"MONICA PATRICIA GUARNIZO DIAZ",1024460834,null,"https://community.secop.gov.co/Public/Tendering/OpportunityDetail/Index?noticeUID=CO1.NTC.1136450&isFromPublicArea=True&isModal=False","APOYAR LA GESTIÓN DOCUMENTAL DE LA ALCALDÍA LOCAL, ACOMPAÑANDO AL EQUIPO JURÍDICO DE DEPURACIÓN EN LAS LABORES OPERATIVAS QUE GENERA EL PROCESO DE IMPULSO DE LAS ACTUACIONES ADMINISTRATIVAS EXISTENTES EN LAS DIFERENTES ALCALDÍAS LOCALES","INVERSIÓN ",893,9988000,1363,"Fortalecimiento de la gestión local y de las acciones de vigilancia y control","2020-02-27","2020-03-06","2020-09-05",9988000,4,2497000,728,9988000,"LEONARDO ALEXANDER RODRíCUEZ LÓPÉZ","NORMA LETICIA GUZMAN RIMOLLI","GESTION POLICIVA Y JURIDICA","390 47 99400005214","27/02/2020","2021-10-01","NA",0,"NA","NA","NA","NA","NA","2020-06-26",60,"DIAS",4994000,"2020-06-26",60,"DIAS","NA","NA","NA","NA"]
["CONTRATACION DIRECTA","Contratos de prestación de servicios","TERMINADO","FDLK-CD-24-2020","CPS-024-2020",{"$f":"VLOOKUP(E30,[1]Hoja1!D$3:E$393,2,0)","v":1},"GISELLE ANDREA SAENZ GAITAN",1030625199,"GISELLE ANDREA SAENZ GAITAN",1030625199,null,"https://community.secop.gov.co/Public/Tendering/OpportunityDetail/Index?noticeUID=CO1.NTC.1136698&isFromPublicArea=True&isModal=False","APOYAR LA GESTIÓN DOCUMENTAL DE LA ALCALDÍA LOCAL, ACOMPAÑANDO AL EQUIPO JURÍDICO DE DEPURACIÓN EN LAS LABORES OPERATIVAS QUE GENERA EL PROCESO DE IMPULSO DE LAS ACTUACIONES ADMINISTRATIVAS EXISTENTES EN LAS DIFERENTES ALCALDÍAS LOCALES.","INVERSIÓN ",668,9988000,1363,"Fortalecimiento de la gestión local y de las acciones de vigilancia y control","2020-02-28","2020-03-03","2020-09-02",9988000,4,2497000,755,9988000,"LEONARDO ALEXANDER RODRíCUEZ LÓPÉZ","NORMA LETICIA GUZMAN RIMOLLI","GESTION POLICIVA Y JURIDICA","380-47-994000104145","28/02/202","2020-05-01","NA",0,"NA","NA","NA","NA","NA","2020-07-04",60,"DIAS",4994000,"2020-07-04",60,"DIAS","NA","NA","NA","NA"]
["CONTRATACION DIRECTA","Contratos de prestación de servicios","TERMINADO","FDLK-CD-25-2020","CPS-025-2020",{"$f":"VLOOKUP(E31,[1]Hoja1!D$3:E$393,2,0)","v":1},"LUZBY DAHIANNA ROMERO MANCERA",53155411,"LUZBY DAHIANNA ROMERO MANCERA",53155411,null,"https://community.secop.gov.co/Public/Tendering/OpportunityDetail/Index?noticeUID=CO1.NTC.1138484&isFromPublicArea=True&isModal=False","APOYAR JURÍDICAMENTE LA EJECUCIÓN DE LAS ACCIONES REQUERIDAS PARA LA DEPURACIÓN DE LAS ACTUACIONES ADMINISTRATIVAS QUE CURSAN EN LA ALCALDÍA LOCAL","INVERSIÓN ",610,22048000,1363,"Fortalecimiento de la gestión local y de las acciones de vigilancia y control","2020-02-28","2020-03-03","2020-03-03",22048000,4,5512000,737,22048000,"LEONARDO ALEXANDER RODRíCUEZ LÓPÉZ","NORMA LETICIA GUZMAN RIMOLLI","GESTION POLICIVA Y JURIDICA","380-47-994000104111","28/02/202","2021-09-01","NA",0,"NA","NA","NA","NA","NA","NA","NA","NA","NA","NA","NA","NA","NA","NA","NA","NA"]
["CONTRATACION DIRECTA","Contratos de prestación de servicios","TERMINADO","FDLK-CD-26-2020","CPS-026-2020",{"$f":"VLOOKUP(E32,[1]Hoja1!D$3:E$393,2,0)","v":1},"JUAN ANTONIO DELGADILLO COBOS",16668954,"JUAN ANTONIO DELGADILLO COBOS",16668954,null,"https://community.secop.gov.co/Public/Tendering/OpportunityDetail/Index?noticeUID=CO1.NTC.1138886&isFromPublicArea=True&isModal=False","\tAPOYAR LA GESTIÓN DOCUMENTAL DE LA ALCALDÍA LOCAL, ACOMPAÑANDO AL EQUIPO JURÍDICO DE DEPURACIÓN EN LAS LABORES OPERATIVAS QUE GENERA EL PROCESO DE IMPULSO DE LAS ACTUACIONES ADMINISTRATIVAS EXISTENTES EN LAS DIFERENTES ALCALDÍAS LOCALES","INVERSIÓN ",667,9988000,1363,"Fortalecimiento de la gestión local y de las acciones de vigilancia y control","2020-02-28","2020-03-04","2020-07-04",9988000,4,2497000,740,9988000,"LEONARDO ALEXANDER RODRíCUEZ LÓPÉZ",null,null,"380-47-994000104167","28/02/202","2021-08-01","NA",0,"NA","NA","NA","NA","NA","NA","NA","NA","NA","NA","NA","NA","NA","NA","NA","NA"]
["CONTRATACION DIRECTA","Contratos de prestación de servicios","TERMINADO","FDLK-CD-27-2020","CPS-027-2020",{"$f":"VLOOKUP(E33,[1]Hoja1!D$3:E$393,2,0)","v":1},"WILSON STEVEN LADINO CRIOLLO",1030586777,"WILSON STEVEN LADINO CRIOLLO",1030586777,null,"https://community.secop.gov.co/Public/Tendering/OpportunityDetail/Index?noticeUID=CO1.NTC.1139024&isFromPublicArea=True&isModal=False","\tAPOYAR LA GESTIÓN DOCUMENTAL DE LA ALCALDÍA LOCAL, ACOMPAÑANDO AL EQUIPO JURÍDICO DE DEPURACIÓN EN LAS LABORES OPERATIVAS QUE GENERA EL PROCESO DE IMPULSO DE LAS ACTUACIONES ADMINISTRATIVAS EXISTENTES EN LAS DIFERENTES ALCALDÍAS LOCALES","INVERSIÓN ",705,9988000,1363,"Fortalecimiento de la gestión local y de las acciones de vigilancia y control","2020-02-28","2020-03-03","2020-09-02",9988000,4,2497000,753,9988000,"LEONARDO ALEXANDER RODRíCUEZ LÓPÉZ","NORMA LETICIA GUZMAN RIMOLLI","GESTION POLICIVA Y JURIDICA","380-47-994000104128","28/02/2020","2021-03-01","NA",0,"NA","NA","NA","NA","NA","2020-07-01",60,"DIAS",4994000,"2020-07-01",60,"DIAS","NA","NA","NA","NA"]
["CONTRATACION DIRECTA","Contratos de prestación de servicios","TERMINADO","FDLK-CD-28-2020","CPS-028-2020",{"$f":"VLOOKUP(E34,[1]Hoja1!D$3:E$393,2,0)","v":1},"LILLY LORENA BARBOSA GUANA",53074455,"LILLY LORENA BARBOSA GUANA",53074455,null,"https://community.secop.gov.co/Public/Tendering/OpportunityDetail/Index?noticeUID=CO1.NTC.1138884&isFromPublicArea=True&isModal=False","PRESTAR LOS SERVICIOS PROFESIONALES ESPECIALIZADOS COMO ABOGADO SUSTANCIADOR, PARA APOYAR EL TRÁMITE DE LOS ASUNTOS DEL ÁREA DE GESTIÓN POLICIVA JURÍDICA","INVERSIÓN ",666,31308000,1363,"Fortalecimiento de la gestión local y de las acciones de vigilancia y control","2020-02-28","2020-03-03","2020-09-02",31308000,4,7827000,735,31308000,"LEONARDO ALEXANDER RODRíCUEZ LÓPÉZ","NORMA LETICIA GUZMAN RIMOLLI","GESTION POLICIVA Y JURIDICA","17-46-101014107","28/02/2020","2021-05-01","NA",0,"NA","NA","NA","NA","NA","2020-07-01",60,"DIAS",15654000,"2020-07-01",60,"DIAS","NA","NA","NA","NA"]
["CONTRATACION DIRECTA","Contratos de prestación de servicios","TERMINADO","FDLK-CD-29-2020","CPS-029-2020",{"$f":"VLOOKUP(E35,[1]Hoja1!D$3:E$393,2,0)","v":1},"ANDRES JOSE FUENTES",1102836251,"ANDRES JOSE FUENTES",1102836251,null,"https://community.secop.gov.co/Public/Tendering/OpportunityDetail/Index?noticeUID=CO1.NTC.1138963&isFromPublicArea=True&isModal=False","APOYAR JURÍDICAMENTE LA EJECUCIÓN DE LAS ACCIONES REQUERIDAS PARA LA DEPURACIÓN DE LAS ACTUACIONES ADMINISTRATIVAS QUE CURSAN EN LA ALCALDÍA LOCAL","INVERSIÓN ",707,22048000,1363,"Fortalecimiento de la gestión local y de las acciones de vigilancia y control","2020-02-28","2020-03-04","2020-07-03",22048000,4,5512000,754,22048000,"LEONARDO ALEXANDER RODRíCUEZ LÓPÉZ",{"$error":"#N/A"},"GESTION POLICIVA Y JURIDICA","380-47-994000104134","28/02/2020","2021-05-01","NA",0,"NA","NA","NA","NA","NA","NA","NA","NA","NA","NA","NA","NA","NA","NA","NA","NA"]
["CONTRATACION DIRECTA","Contratos de prestación de servicios","TERMINADO","FDLK-CD-30-2020","CPS-030-2020",{"$f":"VLOOKUP(E36,[1]Hoja1!D$3:E$393,2,0)","v":1},"HILDA ALEXANDRA MORENO MURCIA",1033759343,"HILDA ALEXANDRA MORENO MURCIA",1033759343,null,"https://community.secop.gov.co/Public/Tendering/OpportunityDetail/Index?noticeUID=CO1.NTC.1138899&isFromPublicArea=True&isModal=False","APOYAR LA GESTIÓN DOCUMENTAL DE LA ALCALDÍA LOCAL, ACOMPAÑANDO   AL   EQUIPO JURÍDICO   DE   DEPURACIÓN EN LAS LABORES OPERATIVAS   QUE   GENERA EL PROCESO DE IMPULSO DE LAS ACTUACIONES ADMINISTRATIVAS EXISTENTES EN LAS DIFERENTES ALCALDÍAS LOCALES. ","INVERSIÓN ",692,9988000,1363,"Fortalecimiento de la gestión local y de las acciones de vigilancia y control","2020-02-28","2020-03-06","2020-09-05",9988000,4,2497000,756,9988000,"LEONARDO ALEXANDER RODRíCUEZ LÓPÉZ","NORMA LETICIA GUZMAN RIMOLLI","GESTION POLICIVA Y JURIDICA","21-46-101014581","28/02/2020","2021-03-01","NA",0,"NA","NA","NA","NA","NA","2020-07-03",60,"DIAS",4994000,"2020-07-03",60,"DIAS","NA","NA","NA","NA"]
["CONTRATACION DIRECTA","Contratos de prestación de servicios","TERMINADO","FDLK-CD-31-2020","CPS-031-2020",{"$f":"VLOOKUP(E37,[1]Hoja1!D$3:E$393,2,0)","v":1},"MARIANA OBANDO JIMENEZ",52191279,"MARIANA OBANDO JIMENEZ",52191279,null,"https://community.secop.gov.co/Public/Tendering/OpportunityDetail/Index?noticeUID=CO1.NTC.1139349&isFromPublicArea=True&isModal=False","APOYAR JURÍDICAMENTE LA EJECUCIÓN DE LAS ACCIONES REQUERIDAS PARA LA DEPURACIÓN DE LAS ACTUACIONES ADMINISTRATIVAS QUE CURSAN EN LA ALCALDÍA LOCAL","INVERSIÓN ",664,22048000,1363,"Fortalecimiento de la gestión local y de las acciones de vigilancia y control","2020-02-28","2020-03-04","2020-07-03",22048000,4,5512000,749,22048000,"LEONARDO ALEXANDER RODRíCUEZ LÓPÉZ","NORMA LETICIA GUZMAN RIMOLLI","GESTION POLICIVA Y JURIDICA","380-47-994000104113","28/02/2020","2021-04-01","NA",0,"NA","NA","NA","NA","NA","NA","NA","NA","NA","NA","NA","NA","NA","NA","NA","NA"]
["CONTRATACION DIRECTA","Contratos de prestación de servicios","TERMINADO","FDLK-CD-32-2020","CPS-032-2020",{"$f":"VLOOKUP(E38,[1]Hoja1!D$3:E$393,2,0)","v":1},"YEISSON YAZATH BARAJAS GONZALEZ",7121658,"YEISSON YAZATH BARAJAS GONZALEZ",7121658,null,"https://community.secop.gov.co/Public/Tendering/OpportunityDetail/Index?noticeUID=CO1.NTC.1139664&isFromPublicArea=True&isModal=False","APOYAR TÉCNICAMENTE LAS DISTINTAS ETAPAS DE LOS PROCESOS DE COMPETENCIA DE LA ALCALDÍA LOCAL PARA LA DEPURACIÓN DE ACTUACIONES ADMINISTRATIVAS","INVERSIÓN ",663,26280000,1363,"Fortalecimiento de la gestión local y de las acciones de vigilancia y control","2020-02-28","2020-03-03","2020-09-02",26280000,4,6570000,750,26280000,"LEONARDO ALEXANDER RODRíCUEZ LÓPÉZ","GUSTAVO VANEGAS RUIZ","Inspecciones","17-46-101014115","2021-02-03","2021-04-01","NA",0,"NA","NA","NA","NA","NA","2020-07-02",60,"DIAS",13140000,"2020-07-02",60,"DIAS","NA","NA","NA","NA"]
["CONTRATACION DIRECTA","Contratos de prestación de servicios","TERMINADO","FDLK-CD-33-2020","CPS-033-2020",{"$f":"VLOOKUP(E39,[1]Hoja1!D$3:E$393,2,0)","v":1},"ANA MILENA VELASCO VALENCIA",1113520580,"ANA MILENA VELASCO VALENCIA",1113520580,null,"https://community.secop.gov.co/Public/Tendering/OpportunityDetail/Index?noticeUID=CO1.NTC.1139667&isFromPublicArea=True&isModal=False","PRESTAR LOS SERVICIOS DE APOYO A LA JUNTA ADMINISTRADORA LOCAL DE KENNEDY DE CONFORMIDAD CON EL TRÁMITE DE LOS ASUNTOS DE SU COMPETENCIA","INVERSIÓN ",706,9988000,1363,"Fortalecimiento de la gestión local y de las acciones de vigilancia y control","2020-02-28","2020-03-04","2020-07-03",9988000,4,2497000,751,9988000,"LEONARDO ALEXANDER RODRíCUEZ LÓPÉZ","SANDRA LILIANA CORREDOR BUITRAGO","JAL","380-47-994000104148","28/02/2020","2021-03-01","NA",0,"NA","NA","NA","NA","NA","NA","NA","NA","NA","NA","NA","NA","NA","NA","NA","NA"]
["CONTRATACION DIRECTA","Contratos de prestación de servicios","TERMINADO","FDLK-CD-34-2020","CPS-034-2020",{"$f":"VLOOKUP(E40,[1]Hoja1!D$3:E$393,2,0)","v":1},"ELIZABETH SANCHEZ CASTILLO",52774413,"ELIZABETH SANCHEZ CASTILLO",52774413,null,"https://community.secop.gov.co/Public/Tendering/OpportunityDetail/Index?noticeUID=CO1.NTC.1146867&isFromPublicArea=True&isModal=False","PRESTAR LOS SERVICIOS TÉCNICOS PARA LA OPERACIÓN, SEGUIMIENTO Y CUMPLIMIENTO DE LOS PROCESOS Y PROCEDIMIENTOS DEL SERVICIO APOYOS PARA LA SEGURIDAD ECONÓMICA TIPO C, REQUERIDOS PARA EL OPORTUNO Y ADECUADO REGISTRO, CRUCE Y REPORTE DE LOS DATOS EN EL SISTEMA MISIONAL SIRBE, QUE CONTRIBUYAN A LA GARANTÍA DE LOS DERECHOS DE LA POBLACIÓN MAYOR EN EL MARCO DE LA POLÍTICA PÚBLICA SOCIAL PARA EL ENVEJECIMIENTO Y LA VEJEZ EN EL DISTRITO CAPITAL A CARGO DE LA ALCALDÍA LOCAL DE KENNEDY","INVERSIÓN ",710,13432000,1378,"Igualdad y autonomía para una Kennedy incluyente","2020-03-04","2020-03-12","2020-09-11",13432000,4,3358000,768,13432000,"LEONARDO ALEXANDER RODRíCUEZ LÓPÉZ","GIUSSEPE SALVATORE SCOPPETTA TORRES","PLANEACION","64-44-101017768","2020-04-03","15/1/2021","NA",0,"NA","NA","NA","NA","NA","2020-07-10",60,"DIAS",6716000,"2020-07-10",60,"DIAS","NA","NA","NA","NA"]
["CONTRATACION DIRECTA","Contratos de prestación de servicios","TERMINADO","FDLK-CD-35-2020","CPS-035-2020",{"$f":"VLOOKUP(E41,[1]Hoja1!D$3:E$393,2,0)","v":1},"YURI ANDREA BRAHAM MORENO","53.015.125","YURI ANDREA BRAHAM MORENO","53.015.125",null,"https://community.secop.gov.co/Public/Tendering/OpportunityDetail/Index?noticeUID=CO1.NTC.1157752&isFromPublicArea=True&isModal=False","APOYAR JURÍDICAMENTE LA EJECUCIÓN DE LAS ACCIONES REQUERIDAS PARA EL TRÁMITE E IMPULSO PROCESAL DE LAS ACTUACIONES CONTRAVENCIONALES Y/O QUERELLAS QUE CURSEN EN LAS INSPECCIONES DE POLICÍA DE LA LOCALIDAD.","INVERSIÓN ",715,16800000,1363,"Fortalecimiento de la gestión local y de las acciones de vigilancia y control","2020-03-11","2020-03-13","2020-09-12",16800000,4,4200000,781,16800000,"LEONARDO ALEXANDER RODRíCUEZ LÓPÉZ","GUSTAVO VANEGAS RUIZ","Inspecciones","380-47-994000104-392","2020-12-03","21/01/2021","NA",0,"NA","NA","NA","NA","NA","2020-07-10",60,"DIAS",8400000,"2020-07-10",60,"DIAS","NA","NA","NA","NA"]
["CONTRATACION DIRECTA","Contratos de prestación de servicios","TERMINADO","FDLK-CD-36-2020","CPS-036-2020",{"$f":"VLOOKUP(E42,[1]Hoja1!D$3:E$393,2,0)","v":1},"ELICED FERNANDA AFANADOR MONTAÑEZ","1.090.381.635 ","ELICED FERNANDA AFANADOR MONTAÑEZ","1.090.381.635 ",null,"https://community.secop.gov.co/Public/Tendering/OpportunityDetail/Index?noticeUID=CO1.NTC.1157683&isFromPublicArea=True&isModal=False","APOYAR ADMINISTRATIVA Y ASISTENCIALMENTE A LAS INSPECCIONES DE POLICÍA DE LA LOCALIDAD DE KENNEDY","INVERSIÓN ",713,9988000,1363,"Fortalecimiento de la gestión local y de las acciones de vigilancia y control","2020-03-11","2020-03-13","2020-09-15",9988000,4,2497000,788,9988000,"LEONARDO ALEXANDER RODRíCUEZ LÓPÉZ","GUSTAVO VANEGAS RUIZ","Inspecciones","380-47-994000104407","2020-12-03","15/01/2021","NA",0,"NA","NA","NA","NA","NA","2020-07-15",60,"DIAS",4994000,"2020-07-15",60,"DIAS","NA","NA","NA","NA"]
["CONTRATACION DIRECTA","Contratos de prestación de servicios","TERMINADO","FDLK-CD-37-2020","CPS-037-2020",{"$f":"VLOOKUP(E43,[1]Hoja1!D$3:E$393,2,0)","v":1},"ANDREA MILENA ZABALA CARO","1.136.883.308","ANDREA MILENA ZABALA CARO","1.136.883.308",null,"https://community.secop.gov.co/Public/Tendering/OpportunityDetail/Index?noticeUID=CO1.NTC.1157862&isFromPublicArea=True&isModal=False","APOYAR JURÍDICAMENTE LA EJECUCIÓN DE LAS ACCIONES REQUERIDAS PARA EL TRÁMITE E IMPULSO PROCESAL DE LAS ACTUACIONES CONTRAVENCIONALES Y/O QUERELLAS QUE CURSEN EN LAS INSPECCIONES DE POLICÍA DE LA LOCALIDAD","INVERSIÓN ",722,16800000,1363,"Fortalecimiento de la gestión local y de las acciones de vigilancia y control","2020-03-11","2020-03-16","2020-09-15",16800000,4,4200000,782,16800000,"LEONARDO ALEXANDER RODRíCUEZ LÓPÉZ","GUSTAVO VANEGAS RUIZ","Inspecciones","380-47-994000104379","2020-11-03","15/01/2021","NA",0,"NA","NA","NA","NA","NA","2020-07-10",60,"DIAS",8400000,"2020-07-10",60,"DIAS","NA","NA","NA","NA"]
["CONTRATACION DIRECTA","Contratos de prestación de servicios","TERMINADO","FDLK-CD-38-2020","CPS-038-2020",{"$f":"VLOOKUP(E44,[1]Hoja1!D$3:E$393,2,0)","v":1},"JORGE ANDRÉS MONCALEANO FLORIANO",79748235,"JORGE ANDRÉS MONCALEANO FLORIANO",79748235,null,"https://community.secop.gov.co/Public/Tendering/OpportunityDetail/Index?noticeUID=CO1.NTC.1159066&isFromPublicArea=True&isModal=False","APOYAR TÉCNICAMENTE LAS DISTINTAS ETAPAS DE LOS PROCESOS DE COMPETENCIA DE LAS INSPECCIONES DE POLICÍA DE LA LOCALIDAD, SEGÚN REPARTO.","INVERSIÓN ",727,26280000,1363,"Fortalecimiento de la gestión local y de las acciones de vigilancia y control","2020-03-12","2020-03-17","2020-09-15",26280000,4,6570000,785,26280000,"LEONARDO ALEXANDER RODRíCUEZ LÓPÉZ","GUSTAVO VANEGAS RUIZ","Inspecciones","380-47-994000104418","2020-12-03","28/01/2021","NA",0,"NA","NA","NA","NA","NA","2020-07-15",60,"DIAS",13140000,"2020-07-15",60,"DIAS","NA","NA","NA","NA"]
["CONTRATACION DIRECTA","Contratos de prestación de servicios","TERMINADO","FDLK-CD-39-2020","CPS-039-2020",{"$f":"VLOOKUP(E45,[1]Hoja1!D$3:E$393,2,0)","v":1},"JULIO CESAR VALENCIA RODRÍGUEZ",79151959,"JULIO CESAR VALENCIA RODRÍGUEZ",79151959,null,"https://community.secop.gov.co/Public/Tendering/OpportunityDetail/Index?noticeUID=CO1.NTC.1159186&isFromPublicArea=True&isModal=False","APOYAR TÉCNICAMENTE LAS DISTINTAS ETAPAS DE LOS PROCESOS DE COMPETENCIA DE LAS INSPECCIONES DE POLICÍA DE LA LOCALIDAD, SEGÚN REPARTO.","INVERSIÓN ",714,26280000,1363,"Fortalecimiento de la gestión local y de las acciones de vigilancia y control","2020-03-12","2020-03-16","2020-09-16",26280000,4,6570000,786,26280000,"LEONARDO ALEXANDER RODRíCUEZ LÓPÉZ","GUSTAVO VANEGAS RUIZ","Inspecciones","380 47 994000104419","2020-11-03","15/01/2021","NA",0,"NA","NA","NA","NA","NA","2020-07-16",60,"DIAS",13140000,"2020-07-16",60,"DIAS","NA","NA","NA","NA"]
["CONTRATACION DIRECTA","Contratos de prestación de servicios","TERMINADO","FDLK-CD-40-2020","CPS-040-2020",{"$f":"VLOOKUP(E46,[1]Hoja1!D$3:E$393,2,0)","v":1},"GUILLERMO ALBERTO RAMIREZ DUQUE","79.627.358","GUILLERMO ALBERTO RAMIREZ DUQUE","79.627.358",null,"https://community.secop.gov.co/Public/Tendering/OpportunityDetail/Index?noticeUID=CO1.NTC.1159579&isFromPublicArea=True&isModal=False","APOYAR TÉCNICAMENTE LAS DISTINTAS ETAPAS DE LOS PROCESOS DE COMPETENCIA DE LAS INSPECCIONES DE POLICÍA DE LA LOCALIDAD, SEGÚN REPARTO","INVERSIÓN ",730,26280000,1363,"Fortalecimiento de la gestión local y de las acciones de vigilancia y control","2020-03-12","2020-03-16","2020-09-25",26280000,4,6570000,787,26280000,"LEONARDO ALEXANDER RODRíCUEZ LÓPÉZ","GUSTAVO VANEGAS RUIZ","Inspecciones","380 47 994000104413","2020-12-03","25/1/2021","NA",0,"NA","NA","NA","NA","NA","2020-07-26",60,"DIAS",13140000,"2020-07-26",60,"DIAS","NA","NA","NA","NA"]
["CONTRATACION DIRECTA","Contratos de prestación de servicios","TERMINADO","FDLK-CD-41-2020","CPS-041-2020",{"$f":"VLOOKUP(E47,[1]Hoja1!D$3:E$393,2,0)","v":1},"MANUEL ALEJANDRO BAEZ QUIROGA",1016020116,"MANUEL ALEJANDRO BAEZ QUIROGA",1016020116,null,"https://community.secop.gov.co/Public/Tendering/OpportunityDetail/Index?noticeUID=CO1.NTC.1159185&isFromPublicArea=True&isModal=False","APOYAR TÉCNICAMENTE LAS DISTINTAS ETAPAS DE LOS PROCESOS DE COMPETENCIA DE LAS INSPECCIONES DE POLICÍA DE LA LOCALIDAD, SEGÚN REPARTO","INVERSIÓN ",729,26280000,1363,"Fortalecimiento de la gestión local y de las acciones de vigilancia y control","2020-03-12","2020-03-16","2020-09-15",26280000,4,6570000,789,26280000,"LEONARDO ALEXANDER RODRíCUEZ LÓPÉZ","GUSTAVO VANEGAS RUIZ","Inspecciones","380 47 994000104413","13/3/2020","23/01/2021","NA",0,"NA","NA","NA","NA","NA","2020-07-15",60,"DIAS",13140000,"2020-07-15",60,"DIAS","NA","NA","NA","NA"]
["CONTRATACION DIRECTA","Contratos de prestación de servicios","TERMINADO","FDLK-CD-42-2020","CPS-042-2020",{"$f":"VLOOKUP(E48,[1]Hoja1!D$3:E$393,2,0)","v":1},"LUZ ALEJANDRA ORTIZ URREA",1122130762,"LUZ ALEJANDRA ORTIZ URREA",1122130762,null,"https://community.secop.gov.co/Public/Tendering/OpportunityDetail/Index?noticeUID=CO1.NTC.1159633&isFromPublicArea=True&isModal=False","APOYAR ADMINISTRATIVA Y ASISTENCIALMENTE A LAS INSPECCIONES DE POLICÍA DE LA LOCALIDAD DE KENNEDY","INVERSIÓN ",726,9988000,1363,"Fortalecimiento de la gestión local y de las acciones de vigilancia y control","2020-03-12","2020-03-17","2020-09-16",9988000,4,2497000,790,9988000,"LEONARDO ALEXANDER RODRíCUEZ LÓPÉZ","GUSTAVO VANEGAS RUIZ","Inspecciones","380-47-994000104446","21/3/2020","18/01/2021","NA",0,"NA","NA","NA","NA","NA","2020-07-15",60,"DIAS",4994000,"2020-07-15",60,"DIAS","NA","NA","NA","NA"]
["MINIMA CUANTIA","Compra y venta de suministros","TERMINADO","FDLK-MC-1-2020","CCV-43-2020",{"$f":"VLOOKUP(E49,[1]Hoja1!D$3:E$393,2,0)","v":1},"INGENIERIA ELECTRONICA Y SISTEMAS","800.005.014-8","LUIS ALBERTO AGUDELO ROA",19213764,null,"https://community.secop.gov.co/Public/Tendering/OpportunityDetail/Index?noticeUID=CO1.NTC.1155795&isFromPublicArea=True&isModal=False","ADQUISICIÓN DE ACCESORIOS E INSUMOS PARA LA CARNETIZACIÓN DE LOS SERVIDORES DEL FONDO DE DESARROLLO LOCAL DE KENNEDY","FUNCIONAMIENTO",607,6265979,3,"Servicios ded publicidad y  el suministro o tiempo publicitario","2020-03-20","2020-05-26","2020-06-25",6265979,1,6265979,836,6265979,"LEONARDO ALEXANDER RODRíCUEZ LÓPÉZ","JANNETH ROZO MONTILLA","NA","21-44-101320278","2020-03-20","2020-10-16","NA",0,"NA","NA","NA","NA","NA","NA","NA","NA","NA","NA","NA","NA","NA","NA","NA","NA"]
["CONTRATACION DIRECTA","Contratos de prestación de servicios","TERMINADO","FDLK-CD-44-2020","CPS-044-2020",{"$f":"VLOOKUP(E50,[1]Hoja1!D$3:E$393,2,0)","v":1},"MARTHA CECILIA ARRIOLA BECERRA",1018424460,"MARTHA CECILIA ARRIOLA BECERRA",1018424460,null,"https://community.secop.gov.co/Public/Tendering/OpportunityDetail/Index?noticeUID=CO1.NTC.1187304&isFromPublicArea=True&isModal=False","\tPRESTAR SUS SERVICIOS PROFESIONALES APOYANDO A LA ALCALDÍA LOCAL DE KENNEDY LLEVANDO A CABO LAS ACCIONES PERTINENTES PARA APOYAR LA ATENCIÓN A LA POBLACIÓN VÍCTIMA DEL CONFLICTO ARMADO BAJO CRITERIOS DE ENFOQUE DIFERENCIAL, DESDE LOS CENTROS LOCALES DE ATENCIÓN A VÍCTIMAS CLAV EXISTENTES EN LA LOCALIDAD, CON EL FIN DE FORTALECER EL COMPONENTE DE ASISTENCIA Y ATENCIÓN DEL PLAN LOCAL DE DESARROLLO 2017-2020","INVERSIÓN ",755,49608000,1381,"Kennedy mejor para las víctimas, la paz y la reconciliación","2020-04-01","2020-04-06","2020-12-31",49608000,9,5512000,837,49608000,"LEONARDO ALEXANDER RODRíCUEZ LÓPÉZ","SINDY JHOANA TORRES ALVAREZ","PLANEACION",1246101036475,"2020-01-04","2021-10-07","2020-08-01","2020-10-01",61,"DIAS","NA","NA","NA","NA","NA","NA","NA","NA","NA","NA","NA","NA","NA","NA"]
["CONTRATACION DIRECTA","Contratos de prestación de servicios","TERMINADO","FDLK-CD-45-2020","CPS-045-2020",{"$f":"VLOOKUP(E51,[1]Hoja1!D$3:E$393,2,0)","v":1},"SANDRA PATRICIA PINILLA DIAZ",52634654,"SANDRA PATRICIA PINILLA DIAZ",52634654,null,"https://community.secop.gov.co/Public/Tendering/OpportunityDetail/Index?noticeUID=CO1.NTC.1189941&isFromPublicArea=True&isModal=False","PRESTAR APOYO EN LOS PROCESOS ADMINISTRATIVOS DEL ALMACÉN DEL FONDO DE DESARROLLO LOCAL DE KENNEDY","INVERSIÓN ",753,9988000,1363,"Fortalecimiento de la gestión local y de las acciones de vigilancia y control","2020-04-03","2020-04-07","2020-08-05",9988000,4,2497000,838,9988000,"LEONARDO ALEXANDER RODRíCUEZ LÓPÉZ","WILSON JAVIER ACERO DIAZ","ALMACEN","380 - 47 - 994000104809","2020-03-04","15/02/2021","NA",0,"NA","NA","NA","NA","NA","NA","NA","NA","NA","NA","NA","NA","NA","NA","NA","NA"]
["CONTRATACION DIRECTA","Contratos de prestación de servicios","TERMINADO","FDLK-CD-46-2020","CPS-046-2020",{"$f":"VLOOKUP(E52,[1]Hoja1!D$3:E$393,2,0)","v":1},"JORGE EDUARDO ARROYO MARLES",79276308,"JORGE EDUARDO ARROYO MARLES",79276308,null,"https://community.secop.gov.co/Public/Tendering/OpportunityDetail/Index?noticeUID=CO1.NTC.1189944&isFromPublicArea=True&isModal=False","PRESTAR APOYO EN LOS PROCESOS ADMINISTRATIVOS DEL ALMACÉN DEL FONDO DE DESARROLLO LOCAL DE KENNEDY","INVERSIÓN ",754,9988000,1363,"Fortalecimiento de la gestión local y de las acciones de vigilancia y control","2020-04-03","2020-04-07","2020-08-05",9988000,4,2497000,839,9988000,"LEONARDO ALEXANDER RODRíCUEZ LÓPÉZ","WILSON JAVIER ACERO DIAZ","ALMACEN","380 - 47 - 994000104810","2020-03-04","15/02/2021","NA",0,"NA","NA","NA","NA","NA","NA","NA","NA","NA","NA","NA","NA","NA","NA","NA","NA"]
["CONTRATACION DIRECTA","Contratos de prestación de servicios","TERMINADO","FDLK-CD-47-2020","CPS-047-2020",{"$f":"VLOOKUP(E53,[1]Hoja1!D$3:E$393,2,0)","v":1},"JEISON ENRIQUE MORA VARGAS",79610780,"JEISON ENRIQUE MORA VARGAS",79610780,null,"https://community.secop.gov.co/Public/Tendering/OpportunityDetail/Index?noticeUID=CO1.NTC.1203334&isFromPublicArea=True&isModal=False","PRESTAR LOS SERVICIOS DE APOYO EN LA CONDUCCIÓN DE LOS VEHÍCULOS LIVIANOS DEL PARQUE AUTOMOTOR DE PROPIEDAD DEL FONDO DE DESARROLLO LOCAL DE KENNEDY","INVERSIÓN ",775,49940000,1363,"Fortalecimiento de la gestión local y de las acciones de vigilancia y control","2020-04-14","2020-04-16","2020-08-15",9988000,4,2497000,854,9988000,"LEONARDO ALEXANDER RODRíCUEZ LÓPÉZ","NILBA ALIET AREVALO CASTELLANOS","ALMACEN","380-47-994000104894","14/4/2020","22/04/2011","NA",0,"NA","NA","NA","NA","NA","NA","NA","NA","NA","NA","NA","NA","NA","NA","NA","NA"]
["CONTRATACION DIRECTA","Contratos de prestación de servicios","TERMINADO","FDLK-CD-48-2020","CPS-048-2020",{"$f":"VLOOKUP(E54,[1]Hoja1!D$3:E$393,2,0)","v":2.7239069111424541E-2},"EMETERIO BETANCOUR FUENTES",19076520,"EMETERIO BETANCOUR FUENTES",19076520,null,"https://community.secop.gov.co/Public/Tendering/OpportunityDetail/Index?noticeUID=CO1.NTC.1204586&isFromPublicArea=True&isModal=False","PRESTAR LOS SERVICIOS TÉCNICO Y ADMINISTRATIVO EN LOS ASUNTOS RELACIONADOS CON MEDIO AMBIENTE EN EL ÁREA DE GESTIÓN POLICIVA JURÍDICA DE LA ALCALDÍA LOCAL DE KENNEDY ","INVERSIÓN ",770,11920000,1363,"Fortalecimiento de la gestión local y de las acciones de vigilancia y control","2020-04-15","2020-04-22","2020-10-21",11920000,4,2980000,858,11920000,"LEONARDO ALEXANDER RODRíCUEZ LÓPÉZ","NORMA LETICIA GUZMAN RIMOLLI","GESTION POLICIVA Y JURIDICA","380-47-994000104900","15/04/2020","24/02/2021","NA",0,"NA","NA","NA","NA","NA","2020-08-22",60,"DIAS",5960000,"2020-08-22",60,"DIAS","NA","NA","NA","NA"]
["CONTRATACION DIRECTA","Contratos de prestación de servicios","TERMINADO","FDLK-CD-49-2020","CPS-049-2020",{"$f":"VLOOKUP(E55,[1]Hoja1!D$3:E$393,2,0)","v":1},"JOHN JAIRO RODRIGUEZ SANTIAGO",79743171,"JOHN JAIRO RODRIGUEZ SANTIAGO",79743171,null,"https://community.secop.gov.co/Public/Tendering/OpportunityDetail/Index?noticeUID=CO1.NTC.1203678&isFromPublicArea=True&isModal=False","PRESTAR LOS SERVICIOS DE APOYO EN LA CONDUCCIÓN DE LOS VEHÍCULOS LIVIANOS DEL PARQUE AUTOMOTOR DE PROPIEDAD DEL FONDO DE DESARROLLO LOCAL DE KENNEDY","INVERSIÓN ",775,49940000,1363,"Fortalecimiento de la gestión local y de las acciones de vigilancia y control","2020-04-15","2020-04-21","2020-09-20",9988000,4,2497000,853,9988000,"LEONARDO ALEXANDER RODRíCUEZ LÓPÉZ","NILBA ALIET AREVALO CASTELLANOS","ALMACEN","380-47-994000104894","14/4/2020","24/4/2021","NA",0,"NA","NA","NA","NA","NA","2020-08-22",30,"DIAS",2497000,"2020-08-22",30,"DIAS","NA","NA","NA","NA"]
["CONTRATACION DIRECTA","Contratos de prestación de servicios","TERMINADO","FDLK-CD-50-2020","CPS-050-2020",{"$f":"VLOOKUP(E56,[1]Hoja1!D$3:E$393,2,0)","v":1},"LUZ VIVIANA CORTES GUAJE",1022405031,"LUZ VIVIANA CORTES GUAJE",1022405031,null,"https://community.secop.gov.co/Public/Tendering/OpportunityDetail/Index?noticeUID=CO1.NTC.1205260&isFromPublicArea=True&isModal=False","PRESTAR LOS SERVICIOS DE APOYO ADMINISTRATIVO Y ASISTENCIAL EN ASUNTOS RELACIONADOS CON MEDIO AMBIENTE EN EL ÁREA DE GESTIÓN POLICIVA JURÍDICA DE LA ALCALDÍA LOCAL DE KENNEDY","INVERSIÓN ",771,9988000,1363,"Fortalecimiento de la gestión local y de las acciones de vigilancia y control","2020-04-16","2020-04-22","2020-08-16",9988000,4,2497000,857,9988000,"LEONARDO ALEXANDER RODRíCUEZ LÓPÉZ","NORMA LETICIA GUZMAN RIMOLLI","GESTION POLICIVA Y JURIDICA",3.80479940001048E+16,"15/4/2020","25/2/2021","NA",0,"NA","NA","NA","NA","NA","NA","NA","NA","NA","NA","NA","NA","NA","NA","NA","NA"]
["CONTRATACION DIRECTA","Contratos de prestación de servicios","TERMINADO","FDLK-CD-51-2020","CPS-051-2020",{"$f":"VLOOKUP(E57,[1]Hoja1!D$3:E$393,2,0)","v":1},"JOHN CAMILO PEÑA GALINDO",1016039921,"JOHN CAMILO PEÑA GALINDO",1016039921,null,"https://community.secop.gov.co/Public/Tendering/OpportunityDetail/Index?noticeUID=CO1.NTC.1205534&isFromPublicArea=True&isModal=False","PRESTAR LOS SERVICIOS DE APOYO EN LA CONDUCCIÓN DE LOS VEHÍCULOS LIVIANOS DEL PARQUE AUTOMOTOR DE PROPIEDAD DEL FONDO DE DESARROLLO LOCAL DE KENNEDY","INVERSIÓN ",775,49940000,1363,"Fortalecimiento de la gestión local y de las acciones de vigilancia y control","2020-04-16","2020-04-21","2020-08-16",9988000,4,2497000,855,9988000,"LEONARDO ALEXANDER RODRíCUEZ LÓPÉZ","NILBA ALIET AREVALO CASTELLANOS","ALMACEN","380-47-994000104907","16/04/2020","22/02/2021","NA",0,"NA","NA","NA","NA","NA","NA","NA","NA","NA","NA","NA","NA","NA","NA","NA","NA"]
["CONTRATACION DIRECTA","CONTRATO INTERADMINISTRATIVO","EN EJECUCION","FDLK-CIA-52-2020","CIA-052-2020",{"$f":"VLOOKUP(E58,[1]Hoja1!D$3:E$393,2,0)","v":0.86263736263736268},"EMPRESA DE TELECOMUNICIACIONES DE BOGOTA S.A.  E.S.P. (ETB S.A. E.S.P)","899.999.115-8"," CAMILO ANDRES OLEA RODRIGUEZ"," 80.504.362",null,"https://community.secop.gov.co/Public/Tendering/OpportunityDetail/Index?noticeUID=CO1.NTC.1205468&isFromPublicArea=True&isModal=False","PRESTAR LOS SERVICIOS DE INTERNET PARA LA ALCALDÍA LOCAL DE KENNEDY-FONDO DE DESARROLLO LOCAL DE KENNEDY y LOS PUNTOS VIVE DIGITAL","FUNCIONAMIENTO",777,74261426,"004/1363","Servicios de telecoumicacion a traves de internet// Fortalecimiento de la gestión local y de las acciones de vigilancia y control","2020-04-16","2020-04-17","2021-04-16",74261426,12,6188452.166666667,856,74261426,"LEONARDO ALEXANDER RODRíCUEZ LÓPÉZ","FREDY ALEXANDER JOYA GRIMALDOS","NA",2201320000189,"2020-04-16","2021-10-16","NA",0,"NA","NA","NA","NA","NA","NA","NA","NA","NA","NA","NA","NA","NA","NA","NA","NA"]
["CONTRATACION DIRECTA","Contratos de prestación de servicios","TERMINADO","FDLK-CD-53-2020","CPS-053-2020",{"$f":"VLOOKUP(E59,[1]Hoja1!D$3:E$393,2,0)","v":1},"CARLOS ALBERTO MORENO LIZARAZO",80154383,"CARLOS ALBERTO MORENO LIZARAZO",80154383,null,"https://community.secop.gov.co/Public/Tendering/OpportunityDetail/Index?noticeUID=CO1.NTC.1215114&isFromPublicArea=True&isModal=False","PRESTAR LOS SERVICIOS DE APOYO ADMINISTRATIVO Y ASISTENCIAL EN ASUNTOS RELACIONADOS CON ESPACIO PÚBLICO Y/O GESTIÓN DEL RIESGO EN EL ÁREA DEGESTIÓN POLICIVA JURÍDICA DE LA ALCALDÍA LOCAL DE KENNEDY","INVERSIÓN ",782,9988000,1363,"Fortalecimiento de la gestión local y de las acciones de vigilancia y control","2020-04-23","2020-04-29","2020-10-28",9988000,4,2497000,860,9988000,"LEONARDO ALEXANDER RODRíCUEZ LÓPÉZ","NORMA LETICIA GUZMAN RIMOLLI","GESTION POLICIVA Y JURIDICA","380-47-994000104989","23/04/2020","28/02/2021","NA",0,"NA","NA","NA","NA","NA","2020-08-22",60,"DIAS",4994000,"2020-08-22",60,"DIAS","NA","NA","NA","NA"]
["CONTRATACION DIRECTA","Contratos de prestación de servicios","EN EJECUCION","FDLK-CD-54-2020","CPS-054-2020",{"$f":"VLOOKUP(E60,[1]Hoja1!D$3:E$393,2,0)","v":0.82271468144044324},"DIANA MARCELA DELGADO JEREZ",1030561127,"DIANA MARCELA DELGADO JEREZ",1030561127,null,"https://community.secop.gov.co/Public/Tendering/OpportunityDetail/Index?noticeUID=CO1.NTC.1225817&isFromPublicArea=True&isModal=False","PRESTAR SERVICIOS PROFESIONALES ESPECIALIZADOS PARA APOYAR AL DESPACHO DE LA ALCALDESA LOCAL EN EL SEGUIMIENTO FINANCIERO, PRESUPUESTAL Y ADMINISTRATIVO DE LOS PROGRAMAS, PROYECTOS Y METAS ESTABLECIDAS EN EL PLAN DE DESARROLLO LOCAL VIGENTE DE LA LOCALIDAD DE KENNEDY","INVERSIÓN ",796,"60.320.000",1363,"Fortalecimiento de la gestión local y de las acciones de vigilancia y control","2020-04-29","2020-05-04","2021-04-30",60320000,8,7540000,866,60320000,"LEONARDO ALEXANDER RODRíCUEZ LÓPÉZ","YEIMY CAROLINA AGUDELO HERNANDEZ","DESPACHO","380-47-994000105034","29/04/2020","17/07/2021","NA",0,"NA","NA","NA","NA","NA","2021-01-01",4,"MESES",30160000,"2021-01-01",4,"MESES","NA","NA","NA","NA"]
["CONTRATACION DIRECTA","Contratos de prestación de servicios","TERMINADO","FDLK-CD-55-2020","CPS-055-2020",{"$f":"VLOOKUP(E61,[1]Hoja1!D$3:E$393,2,0)","v":1},"GILMA PAOLA GRANADOS ROZO",52776073,"GILMA PAOLA GRANADOS ROZO",52776073,null,"https://community.secop.gov.co/Public/Tendering/OpportunityDetail/Index?noticeUID=CO1.NTC.1232561&isFromPublicArea=True&isModal=False","PRESTAR LOS SERVICIOS DE APOYO TÉCNICO Y ADMINISTRATIVO AL DESPACHO DE LA ALCALDÍA LOCAL DE KENNEDY","INVERSIÓN ",802,"30.800.000",1363,"Fortalecimiento de la gestión local y de las acciones de vigilancia y control","2020-05-05","2020-05-06","2020-12-31",30800000,8,3850000,868,30800000,"LEONARDO ALEXANDER RODRíCUEZ LÓPÉZ","FRANCY MILE OVALLE TORRES","DESPACHO","380-47-994000105076","2020-05-05","15/07/2021","NA",0,"NA","NA","YURI ROCIO PEREZ SALAMANCA 1026265865","GILMA PAOLA GRANADOS ROZO","2020-11-17","NA","NA","NA","NA","NA","NA","NA","NA","NA","NA","NA"]
["CONTRATACION DIRECTA","Contratos de prestación de servicios","EN EJECUCION","FDLK-CD-56-2020","CPS-056-2020",{"$f":"VLOOKUP(E62,[1]Hoja1!D$3:E$393,2,0)","v":0.99},"MONICA JOHANNA HERNANDEZ PERAZA",52451276,"MONICA JOHANNA HERNANDEZ PERAZA",52451276,null,"https://community.secop.gov.co/Public/Tendering/OpportunityDetail/Index?noticeUID=CO1.NTC.1225525&isFromPublicArea=True&isModal=False","PRESTAR SUS SERVICIOS PROFESIONALES ESPECIALIZADOS PARA APOYAR JURÍDICAMENTE A LA ALCALDÍA LOCAL DE KENNEDY-FONDO DE DESARROLLO LOCAL DE KENNEDY EN LOS ASUNTOS CONSTITUCIONALES, LEGALES Y REGLAMENTARIOS DE SU COMPETENCIA, PARTICULARMENTE LOS RELACIONADOS CON LA COORDINACIÓN DE LAS ETAPAS PRECONTRACTUAL,  ONTRACTUAL Y POSCONTRACTUAL DE LOS PROCESOS DE CONTRATACIÓN","INVERSIÓN ",795,"68.000.000 ",1363,"Fortalecimiento de la gestión local y de las acciones de vigilancia y control","2020-04-29","2020-05-04","2021-02-28",68000000,8,8500000,863,68000000,"LEONARDO ALEXANDER RODRíCUEZ LÓPÉZ","DIANA MARCELA DELGADO JEREZ","CONTRATACION","21-44-101321987","29/04/2020","2021-07-31","NA",0,"NA","NA","NA","NA","NA","2021-01-01",2,"MESES",17000000,"2021-01-01",2,"MESES","NA","NA","NA","NA"]
["CONTRATACION DIRECTA","Contratos de prestación de servicios","EN EJECUCION","FDLK-CD-57-2020","CPS-057-2020",{"$f":"VLOOKUP(E63,[1]Hoja1!D$3:E$393,2,0)","v":0.99},"ERIKA ANDREA RISCANEVO VIRACACHA",1033731222,"ERIKA ANDREA RISCANEVO VIRACACHA",1033731222,null,"https://community.secop.gov.co/Public/Tendering/OpportunityDetail/Index?noticeUID=CO1.NTC.1226650&isFromPublicArea=True&isModal=False","COORDINAR, LIDERAR Y ASESORAR LOS PLANES Y ESTRATEGIAS DE COMUNICACIÓN INTERNA Y EXTERNA PARA LA DIVULGACION DE LOS PROGRAMAS, PROYECTOS Y ACTIVIDADES DEL DESPACHO Y DE LA ALCALDIA LOCAL","INVERSIÓN ",794,"60.320.000",1363,"Fortalecimiento de la gestión local y de las acciones de vigilancia y control","2020-04-30","2020-05-04","2021-02-28",60320000,8,7540000,864,60320000,"LEONARDO ALEXANDER RODRíCUEZ LÓPÉZ","DIANA MARCELA DELGADO JEREZ","COMUNICACION Y PRENSA","15-44-101226724","30/04/2020","2021-05-07","NA",0,"NA","NA","NA","NA","NA","2021-01-01",2,"MESES",15080000,"2021-01-01",2,"MESES","NA","NA","NA","NA"]
["CONTRATACION DIRECTA","Contratos realizados por medio de la modalidad de Urgencia Manifiesta","TERMINADO","FDLK-CD-58-2020","CPS-058-2020",{"$f":"VLOOKUP(E64,[1]Hoja1!D$3:E$393,2,0)","v":1},"CRUZ ROJA COLOMBIANA SECCIONAL CUNDINAMARCA Y BOGOTÁ",860070301,"GABRIEL CAMERO RAMOS",79367172,null,"k ","LA CRUZ ROJA SE OBLIGA A PRESTAR, A MONTO AGOTABLE, LOS SERVICIOS Y REALIZAR LAS ACCIONES NECESARIAS PARA LA PROVISIÓN Y ENTREGA DE AYUDA HUMANITARIA Y ASISTENCIA PARA LA CONTINGENCIA DE LA POBLACIÓN POBRE Y VULNERABLE DE BOGOTÁ D.C., EN EL MARCO DE LA CONTENCIÓN Y MITIGACIÓN DEL  COVID-19, LA DECLARATORIA DE EMERGENCIA SANITARIA EN TODO EL TERRITORIO NACIONAL Y LA CALAMIDAD PÚBLICA DECLARADA EN LA CIUDAD DE BOGOTÁ D.C. DE ACUERDO A LO ESTABLECIDO EN EL MANUAL OPERATIVO DEL SISTEMA DISTRITAL BOGOTÁ SOLIDARIA EN CASA.","INVERSIÓN ",800,12222307077,1378,"Igualdad y autonomía para una Kennedy incluyente","2020-05-06","2020-05-15","2020-09-15",9777845662,4,2444461415.5,873,12222307077,"YEIMY CAROLINA AGUDELO HERNANDEZ",{"$error":"#N/A"},"NA","18-40-101046627","2020-05-06","2020-09-06","NA",0,"NA","NA","NA","NA","NA","NA","NA","NA","NA","NA","NA","NA","NA","NA","NA","NA"]
["MINIMA CUANTIA","Compra y venta de suministros","TERMINADO","FDLK- MC-3-2020\n","CCV-59-2020",{"$f":"VLOOKUP(E65,[1]Hoja1!D$3:E$393,2,0)","v":1},"SOMMER INTERNACIONAL LTDA.","830.136.416-6","MAURICIO EDUARDO SOLER SALGADO",79838752,null,"https://community.secop.gov.co/Public/Tendering/OpportunityDetail/Index?noticeUID=CO1.NTC.1234620&isFromPublicArea=True&isModal=False","ADQUISICIÓN DE ELEMENTOS E INSUMOS DE PROTECCIÓN Y PREVENCIÓN DE PROPAGACIÓN DEL COVID-19 PARA SERVIDORES Y/O COLABORADORES DEL FONDO DE DESARROLLO LOCAL DE KENNEDY”.","INVERSIÓN ",801,18379009,1363,"Fortalecimiento de la gestión local y de las acciones de vigilancia y control","2020-05-14","2020-05-15","2020-05-30",12713000,0.5,12713000,888,12713000,"YEIMY CAROLINA AGUDELO HERNANDEZ","EDISON JAVIER VELÁSQUEZ RODRÍGUEZ","NA","\t15-46-101016071","2020-05-13","2020-11-30","NA",0,"NA","NA","NA","NA","NA","NA","NA","NA","NA","NA","NA","NA","NA","NA","NA","NA"]
["MINIMA CUANTIA","Compra y venta de suministros","TERMINADO","FDLK- MC-2-2020\n","CCV-60-2020",{"$f":"VLOOKUP(E66,[1]Hoja1!D$3:E$393,2,0)","v":1},"BIM LATINOAMERICA SAS","900.987.336-1","HELDY CATHERINE CALDERON GIRALDO",1053816700,null," ","CONTRATAR EL SUMINISTRO DE LICENCIAMIENTO ADOBE PARA EL GRUPO DE PRENSA Y COMUNICACIONES DE LA ALCALDÍA LOCAL DE KENNEDY","INVERSIÓN ",789,5017811,1363,"Fortalecimiento de la gestión local y de las acciones de vigilancia y control","2020-05-14","2020-05-18","2020-06-17",3918000,1,3918000,889,3918000,"YEIMY CAROLINA AGUDELO HERNANDEZ","SEBASTIAN JOSE PEREZ BERNAL ","NA","\tNB-100129585","2020-05-14","2020-12-18","NA",0,"NA","NA","NA","NA","NA","NA","NA","NA","NA","NA","NA","NA","NA","NA","NA","NA"]
["CONTRATACION DIRECTA","Contratos de prestación de servicios","TERMINADO","FDLK-CD-61-2020","CPS-061-2020",{"$f":"VLOOKUP(E67,[1]Hoja1!D$3:E$393,2,0)","v":1},"ALEXANDER CANTOR CASTILLO",79919129,"ALEXANDER CANTOR CASTILLO",79919129,null,"https://community.secop.gov.co/Public/Tendering/OpportunityDetail/Index?noticeUID=CO1.NTC.1246564&isFromPublicArea=True&isModal=False","PRESTACIÓN DE SERVICIOS PROFESIONALES PARA APOYAR  EL  SEGUIMIENTO  DE  ACTIVIDADES  ENFOCADAS  A  LA  GESTION  AMBIENTAL  EXTERNA  Y  LA MITIGACIONES  DE  IMPACTOS  AMBIENTALES  EN  LA  LOCALIDAD.  ","INVERSIÓN ",834,22048000,1363,"Fortalecimiento de la gestión local y de las acciones de vigilancia y control","2020-04-15","2020-05-21","2020-09-20",22048000,4,5512000,891,22048000,"YEIMY CAROLINA AGUDELO HERNANDEZ","NORMA LETICIA GUZMAN RIMOLLI","GESTION POLICIVA Y JURIDICA",1244101195303,"15/05/2020","31/03/2021","NA",0,"NA","NA","NA","NA","NA","NA","NA","NA","NA","NA","NA","NA","NA","NA","NA","NA"]
["CONTRATACION DIRECTA","Contratos de prestación de servicios","TERMINADO","FDLK-CD-62-2020","CPS-062-2020",{"$f":"VLOOKUP(E68,[1]Hoja1!D$3:E$393,2,0)","v":1},"JOSE FILIBERTO ARDILA MORENO",79509118,"JOSE FILIBERTO ARDILA MORENO",79509118,null,"https://community.secop.gov.co/Public/Tendering/OpportunityDetail/Index?noticeUID=CO1.NTC.1247204&isFromPublicArea=True&isModal=False"," PRESTAR  LOS  SERVICIOS  PROFESIONALES  PARALIDERAR LOS ASUNTOS REFERENTES AL ESPACIO PÚBLICO, VENDEDORES INFORMALES EN LA LOCALIDAD DEKENNEDY Y ACOMPAÑAMIENTO EN OPERATIVOS IVC ","INVERSIÓN ",806,26280000,1363,"Fortalecimiento de la gestión local y de las acciones de vigilancia y control","2020-05-15","2020-05-26","2020-11-25",26280000,4,6570000,890,26280000,"YEIMY CAROLINA AGUDELO HERNANDEZ","NORMA LETICIA GUZMAN RIMOLLI","GESTION POLICIVA Y JURIDICA","380-47-994000105215","15/05/2020","28/03/2021","NA",0,"NA","NA","NA","NA","NA","2020-09-27",60,"MESES",13140000,"2020-09-27",60,"MESES","NA","NA","NA","NA"]
["CONTRATACION DIRECTA","Contratos de prestación de servicios","EN EJECUCION","FDLK-CD-63-2020","CPS-063-2020",{"$f":"VLOOKUP(E69,[1]Hoja1!D$3:E$393,2,0)","v":0.98939929328621912},"PAULA CAMILA CAMARGO VARGAS",1026281012,"PAULA CAMILA CAMARGO VARGAS",1026281012,null,"https://community.secop.gov.co/Public/Tendering/OpportunityDetail/Index?noticeUID=CO1.NTC.1251210&isFromPublicArea=True&isModal=False","“PRESTAR SERVICIOS PROFESIONALES PARA APOYAR JURÍDICAMENTE A LA ALCALDÍA LOCAL DE KENNEDY-FONDO DE DESARROLLO LOCAL DE KENNEDY EN LOS ASUNTOS CONSTITUCIONALES, LEGALES Y REGLAMENTARIOS DE SU COMPETENCIA, PARTICULARMENTE LOS RELACIONADOS CON LAS ETAPAS PRECONTRACTUAL, CONTRACTUAL Y POSCONTRACTUAL DE LOS PROCESOS DE CONTRATACIÓN”.","INVERSIÓN ",821,"46.018.000 ",1363,"Fortalecimiento de la gestión local y de las acciones de vigilancia y control","2020-05-18","2020-05-21","2021-02-28",46018000,7,6574000,896,46018000,"YEIMY CAROLINA AGUDELO HERNANDEZ","MONICA JOHANNA HERNANDEZ PERAZA","CONTRATACION","21-44-101323200","18/5/2020","25/0672021","NA",0,"NA","NA","NA","NA","NA","2020-12-21",70,"DIAS",15339333,"2020-12-21",70,"DIAS","NA","NA","NA","NA"]
["CONTRATACION DIRECTA","Contratos de prestación de servicios","TERMINADO","FDLK-CD-64-2020","CPS-064-2020",{"$f":"VLOOKUP(E70,[1]Hoja1!D$3:E$393,2,0)","v":1},"DIANA JINETH  AVILA RUIZ",52218682,"DIANA JINETH  AVILA RUIZ",52218682,null,"https://community.secop.gov.co/Public/Tendering/OpportunityDetail/Index?noticeUID=CO1.NTC.1251812&isFromPublicArea=True&isModal=False","PRESTAR LOS SERVICIOS DE APOYO AL ÁREA DE GESTIÓN DE DESARROLLO LOCAL PARA LOS ASUNTOS RELACIONADOS CON LOS PROYECTOS DE INFRAESTRUCTURA DE LA ALCALDÍA LOCAL DE KENNEDY Y LOS TRÁMITES DE SU COMPETENCIA","INVERSIÓN ",817,9987744,1367,"Recuperación de la malla vial local","2020-05-19","2020-05-20","2020-09-18",9987744,4,2496936,895,9987744,"YEIMY CAROLINA AGUDELO HERNANDEZ","JOSÉ TARCICIO QUIROGA VELAZQUES","INFRAESTRUCTURA","380-47-994000105286","19/95/2020","25/03/2021","NA",0,"NA","NA","NA","NA","NA","NA","NA","NA","NA","NA","NA","NA","NA","NA","NA","NA"]
["CONTRATACION DIRECTA","Contratos de prestación de servicios","TERMINADO","FDLK-CD-65-2020","CPS-065-2020",{"$f":"VLOOKUP(E71,[1]Hoja1!D$3:E$393,2,0)","v":1},"ANDERSON JAVIER QUINTERO GAITAN",1023880680,"ANDERSON JAVIER QUINTERO GAITAN",1023880680,null,"https://community.secop.gov.co/Public/Tendering/OpportunityDetail/Index?noticeUID=CO1.NTC.1251736&isFromPublicArea=True&isModal=False","PRESTAR SUS SERVICIOS PROFESIONALES PARA APOYAR A LA ALCALDÍA LOCAL DE KENNEDY EN LAS ETAPAS PRECONTRACTUAL, CONTRACTUAL Y POSCONTRACTUAL DEL PROYECTO 1381 KENNEDY MEJOR PARA LAS VÍCTIMAS, LA PAZ Y LA RECONCILIACIÓN TENDIENTE A GARANTIZAR EL CUMPLIMIENTO DEL PLAN DE DESARROLLO LOCAL","INVERSIÓN ",816,"22.048.000 ",1381,"Kennedy mejor para las víctimas, la paz y la reconciliación","2020-05-19","2020-05-20","2020-11-19",22048000,4,5512000,894,22048000,"YEIMY CAROLINA AGUDELO HERNANDEZ","SINDY JHOANA TORRES ALVAREZ","PLANEACION","21-44-101330039","2020-08-24","2021-06-30","NA",0,"NA","NA","CLAUDIA PATRICIA GUARNIZO GUZMAN  CC 65587464","ANDERSON JAVIER QUINTERO GAITAN","2020-08-20","2020-09-20",60,"DIAS",11024000,"2020-09-20",60,"DIAS","NA","NA","NA","NA"]
["CONTRATACION DIRECTA","Contratos de prestación de servicios","EN EJECUCION","FDLK-CD-66-2020","CPS-066-2020",{"$f":"VLOOKUP(E72,[1]Hoja1!D$3:E$393,2,0)","v":0.99272727272727268},"MARÍA DEL PILAR MUJICA SANDOVAL",52535501,"MARÍA DEL PILAR MUJICA SANDOVAL",52535501,null,"https://community.secop.gov.co/Public/Tendering/OpportunityDetail/Index?noticeUID=CO1.NTC.1252527&isFromPublicArea=True&isModal=False","“PRESTAR SUS SERVICIOS PROFESIONALES ESPECIALIZADOS PARA APOYAR AL ÁREA DE GESTIÓN DE DESARROLLO LOCAL DEL FONDO DE DESARROLLO LOCAL DE KENNEDY A FIN DE \nORIENTAR LOS PROCESOS PROGRAMAS Y PROYECTOS QUE EVIDENCIAN EL AVANCE DEL PLAN DE DESARROLLO LOCAL Y LA CONSTRUCCIÓN DEL PLAN DE DESARROLLO LOCAL PARA LA VIGENCIA 2021-2024¨.","INVERSIÓN ",820,"59.500.000",1363,"Fortalecimiento de la gestión local y de las acciones de vigilancia y control","2020-05-19","2020-05-28","2021-02-27",59500000,7,8500000,903,59500000,"YEIMY CAROLINA AGUDELO HERNANDEZ","MARIA DEL PILAR MUÑOZ TORRES","PLANEACION",3.80479940001052E+16,"2020-05-19","2021-03-25","NA",0,"NA","NA","NA","NA","NA","2020-12-28",2,"MESES",17000000,"2020-12-28",2,"MESES","NA","NA","NA","NA"]
["CONTRATACION DIRECTA","Contratos de prestación de servicios","TERMINADO","FDLK-CD-68-2020","CPS-068-2020",{"$f":"VLOOKUP(E73,[1]Hoja1!D$3:E$393,2,0)","v":1},"EDGAR DAVID ARCINIEGAS SANTAMARÍA",1032423911,"EDGAR DAVID ARCINIEGAS SANTAMARÍA",1032423911,null,"https://community.secop.gov.co/Public/Tendering/OpportunityDetail/Index?noticeUID=CO1.NTC.1262712&isFromPublicArea=True&isModal=False","PRESTAR LOS SERVICIOS PROFESIONALES ESPECIALIZADOS A LA ALCALDÍA LOCAL DE KENNEDY EN MATERIA JURÍDICA, EN APOYO DE LA REVISIÓN Y CONCEPTO DE LOS ASUNTOS JURÍDICOS QUE SE REQUIERAN POR PARTE DEL DESPACHO DE LA ALCALDESA LOCAL","INVERSIÓN ",834,"59.500.000",1363,"Fortalecimiento de la gestión local y de las acciones de vigilancia y control","2020-05-27","2020-05-28","2020-12-27",59500000,7,8500000,908,59500000,"YEIMY CAROLINA AGUDELO HERNANDEZ","DIANA MARCELA DELGADO JEREZ","DESPACHO","380-47-994000105417","27/05/2020","30/06/2021","NA",0,"NA","NA","NA","NA","NA","NA","NA","NA","NA","NA","NA","NA","NA","NA","NA","NA"]
["CONTRATACION DIRECTA","Contratos de prestación de servicios","EN EJECUCION","FDLK-CD-69-2020","CPS-069-2020",{"$f":"VLOOKUP(E74,[1]Hoja1!D$3:E$393,2,0)","v":0.98913043478260865},"MARIA NATHALYA DELGADO MUÑOZ",1022360143,"MARIA NATHALYA DELGADO MUÑOZ",1022360143,null,"https://community.secop.gov.co/Public/Tendering/OpportunityDetail/Index?noticeUID=CO1.NTC.1258125&isFromPublicArea=True&isModal=False","“PRESTAR SUS SERVICIOS PROFESIONALES PARA APOYAR AL ÁREA DE GESTIÓN DE DESARROLLO LOCAL DEL FONDO DE DESARROLLO LOCAL DE KENNEDY EN LOS PROCESOS DE FORMULACIÓN y SEGUIMIENTO DE LOS PLANES PROGRAMAS Y PROYECTOS DEL PLAN DE DESARROLLO LOCAL”.","INVERSIÓN ",818,46018000,1363,"Fortalecimiento de la gestión local y de las acciones de vigilancia y control","2020-05-22","2020-05-28","2021-02-28",46018000,7,6574000,904,46018000,"YEIMY CAROLINA AGUDELO HERNANDEZ","MARIA DEL PILAR MUJICA SANDOVAL","PLANEACION","380-47-994000105395","22/5/2'020","2021-03-07","NA",0,"NA","NA","NA","NA","NA","2020-12-28",61,"DIAS",13805400,"2020-12-28",61,"DIAS","NA","NA","NA","NA"]
["CONTRATACION DIRECTA","Contratos de prestación de servicios","EN EJECUCION","FDLK-CD-70-2020","CPS-070-2020",{"$f":"VLOOKUP(E75,[1]Hoja1!D$3:E$393,2,0)","v":0.98913043478260865},"KARLA MACHADO PEREZ",1129566521,"KARLA MACHADO PEREZ",1129566521,null,"https://community.secop.gov.co/Public/Tendering/OpportunityDetail/Index?noticeUID=CO1.NTC.1258227&isFromPublicArea=True&isModal=False","PRESTAR SERVICIOS PROFESIONALES A LA ALCALDÍA LOCAL DE KENNEDY PARA APOYAR LA IMPLEMENTACIÓN DE LAS ESTRATEGÍAS, INICIATIVAS Y PROGRAMAS PARA LA FORMULACIÓN DEL PLAN DE DESARROLLO DISTRITAL 2021-2024 QUE APRUEBE EL CONCEJO DISTRITAL Y EL NUEVO PLAN DE DESARROLLO LOCAL VIGENCIA 2021-2024","INVERSIÓN ",819,46018000,1363,"Fortalecimiento de la gestión local y de las acciones de vigilancia y control","2020-05-22","2020-05-28","2021-02-28",46018000,7,6574000,905,46018000,"YEIMY CAROLINA AGUDELO HERNANDEZ","MARIA DEL PILAR MUJICA SANDOVAL","PLANEACION","380-47-994000105357","22/5/2'020","2021-03-07","NA",0,"NA","NA","NA","NA","NA","2021-02-28",60,"DIAS",13805400,"2021-02-28",60,"DIAS","NA","NA","NA","NA"]
["CONTRATACION DIRECTA","Contratos de prestación de servicios","EN EJECUCION","FDLK-CD-71-2020","CPS-071-2020",{"$f":"VLOOKUP(E76,[1]Hoja1!D$3:E$393,2,0)","v":0.98916967509025266},"CAMILA ANDREA DALEMAN VARGAS",1015420263,"CAMILA ANDREA DALEMAN VARGAS",1015420263,null,"https://community.secop.gov.co/Public/Tendering/OpportunityDetail/Index?noticeUID=CO1.NTC.1257959&isFromPublicArea=True&isModal=False","“PRESTAR LOS SERVICIOS PROFESIONALES A LA ALCALDÍA LOCAL DE KENNEDY EN EL DESARROLLO DE ACTIVIDADES Y TRAMITES ADMINISTRATIVOS RELACIONADOS CON LA PLANEACIÓN Y ESTRUCTURACIÓN DEL PROYECTOS DE INVERSIÓN Y FUNCIONAMIENTO,\nNECESARIOS EN EL ÁREA DE GESTIÓN DE DESARROLLO LOCAL PARA DAR ALCANCE A LAS METAS ESTABLECIDAS EN EL PLAN DE DESARROLLO LOCAL DE KENNEDY VIGENTE”","INVERSIÓN ",832,"29.400.000",1363,"Fortalecimiento de la gestión local y de las acciones de vigilancia y control","2020-05-22","2020-05-27","2021-02-28",29400000,7,4200000,906,29400000,"YEIMY CAROLINA AGUDELO HERNANDEZ","MARIA DEL PILAR MUJICA SANDOVAL","PLANEACION","380-47-994000105356","2020-12-05","2021-10-07","NA",0,"NA","NA","NA","NA","NA","2020-12-27",64,"DIAS",8960000,"2020-12-27",64,"DIAS","NA","NA","NA","NA"]
["CONTRATACION DIRECTA","Contratos de prestación de servicios","EN EJECUCION","FDLK-CD-72-2020","CPS-072-2020",{"$f":"VLOOKUP(E77,[1]Hoja1!D$3:E$393,2,0)","v":0.98913043478260865},"JAMES DUARTE SILVA",80223000,"JAMES DUARTE SILVA",80223000,null,"https://community.secop.gov.co/Public/Tendering/OpportunityDetail/Index?noticeUID=CO1.NTC.1258589&isFromPublicArea=True&isModal=False","“PRESTAR APOYO EN LOS PROCESOS PARA LA ADMINISTRACIÓN DE BIENES DE PROPIEDAD DEL FONDO DE DESARROLLO LOCAL DE KENNEDY Y DE LOS QUE SEAN ASIGNADOS POR LA SECRETARÍA DE GOBIERNO DE ACUERDO A LOS PROCESOS Y PROCEDIMIENTOS ESTABLECIDOS”.","INVERSIÓN ",836,"26.974.885",1363,"Fortalecimiento de la gestión local y de las acciones de vigilancia y control","2020-05-26","2020-05-28","2021-02-28",26974885,7,3853555,907,26974885,"YEIMY CAROLINA AGUDELO HERNANDEZ","YULLIET PATRICIA LLERENA AVENDAÑO","ALMACEN","380 47 994000105380","26/05/2020","2021-10-07","NA",0,"NA","NA","NA","NA","NA","2020-12-28",63,"DIAS",8092466,"2020-12-28",63,"DIAS","NA","NA","NA","NA"]
["CONTRATACION DIRECTA","Contratos de prestación de servicios","EN EJECUCION","FDLK-CD-73-2020","CPS-073-2020",{"$f":"VLOOKUP(E78,[1]Hoja1!D$3:E$393,2,0)","v":0.98897058823529416},"MILENA ARDILA VEGA",1032426008,"MILENA ARDILA VEGA",1032426008,null,"https://community.secop.gov.co/Public/Tendering/OpportunityDetail/Index?noticeUID=CO1.NTC.1267461&isFromPublicArea=True&isModal=False","“PRESTAR LOS SERVICIOS PROFESIONALES A LA ALCALDÍA LOCAL DE KENNEDY EN EL DESARROLLO DE ACTIVIDADES Y TRAMITES ADMINISTRATIVOS RELACIONADOS CON LA PLANEACIÓN Y ESTRUCTURACIÓN DEL PROYECTOS DE INVERSIÓN Y FUNCIONAMIENTO, NECESARIOS EN EL ÁREA DE GESTIÓN DE DESARROLLO LOCAL PARA DAR ALCANCE A LAS METAS ESTABLECIDAS EN EL PLAN DE DESARROLLO LOCAL DE KENNEDY Y LAS NECESIDADES DE FUNCIONAMIENTO”","INVERSIÓN ",835,46018000,1363,"Fortalecimiento de la gestión local y de las acciones de vigilancia y control","2020-05-28","2020-06-01","2021-02-28",46018000,7,6574000,914,46018000,"YEIMY CAROLINA AGUDELO HERNANDEZ","MARIA DEL PILAR MUJICA SANDOVAL","PLANEACION","380 47 994000105445","28/05/2020","30/06/2021","NA",0,"NA","NA","NA","NA","NA","2020-12-29",2,"MESES",13148000,"2020-12-29",2,"MESES","NA","NA","NA","NA"]
["SELECCION ABREVIADA","PRESTACIÓN DE SERVICIOS","EN EJECUCION","FDLK-SAMC-1-2020 \n","CPS-74-2020",{"$f":"VLOOKUP(E79,[1]Hoja1!D$3:E$393,2,0)","v":0.73626373626373631},"UNIÓN TEMPORAL MANTENIMIENTO AUTOMOTOR","901.187.302-0","HERNANDO BULLA ORJUELA",4831,"INVERSIONES EL NORTE SAS NI 900.710.493-9 (50%)/ HERNANDO BULLA ORJUELA CE 4831  (50%)","https://community.secop.gov.co/Public/Tendering/OpportunityDetail/Index?noticeUID=CO1.NTC.1231159&isFromPublicArea=True&isModal=False","CONTRATAR A MONTO AGOTABLE EL MANTENIMIENTO PREVENTIVO Y CORRECTIVO CON SUMINISTRO DE REPUESTOS Y ACCESORIOS NUEVOS, GENUINOS Y ORIGINALES PARA LOS VEHÍCULOS LIVIANOS, DEL FONDO DE DESARROLLO LOCAL DE KENNEDY.","FUNCIONAMIENTO",780,69429757,"3/1363","Servicios de publicidad y el suministro o tiempo publicitario/Fortalecimiento de la gestión local y de las acciones de vigilancia y control","2020-05-26","2020-06-02","2021-06-01",69429757,12,5785813.083333333,916,69429757,"YEIMY CAROLINA AGUDELO HERNANDEZ","YULLIET PATRICIA LLERENA AVENDAÑO","ALMACEN","\t33-44-101200654","2020-07-29","2021-06-01","NA",0,"NA","NA","NA","NA","NA","NA","NA","NA","NA","NA","NA","NA","NA","NA","NA","NA"]
["CONTRATACION DIRECTA","Contratos de prestación de servicios","TERMINADO","FDLK-CD-75-2020","CPS-075-2020",{"$f":"VLOOKUP(E80,[1]Hoja1!D$3:E$393,2,0)","v":1},"ERIKA VANESSA USECHE TRIANA",1024540712,"ERIKA VANESSA USECHE TRIANA",1024540712,null,"https://community.secop.gov.co/Public/Tendering/OpportunityDetail/Index?noticeUID=CO1.NTC.1263604&isFromPublicArea=True&isModal=False","\tPRESTACIÓN DE SERVICIOS PROFESIONALES A LA ALCALDÍA LOCAL DE KENNEDY APOYANDO LAS ETAPAS PRECONTRACTUAL, CONTRACTUAL Y POSTCONTRACTUAL DE LOS PROYECTOS DE DOTACIÓN DE JARDINES INFANTILES Y PREVENCIÓN DE VIOLENCIA INFANTIL Y PROMOCIÓN DEL BUEN TRATO TENDIENTE A GARANTIZAR EL CUMPLIMIENTO DEL PLAN DE DESARROLLO LOCAL","INVERSIÓN ",830,22048000,1365,"Fortalecimiento pedagógico y estructural a jardines infantiles y prevención de\nviolencia infantil y promoción del buen trato","2020-05-28","2020-06-01","2020-09-30",22048000,4,5512000,910,22048000,"YEIMY CAROLINA AGUDELO HERNANDEZ","MARIA DEL PILAR MUJICA SANDOVAL","PLANEACION","15-46-101016271","28/05/2020","2021-05-04","NA",0,"NA","NA","NA","NA","NA","NA","NA","NA","NA","NA","NA","NA","NA","NA","NA","NA"]
["CONTRATACION DIRECTA","Contratos de prestación de servicios","TERMINADO","FDLK-CD-76-2020","CPS-076-2020",{"$f":"VLOOKUP(E81,[1]Hoja1!D$3:E$393,2,0)","v":1},"HECTOR JULIO CEDANO MARTINEZ",1024462252,"HECTOR JULIO CEDANO MARTINEZ",1024462252,null,"https://community.secop.gov.co/Public/Tendering/OpportunityDetail/Index?noticeUID=CO1.NTC.1263605&isFromPublicArea=True&isModal=False","PRESTACIÓN DE SERVICIOS PROFESIONALES A LA ALCALDÍA LOCAL DE KENNEDY, APOYANDO LA FORMULACION Y EJECUCION DE LOS PROCESOS RECREODEPORTIVOS, ARTÍSTICOS Y CULTURALES, TENDIENTE A GARANTIZAR EL CUMPLIMIENTO DEL PLAN DE DESARROLLO LOCAL.","INVERSIÓN ",826,22048000,1362,"Promoción y desarrollo local de la cultura, la recreación y el deporte","2020-05-28","2020-06-02","2020-10-01",22048000,4,5512000,911,22048000,"YEIMY CAROLINA AGUDELO HERNANDEZ","MARIA DEL PILAR MUJICA SANDOVAL","PLANEACION","21-46-101015738","28/05/2020","2021-02-04","NA",0,"NA","NA","NA","NA","NA","NA","NA","NA","NA","NA","NA","NA","NA","NA","NA","NA"]
["CONTRATACION DIRECTA","Contratos de prestación de servicios","EN EJECUCION","FDLK-CD-77-2020","CPS-077-2020",{"$f":"VLOOKUP(E82,[1]Hoja1!D$3:E$393,2,0)","v":0.98909090909090913},"AYDEE MILENA SARMIENTO ORTIZ",52718491,"AYDEE MILENA SARMIENTO ORTIZ",52718491,null,"https://community.secop.gov.co/Public/Tendering/OpportunityDetail/Index?noticeUID=CO1.NTC.1264105&isFromPublicArea=True&isModal=False","PRESTAR LOS SERVICIOS PROFESIONALES ESPECIALIZADOS PARA EL SEGUIMIENTO ADMINISTRATIVO Y FINANCIERO DEL ÁREA DE GESTIÓN DE DESARROLLO LOCAL.","INVERSIÓN ",833,52780000,1363,"Fortalecimiento de la gestión local y de las acciones de vigilancia y control","2020-05-26","2020-05-29","2021-02-28",52780000,7,7540000,912,52780000,"YEIMY CAROLINA AGUDELO HERNANDEZ","DIANA MARCELA DELGADO JEREZ","PLANEACION","11-44-101152497","26/05/2020","30/06/2021","NA",0,"NA","NA","NA","NA","NA","2020-12-29",62,"DIAS",15582667,"2020-12-29",62,"DIAS","NA","NA","NA","NA"]
["CONTRATACION DIRECTA","Contratos de prestación de servicios","TERMINADO","FDLK-CD-78-2020","CPS-078-2020",{"$f":"VLOOKUP(E83,[1]Hoja1!D$3:E$393,2,0)","v":1},"JENIFFER PAOLA MAYORGA SARAZA",1018449693,"JENIFFER PAOLA MAYORGA SARAZA",1018449693,null,"https://community.secop.gov.co/Public/Tendering/OpportunityDetail/Index?noticeUID=CO1.NTC.1268185&isFromPublicArea=True&isModal=False","“PRESTACIÓN DE SERVICIOS PROFESIONALES A LA ALCALDÍA LOCAL DE KENNEDY COORDINANDO LA ARTICULACIÓN, ASISTENCIA Y ACOMPAÑAMIENTO DE LOS PROCESOS DE\nPLANEACIÓN LOCAL, PARA LA PROMOCIÓN DE LA PARTICIPACIÓN DE LAS MUJERES Y DE LA EQUIDAD DE GÉNERO, PARA MATERIALIZAR EN LA LOCALIDAD LAS ESTRATEGIAS DE TERRITORIALIZACIÓN Y TRANSVERSALIZACIÓN DE LA POLÍTICA PUBLICA DE MUJERES Y EQUIDAD DE GÉNERO, PPMYEG.”.","INVERSIÓN ",824,"22.048.000",1371,"Fortalecimiento de la participación","2020-05-28","2020-06-04","2020-10-03",22048000,4,5512000,922,22048000,"YEIMY CAROLINA AGUDELO HERNANDEZ","MARIA DEL PILAR MUJICA SANDOVAL","PARTICIPACION","380 47 994000105459","28/5/2020","2021-03-04","NA",0,"NA","NA","NA","NA","NA","NA","NA","NA","NA","NA","NA","NA","NA","NA","NA","NA"]
["LICITACION PUBLICA","CONTRATO DE PRESTACION DE SERVICIOS","EN EJECUCION","FDLK-LP-1-2020 ","CPS-079-2020",{"$f":"VLOOKUP(E84,[1]Hoja1!D$3:E$393,2,0)","v":0.81492537313432833},"COOPERATIVA DE VIGILANCIA Y SERVICIOS DE BUCARAMANGA CTA - COOVIAM CTA","804.000.353–1","JULIANA MARCELA LUNA CHAVEZ","52.789.684",null,"https://community.secop.gov.co/Public/Tendering/OpportunityDetail/Index?noticeUID=CO1.NTC.1222626&isFromPublicArea=True&isModal=False","PRESTACION DEL SERVICIO DE VIGILANCIA, GUARDA, CUSTODIA, MONITOREO DE ALARMAS Y SEGURIDAD PRIVADA CON ARMAS Y/O SIN ARMAS: MEDIOS TECNOLOGICOS Y CONTROL DE ACCESO PARA LOS/AS USUARIOS / AS, FUNCIONARIOS/ AS, CONTRATISTAS Y PERSONAS EN GENERAL MEDIANTE EL ESTABLECIMIENTO DE CONTROL DE INGRESO Y SALIDA DE LAS INSTALACIONES DE LA ENTIDAD, Y PARA LOS BIENES MUEBLES E INMUEBLES EN LOS CUALES SE DESARROLLE LA MISIONALIDAD DE LA ALCALDIA LOCAL DE KENNEDY Y DE TODOS AQUELLOS POR LOS CUALES LLEGASE A SER","FUNCIONAMIENTO",784,1266958971,"005/1363","Serivios de proteccion (guardas de seguridad) // Fortalecimiento de la gestión local y de las acciones de vigilancia y control","2020-05-28","2020-05-28","2021-04-28",1256518570,11,114228960.90909091,909,1256518570,"YEIMY CAROLINA AGUDELO HERNANDEZ","MARIA DEL PILAR MUÑOZ TORRES","NA","\tCSC-100004807 y CSC-100001270","2020-05-28","2020-04-28","NA",0,"NA","NA","NA","NA","NA","NA","NA","NA",61269661,"NA","NA","NA","NA","NA","NA","NA"]
["CONTRATACION DIRECTA","Contratos de prestación de servicios","EN EJECUCION","FDLK-CD-80-2020","CPS-080-2020",{"$f":"VLOOKUP(E85,[1]Hoja1!D$3:E$393,2,0)","v":0.98897058823529416},"FRANCY MILE OVALLE TORRES",1019036542,"FRANCY MILE OVALLE TORRES",1019036542,null,"https://community.secop.gov.co/Public/Tendering/OpportunityDetail/Index?noticeUID=CO1.NTC.1269519&isFromPublicArea=True&isModal=False","“PRESTAR APOYO PROFESIONAL PARA EL DESARROLLO TÉCNICO Y OPERATIVO DE TODOS LOS PROCESOS ADMINISTRATIVOS DEL DESPACHO DEL FONDO DE DESARROLLO LOCAL DE KENNEDY¨.","INVERSIÓN ",846,"45.500.000 ",1363,"Fortalecimiento de la gestión local y de las acciones de vigilancia y control","2020-05-29","2020-06-01","2021-02-28",45500000,7,6500000,913,45500000,"YEIMY CAROLINA AGUDELO HERNANDEZ","DIANA MARCELA DELGADO JEREZ","DESPACHO","380 47 994000105451","28/5/2020","2021-03-07","NA",0,"NA","NA","NA","NA","NA","2021-01-01",2,"MESES",13000000,"2021-01-01",2,"MESES","NA","NA","NA","NA"]
["CONTRATACION DIRECTA","Contratos de prestación de servicios","TERMINADO","FDLK-CD-81-2020","CPS-081-2020",{"$f":"VLOOKUP(E86,[1]Hoja1!D$3:E$393,2,0)","v":1},"GLORIA ALEJANDRA CASTAÑEDA ALVAREZ",1030546484,"GLORIA ALEJANDRA CASTAÑEDA ALVAREZ",1030546484,null,"https://community.secop.gov.co/Public/Tendering/OpportunityDetail/Index?noticeUID=CO1.NTC.1268658&isFromPublicArea=True&isModal=False","PRESTAR SUS SERVICIOS PROFESIONALES PARA APOYAR A LA ALCALDIA LOCAL DE KENNEDY, DE CONFORMIDAD AL CONVENIO INTERADMINISTRATIVO ESPECIFICO Nro. 1377 de 2016 Y EL DECRETO 633 DE 2017","INVERSIÓN ",856,22048000,1363,"Fortalecimiento de la gestión local y de las acciones de vigilancia y control","2020-05-28","2020-06-02","2020-10-01",22048000,4,5512000,915,22048000,"YEIMY CAROLINA AGUDELO HERNANDEZ","JULIAN ADOLFO RAMIREZ BEDOYA","CASA DEL CONSUMIDOR","380 47 994000105432","28/5/2020","18/04/2021","NA",0,"NA","NA","NA","NA","NA","NA","NA","NA","NA","NA","NA","NA","NA","NA","NA","NA"]
["CONTRATACION DIRECTA","Contratos de prestación de servicios","TERMINADO","FDLK-CD-82-2020","CPS-082-2020",{"$f":"VLOOKUP(E87,[1]Hoja1!D$3:E$393,2,0)","v":1},"CAMILO ANDRES BACCA ARIAS",1022343449,"CAMILO ANDRES BACCA ARIAS",1022343449,null,"https://community.secop.gov.co/Public/Tendering/OpportunityDetail/Index?noticeUID=CO1.NTC.1275366&isFromPublicArea=True&isModal=False","“PRESTACIÓN DE SERVICIOS PROFESIONALES A LA ALCALDÍA LOCAL DE KENNEDY, APOYANDO LA FORMULACION Y EJECUCION DE LOS PROCESOS RECREODEPORTIVOS, ARTÍSTICOS Y CULTURALES, TENDIENTE A GARANTIZAR EL CUMPLIMIENTO DEL PLAN DE DESARROLLO LOCAL.”..","INVERSIÓN ",825,"22.048.000",1362,"Promoción y desarrollo local de la cultura, la recreación y el deporte","2020-06-02","2020-07-29","2020-10-03",22048000,4,5512000,925,22048000,"YEIMY CAROLINA AGUDELO HERNANDEZ","MARIA DEL PILAR MUJICA SANDOVAL","PLANEACION","21-44-101328352","2020-07-30","2021-04-20","NA",0,"NA","NA","DIEGO HERNAN GARCIA BERNAL","CAMILO ANDRES BACCA ARIAS","2020-07-17","NA","NA","NA","NA","NA","NA","NA","NA","NA","NA","NA"]
["CONTRATACION DIRECTA","Contratos de prestación de servicios","EN EJECUCION","FDLK-CD-83-2020","CPS-083-2020",{"$f":"VLOOKUP(E88,[1]Hoja1!D$3:E$393,2,0)","v":0.98880597014925375},"JOSE TARCICIO QUIROGA VELASQUEZ",80362049,"JOSE TARCICIO QUIROGA VELASQUEZ",80362049,null,"https://community.secop.gov.co/Public/Tendering/OpportunityDetail/Index?noticeUID=CO1.NTC.1276123&isFromPublicArea=True&isModal=False","“PRESTAR SUS SERVICIOS PROFESIONALES ESPECIALZIADOS PARA APOYAR A LA ALCALDÍA LOCAL DE KENNEDY EN LA COORDINACION FORMULACION Y SEGUIMIENTO DEL PROYECTO 1367 RECUPERACIÓN DE LA MALLA VIAL LOCAL TENDIENTE A GARANTIZAR EL CUMPLIMIENTO DEL PLAN DE DESARROLLO LOCAL.”.","INVERSIÓN ",847,52500000,1367,"Recuperación de la malla vial local","2020-06-03","2020-06-05","2021-02-28",52500000,7,7500000,923,52500000,"YEIMY CAROLINA AGUDELO HERNANDEZ","DIANA MARCELA DELGADO JEREZ","INFRAESTRUCTURA","15-44-101227900","2020-02-06","30/06/2021","NA",0,"NA","NA","NA","NA","NA","2021-01-01",2,"MESES",15000000,"2021-01-01",2,"MESES","NA","NA","NA","NA"]
["CONTRATACION DIRECTA","Contratos de prestación de servicios","TERMINADO","FDLK-CD-84-2020","CPS-084-2020",{"$f":"VLOOKUP(E89,[1]Hoja1!D$3:E$393,2,0)","v":1},"MELISSA EUGENIA SÁNCHEZ VIDAL",1018420532,"MELISSA EUGENIA SÁNCHEZ VIDAL",1018420532,null,"https://community.secop.gov.co/Public/Tendering/OpportunityDetail/Index?noticeUID=CO1.NTC.1276527&isFromPublicArea=True&isModal=False","PRESTACIÓN DE SERVICIOS PROFESIONALES A LA ALCALDÍA LOCAL DE KENNEDY APOYANDO LA ETAPA PRECONTRACTUAL, CONTRACTUAL Y POSCONTRACTUAL DE LOS PROYECTO EN SALUD TENDIENTE A GARANTIZAR EL CUMPLIMIENTO DEL PLAN DE DESARROLLO LOCAL","INVERSIÓN ",843,22048000,1373,"Fortalecimiento al mejoramiento de la calidad de vida","2020-06-03","2020-06-05","2020-10-04",22048000,4,5512000,924,22048000,"YEIMY CAROLINA AGUDELO HERNANDEZ","MARIA DEL PILAR MUJICA SANDOVAL","PLANEACION","380-47-994000105550","2020-04-06","2021-06-04","NA",0,"NA","NA","NA","NA","NA","NA","NA","NA","NA","NA","NA","NA","NA","NA","NA","NA"]
["CONTRATACION DIRECTA","Contratos de prestación de servicios","TERMINADO","FDLK-CD-85-2020","CPS-085-2020",{"$f":"VLOOKUP(E90,[1]Hoja1!D$3:E$393,2,0)","v":1},"MARITZA RUIZ POSADA",1073678229,"MARITZA RUIZ POSADA",1073678229,null,"https://community.secop.gov.co/Public/Tendering/OpportunityDetail/Index?noticeUID=CO1.NTC.1278734&isFromPublicArea=True&isModal=False","“PRESTAR LOS SERVICIOS PROFESIONALES PARA APOYAR LA GESTIÓN DE LOS ASUNTOS RELACIONADOS CON LA SEGURIDAD CIUDADANA Y LA CONVIVENCIA EN LA LOCALIDAD DE KENNEDY, ASÍ COMO ORGANIZAR Y LIDERAR EL EQUIPO DE GESTORES DE CONVIVENCIA”.","INVERSIÓN ",829,22048000,1376,"Fortalecimiento de seguridad e iniciativa de convivencia en la localidad de\nKennedy","2020-06-05","2020-06-11","2020-10-10",22048000,4,5512000,926,22048000,"YEIMY CAROLINA AGUDELO HERNANDEZ","NORMA LETICIA GUZMAN RIMOLLI","GESTION POLICIVA Y JURIDICA","14-44-101118584","2020-05-06","20/04/2021","NA",0,"NA","NA","NA","NA","NA","NA","NA","NA","NA","NA","NA","NA","NA","NA","NA","NA"]
["CONTRATACION DIRECTA","Contratos de prestación de servicios","TERMINADO","FDLK-CD-88-2020.","CPS-088-2020",{"$f":"VLOOKUP(E91,[1]Hoja1!D$3:E$393,2,0)","v":1},"SANDRA PATRICIA GAITAN FAJARDO ",51933177,"SANDRA PATRICIA GAITAN FAJARDO ",51933177,null,"https://community.secop.gov.co/Public/Tendering/OpportunityDetail/Index?noticeUID=CO1.NTC.1286665&isFromPublicArea=True&isModal=False","PRESTACIÓN DE SERVICIOS PROFESIONALES PARA APOYAR JURÍDICAMENTE A LA ALCALDÍA LOCAL DE KENNEDY-FONDO DE DESARROLLO LOCAL DE KENNEDY EN LOS ASUNTOS CONSTITUCIONALES, LEGALES Y REGLAMENTARIOS DE SU COMPETENCIA, PARTICULARMENTE LOS RELACIONADOS CON EL APOYO A LA COORDINACIÓN DE LAS ETAPAS PRECONTRACTUAL, CONTRACTUAL Y POSCONTRACTUAL DE LOS PROCESOS DE CONTRATACIÓN","INVERSIÓN ",865,25440000,1363,"Fortalecimiento de la gestión local y de las acciones de vigilancia y control","2020-06-10","2020-06-11","2020-10-10",25440000,4,6360000,940,25440000,"YEIMY CAROLINA AGUDELO HERNANDEZ","MONICA JOHANNA HERNANDEZ PERAZA","CONTRATACION","33-44-101201126","10/06/20202","2021-10-04","NA",0,"NA","NA","NA","NA","NA","NA","NA","NA","NA","NA","NA","NA","NA","NA","NA","NA"]
["CONTRATACION DIRECTA","Contratos de prestación de servicios","EN EJECUCION","FDLK-CD-89-2020","CPS-089-2020",{"$f":"VLOOKUP(E92,[1]Hoja1!D$3:E$393,2,0)","v":0.83666666666666667},"SINDY JHOANA TORRES ALVAREZ",1026266387,"SINDY JHOANA TORRES ALVAREZ",1026266387,null,"https://community.secop.gov.co/Public/Tendering/OpportunityDetail/Index?noticeUID=CO1.NTC.1289853&isFromPublicArea=True&isModal=False","“PRESTAR SUS SERVICIOS PROFESIONALES PARA APOYAR A LA ALCALDÍA LOCAL DE KENNEDY EN LA COORDINACION FORMULACION Y SEGUIMIENTO DEL PROYECTO 1381 KENNEDY MEJOR PARA LAS VÍCTIMAS, LA PAZ Y LA RECONCILIACIÓN TENDIENTE A GARANTIZAR EL CUMPLIMIENTO DEL PLAN DE DESARROLLO LOCAL”.","INVERSIÓN ",848,"52.780.000",1381,"Kennedy mejor para las víctimas, la paz y la reconciliación","2020-06-13","2020-06-19","2021-04-15",52780000,7,7540000,951,52780000,"YEIMY CAROLINA AGUDELO HERNANDEZ","MARIA DEL PILAR MUJICA SANDOVAL","PLANEACION","12-46-101037946","16/06/2020","2021-05-07","NA",0,"NA","NA","NA","NA","NA","2021-01-01",105,"DIAS",26390000,"2021-01-01",105,"DIAS","NA","NA","NA","NA"]
["CONTRATACION DIRECTA","Contratos de prestación de servicios","TERMINADO","FDLK-CD-90-2020","CPS-090-2020",{"$f":"VLOOKUP(E93,[1]Hoja1!D$3:E$393,2,0)","v":1},"CRISTIAN RODRIGO BOLAÑOS SOLARTE",1013594088,"CRISTIAN RODRIGO BOLAÑOS SOLARTE",1013594088,null,"https://community.secop.gov.co/Public/Tendering/OpportunityDetail/Index?noticeUID=CO1.NTC.1288358&isFromPublicArea=True&isModal=False","Prestar sus servicios profesionales para apoyar al fondo de desarrollo local de Kennedy, en las etapas precontractual, contractual y poscontractual del proyecto 1365 adecuar jardines infantiles de la localidad de conformidad con el plan de desarrollo local ","INVERSIÓN ",867,"22.048.000 ",1365,"Fortalecimiento pedagógico y estructural a jardines infantiles y prevención de\nviolencia infantil y promoción del buen trato","2020-06-11","2020-06-17","2020-12-16",22048000,4,5512000,948,22048000,"YEIMY CAROLINA AGUDELO HERNANDEZ","JOSÉ TARCICIO QUIROGA VELAZQUES","INFRAESTRUCTURA","380-47-994000105623","2020-11-06","18/03/2021","NA",0,"NA","NA","NA","NA","NA","2020-10-17",60,"DIAS",11024000,"2020-10-17",60,"DIAS","NA","NA","NA","NA"]
["CONTRATACION DIRECTA","Contratos de prestación de servicios","TERMINADO","FDLK-CD-91-2020","CPS-091-2020",{"$f":"VLOOKUP(E94,[1]Hoja1!D$3:E$393,2,0)","v":1},"EDGAR NELSON RESTREPO MORALES",79266164,"EDGAR NELSON RESTREPO MORALES",79266164,null,"https://community.secop.gov.co/Public/Tendering/OpportunityDetail/Index?noticeUID=CO1.NTC.1290535&isFromPublicArea=True&isModal=False","PRESTAR LOS SERVICIOS DE APOYO COMO OPERADOR DE MAQUINARIA RODANTE DE CONSTRUCCIÓN DE PROPIEDAD DEL FONDO DE DESARROLLO LOCAL DE KENNEDY APOYANDO LA EJECUCION DE LOS PROYECTOS DEL ÁREA INFRAESTRUCTURA Y LAS DEMAS ACTIVIDADES QUE SE GENEREN","INVERSIÓN ",853,"9.988.000",1367,"Recuperación de la malla vial local","2020-06-12","2020-06-18","2020-12-17",9988000,4,2497000,950,9988000,"YEIMY CAROLINA AGUDELO HERNANDEZ","JOSÉ TARCICIO QUIROGA VELAZQUES","INFRAESTRUCTURA","380-47-994000105638","2020-06-12","2021-06-18","NA",0,"NA","NA","NA","NA","NA","2020-10-18",60,"DIAS",4994000,"2020-10-18",60,"DIAS","NA","NA","NA","NA"]
["CONTRATACION DIRECTA","Contratos de prestación de servicios","TERMINADO","FDLK-CD-93-2020","CPS-093-2020",{"$f":"VLOOKUP(E95,[1]Hoja1!D$3:E$393,2,0)","v":1},"MARCELA IRENE GONZALEZ BONILLA",52243558,"MARCELA IRENE GONZALEZ BONILLA",52243558,null,"https://community.secop.gov.co/Public/Tendering/OpportunityDetail/Index?noticeUID=CO1.NTC.1293781&isFromPublicArea=True&isModal=False","PRESTAR SUS SERVICIOS PROFESIONALES AL FONDO DE DESARROLLO LOCAL DE KENNEDY COMO APOYO PARA LA DESCONGESTION DE LOS PROCESOS LIQUIDATORIOS EN CURSO Y DEPURACION DE LAS OBLIGACIONES POR PAGAR A CARGO DEL FONDO DE DESARROLLO LOCAL DE KENNEDY","INVERSIÓN ",868,66144000,1363,"Fortalecimiento de la gestión local y de las acciones de vigilancia y control","2020-06-16","2020-06-18","2020-12-17",22048000,4,5512000,945,22048000,"YEIMY CAROLINA AGUDELO HERNANDEZ","GLORIA STELLA ROBALLO OLMOS","CONTRATACION","12-46-101037938","16/06/2020","2021-05-05","NA",0,"NA","NA","NA","NA","NA","2020-10-18",60,"DIAS",11024000,"2020-10-18",60,"DIAS","NA","NA","NA","NA"]
["CONTRATACION DIRECTA","Contratos de prestación de servicios","EN EJECUCION","FDLK-CD-94-2020","CPS-094-2020",{"$f":"VLOOKUP(E96,[1]Hoja1!D$3:E$393,2,0)","v":1},"MARBY YANET MARTINEZ ORTIZ",52149245,"MARBY YANET MARTINEZ ORTIZ",52149245,null,"https://community.secop.gov.co/Public/Tendering/OpportunityDetail/Index?noticeUID=CO1.NTC.1295342&isFromPublicArea=True&isModal=False","“PRESTAR LOS SERVICIOS PROFESIONALES PARA LA OPERACIÓN, PRESTACIÓN, SEGUIMIENTO Y CUMPLIMIENTO DE LOS PROCEDIMIENTOS ADMINISTRATIVOS, OPERATIVOS Y PROGRAMÁTICOS DEL SERVICIO APOYO ECONÓMICO TIPO C, QUE CONTRIBUYAN A LA GARANTÍA DE LOS DERECHOS DE LA POBLACIÓN MAYOR EN EL MARCO DE LA POLÍTICA PÚBLICA SOCIAL PARA EL ENVEJECIMIENTO Y LA VEJEZ EN EL DISTRITO CAPITAL A CARGO DE LA ALCALDÍA LOCAL DE KENNEDY.","INVERSIÓN ",852,"33.632.000 ",1378,"Igualdad y autonomía para una Kennedy incluyente","2020-06-17","2020-06-19","2021-02-15",33632000,8,4204000,952,33632000,"YEIMY CAROLINA AGUDELO HERNANDEZ","GIUSSEPE SALVATORE SCOPPETTA TORRES","PLANEACION","2638179-6","17/6/2020","20/08/2021","NA",0,"NA","NA","NA","NA","NA","2021-01-01",46,"DIAS",6300000,"2021-01-01",46,"DIAS","NA","NA","NA","NA"]
["CONTRATACION DIRECTA","CONTRATO INTERADMINISTRATIVO","TERMINADO","\nFDLK-CIA-96-2020","CD-096-2020",{"$f":"VLOOKUP(E97,[1]Hoja1!D$3:E$393,2,0)","v":1},"EMPRESA DE TELECOMUNICACIONES DE BOGOTA S.A. ESP ETB.","899.999.115-8"," CAMILO ANDRES OLEA RODRIGUEZ"," 80.504.362",null,"https://www.contratos.gov.co/consultas/detalleProceso.do?numConstancia=20-22-16249","PROVEER UNA PLATAFORMA VIRTUAL Y SERVICIOS TECNOLÓGICOS NECESARIOS A LOS FONDOS DE DESARROLLO LOCAL, EN LA REALIZACIÓN DE LAS ASAMBLEAS, EVENTOS Y FOROS DIGITALES, EN EL MARCO DE LOS ENCUENTROS CIUDADANOS, DE ACUERDO CON LOS LINEAMIENTOS ESTRATÉGICOS QUE DETERMINEN LOS FDL","INVERSIÓN ",900,74561378,1371,"Fortalecimiento de la participación","2020-06-20","2020-06-23","2020-07-31",74561378,1,74561378,956,74561378,"YEIMY CAROLINA AGUDELO HERNANDEZ","KARLA MACHADO PÉREZ\n","NA",2019404,"2020-06-20","2023-07-31","NA",0,"NA","NA","NA","NA","NA","NA","NA","NA","NA","NA","NA","NA","NA","NA","NA","NA"]
["CONTRATACION DIRECTA","Contratos de prestación de servicios","EN EJECUCION","FDLK-CD-97-2020","CPS-097-2020",{"$f":"VLOOKUP(E98,[1]Hoja1!D$3:E$393,2,0)","v":0.98790322580645162},"CRISTIAN DARIO DUARTE LESMES",1019016609,"CRISTIAN DARIO DUARTE LESMES",1019016609,null,"https://community.secop.gov.co/Public/Tendering/OpportunityDetail/Index?noticeUID=CO1.NTC.1305914&isFromPublicArea=True&isModal=False","PRESTAR SUS SERVICIOS PROFESIONALES ESPECIALIZADOS A LA ALCALDÍA LOCAL DE KENNEDY DE LOS PROCESOS, PROYECTOS, PROGRAMAS DE DOTACIÓN DE INSTITUCIONES EDUCATIVAS DE LA LOCALIDAD TENDIENTES A GARANTIZAR EL CUMPLIMIENTO DEL PLAN DE DESARROLLO LOCAL Y SERVIR COMO ENLACE ANTE CORABASTOS Y EL SECTOR DE DESARROLLO ECONÓMICO","INVERSIÓN ",891,"60.320.000",1360,"Fortalecimiento de las instituciones educativas distritales, para una inclusión\neducativa","2020-06-24","2020-06-25","2021-02-28",60320000,8,7540000,959,60320000,"YEIMY CAROLINA AGUDELO HERNANDEZ","MARIA DEL PILAR MUJICA SANDOVAL","PLANEACION","21-44-101325872","2020-06-24","30/6/2021","NA",0,"NA","NA","NA","NA","NA","2021-01-01",2,"MESES",15080000,"2021-01-01",2,"MESES","NA","NA","NA","NA"]
["CONTRATACION DIRECTA","Contratos de prestación de servicios","EN EJECUCION","FDLK-CD-98-2020","CPS-098-2020",{"$f":"VLOOKUP(E99,[1]Hoja1!D$3:E$393,2,0)","v":0.98785425101214575},"LEÓN DARÍO RAMÍREZ RANGEL",1010173266,"LEÓN DARÍO RAMÍREZ RANGEL",1010173266,null,"https://community.secop.gov.co/Public/Tendering/OpportunityDetail/Index?noticeUID=CO1.NTC.1307326&isFromPublicArea=True&isModal=False","RESTACIÓN DE SERVICIOS PROFESIONALES PARA APOYAR JURÍDICAMENTE A LA ALCALDÍA LOCAL DE KENNEDY - FONDO DEDESARROLLO  LOCAL  DE  KENNEDY  EN  LOS  ASUNTOS  CONSTITUCIONALES,  LEGALES  YREGLAMENTARIOS DE SU COMPETENCIA, PARTICULARMENTE LOS RELACIONADOS CON LAS ETAPASPRECONTRACTUAL, CONTRACTUAL Y POSCONTRACTUAL DE LOS PROCESOS DE CONTRATACIÓN","INVERSIÓN ",914,102600000,1363,"Fortalecimiento de la gestión local y de las acciones de vigilancia y control","2020-06-25","2020-06-26","2021-02-28",34200000,6,5700000,958,34200000,"YEIMY CAROLINA AGUDELO HERNANDEZ","MONICA JOHANNA HERNANDEZ PERAZA","CONTRATACION","21-44-101325946","2020-06-26","16/06/2021","NA",0,"NA","NA","NA","NA","NA","2020-12-26",65,"DIAS",12350000,"2020-12-26",65,"DIAS","NA","NA","NA","NA"]
["CONTRATACION DIRECTA","Contratos de prestación de servicios","EN EJECUCION","FDLK-CD-99-2020","CPS-099-2020",{"$f":"VLOOKUP(E100,[1]Hoja1!D$3:E$393,2,0)","v":1},"ADRIANA DEVIA DIAZ",52702473,"ADRIANA DEVIA DIAZ",52702473,null,"https://community.secop.gov.co/Public/Tendering/OpportunityDetail/Index?noticeUID=CO1.NTC.1307167&isFromPublicArea=True&isModal=False","PRESTAR SUS SERVICIOS PROFESIONALES PARA LA IMPLEMENTACIÓN DE LAS ACCIONES Y LINEAMIENTOS TÉCNICOS SURTIDOS DEL PROGRAMA DE GESTIÓN DOCUMENTAL Y DEMÁS INSTRUMENTOS TÉCNICOS ARCHIVÍSTICOS","INVERSIÓN ",863,16134020,1363,"Fortalecimiento de la gestión local y de las acciones de vigilancia y control","2020-06-26","2020-08-25","2021-02-25",16134020,4,4033505,963,16134000,"YEIMY CAROLINA AGUDELO HERNANDEZ","MARIA DEL PILAR MUÑOZ TORRES","ADMINISTRATIVO Y FINANCIERO","11-44-101155936","2020-07-09","2021-05-09","NA",0,"NA","NA","WILSON RAMÓN PÉREZ CIFUENTES  CC 79249215","ADRIANA DEVIA DIAZ","2020-08-24","2020-12-26",2,"MESES",8067010,"2020-12-26",2,"MESES","NA","NA","NA","NA"]
["CONTRATACION DIRECTA","Contratos de prestación de servicios","TERMINADO","FDLK-CD-100-2020","CPS-100-2020",{"$f":"VLOOKUP(E101,[1]Hoja1!D$3:E$393,2,0)","v":1},"LAURA ALEJANDRA PEÑA SIERRA",1012444924,"LAURA ALEJANDRA PEÑA SIERRA",1012444924,null,"https://community.secop.gov.co/Public/Tendering/OpportunityDetail/Index?noticeUID=CO1.NTC.1307261&isFromPublicArea=True&isModal=False","PRESTAR LOS SERVICIOS DE APOYO AL ÁREA DE GESTIÓN DESARROLLO LOCAL DE LA ALCALDÍA LOCAL DE KENNEDY EN ATENCIÓN A LA COMUNIDAD","INVERSIÓN ",870,"9.988.000 ",1363,"Fortalecimiento de la gestión local y de las acciones de vigilancia y control","2020-06-26","2020-07-01","2020-12-31",9988000,4,2497000,964,9988000,"YEIMY CAROLINA AGUDELO HERNANDEZ","FRANCY MILE OVALLE TORRES","DESPACHO","21-44-101326027","26/06/2020","31/10/2021","NA",0,"NA","NA","NA","NA","NA","2020-11-01",60,"DIAS",4994000,"2020-11-01",60,"DIAS","NA","NA","NA","NA"]
["CONTRATACION DIRECTA","Contratos de prestación de servicios","EN EJECUCION","FDLK-CD-101-2020","CPS-101-2020",{"$f":"VLOOKUP(E102,[1]Hoja1!D$3:E$393,2,0)","v":0.98760330578512401},"LEIDY JAQUELINE CAMARGO RODRIGUEZ",1026288168,"LEIDY JAQUELINE CAMARGO RODRIGUEZ",1026288168,null,"https://community.secop.gov.co/Public/Tendering/OpportunityDetail/Index?noticeUID=CO1.NTC.1308324&isFromPublicArea=True&isModal=False","PRESTAR LOS SERVICIOS DE APOYO ADMINISTRATIVO EN EL DESARROLLO OPERATIVO DE LOS TRÁMITES CONTRACTUALES  ADELANTADOS POR LA ALCALDÍA LOCAL DE KENNEDY - FONDO DE DESARROLLO LOCAL DE KENNEDY","INVERSIÓN ",844,"23.872.000",1363,"Fortalecimiento de la gestión local y de las acciones de vigilancia y control","2020-06-26","2020-07-01","2021-02-28",17904000,6,2984000,965,17904000,"YEIMY CAROLINA AGUDELO HERNANDEZ","MONICA JOHANNA HERNANDEZ PERAZA","CONTRATACION","21-44-101326020","26/06/2020","30/06/2021","NA",0,"NA","NA","NA","NA","NA","2021-01-01",2,"MESES",5968000,"2021-01-01",2,"MESES","NA","NA","NA","NA"]
["CONTRATACION DIRECTA","Contratos de prestación de servicios","TERMINADO","FDLK-CD-102-2020.","CPS-102-2020",{"$f":"VLOOKUP(E103,[1]Hoja1!D$3:E$393,2,0)","v":1},"ANDREA TATIANA OSORIO VANEGAS.",1030587457,"ANDREA TATIANA OSORIO VANEGAS.",1030587457,null,"https://community.secop.gov.co/Public/Tendering/OpportunityDetail/Index?noticeUID=CO1.NTC.1308636&isFromPublicArea=True&isModal=False","PRESTAR SUS SERVICIOS PROFESIONALES AL FONDO DE DESARROLLO LOCAL DE KENNEDY COMO APOYO PARA LA DESCONGESTIÓN DE LOS PROCESOS LIQUIDATORIOS EN CURSO Y DEPURACIÓN DE LAS OBLIGACIONES POR PAGAR A CARGO DEL FONDO DE DESARROLLO LOCAL DE KENNEDY","INVERSIÓN ",845,22048000,1363,"Fortalecimiento de la gestión local y de las acciones de vigilancia y control","2020-06-26","2020-07-01","2020-12-31",22048000,4,5512000,966,22048000,"YEIMY CAROLINA AGUDELO HERNANDEZ","GLORIA STELLA ROBALLO OLMOS","CONTRATACION","21-44-101326070","26/06/2020","30/04/2021","NA",0,"NA","NA","NA","NA","NA","2020-11-01",60,"DIAS",11024000,"2020-11-01",60,"DIAS","NA","NA","NA","NA"]
["CONTRATACION DIRECTA","Contratos de prestación de servicios","TERMINADO","FDLK-CD-103-2020","CPS-103-2020",{"$f":"VLOOKUP(E104,[1]Hoja1!D$3:E$393,2,0)","v":1},"EDISON JAVIER VELÁSQUEZ RODRIGUEZ",79655150,"EDISON JAVIER VELÁSQUEZ RODRIGUEZ",79655150,null,"https://community.secop.gov.co/Public/Tendering/OpportunityDetail/Index?noticeUID=CO1.NTC.1309615&isFromPublicArea=True&isModal=False","PRESTAR LOS SERVICIOS PROFESIONALES AL DESPACHO DE LA ALCALDIA LOCAL, COMO ENLACE EN LOS TEMAS DE GESTION DEL RIESGO, MANEJO DE AGLOMERACIONES, ATRACCIONES Y DISPOSITIVOS DE ENTRETENIMIENTOS A CARGO DE LA LOCALIDAD DE KENNEDY, DE CONFORMIDAD CON EL MARCO NORMATIVO APLICABLE PARA LA MATERIA","INVERSIÓN ",901,33364000,1363,"Fortalecimiento de la gestión local y de las acciones de vigilancia y control","2020-06-26","2020-07-01","2020-12-31",33364000,4,8341000,962,33364000,"YEIMY CAROLINA AGUDELO HERNANDEZ","NORMA LETICIA GUZMAN RIMOLLI","GESTION POLICIVA Y JURIDICA","64-46-101008867","26/06/2020","30/04/2021","NA",0,"NA","NA","NA","NA","NA","2020-11-01",60,"DIAS",16682000,"2020-11-01",60,"DIAS","NA","NA","NA","NA"]
["CONTRATACION DIRECTA","Contratos de prestación de servicios","TERMINADO","FDLK-CD-104-2020","CPS-104-2020",{"$f":"VLOOKUP(E105,[1]Hoja1!D$3:E$393,2,0)","v":1},"LAURA XIMENA PERDOMO CEDEÑO",1032461308,"LAURA XIMENA PERDOMO CEDEÑO",1032461308,null,"https://community.secop.gov.co/Public/Tendering/OpportunityDetail/Index?noticeUID=CO1.NTC.1313189&isFromPublicArea=True&isModal=False","APOYANDO LA EJECUCIÓN DEL PROYECTO 1380 MI CASA ME PERTENECE EN EL COMPONENTE JURÍDICO TENDIENTE A LA TITULACIÓN DE PREDIOS CONFORME A GARANTIZAR EL CUMPLIMIENTO DEL PLAN DE DESARROLLO LOCAL","INVERSIÓN ",864,21840000,1380,"Mi casa me pertenece","2020-06-30","2020-07-03","2020-12-31",21840000,4,5460000,976,21840000,"YEIMY CAROLINA AGUDELO HERNANDEZ","YULLIET PATRICIA LLERENA AVENDAÑO","PLANEACION","21-44-101326188","30/06/2020","2021-01-05","NA",0,"NA","NA","NA","NA","NA","2020-11-03",59,"DIAS",10738000,"2020-11-03",59,"DIAS","NA","NA","NA","NA"]
["CONTRATACION DIRECTA","Contratos de prestación de servicios","TERMINADO","FDLK-CD-105-2020","CPS-105-2020",{"$f":"VLOOKUP(E106,[1]Hoja1!D$3:E$393,2,0)","v":1},"YULY ALEJANDRA VARELA TORRES",53161176,"YULY ALEJANDRA VARELA TORRES",53161176,null,"https://community.secop.gov.co/Public/Tendering/OpportunityDetail/Index?noticeUID=CO1.NTC.1313118&isFromPublicArea=True&isModal=False","PRESTAR SUS SERVICIOS PROFESIONALES AL FONDO DE DESARROLLO LOCAL DE KENNEDY COMO APOYO PARA LA DESCONGESTION DE LOS PROCESOS LIQUIDATORIOS EN CURSO Y DEPURACION DE LAS OBLIGACIONES POR PAGAR A CARGO DEL FONDO DE DESARROLLO LOCAL DE KENNEDY","INVERSIÓN ",868,66144000,1363,"Fortalecimiento de la gestión local y de las acciones de vigilancia y control","2020-06-30","2020-07-06","2020-12-31",22048000,4,5512000,980,22048000,"YEIMY CAROLINA AGUDELO HERNANDEZ","GLORIA STELLA ROBALLO OLMOS","CONTRATACION","14-46-101041709","2020-01-07","2021-12-05","NA",0,"NA","NA","NA","NA","NA","2020-11-06",55,"DIAS",10105333,"2020-11-06",55,"DIAS","NA","NA","NA","NA"]
["CONTRATACION DIRECTA","Contratos de prestación de servicios","TERMINADO","FDLK-CD-106-2020","CPS-106-2020",{"$f":"VLOOKUP(E107,[1]Hoja1!D$3:E$393,2,0)","v":1},"HUGO ARMANDO SALINAS RODRIGUEZ",79849091,"HUGO ARMANDO SALINAS RODRIGUEZ",79849091,null,"https://community.secop.gov.co/Public/Tendering/OpportunityDetail/Index?noticeUID=CO1.NTC.1312835&isFromPublicArea=True&isModal=False","PRESTAR SUS SERVICIOS PROFESIONALES A LA ALCALDÍA LOCAL DE KENNEDY APOYANDO LAS ETAPAS PRECONTRACTUAL, CONTRACTUAL Y POSCONTRACTUAL DE LOS PROYECTOS TENDIENTES A GARANTIZAR EL CUMPLIMIENTO DEL PLAN DE DESARROLLO LOCAL.","INVERSIÓN ",896,26298980,1363,"Fortalecimiento de la gestión local y de las acciones de vigilancia y control","2020-06-30","2020-07-06","2020-12-31",26298980,4,6574745,970,26298980,"YEIMY CAROLINA AGUDELO HERNANDEZ","MARIA DEL PILAR MUJICA SANDOVAL","PLANEACION","21-44-101326094","30/06/2020","30/04/2021","NA",0,"NA","NA","NA","NA","NA","2020-11-05",55,"DIAS",12053699,"2020-11-05",55,"DIAS","NA","NA","NA","NA"]
["CONTRATACION DIRECTA","Contratos de prestación de servicios","TERMINADO","FDLK-CD-107-2020","CPS-107-2020",{"$f":"VLOOKUP(E108,[1]Hoja1!D$3:E$393,2,0)","v":1},"ANGIE PAOLA ESCALANTE RODRÍGUEZ",1024503927,"ANGIE PAOLA ESCALANTE RODRÍGUEZ",1024503927,null,"https://community.secop.gov.co/Public/Tendering/OpportunityDetail/Index?noticeUID=CO1.NTC.1312875&isFromPublicArea=True&isModal=False","APOYAR EN LAS TAREAS OPERATIVAS DE CARÁCTERARCHIVÍSTICO DESARROLLADAS EN LA ALCALDÍA LOCAL PARA GARANTIZAR LA APLICACIÓN CORRECTA DELOS PROCEDIMIENTOS TÉCNICOS ","INVERSIÓN ",908,30828440,1363,"Fortalecimiento de la gestión local y de las acciones de vigilancia y control","2020-06-30","2020-07-08","2020-12-31",15414220,4,3853555,979,15414220,"YEIMY CAROLINA AGUDELO HERNANDEZ","MARIA DEL PILAR MUÑOZ TORRES","ADMINISTRATIVO Y FINANCIERO","380-47-994000106324","30/06/2020","2021-04-05","NA",0,"NA","NA","NA","NA","NA","2020-11-07",54,"DIAS",6807947,"2020-11-07",54,"DIAS","NA","NA","NA","NA"]
["CONTRATACION DIRECTA","Contratos de prestación de servicios","EN EJECUCION","FDLK-CD-108-2020","CPS-108-2020",{"$f":"VLOOKUP(E109,[1]Hoja1!D$3:E$393,2,0)","v":0.98760330578512401},"LUIS HERNANDO NIVIA PINZON",1014193169,"LUIS HERNANDO NIVIA PINZON",1014193169,null,"https://community.secop.gov.co/Public/Tendering/OpportunityDetail/Index?noticeUID=CO1.NTC.1312900&isFromPublicArea=True&isModal=False","PRESTACIÓN DE SERVICIOS PROFESIONALES PARA APOYAR JURÍDICAMENTE A LA ALCALDÍA LOCAL DE KENNEDY - FONDO DE DESARROLLO LOCAL DE KENNEDY EN LOS ASUNTOS CONSTITUCIONALES, LEGALES Y REGLAMENTARIOS DE SU COMPETENCIA, PARTICULARMENTE LOS RELACIONADOS CON LAS ETAPAS PRECONTRACTUAL, CONTRACTUAL Y POSCONTRACTUAL DE LOS PROCESOS DE CONTRATACIÓN","INVERSIÓN ",914,102600000,1363,"Fortalecimiento de la gestión local y de las acciones de vigilancia y control","2020-06-30","2020-07-01","2021-02-28",34200000,6,5700000,967,34200000,"YEIMY CAROLINA AGUDELO HERNANDEZ","MONICA JOHANNA HERNANDEZ PERAZA","CONTRATACION","33-46-101024098","2020-01-07","2021-01-07","NA",0,"NA","NA","LUIS HERNANDO NIVIA PINZON "," KAREN VIVIANA STEPHANY FRANCO CASTAÑEDA ","2020-12-09","2021-01-01",2,"MESES",11400000,"2021-01-01",2,"MESES","NA","NA","NA","NA"]
["CONTRATACION DIRECTA","Contratos de prestación de servicios","TERMINADO","FDLK-CD-109-2020","CPS-109-2020",{"$f":"VLOOKUP(E110,[1]Hoja1!D$3:E$393,2,0)","v":1},"JUAN ALBERTO CARO CARO",79102953,"JUAN ALBERTO CARO CARO",79102953,null,"https://community.secop.gov.co/Public/Tendering/OpportunityDetail/Index?noticeUID=CO1.NTC.1313834&isFromPublicArea=True&isModal=False","PRESTAR SUS SERVICIOS PROFESIONALES A LA ALCALDÍA LOCAL DE KENNEDY PARA APOYAR LA REALIZACIÓN DE LOS ENCUENTROS CIUDADANOS, LA RENDICIÓN DE CUENTAS, EL ACOMPAÑAMIENTO A LAS INSTANCIAS DE PARTICIPACIÓN LOCALES Y EL SEGUIMIENTO A LA EJECUCIÓN DEL PLAN DE DESARROLLO","INVERSIÓN ",855,33632000,1371,"Fortalecimiento de la participación","2020-07-01","2020-07-06","2020-12-31",25083867,5.9666666666666668,4204000.055865922,973,25083867,"YEIMY CAROLINA AGUDELO HERNANDEZ","LUIS ALEJANDRO VENEGAS ROBAYO","PARTICIPACION","11-46-101014051","2020-01-07","2021-05-07","NA",0,"NA","NA","NA","NA","NA","NA","NA","NA","NA","NA","NA","NA","NA","NA","NA","NA"]
["CONTRATACION DIRECTA","Contratos de prestación de servicios","TERMINADO","FDLK-CD-110-2020","CPS-110-2020",{"$f":"VLOOKUP(E111,[1]Hoja1!D$3:E$393,2,0)","v":1},"JOHN JAIRO LÓPEZ GAVILÁN",80120721,"JOHN JAIRO LÓPEZ GAVILÁN",80120721,null,"https://community.secop.gov.co/Public/Tendering/OpportunityDetail/Index?noticeUID=CO1.NTC.1313658&isFromPublicArea=True&isModal=False","PRESTAR SUS SERVICIOS PROFESIONALES PARA APOYAR ACTIVIDADES RELACIONADAS CON EVALUACION, SEGUIMIENTO Y CONTROL DE GESTION APOYANDO EL DESPACHO DEL ALCALDE LOCAL DE KENNEDY","INVERSIÓN ",930,26296000,1363,"Fortalecimiento de la gestión local y de las acciones de vigilancia y control","2020-06-30","2020-07-07","2020-12-31",26296000,4,6574000,981,26296000,"YEIMY CAROLINA AGUDELO HERNANDEZ","DIANA MARCELA DELGADO JEREZ","DESPACHO","380 47 994000106315","30/6/2020","2021-04-05","NA",0,"NA","NA","NA","NA","NA","2020-11-05",54,"DIAS",11833200,"2020-11-05",54,"DIAS","NA","NA","NA","NA"]
["CONTRATACION DIRECTA","Contratos de prestación de servicios","TERMINADO","FDLK-CD-111-2020","CPS-111-2020",{"$f":"VLOOKUP(E112,[1]Hoja1!D$3:E$393,2,0)","v":1},"DENISS VELASQUEZ BARRERA",1016053664,"DENISS VELASQUEZ BARRERA",1016053664,null,"https://community.secop.gov.co/Public/Tendering/OpportunityDetail/Index?noticeUID=CO1.NTC.1313804&isFromPublicArea=True&isModal=False","PRESTAR LOS SERVICIOS DE APOYO TÉCNICO Y ADMINISTRATIVO AL ÁREA DE GESTIÓN POLICIVA JURÍDICA DE LA ALCALDÍA LOCAL DE KENNEDY","INVERSIÓN ",909,15412000,1363,"Fortalecimiento de la gestión local y de las acciones de vigilancia y control","2020-06-30","2020-07-02","2020-12-31",15412000,4,3853000,971,15412000,"YEIMY CAROLINA AGUDELO HERNANDEZ","NORMA LETICIA GUZMAN RIMOLLI","GESTION POLICIVA Y JURIDICA","3800-47-994000106233","30/6/2020","2021-05-05","NA",0,"NA","NA","NA","NA","NA","2020-11-02",59,"DIAS",7577567,"2020-11-02",59,"DIAS","NA","NA","NA","NA"]
["CONTRATACION DIRECTA","Contratos de prestación de servicios","EN EJECUCION","FDLK-CD-112-2020","CPS-112-2020",{"$f":"VLOOKUP(E113,[1]Hoja1!D$3:E$393,2,0)","v":0.98734177215189878},"LUIS ALEJANDRO VENEGAS ROBAYO",1015393374,"LUIS ALEJANDRO VENEGAS ROBAYO",1015393374,null,"https://community.secop.gov.co/Public/Tendering/OpportunityDetail/Index?noticeUID=CO1.NTC.1315086&isFromPublicArea=True&isModal=False","APOYAR AL ALCALDESA LOCAL EN LA PROMOCIÓN, ACOMPAÑAMIENTO, COORDINACIÓN Y ATENCIÓN DE LAS INSTANCIAS DE COORDINACIÓN INTERINSTITUCIONALES Y LAS INSTANCIAS DE PARTICIPACIÓN LOCALES, ASÍ COMO LOS PROCESOS COMUNITARIOS EN LA LOCALIDAD","INVERSIÓN ",854,52592000,1371,"Fortalecimiento de la participación","2020-07-02","2020-07-06","2021-02-28",39005734,5.9333333333333336,6574000.1123595499,978,39005734,"YEIMY CAROLINA AGUDELO HERNANDEZ","DIANA MARCELA DELGADO JEREZ","PARTICIPACION","NB-100132557","2020-02-07","2021-05-07","NA",0,"NA","NA","NA","NA","NA","2021-01-01",2,"MESES",13148000,"2021-01-01",2,"MESES","NA","NA","NA","NA"]
["CONTRATACION DIRECTA","Contratos de prestación de servicios","TERMINADO","FDLK-CD-113-2020","CPS-113-2020",{"$f":"VLOOKUP(E114,[1]Hoja1!D$3:E$393,2,0)","v":1},"WILFREDO PAEZ GALINDO",80727904,"WILFREDO PAEZ GALINDO",80727904,null,"https://community.secop.gov.co/Public/Tendering/OpportunityDetail/Index?noticeUID=CO1.NTC.1316229&isFromPublicArea=True&isModal=False","PRESTAR LOS SERVICIOS DE APOYO EN LA CONDUCCIÓN DE LOS VEHÍCULOS LIVIANOS DEL PARQUE AUTOMOTOR DE PROPIEDAD DEL FONDO DE DESARROLLO LOCAL DE KENNEDY","INVERSIÓN ",885,19976000,1363,"Fortalecimiento de la gestión local y de las acciones de vigilancia y control","2020-07-01","2020-07-03","2020-12-31",9988000,4,2497000,985,9988000,"YEIMY CAROLINA AGUDELO HERNANDEZ","NILBA ALIET AREVALO CASTELLANOS","ALMACEN","380-47-994000106266","2020-01-07","2021-06-05","NA",0,"NA","NA","NA","NA","NA","2020-11-03",58,"DIAS",4910767,"2020-11-03",58,"DIAS","NA","NA","NA","NA"]
["CONTRATACION DIRECTA","Contratos de prestación de servicios","TERMINADO","FDLK-CD-114-2020","CPS-114-2020",{"$f":"VLOOKUP(E115,[1]Hoja1!D$3:E$393,2,0)","v":1},"DEIVID ALEJANDRO HENAO PLAZA",1012368647,"DEIVID ALEJANDRO HENAO PLAZA",1012368647,null,"https://community.secop.gov.co/Public/Tendering/OpportunityDetail/Index?noticeUID=CO1.NTC.1316233&isFromPublicArea=True&isModal=False","PRESTAR SUS SERVICIOS PROFESIONALES AL FONDO DE DESARROLLO LOCAL DE KENNEDY COMO APOYO PARA LA DESCONGESTION DE LOS PROCESOS LIQUIDATORIOS EN CURSO Y DEPURACION DE LAS OBLIGACIONES POR PAGAR A CARGO DEL FONDO DE DESARROLLO LOCAL DE KENNEDY","INVERSIÓN ",868,66144000,1363,"Fortalecimiento de la gestión local y de las acciones de vigilancia y control","2020-07-02","2020-07-08","2020-12-31",22048000,4,5512000,986,22048000,"YEIMY CAROLINA AGUDELO HERNANDEZ","GLORIA STELLA ROBALLO OLMOS","CONTRATACION","33-44-101201784","2020-02-07","2021-05-10","NA",0,"NA","NA","NA","NA","NA","2020-11-08",53,"DIAS",9737866,"2020-11-08",53,"DIAS","NA","NA","NA","NA"]
["CONTRATACION DIRECTA","Contratos de prestación de servicios","TERMINADO","FDLK-CD-115-2020","CPS-115-2020",{"$f":"VLOOKUP(E116,[1]Hoja1!D$3:E$393,2,0)","v":1},"RUBEN DARIO ORTIZ BOGOTA",80132643,"RUBEN DARIO ORTIZ BOGOTA",80132643,null,"https://community.secop.gov.co/Public/Tendering/OpportunityDetail/Index?noticeUID=CO1.NTC.1316100&isFromPublicArea=True&isModal=False","PRESTAR LOS SERVICIOS DE APOYO EN LA CONDUCCIÓN DE LOS VEHÍCULOS PESADOS DEL PARQUE AUTOMOTOR DE PROPIEDAD DEL FONDO DE DESARROLLO LOCAL DE KENNEDY","INVERSIÓN ",906,19976000,1363,"Fortalecimiento de la gestión local y de las acciones de vigilancia y control","2020-07-01","2020-07-03","2020-12-31",9988000,4,2497000,987,9988000,"YEIMY CAROLINA AGUDELO HERNANDEZ","JOSÉ TARCICIO QUIROGA VELAZQUES","INFRAESTRUCTURA","380-47-994000106269","2020-11-07","2021-03-05","NA",0,"NA","NA","NA","NA","NA","2020-11-03",59,"DIAS",4827533,"2020-11-03",59,"DIAS","NA","NA","NA","NA"]
["CONTRATACION DIRECTA","Contratos de prestación de servicios","TERMINADO","FDLK-CD-116-2020","CPS-116-2020",{"$f":"VLOOKUP(E117,[1]Hoja1!D$3:E$393,2,0)","v":1},"JOSE INOCENCIO MARTINEZ",19366746,"JOSE INOCENCIO MARTINEZ",19366746,null,"https://community.secop.gov.co/Public/Tendering/OpportunityDetail/Index?noticeUID=CO1.NTC.1316909&isFromPublicArea=True&isModal=False","PRESTAR LOS SERVICIOS DE APOYO EN LA CONDUCCIÓN DE LOS VEHÍCULOS PESADOS DEL PARQUE AUTOMOTOR DE PROPIEDAD DEL FONDO DE DESARROLLO LOCAL DE KENNEDY","INVERSIÓN ",906,19976000,1363,"Fortalecimiento de la gestión local y de las acciones de vigilancia y control","2020-07-02","2020-07-03","2020-12-31",9988000,4,2497000,988,9988000,"YEIMY CAROLINA AGUDELO HERNANDEZ","JOSÉ TARCICIO QUIROGA VELAZQUES","INFRAESTRUCTURA","380-47-994000106278","2020-11-07","2021-03-05","NA",0,"NA","NA","NA","NA","NA","2020-11-03",59,"DIAS",4827533,"2020-11-03",59,"DIAS","NA","NA","NA","NA"]
["CONTRATACION DIRECTA","Contratos de prestación de servicios","TERMINADO","FDLK-CD-117-2020","CPS-117-2020",{"$f":"VLOOKUP(E118,[1]Hoja1!D$3:E$393,2,0)","v":1},"FABIAN CAMILO GARCIA VILLARREAL",1030587174,"FABIAN CAMILO GARCIA VILLARREAL",1030587174,null,"https://community.secop.gov.co/Public/Tendering/OpportunityDetail/Index?noticeUID=CO1.NTC.1316755&isFromPublicArea=True&isModal=False","“PRESTAR LOS SERVICIOS PROFESIONALES PARA APOYAR LA GESTIÓN DE LOS ASUNTOS RELACIONADOS CON LA SEGURIDAD CIUDADANA Y LA CONVIVENCIA EN LA LOCALIDAD DE KENNEDY, ASÍ COMO ORGANIZAR Y LIDERAR EL EQUIPO DE GESTORES DE CONVIVENCIA”.","INVERSIÓN ",828,22048000,1376,"Fortalecimiento de seguridad e iniciativa de convivencia en la localidad de\nKennedy","2020-07-02","2020-07-06","2020-12-31",22048000,4,5512000,989,22048000,"YEIMY CAROLINA AGUDELO HERNANDEZ","NORMA LETICIA GUZMAN RIMOLLI","GESTION POLICIVA Y JURIDICA","80 47 994000106280","2020-02-07","2021-06-05","NA",0,"NA","NA","NA","NA","NA","2020-11-06",55,"DIAS",10105333,"2020-11-06",55,"DIAS","NA","NA","NA","NA"]
["CONTRATACION DIRECTA","Contratos de prestación de servicios","TERMINADO","FDLK-CD-118-2020","CPS-118-2020",{"$f":"VLOOKUP(E119,[1]Hoja1!D$3:E$393,2,0)","v":1},"ANDRES VALBUENA POLANIA",80149634,"ANDRES VALBUENA POLANIA",80149634,null,"https://community.secop.gov.co/Public/Tendering/OpportunityDetail/Index?noticeUID=CO1.NTC.1317346&isFromPublicArea=True&isModal=False","PRESTAR LOS SERVICIOS DE APOYO EN LAS ACCIONES ENCAMINADAS AL RESTABLECIMIENTO DE LA ARMONÍA, PAZ, SEGURIDAD Y CONVIVENCIA CIUDADANA, EN LA LOCALIDAD DE KENNEDY","INVERSIÓN ",910,285244000,1376,"Fortalecimiento de seguridad e iniciativa de convivencia en la localidad de\nKennedy","2020-07-02","2020-07-08","2020-12-31",9836000,4,2459000,1008,9836000,"YEIMY CAROLINA AGUDELO HERNANDEZ","MARITZA RUIZ POSADA","Seguridad","380-47-994000106317","2020-02-07","2021-10-05","NA",0,"NA","NA","NA","NA","NA","2020-11-08",52,"DIAS",4344233,"2020-11-08",52,"DIAS","NA","NA","NA","NA"]
["CONTRATACION DIRECTA","Contratos de prestación de servicios","TERMINADO","FDLK-CD-119-2020","CPS-119-2020",{"$f":"VLOOKUP(E120,[1]Hoja1!D$3:E$393,2,0)","v":1},"JAIRO JAVIER SUÁREZ HERNÁNDEZ",10184012,"JAIRO JAVIER SUÁREZ HERNÁNDEZ",10184012,null,"https://community.secop.gov.co/Public/Tendering/OpportunityDetail/Index?noticeUID=CO1.NTC.1317184&isFromPublicArea=True&isModal=False","APOYAR EN LAS TAREAS OPERATIVAS DE CARÁCTERARCHIVÍSTICO DESARROLLADAS EN LA ALCALDÍA LOCAL PARA GARANTIZAR LA APLICACIÓN CORRECTA DELOS PROCEDIMIENTOS TÉCNICOS ","INVERSIÓN ",908,30828440,1363,"Fortalecimiento de la gestión local y de las acciones de vigilancia y control","2020-07-02","2020-07-08","2020-12-31",15414220,4,3853555,1026,15414220,"YEIMY CAROLINA AGUDELO HERNANDEZ","MARIA DEL PILAR MUÑOZ TORRES","ADMINISTRATIVO Y FINANCIERO","380-47-994000106337","2020-02-07","2021-10-05","NA",0,"NA","NA","NA","NA","NA","2020-11-07",54,"DIAS",6807947,"2020-11-07",54,"DIAS","NA","NA","NA","NA"]
["CONTRATACION DIRECTA","Contratos de prestación de servicios","EN EJECUCION","FDLK-CD-120-2020","CPS-120-2020",{"$f":"VLOOKUP(E121,[1]Hoja1!D$3:E$393,2,0)","v":0.98734177215189878},"PAOLA ANDREA OTERO LOPEZ",53001226,"PAOLA ANDREA OTERO LOPEZ",53001226,null,"https://community.secop.gov.co/Public/Tendering/OpportunityDetail/Index?noticeUID=CO1.NTC.1317268&isFromPublicArea=True&isModal=False","PRESTAR SERVICIOS PROFESIONALES PARA APOYAR JURÍDICAMENTE A LA ALCALDÍA LOCAL DE KENNEDY-FONDO DE DESARROLLO LOCAL DE KENNEDY EN LOS ASUNTOS CONSTITUCIONALES, LEGALES Y REGLAMENTARIOS DE SU COMPETENCIA, PARTICULARMENTE LOS RELACIONADOS CON LAS ETAPAS PRECONTRACTUAL, CONTRACTUAL Y POSCONTRACTUAL DE LOS PROCESOS DE CONTRATACIÓN”.","INVERSIÓN ",931,39000000,1363,"Fortalecimiento de la gestión local y de las acciones de vigilancia y control","2020-07-03","2020-07-06","2021-02-28",38566667,6,6427777.833333333,990,38566667,"YEIMY CAROLINA AGUDELO HERNANDEZ","MONICA JOHANNA HERNANDEZ PERAZA","CONTRATACION","21-44-101326428 ","13/7/2020","31/12/2021","NA",0,"NA","NA","NA","NA","NA","2021-01-01",2,"MESES",13000000,"2021-01-01",2,"MESES","NA","NA","NA","NA"]
["CONTRATACION DIRECTA","Contratos de prestación de servicios","TERMINADO","FDLK-CD-121-2020","CPS-121-2020",{"$f":"VLOOKUP(E122,[1]Hoja1!D$3:E$393,2,0)","v":1},"RÓMULO SIMÓN ESTRELLA PANTOJA",1089242261,"RÓMULO SIMÓN ESTRELLA PANTOJA",1089242261,null,"https://community.secop.gov.co/Public/Tendering/OpportunityDetail/Index?noticeUID=CO1.NTC.1317661&isFromPublicArea=True&isModal=False","PRESTAR LOS SERVICIOS DE APOYO ASISTENCIAL Y ADMINSTRATIVO EN EL PROYECTO 1380, MI CASA ME PERTENECE, TENDIENTE A LA TITULACION DE PREDIOS, CONFORME AL PLAN DE DESARROLLO LOCAL\n","INVERSIÓN ",975,9988000,1380,"Mi casa me pertenece","2020-07-02","2020-07-08","2020-12-31",9988000,4,2497000,1000,9988000,"YEIMY CAROLINA AGUDELO HERNANDEZ","YULLIET PATRICIA LLERENA AVENDAÑO","PLANEACION","NB-100132822","2020-07-07","2021-12-05","NA",0,"NA","NA","NA","NA","NA","2020-11-07",54,"DIAS",4411366,"2020-11-07",54,"DIAS","NA","NA","NA","NA"]
["CONTRATACION DIRECTA","Contratos de prestación de servicios","TERMINADO","FDLK-CD-122-2020","CPS-122-2020",{"$f":"VLOOKUP(E123,[1]Hoja1!D$3:E$393,2,0)","v":1},"SERGIO ANDRES CALDERON GARZÓN",79989849,"SERGIO ANDRES CALDERON GARZÓN",79989849,null,"https://community.secop.gov.co/Public/Tendering/OpportunityDetail/Index?noticeUID=CO1.NTC.1317839&isFromPublicArea=True&isModal=False","PRESTAR LOS SERVICIOS PROFESIONALES PARA EL DESARROLLO E IMPLEMENTACIÓN DE ESTRATEGIAS DE SENSIBILIZACIÓN EN EL MARCO DE LA SANA CONVIVENCIA Y CULTURA CIUDADANA","INVERSIÓN ",923,26280000,1376,"Fortalecimiento de seguridad e iniciativa de convivencia en la localidad de\nKennedy","2020-07-02","2020-07-09","2020-12-31",26280000,4,6570000,1001,26280000,"YEIMY CAROLINA AGUDELO HERNANDEZ","NORMA LETICIA GUZMAN RIMOLLI","GESTION POLICIVA Y JURIDICA","14-46-101041760","2020-07-07","17/5/2021","NA",0,"NA","NA","NA","NA","NA","2020-11-08",53,"DIAS",11388000,"2020-11-08",53,"DIAS","NA","NA","NA","NA"]
["CONTRATACION DIRECTA","Contratos de prestación de servicios","TERMINADO","FDLK-CD-123-2020","CPS-123-2020",{"$f":"VLOOKUP(E124,[1]Hoja1!D$3:E$393,2,0)","v":1},"SANDRA MARCELA ALZATE GARCIA",52503022,"SANDRA MARCELA ALZATE GARCIA",52503022,null,"https://community.secop.gov.co/Public/Tendering/OpportunityDetail/Index?noticeUID=CO1.NTC.1318143&isFromPublicArea=True&isModal=False","PRESTAR LOS SERVICIOS DE APOYO A LOS ARCHIVOS DE GESTIÓN DE LA ENTIDAD EN LA IMPLEMENTACIÓN DE LOS PROCESOS DE CLASIFICACIÓN, ORDENACIÓN, SELECCIÓN NATURAL, FOLIACIÓN, IDENTIFICACIÓN, LEVANTAMIENTO DE INVENTARIOS, ALMACENAMIENTO Y APLICACIÓN DE PROTOCOLOS DE ELIMINACIÓN Y TRANSFERENCIAS DOCUMENTALES","INVERSIÓN ",907,39952000,1363,"Fortalecimiento de la gestión local y de las acciones de vigilancia y control","2020-07-03","2020-07-08","2020-12-31",9988000,4,2497000,996,9988000,"YEIMY CAROLINA AGUDELO HERNANDEZ","MARIA DEL PILAR MUÑOZ TORRES","ADMINISTRATIVO Y FINANCIERO","380-47-994000106295","2020-03-07","2021-08-05","NA",0,"NA","NA","NA","NA","NA","2020-11-08",53,"DIAS",4411367,"2020-11-08",53,"DIAS","NA","NA","NA","NA"]
["CONTRATACION DIRECTA","Contratos de prestación de servicios","TERMINADO","FDLK-CD-124-2020","CPS-124-2020",{"$f":"VLOOKUP(E125,[1]Hoja1!D$3:E$393,2,0)","v":1},"GEOVANNY ALEXANDER SANCHEZ TRUJILLO",1024474417,"GEOVANNY ALEXANDER SANCHEZ TRUJILLO",1024474417,null,"https://community.secop.gov.co/Public/Tendering/OpportunityDetail/Index?noticeUID=CO1.NTC.1318151&isFromPublicArea=True&isModal=False","PRESTAR LOS SERVICIOS DE APOYO EN LA CONDUCCIÓN DE LOS VEHÍCULOS LIVIANOS DEL PARQUE AUTOMOTOR DE PROPIEDAD DEL FONDO DE DESARROLLO LOCAL DE KENNEDY","INVERSIÓN ",885,19976000,1363,"Fortalecimiento de la gestión local y de las acciones de vigilancia y control","2020-07-02","2020-07-09","2020-12-31",9988000,4,2497000,1027,9988000,"YEIMY CAROLINA AGUDELO HERNANDEZ","NILBA ALIET AREVALO CASTELLANOS","ALMACEN","380-47-994000106287","2020-03-07","2021-08-05","NA",0,"NA","NA","NA","NA","NA","2020-11-09",52,"DIAS",4328133,"2020-11-09",52,"DIAS","NA","NA","NA","NA"]
["CONTRATACION DIRECTA","Contratos de prestación de servicios","TERMINADO","FDLK-CD-125-2020","CPS-125-2020",{"$f":"VLOOKUP(E126,[1]Hoja1!D$3:E$393,2,0)","v":1},"ANGELICA MARIA VARGAS PINZON",1033699015,"ANGELICA MARIA VARGAS PINZON",1033699015,null,"https://community.secop.gov.co/Public/Tendering/OpportunityDetail/Index?noticeUID=CO1.NTC.1318177&isFromPublicArea=True&isModal=False","PRESTAR LOS SERVICIOS DE APOYO A LOS ARCHIVOS DE GESTIÓN DE LA ENTIDAD EN LA IMPLEMENTACIÓN DE LOS PROCESOS DE CLASIFICACIÓN, ORDENACIÓN, SELECCIÓN NATURAL, FOLIACIÓN, IDENTIFICACIÓN, LEVANTAMIENTO DE INVENTARIOS, ALMACENAMIENTO Y APLICACIÓN DE PROTOCOLOS DE ELIMINACIÓN Y TRANSFERENCIAS DOCUMENTALES","INVERSIÓN ",907,39952000,1363,"Fortalecimiento de la gestión local y de las acciones de vigilancia y control","2020-07-02","2020-07-06","2020-12-31",9988000,4,2497000,997,9988000,"YEIMY CAROLINA AGUDELO HERNANDEZ","MARIA DEL PILAR MUÑOZ TORRES","ADMINISTRATIVO Y FINANCIERO","380-47-994000106322","2020-03-07","2021-08-05","NA",0,"NA","NA","NA","NA","NA","2020-11-15",46,"DIAS",3828733,"2020-11-15",46,"DIAS","NA","NA","NA","NA"]
["CONTRATACION DIRECTA","Contratos de prestación de servicios","TERMINADO","FDLK-CD 126-2020","CPS-126-2020",{"$f":"VLOOKUP(E127,[1]Hoja1!D$3:E$393,2,0)","v":1},"ANA MARIA CORTÉS CABRERA",26421174,"ANA MARIA CORTÉS CABRERA",26421174,null,"https://community.secop.gov.co/Public/Tendering/OpportunityDetail/Index?noticeUID=CO1.NTC.1318702&isFromPublicArea=True&isModal=False","APOYAR JURÍDICAMENTE LA EJECUCIÓN DE LAS ACCIONES REQUERIDAS PARA LA DEPURACIÓN DE LAS ACTUACIONES ADMINISTRATIVAS QUE CURSAN EN LA ALCALDÍA LOCAL","INVERSIÓN ",924,24252000,1363,"Fortalecimiento de la gestión local y de las acciones de vigilancia y control","2020-07-03","2020-07-08","2020-12-31",24252000,4,6063000,1024,24252000,"YEIMY CAROLINA AGUDELO HERNANDEZ","NORMA LETICIA GUZMAN RIMOLLI","GESTION POLICIVA Y JURIDICA","33-46-101024166","2020-03-07","2021-06-05","NA",0,"NA","NA","NA","NA","NA","2020-11-08",53,"DIAS",10711300,"2020-11-08",53,"DIAS","NA","NA","NA","NA"]
["CONTRATACION DIRECTA","Contratos de prestación de servicios","TERMINADO","FDLK-CD 127-2020","CPS-127-2020",{"$f":"VLOOKUP(E128,[1]Hoja1!D$3:E$393,2,0)","v":1},"CLAUDIA PATRICIA RUIZ SARAY",52177848,"CLAUDIA PATRICIA RUIZ SARAY",52177848,null,"https://community.secop.gov.co/Public/Tendering/OpportunityDetail/Index?noticeUID=CO1.NTC.1318804&isFromPublicArea=True&isModal=False","APOYAR JURÍDICAMENTE LA EJECUCIÓN DE LAS ACCIONES REQUERIDAS PARA LA DEPURACIÓN DE LAS ACTUACIONES ADMINISTRATIVAS QUE CURSAN EN LA ALCALDÍA LOCAL","INVERSIÓN ",924,24252000,1363,"Fortalecimiento de la gestión local y de las acciones de vigilancia y control","2020-07-03","2020-07-07","2020-12-31",24252000,4,6063000,1012,24252000,"YEIMY CAROLINA AGUDELO HERNANDEZ","NORMA LETICIA GUZMAN RIMOLLI","GESTION POLICIVA Y JURIDICA","380-47 -994000106304","2020-06-07","2021-09-05","NA",0,"NA","NA","NA","NA","NA","2020-11-06",54,"DIAS",10913400,"2020-11-06",54,"DIAS","NA","NA","NA","NA"]
["CONTRATACION DIRECTA","Contratos de prestación de servicios","TERMINADO","FDLK-CD 128-2020","CPS-128-2020",{"$f":"VLOOKUP(E129,[1]Hoja1!D$3:E$393,2,0)","v":1},"GIOVANNY ESTEBEN RONDON VANEGAS",1030621844,"GIOVANNY ESTEBEN RONDON VANEGAS",1030621844,null,"https://community.secop.gov.co/Public/Tendering/OpportunityDetail/Index?noticeUID=CO1.NTC.1318703&isFromPublicArea=True&isModal=False","PRESTAR LOS SERVICIOS DE APOYO TÉCNICO Y ADMINISTRATIVO EN LA DESCONGESTIÓN DE TRÁMITES DEL ÁREA DE GESTIÓN POLICIVA JURÍDICA DE LA ALCALDÍA LOCAL DE KENNEDY","INVERSIÓN ",904,57664000,1363,"Fortalecimiento de la gestión local y de las acciones de vigilancia y control","2020-07-03","2020-07-07","2020-12-31",14416000,4,3604000,1013,14416000,"YEIMY CAROLINA AGUDELO HERNANDEZ","NORMA LETICIA GUZMAN RIMOLLI","GESTION POLICIVA Y JURIDICA","11-46-101014077","2020-03-07","2021-05-05","NA",0,"NA","NA","NA","NA","NA","2020-11-07",54,"DIAS",6487200,"2020-11-07",54,"DIAS","NA","NA","NA","NA"]
["CONTRATACION DIRECTA","Contratos de prestación de servicios","TERMINADO","FDLK-CD 129-2020","CPS-129-2020",{"$f":"VLOOKUP(E130,[1]Hoja1!D$3:E$393,2,0)","v":1},"SERGIO EDUARDO MOLINA OCHOA",80772254,"SERGIO EDUARDO MOLINA OCHOA",80772254,null,"https://community.secop.gov.co/Public/Tendering/OpportunityDetail/Index?noticeUID=CO1.NTC.1318805&isFromPublicArea=True&isModal=False","Prestar sus servicios profesionales a la alcaldía local de Kennedy apoyando la etapa precontractual, contractual y poscontractual del proyecto de infraestructura y espacio público tendiente a garantizar el cumplimiento del plan de desarrollo local ","INVERSIÓN ",866,44095542,1369,"Recreación y deporte para todos","2020-07-03","2020-07-07","2020-12-31",22047771,4,5511942.75,1014,22047771,"YEIMY CAROLINA AGUDELO HERNANDEZ","JOSÉ TARCICIO QUIROGA VELAZQUES","INFRAESTRUCTURA","380 47 994000106332","2020-06-07","2021-09-05","NA",0,"NA","NA","NA","NA","NA","2020-11-07",55,"DIAS",10105229,"2020-11-07",55,"DIAS","NA","NA","NA","NA"]
["CONTRATACION DIRECTA","Contratos de prestación de servicios","TERMINADO","FDLK-CD 130-2020","CPS-130-2020",{"$f":"VLOOKUP(E131,[1]Hoja1!D$3:E$393,2,0)","v":1},"TILCIA YULIE VELANDIA NIÑO",52861044,"TILCIA YULIE VELANDIA NIÑO",52861044,null,"https://community.secop.gov.co/Public/Tendering/OpportunityDetail/Index?noticeUID=CO1.NTC.1318806&isFromPublicArea=True&isModal=False","PRESTAR LOS SERVICIOS DE APOYO TÉCNICO Y ADMINISTRATIVO EN LA DESCONGESTIÓN DE TRÁMITES DEL ÁREA DE GESTIÓN POLICIVA JURÍDICA DE LA ALCALDÍA LOCAL DE KENNEDY","INVERSIÓN ",904,57664000,1363,"Fortalecimiento de la gestión local y de las acciones de vigilancia y control","2020-07-03","2020-07-07","2020-12-31",14416000,4,3604000,1015,14416000,"YEIMY CAROLINA AGUDELO HERNANDEZ","NORMA LETICIA GUZMAN RIMOLLI","GESTION POLICIVA Y JURIDICA","380-47-994000106300","2020-06-07","2021-09-05","NA",0,"NA","NA","NA","NA","NA","2020-11-07",54,"DIAS",6487200,"2020-11-07",54,"DIAS","NA","NA","NA","NA"]
["CONTRATACION DIRECTA","Contratos de prestación de servicios","TERMINADO","FDLK-CD 131-2020","CPS-131-2020",{"$f":"VLOOKUP(E132,[1]Hoja1!D$3:E$393,2,0)","v":1},"VILMA SOFIA CASSAB APONTE",51672906,"VILMA SOFIA CASSAB APONTE",51672906,null,"https://community.secop.gov.co/Public/Tendering/OpportunityDetail/Index?noticeUID=CO1.NTC.1318808&isFromPublicArea=True&isModal=False","PRESTAR SUS SERVICIOS PROFESIONALES A LA ALCALDÍA LOCAL DE KENNEDY APOYANDO TÉCNICAMENTE LAS DISTINTAS ETAPAS DE LOS PROYECTOS DEL ÁREA INFRAESTRUCTURA","INVERSIÓN ",902,16816000,1367,"Recuperación de la malla vial local","2020-07-03","2020-07-07","2020-12-31",16816000,4,4204000,1016,16816000,"YEIMY CAROLINA AGUDELO HERNANDEZ","JOSÉ TARCICIO QUIROGA VELAZQUES","INFRAESTRUCTURA","380-47-994000106302","2020-06-07","2021-09-05","NA",0,"NA","NA","NA","NA","NA","2020-11-06",55,"DIAS",7567200,"2020-11-06",55,"DIAS","NA","NA","NA","NA"]
["CONTRATACION DIRECTA","Contratos de prestación de servicios","EN EJECUCION","FDLK-CD 132-2020","CPS-132-2020",{"$f":"VLOOKUP(E133,[1]Hoja1!D$3:E$393,2,0)","v":0.98717948717948723},"JOAN CAMILO PINTO",1030559633,"JOAN CAMILO PINTO",1030559633,null,"https://community.secop.gov.co/Public/Tendering/OpportunityDetail/Index?noticeUID=CO1.NTC.1318761&isFromPublicArea=True&isModal=False","PRESTAR SUS SERVICIOS PROFESIONALES\nA LA ALCALDIA LOCAL DE KENNEDY PARA APOYA LA REALIZACION DE LOS\nENCUENTROS CIUDADANOS, EL ACOMPAÑAMIENTO A LAS INSTANCIAS DE\nPARTICIPACION LOCALES Y EL SEGUIMIENTO A LA FORMULACION DEL PLAN DE\nDESARROLLO","INVERSIÓN ",927,25200000,1371,"Fortalecimiento de la participación","2020-07-03","2020-07-09","2021-02-28",25200000,6,4200000,1034,25200000,"YEIMY CAROLINA AGUDELO HERNANDEZ","LUIS ALEJANDRO VENEGAS ROBAYO","PARTICIPACION","21-44-101326492","2020-06-07","30/06/2021","NA",0,"NA","NA","NA","NA","NA","2021-01-01",2,"MESES",8400000,"2021-01-01",2,"MESES","NA","NA","NA","NA"]
["CONTRATACION DIRECTA","Contratos de prestación de servicios","TERMINADO","FDLK-CD 133-2020","CPS-133-2020",{"$f":"VLOOKUP(E134,[1]Hoja1!D$3:E$393,2,0)","v":1},"JOSE GOTARDO PEREZ SOTO",13216397,"JOSE GOTARDO PEREZ SOTO",13216397,null,"https://community.secop.gov.co/Public/Tendering/OpportunityDetail/Index?noticeUID=CO1.NTC.1319111&isFromPublicArea=True&isModal=False","APOYAR EL (LA) ALCALDE(SA) LOCAL EN LA GESTIÓN DE LOS ASUNTOS RELACIONADOS CON SEGURIDAD CIUDADANA, CONVIVENCIA Y PREVENCIÓN DE CONFLICTIVIDADES, VIOLENCIAS Y DELITOS EN LA LOCALIDAD, DE CONFORMIDAD CON EL MARCO NORMATIVO APLICABLE EN LA MATERIA","INVERSIÓN ",912,39420000,1376,"Fortalecimiento de seguridad e iniciativa de convivencia en la localidad de\nKennedy","2020-07-03","2020-07-07","2020-12-31",39420000,6,6570000,1017,39420000,"YEIMY CAROLINA AGUDELO HERNANDEZ","DIANA MARCELA DELGADO JEREZ","Seguridad","380-47-994000106309","2020-06-07","2021-03-07","NA",0,"NA","NA","NA","NA","NA","NA","NA","NA","NA","NA","NA","NA","NA","NA","NA","NA"]
["CONTRATACION DIRECTA","Contratos de prestación de servicios","TERMINADO","FDLK-CD 134-2020","CPS-134-2020",{"$f":"VLOOKUP(E135,[1]Hoja1!D$3:E$393,2,0)","v":1},"JESSICA ROMERO POVEDA",1010217972,"JESSICA ROMERO POVEDA",1010217972,null,"https://community.secop.gov.co/Public/Tendering/OpportunityDetail/Index?noticeUID=CO1.NTC.1319115&isFromPublicArea=True&isModal=False","APOYAR JURÍDICAMENTE LA EJECUCIÓN DE LAS ACCIONES REQUERIDAS PARA LA DEPURACIÓN DE LAS ACTUACIONES ADMINISTRATIVAS QUE CURSAN EN LA ALCALDÍA LOCAL","INVERSIÓN ",924,24252000,1363,"Fortalecimiento de la gestión local y de las acciones de vigilancia y control","2020-07-03","2020-07-08","2020-12-31",24252000,4,6063000,1018,24252000,"YEIMY CAROLINA AGUDELO HERNANDEZ","NORMA LETICIA GUZMAN RIMOLLI","GESTION POLICIVA Y JURIDICA","380 47 994000106310","2020-06-07","2021-09-05","NA",0,"NA","NA","NA","NA","NA","2020-11-08",53,"DIAS",10711300,"2020-11-08",53,"DIAS","NA","NA","NA","NA"]
["CONTRATACION DIRECTA","Contratos de prestación de servicios","TERMINADO","FDLK-CD 135-2020","CPS-135-2020",{"$f":"VLOOKUP(E136,[1]Hoja1!D$3:E$393,2,0)","v":1},"AMANDA PATRICIA QUESADA GOMEZ",39767797,"AMANDA PATRICIA QUESADA GOMEZ",39767797,null,"https://community.secop.gov.co/Public/Tendering/OpportunityDetail/Index?noticeUID=CO1.NTC.1318821&isFromPublicArea=True&isModal=False","PRESTAR LOS SERVICIOS DE APOYO TÉCNICO Y ADMINISTRATIVO EN LA DESCONGESTIÓN DE TRÁMITES DEL ÁREA DE GESTIÓN POLICIVA JURÍDICA DE LA ALCALDÍA LOCAL DE KENNEDY","INVERSIÓN ",904,57664000,1363,"Fortalecimiento de la gestión local y de las acciones de vigilancia y control","2020-07-03","2020-07-08","2020-12-31",14416000,4,3604000,1019,14416000,"YEIMY CAROLINA AGUDELO HERNANDEZ","NORMA LETICIA GUZMAN RIMOLLI","GESTION POLICIVA Y JURIDICA","380-47-994000106305","2020-06-07","2021-09-05","NA",0,"NA","NA","NA","NA","NA","2020-11-08",53,"DIAS",6367067,"2020-11-08",53,"DIAS","NA","NA","NA","NA"]
["CONTRATACION DIRECTA","Contratos de prestación de servicios","TERMINADO","FDLK-CD-136-2020","CPS-136-2020",{"$f":"VLOOKUP(E137,[1]Hoja1!D$3:E$393,2,0)","v":1},"MARIELA JIMENEZ MARTINEZ",51813759,"MARIELA JIMENEZ MARTINEZ",51813759,null,"https://community.secop.gov.co/Public/Tendering/OpportunityDetail/Index?noticeUID=CO1.NTC.1318711&isFromPublicArea=True&isModal=False","PRESTAR LOS SERVICIOS DE APOYO A LOS ARCHIVOS DE GESTIÓN DE LA ENTIDAD EN LA IMPLEMENTACIÓN DE LOS PROCESOS DE CLASIFICACIÓN, ORDENACIÓN, SELECCIÓN NATURAL, FOLIACIÓN, IDENTIFICACIÓN, LEVANTAMIENTO DE INVENTARIOS, ALMACENAMIENTO Y APLICACIÓN DE PROTOCOLOS DE ELIMINACIÓN Y TRANSFERENCIAS DOCUMENTALES","INVERSIÓN ",907,39952000,1363,"Fortalecimiento de la gestión local y de las acciones de vigilancia y control","2020-07-03","2020-07-13","2020-12-31",9988000,4,2497000,998,9988000,"YEIMY CAROLINA AGUDELO HERNANDEZ","MARIA DEL PILAR MUÑOZ TORRES","ADMINISTRATIVO Y FINANCIERO","380-47-994000106292","2020-06-07","2021-09-05","NA",0,"NA","NA","NA","NA","NA","2020-11-13",48,"DIAS",3995200,"2020-11-13",48,"DIAS","NA","NA","NA","NA"]
["CONTRATACION DIRECTA","Contratos de prestación de servicios","TERMINADO","FDLK-CD-137-2020","CPS-137-2020",{"$f":"VLOOKUP(E138,[1]Hoja1!D$3:E$393,2,0)","v":1},"CARMEN CECILIA VALBUENA CASTAÑEDA",51834988,"CARMEN CECILIA VALBUENA CASTAÑEDA",51834988,null,"https://community.secop.gov.co/Public/Tendering/OpportunityDetail/Index?noticeUID=CO1.NTC.1319015&isFromPublicArea=True&isModal=False","PRESTAR LOS SERVICIOS DE APOYO AL ÁREA DE GESTIÓN DE DESARROLLO LOCAL Y AL DEFENSOR DEL CIUDADANO DE LA ALCALDÍA LOCAL DE KENNEDY","INVERSIÓN ",903,9988000,1363,"Fortalecimiento de la gestión local y de las acciones de vigilancia y control","2020-07-03","2020-07-06","2020-12-31",9988000,4,2497000,991,9988000,"YEIMY CAROLINA AGUDELO HERNANDEZ","MARIA DEL PILAR MUÑOZ TORRES","ADMINISTRATIVO Y FINANCIERO","21-44-101326546","2020-03-07","2021-06-05","NA",0,"NA","NA","NA","NA","NA","2020-11-06",55,"DIAS",4577833,"2020-11-06",55,"DIAS","NA","NA","NA","NA"]
["CONTRATACION DIRECTA","Contratos de prestación de servicios","TERMINADO","FDLK-CD-138-2020","CPS-138-2020",{"$f":"VLOOKUP(E139,[1]Hoja1!D$3:E$393,2,0)","v":1},"KAREN JOHANNA RAMÍREZ DUARTE",1022366754,"KAREN JOHANNA RAMÍREZ DUARTE",1022366754,null,"https://community.secop.gov.co/Public/Tendering/OpportunityDetail/Index?noticeUID=CO1.NTC.1318850&isFromPublicArea=True&isModal=False","PRESTAR SUS SERVICIOS ASISTENCIALES Y ADMINISTRATIVOS PARA APOYAR A LA ALCALDÍA LOCAL DE KENNEDY, DE CONFORMIDAD AL CONVENIO INTERADMINISTRATIVO ESPECIFICO Nro. 1377 de 2016 Y EL DECRETO 633 DE 2017","INVERSIÓN ",916,19976000,1363,"Fortalecimiento de la gestión local y de las acciones de vigilancia y control","2020-07-03","2020-07-10","2020-12-31",9988000,4,2497000,1009,9988000,"YEIMY CAROLINA AGUDELO HERNANDEZ","JULIAN ADOLFO RAMIREZ BEDOYA","CASA DEL CONSUMIDOR","380-47-994000106393","2020-03-07","2021-10-05","NA",0,"NA","NA","NA","NA","NA","2020-11-09",52,"DIAS",4244900,"2020-11-09",52,"DIAS","NA","NA","NA","NA"]
["CONTRATACION DIRECTA","Contratos de prestación de servicios","TERMINADO","FDLK-CD-139-2020","CPS-139-2020",{"$f":"VLOOKUP(E140,[1]Hoja1!D$3:E$393,2,0)","v":1},"JOSE WILMAN TORRES GOMEZ",1018425053,"JOSE WILMAN TORRES GOMEZ",1018425053,null,"https://community.secop.gov.co/Public/Tendering/OpportunityDetail/Index?noticeUID=CO1.NTC.1319161&isFromPublicArea=True&isModal=False","\tPRESTACIÓN DE SERVICIOS PROFESIONALES PARA APOYAR JURÍDICAMENTE A LA ALCALDÍA LOCAL DE KENNEDY - FONDO DE DESARROLLO LOCAL DE KENNEDY EN LOS ASUNTOS CONSTITUCIONALES, LEGALES Y REGLAMENTARIOS DE SU COMPETENCIA, PARTICULARMENTE LOS RELACIONADOS CON LAS ETAPAS PRECONTRACTUAL, CONTRACTUAL Y POSCONTRACTUAL DE LOS PROCESOS DE CONTRATACIÓN","INVERSIÓN ",917,22820000,1363,"Fortalecimiento de la gestión local y de las acciones de vigilancia y control","2020-07-03","2020-07-10","2020-12-31",22820000,4,5705000,1002,22820000,"YEIMY CAROLINA AGUDELO HERNANDEZ","MONICA JOHANNA HERNANDEZ PERAZA","CONTRATACION","380-47-994000106393","17/07/2020","2021-12-05","NA",0,"NA","NA","GLORIA STELLA ROBALLO OLMOS ","JOSE WILMAN TORRES GOMEZ","2020-07-15","2020-11-10",51,"DIAS",9698500,"2020-11-10",51,"DIAS","NA","NA","NA","NA"]
["CONTRATACION DIRECTA","Contratos de prestación de servicios","TERMINADO","FDLK-CD-140-2020","CPS-140-2020",{"$f":"VLOOKUP(E141,[1]Hoja1!D$3:E$393,2,0)","v":1},"LIDA ELIZABETH SILVA RODRIGUEZ",52120354,"LIDA ELIZABETH SILVA RODRIGUEZ",52120354,null,"https://community.secop.gov.co/Public/Tendering/OpportunityDetail/Index?noticeUID=CO1.NTC.1318863&isFromPublicArea=True&isModal=False","PRESTAR LOS SERVICIOS DE APOYO A LOS ARCHIVOS DE GESTIÓN DE LA ENTIDAD EN LA IMPLEMENTACIÓN DE LOS PROCESOS DE CLASIFICACIÓN, ORDENACIÓN, SELECCIÓN NATURAL, FOLIACIÓN, IDENTIFICACIÓN, LEVANTAMIENTO DE INVENTARIOS, ALMACENAMIENTO Y APLICACIÓN DE PROTOCOLOS DE ELIMINACIÓN Y TRANSFERENCIAS DOCUMENTALES","INVERSIÓN ",907,39952000,1363,"Fortalecimiento de la gestión local y de las acciones de vigilancia y control","2020-07-03","2020-07-08","2020-12-31",9988000,4,2497000,999,9988000,"YEIMY CAROLINA AGUDELO HERNANDEZ","MARIA DEL PILAR MUÑOZ TORRES","ADMINISTRATIVO Y FINANCIERO","376 47 994000012860","2020-03-05","2021-03-05","NA",0,"NA","NA","NA","NA","NA","2020-11-08",53,"DIAS",4411367,"2020-11-08",53,"DIAS","NA","NA","NA","NA"]
["CONTRATACION DIRECTA","Contratos de prestación de servicios","TERMINADO","FDLK-CD-141-2020","CPS-141-2020",{"$f":"VLOOKUP(E142,[1]Hoja1!D$3:E$393,2,0)","v":1},"MAURICIO GUARNIZO SALAZAR",80258740,"MAURICIO GUARNIZO SALAZAR",80258740,null,"https://community.secop.gov.co/Public/Tendering/OpportunityDetail/Index?noticeUID=CO1.NTC.1319731&isFromPublicArea=True&isModal=False","PRESTAR SUS SERVICIOS PROFESIONALES PARA APOYAR A LA ALCALDIA LOCAL DE KENNEDY, DE CONFORMIDAD AL CONVENIO INTERADMINISTRATIVO ESPECIFICO Nro. 1377 de 2016 Y EL DECRETO 633 DE 2017","INVERSIÓN ",915,22048000,1363,"Fortalecimiento de la gestión local y de las acciones de vigilancia y control","2020-07-03","2020-07-09","2020-12-31",22048000,4,5512000,992,22048000,"YEIMY CAROLINA AGUDELO HERNANDEZ","JULIAN ADOLFO RAMIREZ BEDOYA","CASA DEL CONSUMIDOR","21-44-101326550","2020-03-07","2021-10-05","NA",0,"NA","NA","NA","NA","NA","2020-11-09",52,"DIAS",9554133,"2020-11-09",52,"DIAS","NA","NA","NA","NA"]
["CONTRATACION DIRECTA","Contratos de prestación de servicios","EN EJECUCION","FDLK-CD-142-2020","CPS-142-2020",{"$f":"VLOOKUP(E143,[1]Hoja1!D$3:E$393,2,0)","v":0.98734177215189878},"ANIBAL FERNANDO OSPINA ARDILA",79687438,"ANIBAL FERNANDO OSPINA ARDILA",79687438,null,"https://community.secop.gov.co/Public/Tendering/OpportunityDetail/Index?noticeUID=CO1.NTC.1319650&isFromPublicArea=True&isModal=False","PRESTAR SUS SERVICIOS PROFESIONA-LES  ESPECIALZIADOS  PARA  APOYAR  A LA  ALCALDÍA  LOCAL  DE  KENNEDY  EN LA FORMULACIÓN Y SEGUIMIENTO DE LAS    OBRAS    DE    INFRAESTRUCTURA ADELANTADAS  POR  LA  ALCALDÍA  LO-CAL","INVERSIÓN ",938,42000000,1369,"Recreación y deporte para todos","2020-07-03","2020-07-06","2021-02-28",40833334,5.833333333333333,7000000.1142857149,995,40833334,"YEIMY CAROLINA AGUDELO HERNANDEZ","JOSÉ TARCICIO QUIROGA VELAZQUES","INFRAESTRUCTURA","380 47 994000106306","2020-06-07","2021-06-07","NA",0,"NA","NA","NA","NA","NA","2021-01-01",2,"MESES",14000000,"2021-01-01",2,"MESES","NA","NA","NA","NA"]
["CONTRATACION DIRECTA","Contratos de prestación de servicios","EN EJECUCION","FDLK-CD-143-2020","CPS-143-2020",{"$f":"VLOOKUP(E144,[1]Hoja1!D$3:E$393,2,0)","v":0.88505747126436785},"OLGA MADIME MORA ACOSTA",1022337324,"OLGA MADIME MORA ACOSTA",1022337324,null,"https://community.secop.gov.co/Public/Tendering/OpportunityDetail/Index?noticeUID=CO1.NTC.1319537&isFromPublicArea=True&isModal=False","PRESTAR LOS SERVICIOS DE APOYO A LA JUNTA ADMINISTRADORA LOCAL DE KENNEDY DE CONFORMIDAD CON EL TRÁMITE DE LOS ASUNTOS DE SU COMPETENCIA","INVERSIÓN ",928,14982000,1363,"Fortalecimiento de la gestión local y de las acciones de vigilancia y control","2020-07-03","2020-07-09","2021-03-27",14565833,5.833333333333333,2496999.942857143,1003,14565833,"YEIMY CAROLINA AGUDELO HERNANDEZ","MARIA DEL PILAR MUÑOZ TORRES","JAL","380-47-994000106300","2020-08-07","2021-03-07","NA",0,"NA","NA","NA","NA","NA","2021-01-01",86,"DIAS",7241300,"2021-01-01",86,"DIAS","NA","NA","NA","NA"]
["CONTRATACION DIRECTA","Contratos de prestación de servicios","TERMINADO","FDLK-CD-144-2020","CPS-144-2020",{"$f":"VLOOKUP(E145,[1]Hoja1!D$3:E$393,2,0)","v":1},"HENRY ALEXANDER ESLAVA PULIDO",1014230448,"HENRY ALEXANDER ESLAVA PULIDO",1014230448,null,"https://community.secop.gov.co/Public/Tendering/OpportunityDetail/Index?noticeUID=CO1.NTC.1319645&isFromPublicArea=True&isModal=False","PRESTACIÓN DE SERVICIOS PROFESIONALES A LA ALCALDÍA LOCAL DE KENNEDY APOYANDO LAS ETAPAS PRECONTRACTUAL, CONTRACTUAL Y POSCONTRACTUAL DE LOS PROYECTOS DE INVERSION DEL FONDO DE DESARROLLO LOCAL DE KENNEDY","INVERSIÓN ",920,22048000,1361,"Sostenibilidad ambiental basada en la eficiencia energética","2020-07-03","2020-07-06","2020-12-31",22048000,4,5512000,993,22048000,"YEIMY CAROLINA AGUDELO HERNANDEZ","MARIA DEL PILAR MUJICA SANDOVAL","PLANEACION","15-44-101228873","2020-03-07","15/05/2021","NA",0,"NA","NA","NA","NA","NA","2020-11-06",55,"DIAS",10105333,"2020-11-06",55,"DIAS","NA","NA","NA","NA"]
["CONTRATACION DIRECTA","Contratos de prestación de servicios","TERMINADO","FDLK-CD-145-2020","CPS-145-2020",{"$f":"VLOOKUP(E146,[1]Hoja1!D$3:E$393,2,0)","v":1},"WILLIAM JAVIER ROJAS VARGAS",79597468,"WILLIAM JAVIER ROJAS VARGAS",79597468,null,"https://community.secop.gov.co/Public/Tendering/OpportunityDetail/Index?noticeUID=CO1.NTC.1319663&isFromPublicArea=True&isModal=False","PRESTAR LOS SERVICIOS DE APOYO A LA OFICINA DE RADICACIÓN Y CORRESPONDENCIA DE LA ALCALDIA LOCAL DE KENNEDY EN TEMAS DE GESTIÓN DOCUMENTAL Y TRAMITES DE SU COMPETENCIA","INVERSIÓN ",918,9988000,1363,"Fortalecimiento de la gestión local y de las acciones de vigilancia y control","2020-07-03","2020-07-09","2020-12-31",9988000,4,2497000,1004,9988000,"YEIMY CAROLINA AGUDELO HERNANDEZ","MARIA DEL PILAR MUÑOZ TORRES","ADMINISTRATIVO Y FINANCIERO","380-47-994000106325","2020-03-07","2021-11-05","NA",0,"NA","NA","NA","NA","NA","2020-11-06",53,"DIAS",4328133,"2020-11-06",53,"DIAS","NA","NA","NA","NA"]
["CONTRATACION DIRECTA","Contratos de prestación de servicios","TERMINADO","FDLK-CD-146-2020","CPS-146-2020",{"$f":"VLOOKUP(E147,[1]Hoja1!D$3:E$393,2,0)","v":1},"MARIA ALICIA CORTES SILVA",20381368,"MARIA ALICIA CORTES SILVA",20381368,null,"https://community.secop.gov.co/Public/Tendering/OpportunityDetail/Index?noticeUID=CO1.NTC.1319676&isFromPublicArea=True&isModal=False","PRESTAR LOS SERVICIOS DE APOYO EN LAS ACCIONES ENCAMINADAS AL RESTABLECIMIENTO DE LA ARMONÍA, PAZ, SEGURIDAD Y CONVIVENCIA CIUDADANA, EN LA LOCALIDAD DE KENNEDY","INVERSIÓN ",910,285244000,1376,"Fortalecimiento de seguridad e iniciativa de convivencia en la localidad de\nKennedy","2020-07-03","2020-07-09","2020-12-31",9836000,4,2459000,1005,9836000,"YEIMY CAROLINA AGUDELO HERNANDEZ","MARITZA RUIZ POSADA","Seguridad","21-44-101326632","2020-03-07","2021-07-05","NA",0,"NA","NA","NA","NA","NA","2020-11-09",52,"DIAS",4262267,"2020-11-09",52,"DIAS","NA","NA","NA","NA"]
["CONTRATACION DIRECTA","Contratos de prestación de servicios","TERMINADO","FDLK-CD-147-2020","CPS-147-2020",{"$f":"VLOOKUP(E148,[1]Hoja1!D$3:E$393,2,0)","v":1},"YORGUIN ERNESTO BOHÓRQUEZ CANIZALES",1018406599,"YORGUIN ERNESTO BOHÓRQUEZ CANIZALES",1018406599,null,"https://community.secop.gov.co/Public/Tendering/OpportunityDetail/Index?noticeUID=CO1.NTC.1319279&isFromPublicArea=True&isModal=False","PRESTAR APOYO EN LOS PROCESOS PARA LA ADMINISTRACIÓN DE BIENES DE PROPIEDAD DEL FONDO DE DESARROLLO LOCAL DE KENNEDY Y DE LOS QUE SEAN ASIGNADOS POR LA SECRETARÍA DE GOBIERNO DE ACUERDO A LOS PROCESOS Y PROCEDIMIENTOS ESTABLECIDOS","INVERSIÓN ",922,13568000,1363,"Fortalecimiento de la gestión local y de las acciones de vigilancia y control","2020-07-03","2020-07-09","2020-12-31",13568000,4,3392000,1006,13568000,"YEIMY CAROLINA AGUDELO HERNANDEZ","NILBA ALIET AREVALO CASTELLANOS","ALMACEN","380-47-994000106329","2020-03-07","2021-10-05","NA",0,"NA","NA","NA","NA","NA","2020-11-09",53,"DIAS",5992533,"2020-11-09",53,"DIAS","NA","NA","NA","NA"]
["CONTRATACION DIRECTA","Contratos de prestación de servicios","TERMINADO","FDLK-CD-148-2020","CPS-148-2020",{"$f":"VLOOKUP(E149,[1]Hoja1!D$3:E$393,2,0)","v":1},"NELLY JANNETH REY LADINO",52537998,"NELLY JANNETH REY LADINO",52537998,null,"https://community.secop.gov.co/Public/Tendering/OpportunityDetail/Index?noticeUID=CO1.NTC.1319762&isFromPublicArea=True&isModal=False","PRESTAR  SUS  SERVICIOS  PROFESIONALES  A  LAALCALDÍA LOCAL DE KENNEDY APOYANDO LA EJECUCIÓN DEL PROYECTO 1380 MI CASA ME PERTENECE EN ELCOMPONENTE  SOCIAL  TENDIENTE  A  LA  TITULACIÓN  DE  PREDIOS  CONFORME  A  GARANTIZAR  ELCUMPLIMIENTO  DEL  PLAN  DE  DESARROLLO  LOCAL","INVERSIÓN ",905,16816000,1380,"Mi casa me pertenece","2020-07-03","2020-07-10","2020-12-31",16816000,4,4204000,1010,16816000,"YEIMY CAROLINA AGUDELO HERNANDEZ","YULLIET PATRICIA LLERENA AVENDAÑO","PLANEACION","380-47-994000106321","2020-03-07","2021-10-05","NA",0,"NA","NA","NA","NA","NA","2020-11-10",52,"DIAS",7146800,"2020-11-10",52,"DIAS","NA","NA","NA","NA"]
["CONTRATACION DIRECTA","Contratos de prestación de servicios","TERMINADO","FDLK-CD-149-2020","CPS-149-2020",{"$f":"VLOOKUP(E150,[1]Hoja1!D$3:E$393,2,0)","v":1},"LUIS CARLOS NOVOA VARGAS",79845506,"LUIS CARLOS NOVOA VARGAS",79845506,null,"https://community.secop.gov.co/Public/Tendering/OpportunityDetail/Index?noticeUID=CO1.NTC.1319699&isFromPublicArea=True&isModal=False","PRESTAR LOS SERVICIOS DE APOYO EN LAS ACCIONES ENCAMINADAS AL RESTABLECIMIENTO DE LA ARMONÍA, PAZ, SEGURIDAD Y CONVIVENCIA CIUDADANA, EN LA LOCALIDAD DE KENNEDY","INVERSIÓN ",910,285244000,1376,"Fortalecimiento de seguridad e iniciativa de convivencia en la localidad de\nKennedy","2020-07-06","2020-07-10","2020-11-09",9836000,4,2459000,1011,9836000,"YEIMY CAROLINA AGUDELO HERNANDEZ","MARITZA RUIZ POSADA","Seguridad","380-47-994000106367","2020-08-07","2021-10-05","NA",0,"NA","NA","NA","NA","NA","NA","NA","NA","NA","NA","NA","NA","NA","NA","NA","NA"]
["CONTRATACION DIRECTA","Contratos de prestación de servicios","TERMINADO","FDLK-CD-150-2020","CPS-150-2020",{"$f":"VLOOKUP(E151,[1]Hoja1!D$3:E$393,2,0)","v":1},"SANDRA MILENA SANCHEZ CASTRO",52767159,"SANDRA MILENA SANCHEZ CASTRO",52767159,null,"https://community.secop.gov.co/Public/Tendering/OpportunityDetail/Index?noticeUID=CO1.NTC.1319905&isFromPublicArea=True&isModal=False","PRESTAR SUS SERVICIOS ASISTENCIALES Y ADMINISTRATIVOS PARA APOYAR A LA ALCALDÍA LOCAL DE KENNEDY, DE CONFORMIDAD AL CONVENIO INTERADMINISTRATIVO ESPECIFICO Nro. 1377 de 2016 Y EL DECRETO 633 DE 2017","INVERSIÓN ",916,19976000,1363,"Fortalecimiento de la gestión local y de las acciones de vigilancia y control","2020-07-03","2020-07-09","2020-12-31",9988000,4,2497000,1007,9988000,"YEIMY CAROLINA AGUDELO HERNANDEZ","JULIAN ADOLFO RAMIREZ BEDOYA","CASA DEL CONSUMIDOR","15-46-101016546","2020-03-07","2021-10-05","NA",0,"NA","NA","NA","NA","NA","2020-11-09",52,"DIAS",4328133,"2020-11-09",52,"DIAS","NA","NA","NA","NA"]
["CONTRATACION DIRECTA","Contratos de prestación de servicios","EN EJECUCION","FDLK-CD-151-2020","CPS-151-2020",{"$f":"VLOOKUP(E152,[1]Hoja1!D$3:E$393,2,0)","v":0.98728813559322037},"YANETH ESPERANZA ECHEVERRIA BECERRA",51916237,"YANETH ESPERANZA ECHEVERRIA BECERRA",51916237,null,"https://community.secop.gov.co/Public/Tendering/OpportunityDetail/Index?noticeUID=CO1.NTC.1319931&isFromPublicArea=True&isModal=False","Prestar sus servicios profesionales a la alcaldía local de Kennedy apoyando la etapa precontractual, contractual y poscontractual del proyecto de recuperación de la malla vial local tendiente a garantizar el cumplimiento del plan de desarrollo local ","INVERSIÓN ",963," ",1367,"Recuperación de la malla vial local","2020-07-03","2020-07-07","2021-02-28",35000000,6,5833333.333333333,994,35000000,"YEIMY CAROLINA AGUDELO HERNANDEZ","JOSÉ TARCICIO QUIROGA VELAZQUES","INFRAESTRUCTURA","380-47-994000106328","2020-03-07","2021-03-07","NA",0,"NA","NA","NA","NA","NA","2021-01-01",2,"MESES",12000000,"2021-01-01",2,"MESES","NA","NA","NA","NA"]
["CONTRATACION DIRECTA","Contratos de prestación de servicios","TERMINADO","FDLK-CD-152-2020","CPS-152-2020",{"$f":"VLOOKUP(E153,[1]Hoja1!D$3:E$393,2,0)","v":1},"MONICA TATIANA ARIZA",1026568078,"MONICA TATIANA ARIZA",1026568078,null,"https://community.secop.gov.co/Public/Tendering/OpportunityDetail/Index?noticeUID=CO1.NTC.1320074&isFromPublicArea=True&isModal=False","PRESTAR LOS SERVICIOS DE APOYO EN LAS ACCIONES ENCAMINADAS AL RESTABLECIMIENTO DE LA ARMONÍA, PAZ, SEGURIDAD Y CONVIVENCIA CIUDADANA, EN LA LOCALIDAD DE KENNEDY","INVERSIÓN ",910,285244000,1376,"Fortalecimiento de seguridad e iniciativa de convivencia en la localidad de\nKennedy","2020-07-03","2020-07-08","2020-12-31",9836000,4,2459000,1020,9836000,"YEIMY CAROLINA AGUDELO HERNANDEZ","MARITZA RUIZ POSADA","Seguridad","380- 47- 994000106326","2020-07-06","2021-09-05","NA",0,"NA","NA","NA","NA","NA","2020-11-08",53,"DIAS",4344223,"2020-11-08",53,"DIAS","NA","NA","NA","NA"]
["CONTRATACION DIRECTA","Contratos de prestación de servicios","TERMINADO","FDLK-CD-153-2020","CPS-153-2020",{"$f":"VLOOKUP(E154,[1]Hoja1!D$3:E$393,2,0)","v":1},"ALEJANDRA MORALES MILLAN",1030616555,"ALEJANDRA MORALES MILLAN",1030616555,null,"https://community.secop.gov.co/Public/Tendering/OpportunityDetail/Index?noticeUID=CO1.NTC.1320075&isFromPublicArea=True&isModal=False","PRESTAR LOS SERVICIOS DE APOYO EN LAS ACCIONES ENCAMINADAS AL RESTABLECIMIENTO DE LA ARMONÍA, PAZ, SEGURIDAD Y CONVIVENCIA CIUDADANA, EN LA LOCALIDAD DE KENNEDY","INVERSIÓN ",910,285244000,1376,"Fortalecimiento de seguridad e iniciativa de convivencia en la localidad de\nKennedy","2020-07-03","2020-07-10","2020-11-09",9836000,4,2459000,1034,9836000,"YEIMY CAROLINA AGUDELO HERNANDEZ","FABIAN CAMILO GARCIA VILLARREAL","Seguridad","21-44-101326643","2020-07-06","2021-06-05","NA",0,"NA","NA","NA","NA","NA","NA","NA","NA","NA","NA","NA","NA","NA","NA","NA","NA"]
["CONTRATACION DIRECTA","Contratos de prestación de servicios","TERMINADO","FDLK-CD-154-2020","CPS-154-2020",{"$f":"VLOOKUP(E155,[1]Hoja1!D$3:E$393,2,0)","v":1},"EMERSON DAMIAN MONTAÑEZ DIAZ",1098637591,"EMERSON DAMIAN MONTAÑEZ DIAZ",1098637591,null,"https://community.secop.gov.co/Public/Tendering/OpportunityDetail/Index?noticeUID=CO1.NTC.1320252&isFromPublicArea=True&isModal=False","PRESTAR SUS SERVICIOS PROFESIONALES A LA ALCALDIA LOCAL DE KENNEDY APOYANDO LAS ETAPAS PRECONTRACTUAL, CONTRACTUAL Y POSTCONTRACTUAL DEL PROYECTO DE INFRAESTRUCTURA Y ESPACIO PÚBLICO TENDIENTE A GARANTIZAR EL CUMPLIMIENTO DEL PLAN DE DESARROLLO LOCAL","INVERSIÓN ",866,44095542,1369,"Recreación y deporte para todos","2020-07-03","2020-07-07","2020-12-31",22047771,4,5511942.75,1021,22047771,"YEIMY CAROLINA AGUDELO HERNANDEZ","JOSÉ TARCICIO QUIROGA VELAZQUES","INFRAESTRUCTURA","15-44-101228988","2020-07-06","2021-06-05","NA",0,"NA","NA","NA","NA","NA","2020-11-06",55,"DIAS",10105229,"2020-11-06",55,"DIAS","NA","NA","NA","NA"]
["CONTRATACION DIRECTA","Contratos de prestación de servicios","EN EJECUCION","FDLK-CD-155-2020","CPS-155-2020",{"$f":"VLOOKUP(E156,[1]Hoja1!D$3:E$393,2,0)","v":0.98712446351931327},"JUAN CARLOS MORENO GONZALEZ",79733707,"JUAN CARLOS MORENO GONZALEZ",79733707,null,"https://community.secop.gov.co/Public/Tendering/OpportunityDetail/Index?noticeUID=CO1.NTC.1322424&isFromPublicArea=True&isModal=False","PRESTAR SUS SERVICIOS PROFESIONALES A LA ALCALDÍA LOCAL DE KENNEDY APOYANDO LA FORMULACIÓN Y SEGUIMIENTO DEL PROYECTO DE RECUPERACION DE LA MALLA VIAL LOCAL TENDIENTE A GARANTIZAR EL CUMPLIMIENTO DEL PLAN DE DESARROLLO LOCAL","INVERSIÓN ",963,72000000,1367,"Recuperación de la malla vial local","2020-07-06","2020-07-10","2021-02-28",34800000,5.8,6000000,1028,34800000,"YEIMY CAROLINA AGUDELO HERNANDEZ","JOSÉ TARCICIO QUIROGA VELAZQUES","INFRAESTRUCTURA","380-47-994000106354","2020-07-06","2021-07-03","NA",0,"NA","NA","NA","NA","NA","2021-01-01",2,"MESES",12000000,"2021-01-01",2,"MESES","NA","NA","NA","NA"]
["CONTRATACION DIRECTA","Contratos de prestación de servicios","TERMINADO","FDLK-CD-156-2020","CPS-156-2020",{"$f":"VLOOKUP(E157,[1]Hoja1!D$3:E$393,2,0)","v":1},"WILLIAM  JAVIER INDABURO CENDALES",80830997,"WILLIAM  JAVIER INDABURO CENDALES",80830997,null,"https://community.secop.gov.co/Public/Tendering/OpportunityDetail/Index?noticeUID=CO1.NTC.1322558&isFromPublicArea=True&isModal=False","PRESTAR LOS SERVICIOS DE APOYO EN LAS ACCIONES ENCAMINADAS AL RESTABLECIMIENTO DE LA ARMONÍA, PAZ, SEGURIDAD Y CONVIVENCIA CIUDADANA, EN LA LOCALIDAD DE KENNEDY","INVERSIÓN ",910,285244000,1376,"Fortalecimiento de seguridad e iniciativa de convivencia en la localidad de\nKennedy","2020-07-06","2020-07-10","2020-12-31",9836000,4,2459000,1029,9836000,"YEIMY CAROLINA AGUDELO HERNANDEZ","FABIAN CAMILO GARCIA VILLARREAL","Seguridad","21-44-101326740","2020-07-06","2021-10-05","NA",0,"NA","NA","NA","NA","NA","2020-11-10",51,"DIAS",4180300,"2020-11-10",51,"DIAS","NA","NA","NA","NA"]
["CONTRATACION DIRECTA","Contratos de prestación de servicios","TERMINADO","FDLK-CD-157-2020","CPS-157-2020",{"$f":"VLOOKUP(E158,[1]Hoja1!D$3:E$393,2,0)","v":1},"BRANDON ANDRES BOHORQUEZ MONCALEANO",1031168188,"BRANDON ANDRES BOHORQUEZ MONCALEANO",1031168188,null,"https://community.secop.gov.co/Public/Tendering/OpportunityDetail/Index?noticeUID=CO1.NTC.1322352&isFromPublicArea=True&isModal=False","PRESTAR LOS SERVICIOS DE APOYO EN LAS ACCIONES ENCAMINADAS AL RESTABLECIMIENTO DE LA ARMONÍA, PAZ, SEGURIDAD Y CONVIVENCIA CIUDADANA, EN LA LOCALIDAD DE KENNEDY","INVERSIÓN ",910,285244000,1376,"Fortalecimiento de seguridad e iniciativa de convivencia en la localidad de\nKennedy","2020-07-06","2020-07-13","2020-12-31",9836000,4,2459000,1046,9836000,"YEIMY CAROLINA AGUDELO HERNANDEZ","MARITZA RUIZ POSADA","Seguridad","380-47-994000106334","2020-07-06","2021-12-05","NA",0,"NA","NA","NA","NA","NA","2020-11-13",48,"DIAS",3934400,"2020-11-13",48,"DIAS","NA","NA","NA","NA"]
["CONTRATACION DIRECTA","Contratos de prestación de servicios","TERMINADO","FDLK-CD-158-2020","CPS-158-2020",{"$f":"VLOOKUP(E159,[1]Hoja1!D$3:E$393,2,0)","v":1},"JORGE ANDRES SOLANO CASTRO",1022351642,"JORGE ANDRES SOLANO CASTRO",1022351642,null,"https://community.secop.gov.co/Public/Tendering/OpportunityDetail/Index?noticeUID=CO1.NTC.1322649&isFromPublicArea=True&isModal=False","PRESTAR LOS SERVICIOS DE APOYO EN LAS ACCIONES ENCAMINADAS AL RESTABLECIMIENTO DE LA ARMONÍA, PAZ, SEGURIDAD Y CONVIVENCIA CIUDADANA, EN LA LOCALIDAD DE KENNEDY","INVERSIÓN ",910,285244000,1376,"Fortalecimiento de seguridad e iniciativa de convivencia en la localidad de\nKennedy","2020-07-06","2020-07-17","2020-12-31",9836000,4,2459000,1040,9836000,"YEIMY CAROLINA AGUDELO HERNANDEZ","MARITZA RUIZ POSADA","Seguridad","380 47 994000106370","2020-07-06","2021-09-05","NA",0,"NA","NA","NA","NA","NA","2020-11-17",44,"DIAS",3606533,"2020-11-17",44,"DIAS","NA","NA","NA","NA"]
["CONTRATACION DIRECTA","Contratos de prestación de servicios","TERMINADO","FDLK-CD-159-2020","CPS-159-2020",{"$f":"VLOOKUP(E160,[1]Hoja1!D$3:E$393,2,0)","v":1},"JOSE SALATIEL GONZALEZ CALDERON",3216280,"JOSE SALATIEL GONZALEZ CALDERON",3216280,null,"https://community.secop.gov.co/Public/Tendering/OpportunityDetail/Index?noticeUID=CO1.NTC.1322772&isFromPublicArea=True&isModal=False","PRESTAR LOS SERVICIOS DE APOYO EN LAS ACCIONES ENCAMINADAS AL RESTABLECIMIENTO DE LA ARMONÍA, PAZ, SEGURIDAD Y CONVIVENCIA CIUDADANA, EN LA LOCALIDAD DE KENNEDY","INVERSIÓN ",910,285244000,1376,"Fortalecimiento de seguridad e iniciativa de convivencia en la localidad de\nKennedy","2020-07-06","2020-07-13","2020-12-31",9836000,4,2459000,1041,9836000,"YEIMY CAROLINA AGUDELO HERNANDEZ","MARITZA RUIZ POSADA","Seguridad","380-47-994000106331","2020-07-06","2021-12-05","NA",0,"NA","NA","NA","NA","NA","2020-11-12",49,"DIAS",3934400,"2020-11-12",49,"DIAS","NA","NA","NA","NA"]
["CONTRATACION DIRECTA","Contratos de prestación de servicios","EN EJECUCION","FDLK-CD-160-2020","CPS-160-2020",{"$f":"VLOOKUP(E161,[1]Hoja1!D$3:E$393,2,0)","v":1},"LEIDY STEFFANY RIVEROS SERNA",1024547307,"LEIDY STEFFANY RIVEROS SERNA",1024547307,null,"https://community.secop.gov.co/Public/Tendering/OpportunityDetail/Index?noticeUID=CO1.NTC.1322849&isFromPublicArea=True&isModal=False","PRESTAR SUS\r\nSERVICIOS AL ÁREA DE GESTIÓN AL DESARROLLO LOCAL BRINDANDO APOYO EN LAS\r\nLABORES CONTABLES DEL FONDO DE DESARROLLO LOCAL DE KENNEDY","INVERSIÓN ",973,23100000,1363,"Fortalecimiento de la gestión local y de las acciones de vigilancia y control","2020-07-06","2020-07-09","2021-02-15",22330000,5.8,3850000,1031,22330000,"YEIMY CAROLINA AGUDELO HERNANDEZ","LUZ MYRIAM ORTEGA WALTEROS","ADMINISTRATIVO Y FINANCIERO","380-47-994000106300","2020-07-06","2021-03-07","NA",0,"NA","NA","NA","NA","NA","2021-01-01",46,"DIAS",5775000,"2021-01-01",46,"DIAS","NA","NA","NA","NA"]
["CONTRATACION DIRECTA","Contratos de prestación de servicios","TERMINADO","FDLK-CD-161-2020","CPS-161-2020",{"$f":"VLOOKUP(E162,[1]Hoja1!D$3:E$393,2,0)","v":1},"MARCO FIDEL PEDROZA HUERTAS",1073671140,"MARCO FIDEL PEDROZA HUERTAS",1073671140,null,"https://community.secop.gov.co/Public/Tendering/OpportunityDetail/Index?noticeUID=CO1.NTC.1323244&isFromPublicArea=True&isModal=False","PRESTAR LOS SERVICIOS DE APOYO EN LAS ACCIONES ENCAMINADAS AL RESTABLECIMIENTO DE LA ARMONÍA, PAZ, SEGURIDAD Y CONVIVENCIA CIUDADANA, EN LA LOCALIDAD DE KENNEDY","INVERSIÓN ",910,285244000,1376,"Fortalecimiento de seguridad e iniciativa de convivencia en la localidad de\nKennedy","2020-07-06","2020-07-13","2020-12-31",9836000,4,2459000,1030,9836000,"YEIMY CAROLINA AGUDELO HERNANDEZ","FABIAN CAMILO GARCIA VILLARREAL","Seguridad","21-44-101326602","2020-07-06","2021-12-05","NA",0,"NA","NA","NA","NA","NA","2020-11-13",48,"DIAS",3934400,"2020-11-13",48,"DIAS","NA","NA","NA","NA"]
["CONTRATACION DIRECTA","Contratos de prestación de servicios","TERMINADO","FDLK-CD-162-2020","CPS-162-2020",{"$f":"VLOOKUP(E163,[1]Hoja1!D$3:E$393,2,0)","v":1},"CAROL YASMINE LÓPEZ MARTÍNEZ  ",52812114,"CAROL YASMINE LÓPEZ MARTÍNEZ  ",52812114,null,"https://community.secop.gov.co/Public/Tendering/OpportunityDetail/Index?noticeUID=CO1.NTC.1323284&isFromPublicArea=True&isModal=False","PRESTAR LOS SERVICIOS DE APOYO TÉCNICO Y ADMINISTRATIVO EN LA DESCONGESTIÓN DE TRÁMITES DEL ÁREA DE GESTIÓN POLICIVA JURÍDICA DE LA ALCALDÍA LOCAL DE KENNEDY","INVERSIÓN ",904,57664000,1363,"Fortalecimiento de la gestión local y de las acciones de vigilancia y control","2020-07-07","2020-07-09","2020-12-31",14416000,4,3604000,1032,14416000,"YEIMY CAROLINA AGUDELO HERNANDEZ","NORMA LETICIA GUZMAN RIMOLLI","GESTION POLICIVA Y JURIDICA","33-46-101024213","2020-07-07","2021-07-05","NA",0,"NA","NA","NA","NA","NA","2020-11-09",52,"DIAS",6246933,"2020-11-09",52,"DIAS","NA","NA","NA","NA"]
["CONTRATACION DIRECTA","Contratos de prestación de servicios","EN EJECUCION","FDLK-CD-163-2020","CPS-163-2020",{"$f":"VLOOKUP(E164,[1]Hoja1!D$3:E$393,2,0)","v":1},"CAMILA ANDREA VALDERRAMA RIVERA",1018458119,"CAMILA ANDREA VALDERRAMA RIVERA",1018458119,null,"https://community.secop.gov.co/Public/Tendering/OpportunityDetail/Index?noticeUID=CO1.NTC.1323656&isFromPublicArea=True&isModal=False","PRESTAR SUS SERVICIOS PROFESIONALES PARA APOYAR LOS PROCESOS DE MANEJO\nDEL PRESUPUESTO DISTRITAL LOCAL QUE SE ENCUENTRAN A CARGO DE LA OFICINA\nDE PRESUPUESTO DEL FONDO DE DESARROLLO LOCAL DE KENNEDY.","INVERSIÓN ",929,25200000,1363,"Fortalecimiento de la gestión local y de las acciones de vigilancia y control","2020-07-07","2020-07-08","2021-02-15",25200000,6,4200000,1025,25200000,"YEIMY CAROLINA AGUDELO HERNANDEZ","ANDREA CASAS DURAN","Presupuesto","380-47-994000106300","2020-08-07","2021-03-07","NA",0,"NA","NA","NA","NA","NA","2021-01-01",46,"DIAS",6300000,"2021-01-01",46,"DIAS","NA","NA","NA","NA"]
["CONTRATACION DIRECTA","Contratos de prestación de servicios","TERMINADO","FDLK-CD-164-2020","CPS-164-2020",{"$f":"VLOOKUP(E165,[1]Hoja1!D$3:E$393,2,0)","v":1},"JENNIFER ALEJANDRA CARDOSO TIBOCHA",1023942028,"JENNIFER ALEJANDRA CARDOSO TIBOCHA",1023942028,null,"https://community.secop.gov.co/Public/Tendering/OpportunityDetail/Index?noticeUID=CO1.NTC.1324046&isFromPublicArea=True&isModal=False","PRESTAR LOS SERVICIOS DE APOYO EN LAS ACCIONES ENCAMINADAS AL RESTABLECIMIENTO DE LA ARMONÍA, PAZ, SEGURIDAD Y CONVIVENCIA CIUDADANA, EN LA LOCALIDAD DE KENNEDY","INVERSIÓN ",910,285244000,1376,"Fortalecimiento de seguridad e iniciativa de convivencia en la localidad de\nKennedy","2020-07-07","2020-07-10","2020-12-31",9836000,4,2459000,1039,9836000,"YEIMY CAROLINA AGUDELO HERNANDEZ","FABIAN CAMILO GARCIA VILLARREAL","Seguridad","11-44-101154004","2020-09-07","2021-10-05","NA",0,"NA","NA","NA","NA","NA","2020-11-10",51,"DIAS",4180300,"2020-11-10",51,"DIAS","NA","NA","NA","NA"]
["CONTRATACION DIRECTA","Contratos de prestación de servicios","TERMINADO","FDLK-CD-165-2020","CPS-165-2020",{"$f":"VLOOKUP(E166,[1]Hoja1!D$3:E$393,2,0)","v":1},"ANGIE PAOLA PINTO GARCIA",1030568255,"ANGIE PAOLA PINTO GARCIA",1030568255,null,"https://community.secop.gov.co/Public/Tendering/OpportunityDetail/Index?noticeUID=CO1.NTC.1324047&isFromPublicArea=True&isModal=False","PRESTAR LOS SERVICIOS DE APOYO EN LAS ACCIONES ENCAMINADAS AL RESTABLECIMIENTO DE LA ARMONÍA, PAZ, SEGURIDAD Y CONVIVENCIA CIUDADANA, EN LA LOCALIDAD DE KENNEDY","INVERSIÓN ",910,285244000,1376,"Fortalecimiento de seguridad e iniciativa de convivencia en la localidad de\nKennedy","2020-07-07","2020-07-10","2020-12-31",9836000,4,2459000,1047,9836000,"YEIMY CAROLINA AGUDELO HERNANDEZ","FABIAN CAMILO GARCIA VILLARREAL","Seguridad","21-44-101326796","2020-07-07","2021-10-05","NA",0,"NA","NA","NA","NA","NA","2020-11-10",51,"DIAS",4180300,"2020-11-10",51,"DIAS","NA","NA","NA","NA"]
["CONTRATACION DIRECTA","Contratos de prestación de servicios","TERMINADO","FDLK-CD-166-2020","CPS-166-2020",{"$f":"VLOOKUP(E167,[1]Hoja1!D$3:E$393,2,0)","v":1},"MIGUEL HERRERA HERNANDEZ",1023881876,"MIGUEL HERRERA HERNANDEZ",1023881876,null,"https://community.secop.gov.co/Public/Tendering/OpportunityDetail/Index?noticeUID=CO1.NTC.1324128&isFromPublicArea=True&isModal=False","APOYAR LA FORMULACIÓN, EJECUCIÓN, SEGUIMIENTO Y MEJORA CONTINUA DE LAS\nHERRAMIENTAS QUE CONFORMAN LA GESTIÓN AMBIENTAL INSTITUCIONAL DE LA\nALCALDÍA LOCAL","INVERSIÓN ",932,25200000,1363,"Fortalecimiento de la gestión local y de las acciones de vigilancia y control","2020-07-07","2020-07-10","2020-12-31",24080000,5.7333333333333334,4200000,1038,24080000,"YEIMY CAROLINA AGUDELO HERNANDEZ","MARIA DEL PILAR MUÑOZ TORRES","ADMINISTRATIVO Y FINANCIERO","376-47-994000012897","2020-08-07","30/6/2021","NA",0,"NA","NA","NA","NA","NA","NA","NA","NA","NA","NA","NA","NA","NA","NA","NA","NA"]
["CONTRATACION DIRECTA","Contratos de prestación de servicios","TERMINADO","FDLK-CD-167-2020","CPS-167-2020",{"$f":"VLOOKUP(E168,[1]Hoja1!D$3:E$393,2,0)","v":1},"PEDRO HERNANDEZ DE ALBA PAVIA",1136884489,"PEDRO HERNANDEZ DE ALBA PAVIA",1136884489,null,"https://community.secop.gov.co/Public/Tendering/OpportunityDetail/Index?noticeUID=CO1.NTC.1324705&isFromPublicArea=True&isModal=False","PRESTAR LOS SERVICIOS DE APOYO EN LAS ACCIONES ENCAMINADAS AL RESTABLECIMIENTO DE LA ARMONÍA, PAZ, SEGURIDAD Y CONVIVENCIA CIUDADANA, EN LA LOCALIDAD DE KENNEDY","INVERSIÓN ",910,285244000,1376,"Fortalecimiento de seguridad e iniciativa de convivencia en la localidad de\nKennedy","2020-07-07","2020-07-14","2020-12-31",9836000,4,2459000,1048,9836000,"YEIMY CAROLINA AGUDELO HERNANDEZ","MARITZA RUIZ POSADA","Seguridad","380-47-994000106369","2020-07-07","2021-10-05","NA",0,"NA","NA","NA","NA","NA","2020-11-14",47,"DIAS",3852433,"2020-11-14",47,"DIAS","NA","NA","NA","NA"]
["CONTRATACION DIRECTA","Contratos de prestación de servicios","TERMINADO","FDLK-CD-168-2020","CPS-168-2020",{"$f":"VLOOKUP(E169,[1]Hoja1!D$3:E$393,2,0)","v":1},"MELBA LIGIA ZABALA OYUELA",51654846,"MELBA LIGIA ZABALA OYUELA",51654846,null,"https://community.secop.gov.co/Public/Tendering/OpportunityDetail/Index?noticeUID=CO1.NTC.1324706&isFromPublicArea=True&isModal=False","PRESTAR LOS SERVICIOS DE APOYO EN LAS ACCIONES ENCAMINADAS AL RESTABLECIMIENTO DE LA ARMONÍA, PAZ, SEGURIDAD Y CONVIVENCIA CIUDADANA, EN LA LOCALIDAD DE KENNEDY","INVERSIÓN ",910,285244000,1376,"Fortalecimiento de seguridad e iniciativa de convivencia en la localidad de\nKennedy","2020-07-07","2020-07-13","2020-12-31",9836000,4,2459000,1042,9836000,"YEIMY CAROLINA AGUDELO HERNANDEZ","MARITZA RUIZ POSADA","Seguridad","380-47-994000106375","2020-07-07","13/5/2021","NA",0,"NA","NA","NA","NA","NA","2020-11-13",48,"DIAS",3934400,"2020-11-13",48,"DIAS","NA","NA","NA","NA"]
["CONTRATACION DIRECTA","Contratos de prestación de servicios","TERMINADO","FDLK-CD-169-2020","CPS-169-2020",{"$f":"VLOOKUP(E170,[1]Hoja1!D$3:E$393,2,0)","v":1},"HERNAN EDUARDO RODRIGUEZ BEDOYA",1121855155,"HERNAN EDUARDO RODRIGUEZ BEDOYA",1121855155,null,"https://community.secop.gov.co/Public/Tendering/OpportunityDetail/Index?noticeUID=CO1.NTC.1324708&isFromPublicArea=True&isModal=False","PRESTAR LOS SERVICIOS DE APOYO EN LAS ACCIONES ENCAMINADAS AL RESTABLECIMIENTO DE LA ARMONÍA, PAZ, SEGURIDAD Y CONVIVENCIA CIUDADANA, EN LA LOCALIDAD DE KENNEDY","INVERSIÓN ",910,285244000,1376,"Fortalecimiento de seguridad e iniciativa de convivencia en la localidad de\nKennedy","2020-07-07","2020-07-13","2020-12-31",9836000,4,2459000,1043,9836000,"YEIMY CAROLINA AGUDELO HERNANDEZ","FABIAN CAMILO GARCIA VILLARREAL","Seguridad","380-47-994000106300","2020-07-07","13/5/2021","NA",0,"NA","NA","NA","NA","NA","2020-11-13",48,"DIAS",3934400,"2020-11-13",48,"DIAS","NA","NA","NA","NA"]
["CONTRATACION DIRECTA","Contratos de prestación de servicios","TERMINADO","FDLK-CD 170-2020","CPS-170-2020",{"$f":"VLOOKUP(E171,[1]Hoja1!D$3:E$393,2,0)","v":1},"KAREN JOHANNA GUARNIZO GARCIA",1030642401,"KAREN JOHANNA GUARNIZO GARCIA",1030642401,null,"https://community.secop.gov.co/Public/Tendering/OpportunityDetail/Index?noticeUID=CO1.NTC.1325035&isFromPublicArea=True&isModal=False","PRESTAR LOS SERVICIOS DE APOYO EN LAS ACCIONES ENCAMINADAS AL RESTABLECIMIENTO DE LA ARMONÍA, PAZ, SEGURIDAD Y CONVIVENCIA CIUDADANA, EN LA LOCALIDAD DE KENNEDY","INVERSIÓN ",910,285244000,1376,"Fortalecimiento de seguridad e iniciativa de convivencia en la localidad de\nKennedy","2020-07-07","2020-07-09","2020-12-31",9836000,4,2459000,1045,9836000,"YEIMY CAROLINA AGUDELO HERNANDEZ","FABIAN CAMILO GARCIA VILLARREAL","Seguridad","21-46-101016399","2020-09-07","2021-09-05","NA",0,"NA","NA","NA","NA","NA","2020-11-09",52,"DIAS",4262267,"2020-11-09",52,"DIAS","NA","NA","NA","NA"]
["CONTRATACION DIRECTA","Contratos de prestación de servicios","TERMINADO","FDLK-CD-171-2020","CPS-171-2020",{"$f":"VLOOKUP(E172,[1]Hoja1!D$3:E$393,2,0)","v":1},"FREDDY ARMANDO ESPINOSA MEDINA",1016027426,"FREDDY ARMANDO ESPINOSA MEDINA",1016027426,null,"https://community.secop.gov.co/Public/Tendering/OpportunityDetail/Index?noticeUID=CO1.NTC.1325464&isFromPublicArea=True&isModal=False","PRESTAR LOS SERVICIOS DE APOYO EN LAS ACCIONES ENCAMINADAS AL\nRESTABLECIMIENTO DE LA ARMONÍA, PAZ, SEGURIDAD Y CONVIVENCIA\nCIUDADANA, EN LA LOCALIDAD DE KENNEDY”","INVERSIÓN ",910,285244000,1376,"Fortalecimiento de seguridad e iniciativa de convivencia en la localidad de\nKennedy","2020-07-07","2020-07-13","2020-12-31",9836000,4,2459000,1044,9836000,"YEIMY CAROLINA AGUDELO HERNANDEZ","FABIAN CAMILO GARCIA VILLARREAL","Seguridad","15-46-101016559","2020-08-07","2021-08-09","NA",0,"NA","NA","NA","NA","NA","2020-11-13",48,"DIAS",3934400,"2020-11-13",48,"DIAS","NA","NA","NA","NA"]
["CONTRATACION DIRECTA","Contratos de prestación de servicios","EN EJECUCION","FDLK-CD-173-2020","CPS-173-2020",{"$f":"VLOOKUP(E173,[1]Hoja1!D$3:E$393,2,0)","v":0.98717948717948723},"PAOLA GISELLA CHACON HERNANDEZ",1110446844,"PAOLA GISELLA CHACON HERNANDEZ",1110446844,null,"https://community.secop.gov.co/Public/Tendering/OpportunityDetail/Index?noticeUID=CO1.NTC.1325969&isFromPublicArea=True&isModal=False","PRESTACIÓN DE SERVICIOS PROFESIONALES PARA APOYAR JURÍDICAMENTE A LA ALCALDÍA LOCAL DE KENNEDY - FONDO DE DESARROLLO LOCAL DE KENNEDY EN LOS ASUNTOS CONSTITUCIONALES, LEGALES Y REGLAMENTARIOS DE SU COMPETENCIA, PARTICULARMENTE LOS RELACIONADOS CON LAS ETAPAS PRECONTRACTUAL, CONTRACTUAL Y POSCONTRACTUAL DE LOS PROCESOS DE CONTRATACIÓN","INVERSIÓN ",914,102600000,1363,"Fortalecimiento de la gestión local y de las acciones de vigilancia y control","2020-07-08","2020-07-09","2021-02-28",32680000,5.7333333333333334,5700000,1037,32680000,"YEIMY CAROLINA AGUDELO HERNANDEZ","MONICA JOHANNA HERNANDEZ PERAZA","CONTRATACION","\t380-47-994000106400","2020-07-08","2021-06-30","NA",0,"NA","NA","NA","NA","NA","2021-01-01",2,"MESES",11400000,"2021-01-01",2,"MESES","NA","NA","NA","NA"]
["CONTRATACION DIRECTA","Contratos de prestación de servicios","TERMINADO","FDLK-CD-175-2020","CPS-175-2020",{"$f":"VLOOKUP(E174,[1]Hoja1!D$3:E$393,2,0)","v":1},"WILLIAM ANDRES CARDENAS CASTAÑEDA",1010174379,"WILLIAM ANDRES CARDENAS CASTAÑEDA",1010174379,null,"https://community.secop.gov.co/Public/Tendering/OpportunityDetail/Index?noticeUID=CO1.NTC.1328764&isFromPublicArea=True&isModal=False","APOYAR AL EQUIPO DE PRENSA Y COMUNICACIONES DE LA ALCALDÍA LOCAL EN LA REALIZACIÓN DE PRODUCTOS Y PIEZAS DIGITALES, IMPRESAS Y PUBLICITARIAS DE GRAN FORMATO Y DE ANIMACIÓN GRÁFICA, ASÍ COMO APOYAR LA PRODUCCIÓN Y MONTAJE DE EVENTOS","INVERSIÓN ",925,32340000,1363,"Fortalecimiento de la gestión local y de las acciones de vigilancia y control","2020-07-09","2020-07-13","2020-12-31",30902666,5.7333333333333334,5389999.8837209297,1061,30902666,"YEIMY CAROLINA AGUDELO HERNANDEZ","ERIKA ANDREA RISCANEVO VIRACACHA","COMUNICACION Y PRENSA","15-44-101229147\t","2020-07-09","2021-06-30","NA",0,"NA","NA","NA","NA","NA","NA","NA","NA","NA","NA","NA","NA","NA","NA","NA","NA"]
["CONTRATACION DIRECTA","Contratos de prestación de servicios","TERMINADO","FDLK-CD-176-2020","CPS-176-2020",{"$f":"VLOOKUP(E175,[1]Hoja1!D$3:E$393,2,0)","v":1},"CRISTIAM ALFREDO CUBILLOS ALBARRACIN",1030582571,"CRISTIAM ALFREDO CUBILLOS ALBARRACIN",1030582571,null,"https://community.secop.gov.co/Public/Tendering/OpportunityDetail/Index?noticeUID=CO1.NTC.1328774&isFromPublicArea=True&isModal=Fals","APOYAR AL EQUIPO DE PRENSA Y COMUNICACIONES DE LA ALCALDÍA LOCAL EN LA CREACIÓN, REALIZACIÓN, PRODUCCIÓN Y EDICIÓN DE VÍDEOS, ASÍ COMO EL REGISTRO, EDICIÓN Y LA PRESENTACIÓN DE FOTOGRAFÍAS DE LOS ACONTECIMIENTOS, HECHOS Y EVENTOS EXTERNOS E INTERNOS DE LA ALCALDÍA LOCAL, PARA SER UTILIZADOS COMO INSUMOS DE COMUNICACIÓN EN LOS MEDIOS, ESPECIALMENTE ESCRITOS, DIGITALES Y AUDIOVISUALES","INVERSIÓN ",913,32340000,1363,"Fortalecimiento de la gestión local y de las acciones de vigilancia y control","2020-07-09","2020-07-13","2020-12-31",30902666,5.7333333333333334,5389999.8837209297,1062,30902666,"YEIMY CAROLINA AGUDELO HERNANDEZ","ERIKA ANDREA RISCANEVO VIRACACHA","COMUNICACION Y PRENSA","33-46-101024273","2020-07-09","2021-07-10","NA",0,"NA","NA","HEIMAIN TORRES ECHEVERRY // 79891787","CRISTIANALFREDO CUBILLOS ALBARRACIN","2020-10-27","NA","NA","NA","NA","NA","NA","NA","NA","NA","NA","NA"]
["CONTRATACION DIRECTA","Contratos de prestación de servicios","EN EJECUCION","FDLK-CD-177-2020","CPS-177-2020",{"$f":"VLOOKUP(E176,[1]Hoja1!D$3:E$393,2,0)","v":0.98689956331877726},"WOLFRANG LIZANDRO PULIDO AVENDAÑO",80125822,"WOLFRANG LIZANDRO PULIDO AVENDAÑO",80125822,null,"https://community.secop.gov.co/Public/Tendering/OpportunityDetail/Index?noticeUID=CO1.NTC.1329218&isFromPublicArea=True&isModal=False","PRESTAR SUS SERVICIOS PROFESIONALES COMO APOYO AL ADMINISTRADOR DE VOZ Y DATOS Y DEMÁS INFRAESTRUCTURA TECNOLÓGICA EN LA ALCADÍA LOCAL DE KENNEDY","INVERSIÓN ",966,36000000,1363,"Fortalecimiento de la gestión local y de las acciones de vigilancia y control","2020-07-10","2020-07-14","2021-02-28",33600000,5.6,6000000,1078,33600000,"YEIMY CAROLINA AGUDELO HERNANDEZ","MARIA DEL PILAR MUÑOZ TORRES","ADMINISTRATIVO Y FINANCIERO","\t17-44-101186019","2020-07-09","2021-06-30","NA",0,"NA","NA","NA","NA","NA","2021-01-01",2,"MESES",12000000,"2021-01-01",2,"MESES","NA","NA","NA","NA"]
["CONTRATACION DIRECTA","Contratos de prestación de servicios","TERMINADO","FDLK-CD-178-2020","CPS-178-2020",{"$f":"VLOOKUP(E177,[1]Hoja1!D$3:E$393,2,0)","v":1},"ANGELA SOFIA CASTAÑO CARDENAS",1026276255,"ANGELA SOFIA CASTAÑO CARDENAS",1026276255,null,"https://community.secop.gov.co/Public/Tendering/OpportunityDetail/Index?noticeUID=CO1.NTC.1334364&isFromPublicArea=True&isModal=False","APOYAR LA GESTION ADMINISTRATIVA DE LA ALCALDIA LOCAL PARA LA\nIMPLEMENTACION DE PROCESOS DE VERIFICACION, SOPORTE Y\nACOMPAÑAMIENTO EN EL DESARROLLO DE LAS ACTIVIDADES PROPIAS DEL\nFONDO DE DESARROLLO LOCAL.","INVERSIÓN ",953,"23.100.000",1363,"Fortalecimiento de la gestión local y de las acciones de vigilancia y control","2020-07-13","2020-07-16","2020-12-31",23100000,6,3850000,1110,23100000,"YEIMY CAROLINA AGUDELO HERNANDEZ","MARIA DEL PILAR MUÑOZ TORRES","ADMINISTRATIVO Y FINANCIERO","38-47-994000106458","2020-07-13","2021-07-04","NA",0,"NA","NA","NA","NA","NA","NA","NA","NA","NA","NA","NA","NA","NA","NA","NA","NA"]
["CONTRATACION DIRECTA","Contratos de prestación de servicios","EN EJECUCION","FDLK-CD-179-2020","CPS-179-2020",{"$f":"VLOOKUP(E178,[1]Hoja1!D$3:E$393,2,0)","v":0.986784140969163},"LUIS FELIPE PEÑA VARGAS",1030645990,"LUIS FELIPE PEÑA VARGAS",1030645990,null,"https://community.secop.gov.co/Public/Tendering/OpportunityDetail/Index?noticeUID=CO1.NTC.1334533&isFromPublicArea=True&isModal=False","Prestar sus servicios profesionales a la alcaldía local de Kennedy apoyando la etapa precontractual, contractual y poscontractual del proyecto de infraestructura y espacio público tendiente a garantizar el cumplimiento del plan de desarrollo local ","INVERSIÓN ",985,"25.200.000",1369,"Recreación y deporte para todos","2020-07-13","2020-07-16","2021-02-28",25200000,6,4200000,1091,25200000,"YEIMY CAROLINA AGUDELO HERNANDEZ","JOSÉ TARCICIO QUIROGA VELAZQUES","INFRAESTRUCTURA","\t380-47-994000106465","2020-07-15","2021-07-13","NA",0,"NA","NA","NA","NA","NA","2021-01-01",2,"MESES",8400000,"2021-01-01",2,"MESES","NA","NA","NA","NA"]
["CONTRATACION DIRECTA","Contratos de prestación de servicios","TERMINADO","FDLK-CD-180-20202","CPS-180-2020",{"$f":"VLOOKUP(E179,[1]Hoja1!D$3:E$393,2,0)","v":1},"MAYRA ALEJANDRA LINDARTE PERILLA",52992039,"MAYRA ALEJANDRA LINDARTE PERILLA",52992039,null,"https://community.secop.gov.co/Public/Tendering/OpportunityDetail/Index?noticeUID=CO1.NTC.1336705&isFromPublicArea=True&isModal=False","APOYAR AL (LA) ALCALDE(SA) LOCAL EN LA PROMOCIÓN, ARTICULACIÓN, ACOMPAÑAMIENTO Y SEGUIMIENTO PARA LA ATENCIÓN Y PROTECCIÓN DE LOS ANIMALES DOMÉSTICOS Y SILVESTRES DE LA LOCALIDAD.","INVERSIÓN ",954,"30.000.000 ",1376,"Fortalecimiento de seguridad e iniciativa de convivencia en la localidad de\nKennedy","2020-07-14","2020-07-17","2020-12-31",30000000,6,5000000,1112,30000000,"YEIMY CAROLINA AGUDELO HERNANDEZ","MARIA DEL PILAR MUÑOZ TORRES","PARTICIPACION","380-47-994000106486","2020-07-17","2021-07-03","NA",0,"NA","NA","NA","NA","NA","NA","NA","NA","NA","NA","NA","NA","NA","NA","NA","NA"]
["CONTRATACION DIRECTA","Contratos de prestación de servicios","EN EJECUCION","FDLK-CD-181-2020","CPS-181-2020",{"$f":"VLOOKUP(E180,[1]Hoja1!D$3:E$393,2,0)","v":0.98672566371681414},"JOSE FERNANDO ROCA HOYOS",8644982,"JOSE FERNANDO ROCA HOYOS",8644982,null,"https://community.secop.gov.co/Public/Tendering/OpportunityDetail/Index?noticeUID=CO1.NTC.1337814&isFromPublicArea=True&isModal=False","APOYAR LAS LABORES DE VERIFICACIÓN, SOPORTE Y SEGUIMIENTO DE ACCIONES ADMINISTRATIVAS Y PROCESOS NECESARIOS PARA LA OPORTUNA Y ADECUADA ATENCIÓN DE LAS NECESIDADES DE LA ENTIDAD, PROPIAS DEL ÁREA DE GESTIÓN DEL DESARROLLO ADMINISTRATIVO Y FINANCIERO","INVERSIÓN ",965,"25.200.000",1363,"Fortalecimiento de la gestión local y de las acciones de vigilancia y control","2020-07-15","2020-07-17","2021-02-28",23380000,5.5666666666666664,4200000,1098,23380000,"YEIMY CAROLINA AGUDELO HERNANDEZ","MARIA DEL PILAR MUÑOZ TORRES","ADMINISTRATIVO Y FINANCIERO","380 47 994000106496","2020-07-15","2021-07-03","NA",0,"NA","NA","NA","NA","NA","2021-01-01",2,"MESES",8400000,"2021-01-01",2,"MESES","NA","NA","NA","NA"]
["CONTRATACION DIRECTA","Contratos de prestación de servicios","TERMINADO","FDLK-CD-182-2020","CPS-182-2020",{"$f":"VLOOKUP(E181,[1]Hoja1!D$3:E$393,2,0)","v":1},"GLORIA STELLA ROBALLO OLMOS",46665854,"GLORIA STELLA ROBALLO OLMOS",46665854,null,"https://community.secop.gov.co/Public/Tendering/OpportunityDetail/Index?noticeUID=CO1.NTC.1340035&isFromPublicArea=True&isModal=False","PRESTACIÓN DE SERVICIOS PROFESIONALES PARA APOYAR JURÍDICAMENTE A LA ALCALDÍA LOCAL DE KENNEDY-FONDO DE DESARROLLO LOCAL DE KENNEDY EN LOS ASUNTOS CONSTITUCIONALES, LEGALES Y REGLAMENTARIOS DE SU COMPETENCIA, PARTICULARMENTE LOS RELACIONADOS CON EL APOYO A LA COORDINACIÓN DE LAS ETAPAS PRECONTRACTUAL, CONTRACTUAL Y POSCONTRACTUAL DE LOS PROCESOS DE CONTRATACIÓN","INVERSIÓN ",952,78000000,1363,"Fortalecimiento de la gestión local y de las acciones de vigilancia y control","2020-07-16","2020-07-17","2020-12-31",35966666,5.5333333333333332,6499999.8795180721,1118,35966666,"YEIMY CAROLINA AGUDELO HERNANDEZ","MONICA JOHANNA HERNANDEZ PERAZA","CONTRATACION","\t21-44-101327441","2020-07-16","2021-06-30","NA",0,"NA","NA","NA","NA","NA","NA","NA","NA","NA","NA","NA","NA","NA","NA","NA","NA"]
["CONTRATACION DIRECTA","Contratos de prestación de servicios","TERMINADO","FDLK-CD-183-2020","CPS-183-2020",{"$f":"VLOOKUP(E182,[1]Hoja1!D$3:E$393,2,0)","v":1},"WILSON MARTIN CASTELLANOS",80217520,"WILSON MARTIN CASTELLANOS",80217520,null,"https://community.secop.gov.co/Public/Tendering/OpportunityDetail/Index?noticeUID=CO1.NTC.1341291&isFromPublicArea=True&isModal=False","APOYAR AL REFERENTE DE SEGURIDAD EN LA GESTION DE LOS ASUNTOS RELACIONADOS CON SEGURIDAD CIUDADANA, CONVIVENCIA Y PREVENCION DE CONFLICTIVIDADES, VIOLENCIAS Y DELITOS EN LA LOCALIDAD DE KENNEDY","INVERSIÓN ",948,132288000,1376,"Fortalecimiento de seguridad e iniciativa de convivencia en la localidad de\nKennedy","2020-07-22","2020-07-28","2021-01-27",22048000,4,5512000,1155,22048000,"YEIMY CAROLINA AGUDELO HERNANDEZ","NORMA LETICIA GUZMAN RIMOLLI","GESTION POLICIVA Y JURIDICA","380-47-994000106570","2020-07-22","2021-05-25","NA",0,"NA","NA","NA","NA","NA","2021-01-01",27,"DIAS",4960800,"2021-01-01",27,"DIAS","2020-11-26",33,"DIAS",6063200]
["CONTRATACION DIRECTA","Contratos de prestación de servicios","TERMINADO","FDLK-CD-184-2020","CPS-184-2020",{"$f":"VLOOKUP(E183,[1]Hoja1!D$3:E$393,2,0)","v":1},"JUAN CARLOS LEON ",79671289,"JUAN CARLOS LEON ",79671289,null,"https://community.secop.gov.co/Public/Tendering/OpportunityDetail/Index?noticeUID=CO1.NTC.1341479&isFromPublicArea=True&isModal=False","PRESTAR SUS SERVICIOS PROFESIONALES ESPECIALIZADOS PARA APOYAR LA FORMULACION, GESTION Y SEGUIMIENTO DE ACTIVIDADES ENFOCADAS A LA GESTION AMBIENTAL EXTERNA, ENCAMINADA A LA MITIGACION DE LOS DIFERENTES IMPACTOS AMBIENTALES Y LA CONSERVACION DE LOS RECURSOS NATURALES EN LA LOCALIDAD DE KENNEDY","INVERSIÓN ",958,33364000,1363,"Fortalecimiento de la gestión local y de las acciones de vigilancia y control","2020-07-21","2020-07-23","2020-12-31",33364000,4,8341000,1143,33364000,"YEIMY CAROLINA AGUDELO HERNANDEZ","NORMA LETICIA GUZMAN RIMOLLI","GESTION POLICIVA Y JURIDICA","\t380-47-994000106551","2020-07-22","2021-05-25","NA",0,"NA","NA","NA","NA","NA","2020-11-22",39,"DIAS",10565267,"2020-11-22",39,"DIAS","NA","NA","NA","NA"]
["CONTRATACION DIRECTA","Contratos de prestación de servicios","TERMINADO","FDLK-CD-185-2020","CPS-185-2020",{"$f":"VLOOKUP(E184,[1]Hoja1!D$3:E$393,2,0)","v":1},"LAURA JOHANA CAICEDO BRIÑEZ",1012358272,"LAURA JOHANA CAICEDO BRIÑEZ",1012358272,null,"https://community.secop.gov.co/Public/Tendering/OpportunityDetail/Index?noticeUID=CO1.NTC.1342721&isFromPublicArea=True&isModal=False","PRESTAR LOS SERVICIOS PROFESIONALES PARA LA OPERACIÓN, PRESTACIÓN, SEGUIMIENTO Y CUMPLIMIENTO DE LOS PROCEDIMIENTOS ADMINISTRATIVOS. OPERATIVOS Y PROGRAMÁTICOS DEL SERVICIO APOYO ECONÓMICO TIPO C, QUE CONTRIBUYAN A LA GARANTÍA DE LOS DERECHOS DE LA POBLACIÓN MAYOR EN EL MARCO DE LA POLÍTICA PÚBLICA SOCIAL PARA EL ENVEJECIMIENTO Y LA VEJEZ EN EL DISTRITO CAPITAL A CARGO DE LA ALCALDÍA LOCAL DE KENNEDY","INVERSIÓN ",851,33632000,1378,"Igualdad y autonomía para una Kennedy incluyente","2020-07-17","2020-07-27","2020-12-31",33632000,8,4204000,1140,33632000,"YEIMY CAROLINA AGUDELO HERNANDEZ","RICARDO RODRIGUEZ GARCIA","PLANEACION","15-46-101016685","2020-07-17","2021-07-01","NA",0,"NA","NA","NORMA CONSTANZA GRANADA SABOGAL // 51.808.165","LAURA JOHANA CAICEDO BRIÑEZ // 1012358272","2020-12-01","NA","NA","NA","NA","NA","NA","NA","NA","NA","NA","NA"]
["CONTRATACION DIRECTA","Contratos de prestación de servicios","EN EJECUCION","FDLK-CD-186-2020","CPS-186-2020",{"$f":"VLOOKUP(E185,[1]Hoja1!D$3:E$393,2,0)","v":0.98630136986301364},"YULY ANDREA GORDILLO LOMBANA",1032392924,"YULY ANDREA GORDILLO LOMBANA",1032392924,null,"https://community.secop.gov.co/Public/Tendering/OpportunityDetail/Index?noticeUID=CO1.NTC.1342678&isFromPublicArea=True&isModal=False","\tPRESTAR SERVICIOS PROFESIONALES ESPECIALIZADOS A LA ALCALDÍA LOCAL DE KENNEDY, EN LOS ASUNTOS RELACIONADOS CON LA ATENCIÓN, ELABORACIÓN Y REVISIÓN DE LOS DIFERENTES DOCUMENTOS QUE SE REQUIERAN DENTRO DE LA GESTIÓN ADMINISTRATIVA Y PRESUPUESTAL, ASOCIADOS CON EL DESARROLLO DE LOS PROCESOS DE APOYO Y ESTRATÉGICOS ESTANDARIZADOS DENTRO DEL MAPA DE PROCESOS","INVERSIÓN ",842,68000000,1363,"Fortalecimiento de la gestión local y de las acciones de vigilancia y control","2020-07-17","2020-07-24","2021-02-28",46750000,5.5,8500000,1135,46750000,"YEIMY CAROLINA AGUDELO HERNANDEZ","DIANA MARCELA DELGADO JEREZ","DESPACHO","\t21-44-101327754","2020-07-17","2021-05-05","NA",0,"NA","NA","NA","NA","NA","2021-01-01",2,"MESES",17000000,"2021-01-01",2,"MESES","NA","NA","NA","NA"]
["CONTRATACION DIRECTA","Contratos de prestación de servicios","TERMINADO","FDLK-CD-187-2020","CPS-187-2020",{"$f":"VLOOKUP(E186,[1]Hoja1!D$3:E$393,2,0)","v":1},"LUZBY DAHIANNA ROMERO MANCERA",53155411,"LUZBY DAHIANNA ROMERO MANCERA",53155411,null,"https://community.secop.gov.co/Public/Tendering/OpportunityDetail/Index?noticeUID=CO1.NTC.1343026&isFromPublicArea=True&isModal=False","APOYAR JURI´DICAMENTE LA EJECUCIO´N DE LAS ACCIONES REQUERIDAS PARA LA DEPURACIO´N DE LAS ACTUACIONES ADMINISTRATIVAS QUE CURSAN EN LA ALCALDI´A LOCAL","INVERSIÓN ",941,88192000,1363,"Fortalecimiento de la gestión local y de las acciones de vigilancia y control","2020-07-17","2020-07-22","2021-01-21",22048000,4,5512000,1137,22048000,"YEIMY CAROLINA AGUDELO HERNANDEZ","NORMA LETICIA GUZMAN RIMOLLI","GESTION POLICIVA Y JURIDICA",3.8047994000106496E+16,"2020-07-17","2021-05-23","NA",0,"NA","NA","NA","NA","NA","2021-01-01",21,"DIAS",3858400,"2021-01-01",21,"DIAS","2020-11-19",40,"DIAS",7165600]
["CONTRATACION DIRECTA","Contratos de prestación de servicios","TERMINADO","FDLK-CD-188-2020","CPS-188-2020",{"$f":"VLOOKUP(E187,[1]Hoja1!D$3:E$393,2,0)","v":1},"ANA MARIA PACHECO",30337197,"ANA MARIA PACHECO",30337197,null,"https://community.secop.gov.co/Public/Tendering/OpportunityDetail/Index?noticeUID=CO1.NTC.1343231&isFromPublicArea=True&isModal=False","APOYAR JURI´DICAMENTE LA EJECUCIO´N DE LAS ACCIONES REQUERIDAS PARA LA DEPURACIO´N DE LAS ACTUACIONES ADMINISTRATIVAS QUE CURSAN EN LA ALCALDI´A LOCAL","INVERSIÓN ",941,88192000,1363,"Fortalecimiento de la gestión local y de las acciones de vigilancia y control","2020-07-17","2020-07-22","2021-01-21",22048000,4,5512000,1138,22048000,"YEIMY CAROLINA AGUDELO HERNANDEZ","NORMA LETICIA GUZMAN RIMOLLI","GESTION POLICIVA Y JURIDICA","\t380-47-994000106539","2020-07-17","2021-05-23","NA",0,"NA","NA","NA","NA","NA","2021-01-01",21,"DIAS",3858400,"2021-01-01",21,"DIAS","2020-11-19",39,"DIAS",7165600]
["CONTRATACION DIRECTA","Contratos de prestación de servicios","TERMINADO","FDLK-CD-189-2020","CPS-189-2020",{"$f":"VLOOKUP(E188,[1]Hoja1!D$3:E$393,2,0)","v":1},"LILIANA CEPEDA PIRAGAUTA",52076367,"LILIANA CEPEDA PIRAGAUTA",52076367,null,"https://community.secop.gov.co/Public/Tendering/OpportunityDetail/Index?noticeUID=CO1.NTC.1343516&isFromPublicArea=True&isModal=False","APOYAR JURI´DICAMENTE LA EJECUCIO´N DE LAS ACCIONES REQUERIDAS PARA LA DEPURACIO´N DE LAS ACTUACIONES ADMINISTRATIVAS QUE CURSAN EN LA ALCALDI´A LOCAL","INVERSIÓN ",941,88192000,1363,"Fortalecimiento de la gestión local y de las acciones de vigilancia y control","2020-07-17","2020-07-22","2020-11-21",22048000,4,5512000,1139,22048000,"YEIMY CAROLINA AGUDELO HERNANDEZ","NORMA LETICIA GUZMAN RIMOLLI","GESTION POLICIVA Y JURIDICA","\t380-47-994000106537","2020-07-17","2021-05-23","NA",0,"NA","NA","NA","NA","NA","NA","NA","NA","NA","NA","NA","NA","NA","NA","NA","NA"]
["CONTRATACION DIRECTA","Contratos de prestación de servicios","TERMINADO","FDLK-CD-190-2020","CPS-190-2020",{"$f":"VLOOKUP(E189,[1]Hoja1!D$3:E$393,2,0)","v":1},"JULIO MARIO MARTINEZ OSORIO",79778835,"JULIO MARIO MARTINEZ OSORIO",79778835,null,"https://community.secop.gov.co/Public/Tendering/OpportunityDetail/Index?noticeUID=CO1.NTC.1347594&isFromPublicArea=True&isModal=False","PRESTACIÓN DE SERVICIOS PROFESIONALES ESPECIALIZADOS A LA ALCALDÍA LOCAL DE KENNEDY, PARA COORDINAR LA FORMULACIÓN Y EJECUCIÓN DE LOS PROCESOS RECREODEPORTIVOS, ARTÍSTICOS Y CULTURALES, TENDIENTE A GARANTIZAR EL CUMPLIMIENTO DEL PLAN DE DESARROLLO LOCAL","INVERSIÓN ",955,51000000,1362,"Promoción y desarrollo local de la cultura, la recreación y el deporte","2020-07-22","2020-07-24","2020-12-31",51000000,6,8500000,1141,51000000,"YEIMY CAROLINA AGUDELO HERNANDEZ","MARIA DEL PILAR MUJICA SANDOVAL","PLANEACION","11-44-101154568","2020-07-22","2021-07-05","NA",0,"NA","NA","NA","NA","NA","NA","NA","NA","NA","NA","NA","NA","NA","NA","NA","NA"]
["CONTRATACION DIRECTA","Contratos de prestación de servicios","TERMINADO","FDLK-CD-191-2020","CPS-191-2020",{"$f":"VLOOKUP(E190,[1]Hoja1!D$3:E$393,2,0)","v":1},"JOHN PAULINO CAMPOS MOLINA",80137836,"JOHN PAULINO CAMPOS MOLINA",80137836,null,"https://community.secop.gov.co/Public/Tendering/OpportunityDetail/Index?noticeUID=CO1.NTC.1347896&isFromPublicArea=True&isModal=False","PRESTACIÓN DE SERVICIOS DE APOYO TÉCNICO Y ADMINISTRATIVO EN LA DESCON-GESTIÓN DE TRÁMITES TENDIENTE A GARANTIZAR EL CUMPLIMIENTO DEL PLAN DE DESARROLLO LOCAL.","INVERSIÓN ",957,22800000,1380,"Mi casa me pertenece","2020-07-21","2020-07-23","2020-12-31",22800000,6,3800000,1144,22800000,"YEIMY CAROLINA AGUDELO HERNANDEZ","YULLIET PATRICIA LLERENA AVENDAÑO","PLANEACION","\t38047994000106560","2020-07-22","2021-07-03","NA",0,"NA","NA","NA","NA","NA","NA","NA","NA","NA","NA","NA","NA","NA","NA","NA","NA"]
["CONTRATACION DIRECTA","Contratos de prestación de servicios","EN EJECUCION","FDLK-CD-193-2020","CPS-193-2020",{"$f":"VLOOKUP(E191,[1]Hoja1!D$3:E$393,2,0)","v":0.98611111111111116},"GLORIA ESPERANZA PIRAJON TEJEDOR",52211430,"GLORIA ESPERANZA PIRAJON TEJEDOR",52211430,null,"https://community.secop.gov.co/Public/Tendering/OpportunityDetail/Index?noticeUID=CO1.NTC.1348587&isFromPublicArea=True&isModal=False","PRESTAR SUS SERVICIOS PROFESIONALES PARA APOYAR TECNICAMENTE A LOS RESPONSABLES E INTEGRANTES DE LOS PROCESOS EN LA IMPLEMENTACION DE HERRAMIENTAS DE GESTIÓN SIGUIENDO LOS LINEAMIENTOS METODOLOGICOS ESTABLECIDOS POR LA OFICINA ASESORA DE PLANEACION DE LA SECRETARIA DISTRITAL DE GOBIERNO","INVERSIÓN ",964,31200000,1363,"Fortalecimiento de la gestión local y de las acciones de vigilancia y control","2020-07-22","2020-07-27","2021-02-28",31200000,6,5200000,1145,31200000,"YEIMY CAROLINA AGUDELO HERNANDEZ","MARIA DEL PILAR MUÑOZ TORRES","ADMINISTRATIVO Y FINANCIERO","17-44-101186176","2020-07-23","2021-06-30","NA",0,"NA","NA","NA","NA","NA","2021-01-01",2,"MESES",10400000,"2021-01-01",2,"MESES","NA","NA","NA","NA"]
["CONTRATACION DIRECTA","Contratos de prestación de servicios","TERMINADO","FDLK-CD-194-2020","CPS-194-2020",{"$f":"VLOOKUP(E192,[1]Hoja1!D$3:E$393,2,0)","v":1},"RICHARD EDUARDO VITERI AMADOR",79318337,"RICHARD EDUARDO VITERI AMADOR",79318337,null,"https://community.secop.gov.co/Public/Tendering/OpportunityDetail/Index?noticeUID=CO1.NTC.1349036&isFromPublicArea=True&isModal=False","APOYAR TÉCNICAMENTE LAS DISTINTAS ETAPAS DE LOS PROCESOS DE COMPETENCIA DE LA ALCALDÍA LOCAL PARA LA DEPURACIÓN DE ACTUACIONES ADMINISTRATIVAS","INVERSIÓN ",946,52560000,1363,"Fortalecimiento de la gestión local y de las acciones de vigilancia y control","2020-07-22","2020-07-27","2020-12-31",26280000,4,6570000,1147,26280000,"YEIMY CAROLINA AGUDELO HERNANDEZ","NORMA LETICIA GUZMAN RIMOLLI","GESTION POLICIVA Y JURIDICA","\t2662067-0","2020-07-23","2021-07-23","NA",0,"NA","NA","NA","NA","NA","2020-11-25",35,"DIAS",7446000,"2020-11-25",35,"DIAS","NA","NA","NA","NA"]
["CONTRATACION DIRECTA","Contratos de prestación de servicios","TERMINADO","FDLK-CD-195-2020","CPS-195-2020",{"$f":"VLOOKUP(E193,[1]Hoja1!D$3:E$393,2,0)","v":1},"NANCY ACOSTA TORRES",52035562,"NANCY ACOSTA TORRES",52035562,null,"https://community.secop.gov.co/Public/Tendering/OpportunityDetail/Index?noticeUID=CO1.NTC.1354067&isFromPublicArea=True&isModal=False","PRESTAR SERVICIO DE APOYO A LA GESTION A TRAVES DE LA ATENCION AL PUBLICO DESDE LA RECEPCION DE LAS INSPECCIONES DE POLICIA DE LA ALCALDIA LOCAL DE KENNEDY","INVERSIÓN ",971,9988000,1363,"Fortalecimiento de la gestión local y de las acciones de vigilancia y control","2020-07-24","2020-07-28","2020-12-31",9988000,4,2497000,1163,9988000,"YEIMY CAROLINA AGUDELO HERNANDEZ","GUSTAVO VANEGAS RUIZ","Inspecciones","380 47 994000106647","2020-07-22","2021-05-30","NA",0,"NA","NA","NA","NA","NA","2020-11-28",33,"DIAS",2746700,"2020-11-28",33,"DIAS","NA","NA","NA","NA"]
["CONTRATACION DIRECTA","Contratos de prestación de servicios","TERMINADO","FDLK-CD-196-2020","CPS-196-2020",{"$f":"VLOOKUP(E194,[1]Hoja1!D$3:E$393,2,0)","v":1},"INGRID PAOLA CASTILLO MEJIA",53159729,"INGRID PAOLA CASTILLO MEJIA",53159729,null,"https://community.secop.gov.co/Public/Tendering/OpportunityDetail/Index?noticeUID=CO1.NTC.1350338&isFromPublicArea=True&isModal=False","PRESTAR LOS SERVICIOS PROFESIONALES DE ABOGADO, PARA APOYAR EL TRÁMITE DE LOS ASUNTOS DEL ÁREA DE GESTIÓN POLICIVA JURÍDICA Y MANEJO DE SI ACTÚA, SISTEMA DE GESTIÓN DOCUMENTAL, VUC, MAPAS BOGOTÁ.","INVERSIÓN ",960,44096000,1363,"Fortalecimiento de la gestión local y de las acciones de vigilancia y control","2020-07-22","2020-07-27","2021-01-26",22048000,4,5512000,1157,22048000,"YEIMY CAROLINA AGUDELO HERNANDEZ","NORMA LETICIA GUZMAN RIMOLLI","GESTION POLICIVA Y JURIDICA","380- 47- 994000106582","2020-07-22","2021-05-26","NA",0,"NA","NA","NA","NA","NA","2020-11-27",26,"DIAS",4777067,"2020-11-27",26,"DIAS","2020-11-26",35,"DIAS",6246933]
["CONTRATACION DIRECTA","Contratos de prestación de servicios","TERMINADO","FDLK-CD-197-2020","CPS-197-2020",{"$f":"VLOOKUP(E195,[1]Hoja1!D$3:E$393,2,0)","v":1},"LEYDY YOHANNA AMORTEGUI PEDRAZA",20384661,"LEYDY YOHANNA AMORTEGUI PEDRAZA",20384661,null,"https://community.secop.gov.co/Public/Tendering/OpportunityDetail/Index?noticeUID=CO1.NTC.1350160&isFromPublicArea=True&isModal=False","PRESTAR LOS SERVICIOS PROFESIONALES DE ABOGADO, PARA APOYAR EL TRÁMITE DE LOS ASUNTOS DEL ÁREA DE GESTIÓN POLICIVA JURÍDICA Y MANEJO DE SI ACTÚA, SISTEMA DE GESTIÓN DOCUMENTAL, VUC, MAPAS BOGOTÁ.","INVERSIÓN ",960,44096000,1363,"Fortalecimiento de la gestión local y de las acciones de vigilancia y control","2020-07-22","2020-07-27","2021-01-26",22048000,4,5512000,1158,22048000,"YEIMY CAROLINA AGUDELO HERNANDEZ","NORMA LETICIA GUZMAN RIMOLLI","GESTION POLICIVA Y JURIDICA","380 - 47 - 99000106574","2020-07-22","2021-05-26","NA",0,"NA","NA","NA","NA","NA","2020-11-27",34,"DIAS",6246933,"2020-11-27",34,"DIAS","2020-11-26",34,"DIAS",6246933]
["CONTRATACION DIRECTA","Contratos de prestación de servicios","EN EJECUCION","FDLK-CD-198-2020","CPS-198-2020",{"$f":"VLOOKUP(E196,[1]Hoja1!D$3:E$393,2,0)","v":0.98636363636363633},"KATERIN LIZETH LARA ROJAS",1018460586,"KATERIN LIZETH LARA ROJAS",1018460586,null,"https://community.secop.gov.co/Public/Tendering/OpportunityDetail/Index?noticeUID=CO1.NTC.1350703&isFromPublicArea=True&isModal=False","APOYAR EL CUBRIMIENTO DE LAS ACTIVIDADES, CRONOGRAMAS Y AGENDA DE LA ALCALDÍA LOCAL A NIVEL INTERNO Y EXTERNO, ASÍ COMO LA GENERACIÓN DE CONTENIDOS PERIODÍSTICOS","INVERSIÓN ",968,32400000,1363,"Fortalecimiento de la gestión local y de las acciones de vigilancia y control","2020-07-22","2020-07-23","2021-02-28",28746666,5.333333333333333,5389999.875,1148,28746666,"YEIMY CAROLINA AGUDELO HERNANDEZ","ERIKA ANDREA RISCANEVO VIRACACHA","COMUNICACION Y PRENSA","15-44-101229631 ","2020-07-22","2021-12-31","NA",0,"NA","NA","NA","NA","NA","2021-01-01",2,"MESES",10780000,"2021-01-01",2,"MESES","NA","NA","NA","NA"]
["CONTRATACION DIRECTA","Contratos de prestación de servicios","EN EJECUCION","FDLK-CD-199-2020","CPS-199-2020",{"$f":"VLOOKUP(E197,[1]Hoja1!D$3:E$393,2,0)","v":0.98630136986301364},"MIGUEL ANGEL GARCÍA MURILLO",1026284755,"MIGUEL ANGEL GARCÍA MURILLO",1026284755,null,"https://community.secop.gov.co/Public/Tendering/OpportunityDetail/Index?noticeUID=CO1.NTC.1350451&isFromPublicArea=True&isModal=False","PRESTAR SUS SERVICIOS PROFESIONALES PARA APOYAR A LOS PROYECTOS RELACIONADOS CON TEMAS TECNOLÓGICOS QUE SE DESARROLLEN LA ALCALDÍA LOCAL DE KENNEDY","INVERSIÓN ",970,32400000,1363,"Fortalecimiento de la gestión local y de las acciones de vigilancia y control","2020-07-23","2020-07-24","2021-02-28",28620000,5.3,5400000,1149,28620000,"YEIMY CAROLINA AGUDELO HERNANDEZ","WOLFRANG LIZANDRO PULIDO AVENDAÑO","ADMINISTRATIVO Y FINANCIERO","\t21-44-101327899","2020-07-22","2021-07-05","NA",0,"NA","NA","NA","NA","NA","2021-01-01",2,"MESES",10800000,"2021-01-01",2,"MESES","NA","NA","NA","NA"]
["CONTRATACION DIRECTA","Contratos de prestación de servicios","EN EJECUCION","FDLK-CD-200-2020","CPS-200-2020",{"$f":"VLOOKUP(E198,[1]Hoja1!D$3:E$393,2,0)","v":0.98604651162790702},"RICARDO RODRÍGUEZ GARCÍA",79508103,"RICARDO RODRÍGUEZ GARCÍA",79508103,null,"https://community.secop.gov.co/Public/Tendering/OpportunityDetail/Index?noticeUID=CO1.NTC.1350400&isFromPublicArea=True&isModal=False","PRESTACIÓN DE SERVICIOS PROFESIONALES PARA LIDERAR Y GARANTIZAR LA IMPLEMENTACIÓN Y SEGUIMIENTO DE LOS PROCESOS Y PROCEDIMIENTOS DEL SERVICIO SOCIAL","INVERSIÓN ",951,39000000,1378,"Igualdad y autonomía para una Kennedy incluyente","2020-07-22","2020-07-28","2021-02-28",34233333,5.2666666666666666,6499999.936708861,1150,34233333,"YEIMY CAROLINA AGUDELO HERNANDEZ","MARIA DEL PILAR MUJICA SANDOVAL","PLANEACION","\t36-44-101047695","2020-07-22","2021-06-30","NA",0,"NA","NA","NA","NA","NA","2021-01-01",2,"MESES",13000000,"2021-01-01",2,"MESES","NA","NA","NA","NA"]
["CONTRATACION DIRECTA","Contratos de prestación de servicios","TERMINADO","FDLK-CD-201-2020","CPS-201-2020",{"$f":"VLOOKUP(E199,[1]Hoja1!D$3:E$393,2,0)","v":1},"JORGE ANDRES BOHORQUEZ CANIZALES "," 80.773.423","JORGE ANDRES BOHORQUEZ CANIZALES "," 80.773.423",null,"https://community.secop.gov.co/Public/Tendering/OpportunityDetail/Index?noticeUID=CO1.NTC.1351419&isFromPublicArea=True&isModal=False","PRESTAR SUS SERVICIOS PROFESIONALES ESPECIALIZADOS PARA APOYAR LA COORDINACIÓN DE LA CASA DEL CONSUMIDOR DE LA ALCALDÍA LOCAL DE KENNEDY","INVERSIÓN ",936,42000000,1363,"Fortalecimiento de la gestión local y de las acciones de vigilancia y control","2020-07-22","2020-07-29","2020-12-31",36866667,5.2333333333333334,7044586.0509554138,1146,36866667,"YEIMY CAROLINA AGUDELO HERNANDEZ","JULIAN ADOLFO RAMIREZ BEDOYA","CASA DEL CONSUMIDOR","\t63-46-101001747","2020-07-23","2022-01-31","NA",0,"NA","NA","NA","NA","NA","NA","NA","NA","NA","NA","NA","NA","NA","NA","NA","NA"]
["CONTRATACION DIRECTA","Contratos de prestación de servicios","TERMINADO","FDLK-CD-202-2020","CPS-202-2020",{"$f":"VLOOKUP(E200,[1]Hoja1!D$3:E$393,2,0)","v":1},"DIANA CAROLINA MARTINEZ JIMENEZ ",53167271,"DIANA CAROLINA MARTINEZ JIMENEZ ",53167271,null,"https://community.secop.gov.co/Public/Tendering/OpportunityDetail/Index?noticeUID=CO1.NTC.1352131&isFromPublicArea=True&isModal=False","APOYAR JURÍDICAMENTE LA EJECUCIÓN DE LAS ACCIONES REQUERIDAS PARA LA DEPURACIÓN DE LAS ACTUACIONES ADMINISTRATIVAS QUE CURSAN EN LA ALCALDÍA LOCAL","INVERSIÓN ",941,88192000,1363,"Fortalecimiento de la gestión local y de las acciones de vigilancia y control","2020-07-23","2020-07-28","2020-12-31",22048000,4,5512000,1154,22048000,"YEIMY CAROLINA AGUDELO HERNANDEZ","NORMA LETICIA GUZMAN RIMOLLI","GESTION POLICIVA Y JURIDICA","\tNB-100134125","2020-07-23","2021-05-31","NA",0,"NA","NA","NA","NA","NA","2020-11-26",34,"DIAS",6063200,"2020-11-26",34,"DIAS","NA","NA","NA","NA"]
["CONTRATACION DIRECTA","Contratos de prestación de servicios","TERMINADO","FDLK-CD-203-2020","CPS-203-2020",{"$f":"VLOOKUP(E201,[1]Hoja1!D$3:E$393,2,0)","v":1},"NESTOR FABIAN BAUTISTA VEGA",79837594,"NESTOR FABIAN BAUTISTA VEGA",79837594,null,"https://community.secop.gov.co/Public/Tendering/OpportunityDetail/Index?noticeUID=CO1.NTC.1352348&isFromPublicArea=True&isModal=False","PRESTAR LOS SERVICIOS PROFESIONALES ESPECIALIZADOS PARA APOYAR TÉCNICAMENTE LAS DISTINTAS ETAPAS DE LOS PROCESOS QUE SE DERIVEN DEL PROYECTO BOSA-TINTAL-ALSACIA-CONSTITUCIÓN (AVENIDA GUAYACANES) Y AV.68.","INVERSIÓN ",959,62400000,1363,"Fortalecimiento de la gestión local y de las acciones de vigilancia y control","2020-07-23","2020-07-27","2020-12-31",31200000,4,7800000,1159,31200000,"YEIMY CAROLINA AGUDELO HERNANDEZ","NORMA LETICIA GUZMAN RIMOLLI","GESTION POLICIVA Y JURIDICA",3.80479940001066E+16,"2020-07-23","2021-05-30","NA",0,"NA","NA","NA","NA","NA","2020-11-26",35,"DIAS",8840000,"2020-11-26",35,"DIAS","NA","NA","NA","NA"]
["CONTRATACION DIRECTA","Contratos de prestación de servicios","TERMINADO","FDLK-CD-204-2020","CPS-204-2020",{"$f":"VLOOKUP(E202,[1]Hoja1!D$3:E$393,2,0)","v":1},"EIMY SOLANGY CASTRO CASALLAS",52872670,"EIMY SOLANGY CASTRO CASALLAS",52872670,null,"https://community.secop.gov.co/Public/Tendering/OpportunityDetail/Index?noticeUID=CO1.NTC.1352349&isFromPublicArea=True&isModal=False","\tPRESTAR LOS SERVICIOS PROFESIONALES EN EL ÁREA DE GESTIÓN POLICIVA JURÍDICA EN LOS ASUNTOS RELACIONADOS CON LOS PRINCIPIOS INTEGRALES DE LA SALUD INDIVIDUAL Y COLECTIVA DE LA POBLACIÓN QUE OCUPA INDEBIDAMENTE EL ESPACIO PÚBLICO EN LA LOCALIDAD DE KENNEDY","INVERSIÓN ",947,22048000,1363,"Fortalecimiento de la gestión local y de las acciones de vigilancia y control","2020-07-23","2020-07-29","2020-12-31",22048000,4,5512000,1151,22048000,"YEIMY CAROLINA AGUDELO HERNANDEZ","NORMA LETICIA GUZMAN RIMOLLI","GESTION POLICIVA Y JURIDICA",6446101009123,"2020-07-27","2021-07-27","NA",0,"NA","NA","NA","NA","NA","2020-11-26",32,"DIAS",5879467,"2020-11-26",32,"DIAS","NA","NA","NA","NA"]
["CONTRATACION DIRECTA","Contratos de prestación de servicios","EN EJECUCION","FDLK-CD-205-2020","CPS-205-2020",{"$f":"VLOOKUP(E203,[1]Hoja1!D$3:E$393,2,0)","v":0.91341991341991347},"JENNY ANDREA GUTIÉRREZ ROJAS",52504802,"JENNY ANDREA GUTIÉRREZ ROJAS",52504802,null,"https://community.secop.gov.co/Public/Tendering/OpportunityDetail/Index?noticeUID=CO1.NTC.1352715&isFromPublicArea=True&isModal=False","PRESTAR LOS SERVICIOS DE APOYO A LA RECEPCIÓN Y AL ÁREA DE GESTIÓN DEL DESARROLLO LOCAL DE LA ALCALDÍA LOCAL DE KENNEDY EN TEMAS DE ATENCIÓN AL CIUDADANO","INVERSIÓN ",1062,14400000,1363,"Fortalecimiento de la gestión local y de las acciones de vigilancia y control","2020-07-23","2020-07-29","2021-03-17",12400000,5.166666666666667,2400000,1152,12400000,"YEIMY CAROLINA AGUDELO HERNANDEZ","MARIA DEL PILAR MUÑOZ TORRES","ADMINISTRATIVO Y FINANCIERO","380 47 994000106645","2020-07-23","2021-07-03","NA",0,"NA","NA","NA","NA","NA","2021-01-01",76,"DIAS",6160000,"2021-01-01",76,"DIAS","NA","NA","NA","NA"]
["CONTRATACION DIRECTA","Contratos de prestación de servicios","TERMINADO","FDLK-CD-206-2020","CPS-206-2020",{"$f":"VLOOKUP(E204,[1]Hoja1!D$3:E$393,2,0)","v":1},"DUVER JOSUE AREVALO MELO",80055476,"DUVER JOSUE AREVALO MELO",80055476,null,"https://community.secop.gov.co/Public/Tendering/OpportunityDetail/Index?noticeUID=CO1.NTC.1352400&isFromPublicArea=True&isModal=False","APOYAR TÉCNICAMENTE LAS DISTINTAS ETAPAS DE LOS PROCESOS DE COMPETENCIA DE LA ALCALDÍA LOCAL PARA LA DEPURACIÓN DE ACTUACIONES ADMINISTRATIVAS","INVERSIÓN ",946,52560000,1363,"Fortalecimiento de la gestión local y de las acciones de vigilancia y control","2020-07-24","2020-07-30","2020-12-31",26280000,4,6570000,1153,26280000,"YEIMY CAROLINA AGUDELO HERNANDEZ","NORMA LETICIA GUZMAN RIMOLLI","GESTION POLICIVA Y JURIDICA","33-46-101024689","2020-07-23","2021-05-26","NA",0,"NA","NA","NA","NA","NA","2020-11-29",31,"DIAS",6789000,"2020-11-29",31,"DIAS","NA","NA","NA","NA"]
["CONTRATACION DIRECTA","Contratos de prestación de servicios","TERMINADO","FDLK-CD-207-2020","CPS-207-2020",{"$f":"VLOOKUP(E205,[1]Hoja1!D$3:E$393,2,0)","v":1},"ALICIA STELLA DAZA PEREZ",51637253,"ALICIA STELLA DAZA PEREZ",51637253,null,"https://community.secop.gov.co/Public/Tendering/OpportunityDetail/Index?noticeUID=CO1.NTC.1353266&isFromPublicArea=True&isModal=False","APOYAR AL ALCALDE LOCAL EN LA FORMULACIÓN, SEGUIMIENTO E IMPLEMENTACIÓN DE LA ESTRATEGIA LOCAL PARA LA TERMINACIÓN JURÍDICA DE LAS ACTUACIONES ADMINISTRATIVAS QUE CURSAN EN LA ALCALDÍA LOCAL","INVERSIÓN ",961,34000000,1363,"Fortalecimiento de la gestión local y de las acciones de vigilancia y control","2020-07-24","2020-07-27","2021-01-26",34000000,4,8500000,1162,34000000,"YEIMY CAROLINA AGUDELO HERNANDEZ","NORMA LETICIA GUZMAN RIMOLLI","GESTION POLICIVA Y JURIDICA",3.80479940001066E+16,"2020-07-27","2021-05-30","NA",0,"NA","NA","NA","NA","NA","2021-01-01",26,"DIAS",7366667,"2021-01-01",26,"DIAS","2020-11-26",34,"DIAS",9633333]
["CONTRATACION DIRECTA","Contratos de prestación de servicios","EN EJECUCION","FDLK-CD-208-2020","CPS-208-2020",{"$f":"VLOOKUP(E206,[1]Hoja1!D$3:E$393,2,0)","v":0.98611111111111116},"CARLOS ANDRES CUESTA MACHADO",1023933501,"CARLOS ANDRES CUESTA MACHADO",1023933501,null,"https://community.secop.gov.co/Public/Tendering/OpportunityDetail/Index?noticeUID=CO1.NTC.1354128&isFromPublicArea=True&isModal=False","PRESTACIÓN DE SERVICIOS PROFESIONALES PARA APOYAR JURÍDICAMENTE A LA ALCALDÍA LOCAL DE KENNEDY - FONDO DE DESARROLLO LOCAL DE KENNEDY EN LOS ASUNTOS CONSTITUCIONALES, LEGALES Y REGLAMENTARIOS DE SU COMPETENCIA, PARTICULARMENTE LOS RELACIONADOS CON LAS ETAPAS PRECONTRACTUAL, CONTRACTUAL Y POSCONTRACTUAL DE LOS PROCESOS DE CONTRATACIÓN.","INVERSIÓN ",937,25200000,1363,"Fortalecimiento de la gestión local y de las acciones de vigilancia y control","2020-07-24","2020-07-27","2021-02-28",25200000,6,4200000,1160,25200000,"YEIMY CAROLINA AGUDELO HERNANDEZ","MONICA JOHANNA HERNANDEZ PERAZA","CONTRATACION","\tNB-100134155","2020-07-24","2021-07-05","NA",0,"NA","NA","NA","NA","NA","2021-01-01",2,"MESES",8400000,"2021-01-01",2,"MESES","NA","NA","NA","NA"]
["CONTRATACION DIRECTA","Contratos de prestación de servicios","TERMINADO","FDLK-CD-209-2020","CPS-209-2020",{"$f":"VLOOKUP(E207,[1]Hoja1!D$3:E$393,2,0)","v":1},"OCTAVIO LARA ARTEAGA","79.593.539 ","OCTAVIO LARA ARTEAGA","79.593.539 ",null,"https://community.secop.gov.co/Public/Tendering/OpportunityDetail/Index?noticeUID=CO1.NTC.1354387&isFromPublicArea=True&isModal=False","PRESTAR LOS SERVICIOS DE APOYO EN LA CONDUCCION DE LOS VEHICULOS LIVIANOS DEL PARQUE AUTOMOTOR DE PROPIEDAD DEL FONDO DE DESARROLLO LOCAL DE KENNEDY","INVERSIÓN ",967,29964000,1363,"Fortalecimiento de la gestión local y de las acciones de vigilancia y control","2020-07-24","2020-07-28","2020-12-27",12485000,5,2497000,1164,12485000,"YEIMY CAROLINA AGUDELO HERNANDEZ","NILBA ALIET AREVALO CASTELLANOS","ALMACEN","380-47-994000106643","2020-07-27","2021-06-30","NA",0,"NA","NA","NA","NA","NA","NA","NA","NA","NA","NA","NA","NA","NA","NA","NA","NA"]
["CONTRATACION DIRECTA","Contratos de prestación de servicios","TERMINADO","FDLK-CD-210-2020","CPS-210-2020",{"$f":"VLOOKUP(E208,[1]Hoja1!D$3:E$393,2,0)","v":1},"JORGE ALEJANDRO GONZALEZ LOZANO","93.412.847","JORGE ALEJANDRO GONZALEZ LOZANO","93.412.847",null,"https://community.secop.gov.co/Public/Tendering/OpportunityDetail/Index?noticeUID=CO1.NTC.1354545&isFromPublicArea=True&isModal=False","PRESTAR LOS SERVICIOS PROFESIONALES ESPECIALIZADOS PARA APOYAR TÉCNICAMENTE LAS DISTINTAS ETAPAS DE LOS PROCESOS QUE SE DERIVEN DEL PROYECTO BOSA-TINTAL-ALSACIA-CONSTITUCIÓN (AVENIDA GUAYACANES) Y AV.68. ","INVERSIÓN ",959,62400000,1363,"Fortalecimiento de la gestión local y de las acciones de vigilancia y control","2020-07-24","2020-07-27","2020-12-31",31200000,4,7800000,1161,31200000,"YEIMY CAROLINA AGUDELO HERNANDEZ","NORMA LETICIA GUZMAN RIMOLLI","GESTION POLICIVA Y JURIDICA","380 47 994000106639","2020-07-24","2021-05-30","NA",0,"NA","NA","NA","NA","NA","2020-11-25",35,"DIAS",8840000,"2020-11-25",35,"DIAS","NA","NA","NA","NA"]
["CONTRATACION DIRECTA","Contratos de prestación de servicios","TERMINADO","FDLK-CD-211-2020","CPS-211-2020",{"$f":"VLOOKUP(E209,[1]Hoja1!D$3:E$393,2,0)","v":1},"JENNIFER PAMELA GONZALEZ MUÑOZ",1016027524,"JENNIFER PAMELA GONZALEZ MUÑOZ",1016027524,null,"https://community.secop.gov.co/Public/Tendering/OpportunityDetail/Index?noticeUID=CO1.NTC.1358338&isFromPublicArea=True&isModal=False","APOYAR ADMINISTRATIVA Y ASISTENCIALMENTE A LAS INSPECCIONES DE POLICÍA DE LA LOCALIDAD DE KENNEDY","INVERSIÓN ",942,59928000,1363,"Fortalecimiento de la gestión local y de las acciones de vigilancia y control","2020-07-28","2020-07-29","2020-12-31",9988000,4,2497000,1165,9988000,"YEIMY CAROLINA AGUDELO HERNANDEZ","GUSTAVO VANEGAS RUIZ","Inspecciones","33-46-101024703  ","2020-07-28","2021-05-29","NA",0,"NA","NA","NA","NA","NA","2020-11-29",32,"DIAS",2663467,"2020-11-29",32,"DIAS","NA","NA","NA","NA"]
["CONTRATACION DIRECTA","Contratos de prestación de servicios","TERMINADO","FDLK-CD-212-2020","CPS-212-2020",{"$f":"VLOOKUP(E210,[1]Hoja1!D$3:E$393,2,0)","v":1},"ANDRES EDUARDO LOZANO BELTRAN",1022384782,"ANDRES EDUARDO LOZANO BELTRAN",1022384782,null,"https://community.secop.gov.co/Public/Tendering/OpportunityDetail/Index?noticeUID=CO1.NTC.1360107&isFromPublicArea=True&isModal=False","APOYAR LAS LABORES COMO NOTIFICADOR PARA LA DISTRIBUCIÓN DE LAS COMUNICACIONES EMITIDAS O RECIBIDAS POR LA ALCALDIA LOCAL DE KENNEDY","INVERSIÓN ",974,45000000,1363,"Fortalecimiento de la gestión local y de las acciones de vigilancia y control","2020-07-30","2020-08-05","2020-12-31",15000000,6,2500000,1176,15000000,"YEIMY CAROLINA AGUDELO HERNANDEZ","MARIA DEL PILAR MUÑOZ TORRES","ADMINISTRATIVO Y FINANCIERO","380 47 994000106825","2020-07-30","2021-08-03","NA",0,"NA","NA","NA","NA","NA","NA","NA","NA","NA","NA","NA","NA","NA","NA","NA","NA"]
["CONTRATACION DIRECTA","Contratos de prestación de servicios","TERMINADO","FDLK-CD-213-2020","CPS-213-2020",{"$f":"VLOOKUP(E211,[1]Hoja1!D$3:E$393,2,0)","v":1},"ORLANDO MURCIA ROMERO",19493673,"ORLANDO MURCIA ROMERO",19493673,null,"https://community.secop.gov.co/Public/Tendering/OpportunityDetail/Index?noticeUID=CO1.NTC.1360108&isFromPublicArea=True&isModal=False","PRESTAR LOS SERVICIOS DE APOYO EN LA CONDUCCIÓN DE LOS VEHÍCULOS LIVIANOS DEL PARQUE AUTOMOTOR DE PROPIEDAD DEL FONDO DE DESARROLLO LOCAL DE KENNEDY","INVERSIÓN ",967,29964000,1363,"Fortalecimiento de la gestión local y de las acciones de vigilancia y control","2020-07-28","2020-07-30","2020-12-31",14982000,6,2497000,1166,14982000,"YEIMY CAROLINA AGUDELO HERNANDEZ","NILBA ALIET AREVALO CASTELLANOS","ALMACEN","380-47-994000106694","2020-07-29","2021-07-03","NA",0,"NA","NA","NA","NA","NA","NA","NA","NA","NA","NA","NA","NA","NA","NA","NA","NA"]
["CONTRATACION DIRECTA","Contratos de prestación de servicios","TERMINADO","FDLK-CPS-214-2020","CPS-214-2020",{"$f":"VLOOKUP(E212,[1]Hoja1!D$3:E$393,2,0)","v":1},"CRISTIAN SANCHEZ TENJO ",1033705078,"CRISTIAN SANCHEZ TENJO ",1033705078,null,"https://community.secop.gov.co/Public/Tendering/OpportunityDetail/Index?noticeUID=CO1.NTC.1362336&isFromPublicArea=True&isModal=False","APOYAR LAS LABORES COMO NOTIFICADOR PARA LA DISTRIBUCIÓN DE LAS COMUNICACIONES EMITIDAS O RECIBIDAS POR LA ALCALDIA LOCAL DE KENNEDY","INVERSIÓN ",974,45000000,1363,"Fortalecimiento de la gestión local y de las acciones de vigilancia y control","2020-07-30","2020-08-05","2020-12-31",15000000,6,2500000,1175,15000000,"YEIMY CAROLINA AGUDELO HERNANDEZ","MARIA DEL PILAR MUÑOZ TORRES","ADMINISTRATIVO Y FINANCIERO","\t380-47-994000106767","2020-07-31","2021-07-03","NA",0,"NA","NA","NA","NA","NA","NA","NA","NA","NA","NA","NA","NA","NA","NA","NA","NA"]
["CONTRATACION DIRECTA","Contratos de prestación de servicios","EN EJECUCION","FDLK-CPS-215-2020","CPS-215-2020",{"$f":"VLOOKUP(E213,[1]Hoja1!D$3:E$393,2,0)","v":0.9856459330143541},"ALEXANDER VASQUEZ  ROJAS ",79664864,"ALEXANDER VASQUEZ  ROJAS ",79664864,null,"https://community.secop.gov.co/Public/Tendering/OpportunityDetail/Index?noticeUID=CO1.NTC.1366989&isFromPublicArea=True&isModal=False","PRESTAR SUS SERVICIOS PROFESIONALES PARA APOYAR A LA ALCALDI´A LOCAL DE KENNEDY EN LA COORDINACIO´N, FORMULACIO´N Y SEGUIMIENTO DE LAS OBRAS DE INFRAESTRUCTURA ADELANTADAS POR LA ALCALDI´A LOCAL","INVERSIÓN ",1071,32500000,1369,"Recreación y deporte para todos","2020-07-31","2020-08-03","2021-02-28",32066667,4.9333333333333336,6500000.0675675673,1173,32066667,"YEIMY CAROLINA AGUDELO HERNANDEZ","JOSÉ TARCICIO QUIROGA VELAZQUES","INFRAESTRUCTURA","380-47-994000106798","2020-07-03","2021-07-03","NA",0,"NA","NA","NA","NA","NA","2021-01-01",2,"MESES",13000000,"2021-01-01",2,"MESES","NA","NA","NA","NA"]
["CONTRATACION DIRECTA","Contratos de prestación de servicios","EN EJECUCION","FDLK-CPS-216-2020","CPS-216-2020",{"$f":"VLOOKUP(E214,[1]Hoja1!D$3:E$393,2,0)","v":0.92376681614349776},"LAURA VANESSA RODRIGUEZ  MARTINEZ",1022421776,"LAURA VANESSA RODRIGUEZ  MARTINEZ",1022421776,null,"https://community.secop.gov.co/Public/Tendering/OpportunityDetail/Index?noticeUID=CO1.NTC.1367134&isFromPublicArea=True&isModal=False","PRESTAR LOS SERVICIOS DE APOYO AL ÁREA DE GESTIÓN DE DESARROLLO LOCAL PARA LOS ASUNTOS RELACIONADOS CON LOS PROYECTOS DE INFRAESTRUCTURA DE LA ALCALDÍA LOCAL DE KENNEDY Y LOS TRÁMITES DE SU COMPETENCIA.","INVERSIÓN ",1069,12500000,1367,"Recuperación de la malla vial local","2020-07-31","2020-08-03","2021-03-14",12333334,4.9333333333333336,2500000.1351351351,1174,12333334,"YEIMY CAROLINA AGUDELO HERNANDEZ","JOSÉ TARCICIO QUIROGA VELAZQUES","INFRAESTRUCTURA","380-47-994000106781","2020-07-31","2021-07-31","NA",0,"NA","NA","NA","NA","NA","2021-01-01",73,"DIAS",6166667,"2021-01-01",73,"DIAS","NA","NA","NA","NA"]
["CONTRATACION DIRECTA","Contratos de prestación de servicios","TERMINADO","FDLK-CD-217-2020","CPS-217-2020",{"$f":"VLOOKUP(E215,[1]Hoja1!D$3:E$393,2,0)","v":1},"MARIA TERESA AMAYA",51915574,"MARIA TERESA AMAYA",51915574,null,"https://community.secop.gov.co/Public/Tendering/OpportunityDetail/Index?noticeUID=CO1.NTC.1376377&isFromPublicArea=True&isModal=False","PRESTAR LOS SERVICIOS DE APOYO ADMINISTRATIVO Y ASISTENCIAL EN ASUNTOS RELACIONADOS CON ESPACIO PÚBLICO Y/O GESTIÓN DEL RIESGO EN EL ÁREA DE GESTIÓN POLICIVA JURÍDICA DE LA ALCALDÍA LOCAL DE KENNEDY","INVERSIÓN ",943,9988000,1363,"Fortalecimiento de la gestión local y de las acciones de vigilancia y control","2020-08-05","2020-08-11","2020-12-10",9988000,4,2497000,1177,9988000,"YEIMY CAROLINA AGUDELO HERNANDEZ","NORMA LETICIA GUZMAN RIMOLLI","GESTION POLICIVA Y JURIDICA","380-47-994000106955","2020-08-06","2021-06-12","NA",0,"NA","NA","NA","NA","NA","NA","NA","NA","NA","NA","NA","NA","NA","NA","NA","NA"]
["CONTRATACION DIRECTA","Contratos de prestación de servicios","EN EJECUCION","FDLK-CD-218-2020","CPS-218-2020",{"$f":"VLOOKUP(E216,[1]Hoja1!D$3:E$393,2,0)","v":0.98453608247422686},"BRANDON NICOLAS  DIAZ SILVA",80155960,"BRANDON NICOLAS  DIAZ SILVA",80155960,null,"https://community.secop.gov.co/Public/Tendering/OpportunityDetail/Index?noticeUID=CO1.NTC.1388453&isFromPublicArea=True&isModal=False","PRESTAR SUS SERVICIOS PROFESIONALES A LA ALCALDÍA LOCAL DE KENNEDY APOYANDO LA EJECUCIÓN DEL PROYECTO 1380 MI CASA ME PERTENECE EN EL COMPONENTE JURÍDICO TENDIENTE A LA TITULACIÓN DE PREDIOS CONFORME A GARANTIZAR EL CUMPLIMIENTO DEL PLAN DE DESARROLLO LOCAL","INVERSIÓN ",956,120000000,1380,"Mi casa me pertenece","2020-08-12","2020-08-18","2021-02-28",23166667,4.4666666666666668,5186567.2388059702,1190,23166667,"YEIMY CAROLINA AGUDELO HERNANDEZ","YULLIET PATRICIA LLERENA AVENDAÑO","PLANEACION","380-47-994000107049","2020-08-13","2021-07-03","NA",0,"NA","NA","NA","NA","NA","2021-01-01",2,"MESES",10000000,"2021-01-01",2,"MESES","NA","NA","NA","NA"]
["CONTRATACION DIRECTA","Contratos de prestación de servicios","TERMINADO","FDLK-CD-219-2020","CPS-219-2020",{"$f":"VLOOKUP(E217,[1]Hoja1!D$3:E$393,2,0)","v":1},"JOSE HILARIO ROJAS PARDO.",11374613,"JOSE HILARIO ROJAS PARDO.",11374613,null,"https://community.secop.gov.co/Public/Tendering/OpportunityDetail/Index?noticeUID=CO1.NTC.1385772&isFromPublicArea=True&isModal=False","APOYAR LAS LABORES DE ENTREGA Y RECIBO DE LAS COMUNICACIONES EMITIDAS O RECIBIDAS POR LAS INSPECCIONES DE POLICIA DE LA LOCALIDAD.","INVERSIÓN ",969,9988000,1363,"Fortalecimiento de la gestión local y de las acciones de vigilancia y control","2020-08-12","2020-08-14","2020-12-13",9988000,4,2497000,1191,9988000,"YEIMY CAROLINA AGUDELO HERNANDEZ","GUSTAVO VANEGAS RUIZ","INSPECCIONES","380 47 994000107041","2020-08-12","2021-07-03","NA",0,"NA","NA","NA","NA","NA","NA","NA","NA","NA","NA","NA","NA","NA","NA","NA","NA"]
["CONTRATACION DIRECTA","Contratos de prestación de servicios","EN EJECUCION","FDLK-CD-220-2020","CPS-220-2020",{"$f":"VLOOKUP(E218,[1]Hoja1!D$3:E$393,2,0)","v":1},"EDWARD GIOVANNI VARGAS CABALLERO",80832684,"EDWARD GIOVANNI VARGAS CABALLERO",80832684,null,"https://community.secop.gov.co/Public/Tendering/OpportunityDetail/Index?noticeUID=CO1.NTC.1388932&isFromPublicArea=True&isModal=False","APOYAR ADMINISTRATIVA Y ASISTENCIALMENTE A LAS INSPECCIONES DE POLICÍA DE LA LOCALIDAD DE KENNEDY","INVERSIÓN ",942,59928000,1363,"Fortalecimiento de la gestión local y de las acciones de vigilancia y control","2020-08-13","2020-08-14","2021-02-13",9988000,4,2497000,1184,9988000,"YEIMY CAROLINA AGUDELO HERNANDEZ","GUSTAVO VANEGAS RUIZ","INSPECCIONES","380-47-994000107072","2020-08-13","2021-06-16","NA",0,"NA","NA","NA","NA","NA","2020-12-14",2,"MESES",4994000,"2020-12-14",2,"MESES","NA","NA","NA","NA"]
["CONTRATACION DIRECTA","Contratos de prestación de servicios","TERMINADO","FDLK-CD-221-2020","CPS-221-2020",{"$f":"VLOOKUP(E219,[1]Hoja1!D$3:E$393,2,0)","v":1},"FRANCIS JOHANNA FULA SATOBA",52763280,"FRANCIS JOHANNA FULA SATOBA",52763280,null,"https://community.secop.gov.co/Public/Tendering/OpportunityDetail/Index?noticeUID=CO1.NTC.1388719&isFromPublicArea=True&isModal=False","APOYAR ADMINISTRATIVA Y ASISTENCIALMENTE A LAS INSPECCIONES DE POLICÍA DE LA LOCALIDAD DE KENNEDY","INVERSIÓN ",942,59928000,1363,"Fortalecimiento de la gestión local y de las acciones de vigilancia y control","2020-08-13","2020-08-14","2020-12-13",9988000,4,2497000,1188,9988000,"YEIMY CAROLINA AGUDELO HERNANDEZ","GUSTAVO VANEGAS RUIZ","INSPECCIONES","380-47-994000107076","2020-08-13","2021-06-16","NA",0,"NA","NA","NA","NA","NA","NA","NA","NA","NA","NA","NA","NA","NA","NA","NA","NA"]
["CONTRATACION DIRECTA","Contratos de prestación de servicios","TERMINADO","FDLK-CD-222-2020","CPS-222-2020",{"$f":"VLOOKUP(E220,[1]Hoja1!D$3:E$393,2,0)","v":1},"LINO ARTURO CELIS PIÑEROS",80161206,"LINO ARTURO CELIS PIÑEROS",80161206,null,"https://community.secop.gov.co/Public/Tendering/OpportunityDetail/Index?noticeUID=CO1.NTC.1388984&isFromPublicArea=True&isModal=False","APOYAR ADMINISTRATIVA Y ASISTENCIALMENTE A LAS INSPECCIONES DE POLICÍA DE LA LOCALIDAD DE KENNEDY","INVERSIÓN ",942,59928000,1363,"Fortalecimiento de la gestión local y de las acciones de vigilancia y control","2020-08-13","2020-08-14","2020-12-13",9988000,4,2497000,1185,9988000,"YEIMY CAROLINA AGUDELO HERNANDEZ","GUSTAVO VANEGAS RUIZ","INSPECCIONES","14-46-101042634","2020-08-14","2021-06-17","NA",0,"NA","NA","NA","NA","NA","NA","NA","NA","NA","NA","NA","NA","NA","NA","NA","NA"]
["CONTRATACION DIRECTA","Contratos de prestación de servicios","EN EJECUCION","FDLK-CD-223-2020","CPS-223-2020",{"$f":"VLOOKUP(E221,[1]Hoja1!D$3:E$393,2,0)","v":1},"NIYIRET RODRIGUEZ CRESPO",52932428,"NIYIRET RODRIGUEZ CRESPO",52932428,null,"https://community.secop.gov.co/Public/Tendering/OpportunityDetail/Index?noticeUID=CO1.NTC.1388889&isFromPublicArea=True&isModal=False","APOYAR ADMINISTRATIVA Y ASISTENCIALMENTE A LAS INSPECCIONES DE POLICÍA DE LA LOCALIDAD DE KENNEDY","INVERSIÓN ",942,59928000,1363,"Fortalecimiento de la gestión local y de las acciones de vigilancia y control","2020-08-13","2020-08-14","2021-02-13",9988000,4,2497000,1186,9988000,"YEIMY CAROLINA AGUDELO HERNANDEZ","GUSTAVO VANEGAS RUIZ","INSPECCIONES","380-47-994000107074-0","2020-08-13","2021-06-19","NA",0,"NA","NA","NA","NA","NA","2020-12-14",2,"MESES",4994000,"2020-12-14",2,"MESES","NA","NA","NA","NA"]
["CONTRATACION DIRECTA","Contratos de prestación de servicios","EN EJECUCION","FDLK-CD-224-2020","CPS-224-2020",{"$f":"VLOOKUP(E222,[1]Hoja1!D$3:E$393,2,0)","v":1},"ANGELA NATALY SANCHEZ MALDONADO",1024482691,"ANGELA NATALY SANCHEZ MALDONADO",1024482691,null,"https://community.secop.gov.co/Public/Tendering/OpportunityDetail/Index?noticeUID=CO1.NTC.1389221&isFromPublicArea=True&isModal=False","APOYAR ADMINISTRATIVA Y ASISTENCIALMENTE A LAS INSPECCIONES DE POLICÍA DE LA LOCALIDAD DE KENNEDY","INVERSIÓN ",942,59928000,1363,"Fortalecimiento de la gestión local y de las acciones de vigilancia y control","2020-08-13","2020-08-14","2021-02-13",9988000,4,2497000,1187,9988000,"YEIMY CAROLINA AGUDELO HERNANDEZ","GUSTAVO VANEGAS RUIZ","INSPECCIONES","\t33-46-101024949","2020-08-13","2021-06-14","NA",0,"NA","NA","NA","NA","NA","2020-12-14",2,"MESES",4994000,"2020-12-14",2,"MESES","NA","NA","NA","NA"]
["CONTRATACION DIRECTA","Contratos de prestación de servicios","TERMINADO","FDLK-CD-225-2020","CPS-225-2020",{"$f":"VLOOKUP(E223,[1]Hoja1!D$3:E$393,2,0)","v":1},"GUILLERMO LEON RODRIGO RODRIGUEZ",98566755,"GUILLERMO LEON RODRIGO RODRIGUEZ",98566755,null,"https://community.secop.gov.co/Public/Tendering/OpportunityDetail/Index?noticeUID=CO1.NTC.1391641&isFromPublicArea=True&isModal=False","PRESTAR SUS SERVICIOS PROFESIONALES A LA ALCALDÍA LOCAL DE KENNEDY APOYANDO LA EJECUCIÓN DEL PROYECTO 1380 MI CASA ME PERTENECE EN EL COMPONENTE JURÍDICO TENDIENTE A LA TITULACIÓN DE PREDIOS CONFORME A GARANTIZAR EL CUMPLIMIENTO DEL PLAN DE DESARROLLO LOCAL","INVERSIÓN ",956,120000000,1380,"Mi casa me pertenece","2020-08-14","2020-08-19","2020-12-31",23000000,4.4333333333333336,5187969.92481203,1193,23000000,"YEIMY CAROLINA AGUDELO HERNANDEZ","YULLIET PATRICIA LLERENA AVENDAÑO","PLANEACION","380-47-994000107103","2020-08-15","2021-07-03","NA",0,"NA","NA","NA","NA","NA","NA","NA","NA","NA","NA","NA","NA","NA","NA","NA","NA"]
["CONTRATACION DIRECTA","Contratos de prestación de servicios","EN EJECUCION","FDLK-CD-226-2020","CPS-226-2020",{"$f":"VLOOKUP(E224,[1]Hoja1!D$3:E$393,2,0)","v":1},"ADRIANA TANGARIFE CARVAJAL",52842671,"ADRIANA TANGARIFE CARVAJAL",52842671,null,"https://community.secop.gov.co/Public/Tendering/OpportunityDetail/Index?noticeUID=CO1.NTC.1389298&isFromPublicArea=True&isModal=False","APOYAR TÉCNICAMENTE LAS DISTINTAS ETAPAS DE LOS PROCESOS DE COMPETENCIA DELAS INSPECCIONES DE POLICÍA DE LA LOCALIDAD, SEGÚN REPARTO","INVERSIÓN ",945,78840000,1363,"Fortalecimiento de la gestión local y de las acciones de vigilancia y control","2020-08-13","2020-08-18","2021-02-17",26280000,4,6570000,1189,26280000,"YEIMY CAROLINA AGUDELO HERNANDEZ","GUSTAVO VANEGAS RUIZ","INSPECCIONES","33-46-101024959","2020-08-13","2021-06-18","NA",0,"NA","NA","NA","NA","NA","2020-12-18",2,"MESES",13140000,"2020-12-18",2,"MESES","NA","NA","NA","NA"]
["MINIMA CUANTIA","Compra y venta de suministros","TERMINADO","FDLK-MC-4-2020","CCV-227-2020",{"$f":"VLOOKUP(E225,[1]Hoja1!D$3:E$393,2,0)","v":1},"NEURONA SAS","900207450-6","CARLOS ANDRES GARCIA CASTELLANOS",80172987,null,"https://community.secop.gov.co/Public/Tendering/OpportunityDetail/Index?noticeUID=CO1.NTC.1366533&isFromPublicArea=True&isModal=False","CONTRATAR LA ELABORACION Y ENTREGA DE CHAQUETAS INSTITUCIONALES CON LA IMAGEN CORPORATIVA, PARA EL APOYO AL DESARROLLO DE LOS PROCESOS MISIONALES Y FORTALECER LA GESTION INSTITUCIONAL DE LA ALCALDIA LOCAL DE KENNEDY","INVERSIÓN ",1067,22100000,3,"Servicios ded publicidad y  el suministro o tiempo publicitario","2020-08-14","2020-08-20","2020-10-19",13090000,1,13090000,1210,13090000,"YEIMY CAROLINA AGUDELO HERNANDEZ","YULLIET PATRICIA LLERENA AVENDAÑO","NA","CBO-100005931","2020-08-13","2021-03-31","NA",0,"NA","NA","NA","NA","NA","NA","NA","NA","NA","NA","NA","NA","NA","NA","NA","NA"]
["CONTRATACION DIRECTA","Contratos de prestación de servicios","EN EJECUCION","FDLK-CD-228-2020","CPS-228-2020",{"$f":"VLOOKUP(E226,[1]Hoja1!D$3:E$393,2,0)","v":1},"JONATHAN ALEXI GUTIERREZ ROMERO",1032363540,"JONATHAN ALEXI GUTIERREZ ROMERO",1032363540,null,"https://community.secop.gov.co/Public/Tendering/OpportunityDetail/Index?noticeUID=CO1.NTC.1391042&isFromPublicArea=True&isModal=False","\tAPOYAR TÉCNICAMENTE LAS DISTINTAS ETAPAS DE LOS PROCESOS DE COMPETENCIA DE LAS INSPECCIONES DE POLICÍA DE LA LOCALIDAD, SEGÚN REPARTO","INVERSIÓN ",945,78840000,1363,"Fortalecimiento de la gestión local y de las acciones de vigilancia y control","2020-08-14","2020-08-19","2021-02-18",26280000,4,6570000,1197,26280000,"YEIMY CAROLINA AGUDELO HERNANDEZ","GUSTAVO VANEGAS RUIZ","INSPECCIONES",3.8047994000107104E+16,"2020-08-15","2021-06-21","NA",0,"NA","NA","NA","NA","NA","2020-12-19",2,"MESES",13140000,"2020-12-19",2,"MESES","NA","NA","NA","NA"]
["CONTRATACION DIRECTA","Contratos de prestación de servicios","EN EJECUCION","FDLK-CD-229-2020","CPS-229-2020",{"$f":"VLOOKUP(E227,[1]Hoja1!D$3:E$393,2,0)","v":1},"GILLAND RODOLFO LÓPEZ SANTAMARÍA",11441649,"GILLAND RODOLFO LÓPEZ SANTAMARÍA",11441649,null,"https://community.secop.gov.co/Public/Tendering/OpportunityDetail/Index?noticeUID=CO1.NTC.1391043&isFromPublicArea=True&isModal=False","APOYAR TÉCNICAMENTE LAS DISTINTAS ETAPAS DE LOS PROCESOS DE COMPETENCIA DE LAS INSPECCIONES DE POLICÍA DE LA LOCALIDAD, SEGÚN REPARTO","INVERSIÓN ",945,78840000,1363,"Fortalecimiento de la gestión local y de las acciones de vigilancia y control","2020-08-14","2020-08-19","2021-02-18",26280000,4,6570000,1198,26280000,"YEIMY CAROLINA AGUDELO HERNANDEZ","GUSTAVO VANEGAS RUIZ","INSPECCIONES",6246101001916,"2020-08-19","2021-06-30","NA",0,"NA","NA","NA","NA","NA","2020-12-19",2,"MESES",13140000,"2020-12-19",2,"MESES","NA","NA","NA","NA"]
["CONTRATACION DIRECTA","Contratos de prestación de servicios","EN EJECUCION","FDLK-CD-230-2020","CPS-230-2020",{"$f":"VLOOKUP(E228,[1]Hoja1!D$3:E$393,2,0)","v":1},"CLAUDIA MAYERLY RUIZ NEIRA",52451521,"CLAUDIA MAYERLY RUIZ NEIRA",52451521,null,"https://community.secop.gov.co/Public/Tendering/OpportunityDetail/Index?noticeUID=CO1.NTC.1391152&isFromPublicArea=True&isModal=False","APOYAR JURÍDICAMENTE LA EJECUCIÓN DE LAS ACCIONES REQUERIDAS PARA EL TRÁMITE E IMPULSO PROCESAL DE LAS ACTUACIONES CONTRAVENCIONALES Y/O QUERELLAS QUE CURSEN EN LAS INSPECCIONES DE POLICÍA DE LA LOCALIDAD","INVERSIÓN ",944,100800000,1363,"Fortalecimiento de la gestión local y de las acciones de vigilancia y control","2020-08-14","2020-08-19","2021-02-18",16800000,4,4200000,1199,16800000,"YEIMY CAROLINA AGUDELO HERNANDEZ","GUSTAVO VANEGAS RUIZ","INSPECCIONES","380-47-994000107099","2020-08-14","2021-06-18","NA",0,"NA","NA","NA","NA","NA","2020-12-19",2,"MESES",8400000,"2020-12-19",2,"MESES","NA","NA","NA","NA"]
["CONTRATACION DIRECTA","Contratos de prestación de servicios","EN EJECUCION","FDLK-CD-231-2020","CPS-231-2020",{"$f":"VLOOKUP(E229,[1]Hoja1!D$3:E$393,2,0)","v":1},"ANA MERCEDES MACA MEDINA",1030589781,"ANA MERCEDES MACA MEDINA",1030589781,null,"https://community.secop.gov.co/Public/Tendering/OpportunityDetail/Index?noticeUID=CO1.NTC.1391093&isFromPublicArea=True&isModal=False","APOYAR JURÍDICAMENTE LA EJECUCIÓN DE LAS ACCIONES REQUERIDAS PARA EL TRÁMITE E IMPULSO PROCESAL DE LAS ACTUACIONES CONTRAVENCIONALES Y/O QUERELLAS QUE CURSEN EN LAS INSPECCIONES DE POLICÍA DE LA LOCALIDAD","INVERSIÓN ",944,100800000,1363,"Fortalecimiento de la gestión local y de las acciones de vigilancia y control","2020-08-14","2020-08-19","2021-02-18",16800000,4,4200000,1200,16800000,"YEIMY CAROLINA AGUDELO HERNANDEZ","GUSTAVO VANEGAS RUIZ","INSPECCIONES","\t11-46-101014550","2020-08-14","2021-06-17","NA",0,"NA","NA","NA","NA","NA","2020-12-19",2,"MESES",8400000,"2020-12-19",2,"MESES","NA","NA","NA","NA"]
["CONTRATACION DIRECTA","Contratos de prestación de servicios","TERMINADO","FDLK-CD-232-2020","CPS-232-2020",{"$f":"VLOOKUP(E230,[1]Hoja1!D$3:E$393,2,0)","v":1},"CLAUDIA MARCELA BENAVIDES TORRES",52431180,"CLAUDIA MARCELA BENAVIDES TORRES",52431180,null,"https://community.secop.gov.co/Public/Tendering/OpportunityDetail/Index?noticeUID=CO1.NTC.1391507&isFromPublicArea=True&isModal=False","PRESTAR LOS SERVICIOS DE APOYO A LOS ARCHIVOS DE GESTIÓN DE LA ENTIDAD EN LA IMPLEMENTACIÓN DE LOS PROCESOS DE CLASIFICACIÓN, ORDENACIÓN, SELECCIÓN NATURAL, FOLIACIÓN, IDENTIFICACIÓN, LEVANTAMIENTO DE INVENTARIOS, ALMACENAMIENTO Y APLICACIÓN DE PROTOCOLOS DE ELIMINACIÓN Y TRANSFERENCIAS DOCUMENTALES","INVERSIÓN ",934,149820000,1363,"Fortalecimiento de la gestión local y de las acciones de vigilancia y control","2020-08-14","2020-08-19","2020-12-31",11402967,4.4333333333333336,2572097.8195488718,1194,11402967,"YEIMY CAROLINA AGUDELO HERNANDEZ","MARIA DEL PILAR MUÑOZ TORRES","ADMINISTRATIVO Y FINANCIERO","\t38047994000107130","2020-08-18","2021-07-03","NA",0,"NA","NA","NA","NA","NA","NA","NA","NA","NA","NA","NA","NA","NA","NA","NA","NA"]
["CONTRATACION DIRECTA","Contratos de prestación de servicios","TERMINADO","FDLK-CD-233-2020","CPS-233-2020",{"$f":"VLOOKUP(E231,[1]Hoja1!D$3:E$393,2,0)","v":1},"JEISON OVALLE TORRES",80822026,"JEISON OVALLE TORRES",80822026,null,"https://community.secop.gov.co/Public/Tendering/OpportunityDetail/Index?noticeUID=CO1.NTC.1391506&isFromPublicArea=True&isModal=False","PRESTAR SERVICIO DE APOYO TÉCNICO EN LA ADMINISTRACIÓN DEL PUNTO VIVE DIGITAL DE ACCESO A LAS TECNOLOGÍAS DE INFORMACIÓN Y LAS COMUNICACIONES TIC","INVERSIÓN ",933,35400000,1363,"Fortalecimiento de la gestión local y de las acciones de vigilancia y control","2020-08-14","2020-08-21","2020-12-31",13176666,4.333333333333333,3040769.076923077,1225,13176666,"YEIMY CAROLINA AGUDELO HERNANDEZ","ERIKA ANDREA RISCANEVO VIRACACHA","COMUNICACION Y PRENSA","\t380 47 994000107102","2020-08-15","2021-07-03","NA",0,"NA","NA","NA","NA","NA","NA","NA","NA","NA","NA","NA","NA","NA","NA","NA","NA"]
["CONTRATACION DIRECTA","Contratos de prestación de servicios","TERMINADO","FDLK-CD-234-2020","CPS-234-2020",{"$f":"VLOOKUP(E232,[1]Hoja1!D$3:E$393,2,0)","v":1},"ENIA DEL ROSARIO GOMEZ OCHOA ",45486969,"ENIA DEL ROSARIO GOMEZ OCHOA ",45486969,null,"https://community.secop.gov.co/Public/Tendering/OpportunityDetail/Index?noticeUID=CO1.NTC.1391200&isFromPublicArea=True&isModal=False","PRESTAR SUS SERVICIOS PROFESIONALES PARA EL APOYO DE LA ETAPA DE COBRO PERSUASIVO DE LOS PROCESOS SANCIONATORIOS A CARGO DEL GRUPO DEL ÁREA DE GESTIÓN POLICIVA JURIDICA DE LA ALCALDÍA LOCAL DE KENNEDY","INVERSIÓN ",1059,22048000,1363,"Fortalecimiento de la gestión local y de las acciones de vigilancia y control","2020-08-14","2020-08-19","2020-12-18",22048000,4,5512000,1202,22048000,"YEIMY CAROLINA AGUDELO HERNANDEZ","NORMA LETICIA GUZMAN RIMOLLI",null,"\t380-47-994000107104","2020-08-19","2021-06-18","NA",0,"NA","NA","NA","NA","NA","NA","NA","NA","NA","NA","NA","NA","NA","NA","NA","NA"]
["CONTRATACION DIRECTA","Contratos de prestación de servicios","TERMINADO","FDLK-CD-235-2020","CPS-235-2020",{"$f":"VLOOKUP(E233,[1]Hoja1!D$3:E$393,2,0)","v":1},"JAIRO OSWALDO MARTINEZ GARNICA",1014188055,"JAIRO OSWALDO MARTINEZ GARNICA",1014188055,null,"https://community.secop.gov.co/Public/Tendering/OpportunityDetail/Index?noticeUID=CO1.NTC.1391528&isFromPublicArea=True&isModal=False","PRESTAR LOS SERVICIOS PROFESIONALES PARA LA OPERACIÓN, PRESTACIÓN Y SEGUIMIENTO Y CUMPLIMIENTO DE LOS PROCEDIMIENTOS ADMINISTRATIVOS, OPERATIVOS Y PROGRAMÁTICOS DE LOS SERVICIOS SOCIALES DEL PROYECTO DE SUBSIDIO/APOYO ECONÓMICO TIPO C, QUE CONTRIBUYAN A LA GARANTÍA DE LOS DERECHOS DE LA POBLACIÓN MAYOR EN EL MARCO DE LA POLÍTICA PÚBLICA SOCIAL PARA EL ENVEJECIMIENTO Y LA VEJEZ EN EL DISTRITO CAPITAL A CARGO DE LA ALCALDÍA LOCAL DE KENNEDY","INVERSIÓN ",950,226800000,1378,"Igualdad y autonomía para una Kennedy incluyente","2020-08-14","2020-08-19","2020-12-31",18760000,4.4666666666666668,4200000,1201,18760000,"YEIMY CAROLINA AGUDELO HERNANDEZ","RICARDO RODRIGUEZ","PLANEACION","\t380 47 994000107096","2020-08-14","2021-06-21","NA",0,"NA","NA","NA","NA","NA","NA","NA","NA","NA","NA","NA","NA","NA","NA","NA","NA"]
["CONTRATACION DIRECTA","Contratos de prestación de servicios","EN EJECUCION","FDLK-CD-236-2020","CPS-236-2020",{"$f":"VLOOKUP(E234,[1]Hoja1!D$3:E$393,2,0)","v":0.95},"MIGUEL ANGEL DIAZ RAMIREZ",1013638738,"MIGUEL ANGEL DIAZ RAMIREZ",1013638738,null,"https://community.secop.gov.co/Public/Tendering/OpportunityDetail/Index?noticeUID=CO1.NTC.1391715&isFromPublicArea=True&isModal=False","PRESTAR LOS SERVICIOS DE APOYO A LOS ARCHIVOS DE GESTIÓN DE LA ENTIDAD EN LA IMPLEMENTACIÓN DE LOS PROCESOS DE CLASIFICACIÓN, ORDENACIÓN, SELECCIÓN NATURAL, FOLIACIÓN, IDENTIFICACIÓN, LEVANTAMIENTO DE INVENTARIOS, ALMACENAMIENTO Y APLICACIÓN DE PROTOCOLOS DE ELIMINACIÓN Y TRANSFERENCIAS DOCUMENTALES","INVERSIÓN ",934,149820000,1363,"Fortalecimiento de la gestión local y de las acciones de vigilancia y control","2020-08-14","2020-08-19","2021-03-07",11402967,4.4333333333333336,2572097.8195488718,1195,11402967,"YEIMY CAROLINA AGUDELO HERNANDEZ","MARIA DEL PILAR MUÑOZ TORRES","ADMINISTRATIVO Y FINANCIERO","\t380-47-994000107110","2020-08-15","2021-07-03","NA",0,"NA","NA","NA","NA","NA","2021-01-01",66,"DIAS",5576633,"2021-01-01",66,"DIAS","NA","NA","NA","NA"]
["CONTRATACION DIRECTA","Contratos de prestación de servicios","TERMINADO","FDLK-CD-237-2020","CPS-237-2020",{"$f":"VLOOKUP(E235,[1]Hoja1!D$3:E$393,2,0)","v":1},"MÓNICA ALEJANDRA GUERRA RICO",1010222904,"MÓNICA ALEJANDRA GUERRA RICO",1010222904,null,"https://community.secop.gov.co/Public/Tendering/OpportunityDetail/Index?noticeUID=CO1.NTC.1391982&isFromPublicArea=True&isModal=False","PRESTAR LOS SERVICIOS PROFESIONALES PARA LA OPERACIÓN, PRESTACIÓN Y SEGUIMIENTO Y CUMPLIMIENTO DE LOS PROCEDIMIENTOS ADMINISTRATIVOS, OPERATIVOS Y PROGRAMÁTICOS DE LOS SERVICIOS SOCIALES DEL PROYECTO DE SUBSIDIO/APOYO ECONÓMICO TIPO C, QUE CONTRIBUYAN A LA GARANTÍA DE LOS DERECHOS DE LA POBLACIÓN MAYOR EN EL MARCO DE LA POLÍTICA PÚBLICA SOCIAL PARA EL ENVEJECIMIENTO Y LA VEJEZ EN EL DISTRITO CAPITAL A CARGO DE LA ALCALDÍA LOCAL DE KENNEDY","INVERSIÓN ",950,226800000,1378,"Igualdad y autonomía para una Kennedy incluyente","2020-08-14","2020-08-20","2020-12-31",18760000,4.3666666666666663,4296183.2061068704,1226,18760000,"YEIMY CAROLINA AGUDELO HERNANDEZ","RICARDO RODRIGUEZ","PLANEACION","NB–100135769","2020-08-14","2021-06-30","NA",0,"NA","NA","NA","NA","NA","NA","NA","NA","NA","NA","NA","NA","NA","NA","NA","NA"]
["CONTRATACION DIRECTA","Contratos de prestación de servicios","EN EJECUCION","FDLK-CD-238-2020","CPS-238-2020",{"$f":"VLOOKUP(E236,[1]Hoja1!D$3:E$393,2,0)","v":0.9494949494949495},"JACQUELINE HOYOS VILLAMIL",52904494,"JACQUELINE HOYOS VILLAMIL",52904494,null,"https://community.secop.gov.co/Public/Tendering/OpportunityDetail/Index?noticeUID=CO1.NTC.1392233&isFromPublicArea=True&isModal=False","PRESTAR LOS SERVICIOS DE APOYO A LOS ARCHIVOS DE GESTIÓN DE LA ENTIDAD EN LA IMPLEMENTACIÓN DE LOS PROCESOS DE CLASIFICACIÓN, ORDENACIÓN, SELECCIÓN NATURAL, FOLIACIÓN, IDENTIFICACIÓN, LEVANTAMIENTO DE INVENTARIOS, ALMACENAMIENTO Y APLICACIÓN DE PROTOCOLOS DE ELIMINACIÓN Y TRANSFERENCIAS DOCUMENTALES","INVERSIÓN ",934,149820000,1363,"Fortalecimiento de la gestión local y de las acciones de vigilancia y control","2020-08-14","2020-08-21","2021-03-07",11153266,4.333333333333333,2573830.6153846155,1227,11153266,"YEIMY CAROLINA AGUDELO HERNANDEZ","MARIA DEL PILAR MUÑOZ TORRES","ADMINISTRATIVO Y FINANCIERO",100135809,"2020-08-14","2021-06-30","NA",0,"NA","NA","NA","NA","NA","2021-01-01",66,"DIAS",5576633,"2021-01-01",66,"DIAS","NA","NA","NA","NA"]
["CONTRATACION DIRECTA","Contratos de prestación de servicios","TERMINADO","FDLK-CD-239-2020","CPS-239-2020",{"$f":"VLOOKUP(E237,[1]Hoja1!D$3:E$393,2,0)","v":1},"JESSICA ALEJANDRA VANEGAS BARRERA",1022382583,"JESSICA ALEJANDRA VANEGAS BARRERA",1022382583,null,"https://community.secop.gov.co/Public/Tendering/OpportunityDetail/Index?noticeUID=CO1.NTC.1392807&isFromPublicArea=True&isModal=False","PRESTAR LOS SERVICIOS DE APOYO A LOS ARCHIVOS DE GESTIÓN DE LA ENTIDAD EN LA IMPLEMENTACIÓN DE LOS PROCESOS DE CLASIFICACIÓN, ORDENACIÓN, SELECCIÓN NATURAL, FOLIACIÓN, IDENTIFICACIÓN, LEVANTAMIENTO DE INVENTARIOS, ALMACENAMIENTO Y APLICACIÓN DE PROTOCOLOS DE ELIMINACIÓN Y TRANSFERENCIAS DOCUMENTALES","INVERSIÓN ",934,149820000,1363,"Fortalecimiento de la gestión local y de las acciones de vigilancia y control","2020-08-14","2020-08-19","2020-12-31",11070034,4.4000000000000004,2515916.8181818179,1203,11070034,"YEIMY CAROLINA AGUDELO HERNANDEZ","MARIA DEL PILAR MUÑOZ TORRES","ADMINISTRATIVO Y FINANCIERO",3.8047994000107104E+16,"2020-08-15","2021-07-03","NA",0,"NA","NA","NA","NA","NA","NA","NA","NA","NA","NA","NA","NA","NA","NA","NA","NA"]
["CONTRATACION DIRECTA","Contratos de prestación de servicios","TERMINADO","FDLK-CD-240-2020","CPS-240-2020",{"$f":"VLOOKUP(E238,[1]Hoja1!D$3:E$393,2,0)","v":1},"CRISTHIAN ADOLFO ACERO",1030600194,"CRISTHIAN ADOLFO ACERO",1030600194,null,"https://community.secop.gov.co/Public/Tendering/OpportunityDetail/Index?noticeUID=CO1.NTC.1392579&isFromPublicArea=True&isModal=False","PRESTAR LOS SERVICIOS DE APOYO TÉCNICO Y ADMINISTRATIVO EN ASUNTOS RELACIONADOS CON GESTIÓN DE RIESGO Y AGLOMERACIONES EN AL ÁREA DE GESTIÓN POLICIVA JURÍDICA DE LA ALCALDÍA LOCAL DE KENNEDY.","INVERSIÓN ",940,11800000,1363,"Fortalecimiento de la gestión local y de las acciones de vigilancia y control","2020-08-14","2020-08-20","2021-01-31",11800000,4,2950000,1212,11800000,"YEIMY CAROLINA AGUDELO HERNANDEZ","JAVIER VELASQUEZ","GESTION POLICIVA Y JURIDICA","\t380-47-994000107204","2020-08-20","2021-06-24","NA",0,"NA","NA","NA","NA","NA","2020-12-20",43,"DIAS",4031667,"2020-12-20",43,"DIAS","NA","NA","NA","NA"]
["CONTRATACION DIRECTA","Contratos de prestación de servicios","TERMINADO","FDLK-CD-241-2020","CPS-241-2020",{"$f":"VLOOKUP(E239,[1]Hoja1!D$3:E$393,2,0)","v":1},"EDWIN ALEJANDRO HURTADO","80.803.822","EDWIN ALEJANDRO HURTADO","80.803.822",null,"https://community.secop.gov.co/Public/Tendering/OpportunityDetail/Index?noticeUID=CO1.NTC.1392580&isFromPublicArea=True&isModal=False","PRESTAR SUS SERVICIOS DE APOYO ASISTENCIAL EN LA ADMINISTRACIÓN DEL PUNTO VIVE DIGITAL DE ACCESO A LAS TECNOLOGÍAS DE INFORMACIÓN Y LAS COMUNICACIONES - TIC.","INVERSIÓN ",1060,21000000,1363,"Fortalecimiento de la gestión local y de las acciones de vigilancia y control","2020-08-14","2020-08-20","2020-12-31",7700000,4.4666666666666668,1723880.5970149254,1213,7700000,"YEIMY CAROLINA AGUDELO HERNANDEZ","ERIKA ANDREA RISCANEVO VIRACACHA","COMUNICACION Y PRENSA","\tCBC-100021028","2020-08-14","2022-01-05","NA",0,"NA","NA","NA","NA","NA","NA","NA","NA","NA","NA","NA","NA","NA","NA","NA","NA"]
["CONTRATACION DIRECTA","Contratos de prestación de servicios","TERMINADO","FDLK-CD-242-2020","CPS-242-2020",{"$f":"VLOOKUP(E240,[1]Hoja1!D$3:E$393,2,0)","v":1},"SANDRA MILENA MELO LEON",41963848,"SANDRA MILENA MELO LEON",41963848,null,"https://community.secop.gov.co/Public/Tendering/OpportunityDetail/Index?noticeUID=CO1.NTC.1392920&isFromPublicArea=True&isModal=False","PRESTAR SUS SERVICIOS DE APOYO ASISTENCIAL EN LA ADMINISTRACIÓN DEL PUNTO VIVE DIGITAL DE ACCESO A LAS TECNOLOGÍAS DE INFORMACIÓN Y LAS COMUNICACIONES - TIC.","INVERSIÓN ",1060,21000000,1363,"Fortalecimiento de la gestión local y de las acciones de vigilancia y control","2020-08-14","2020-08-20","2020-12-31",7700000,4.4666666666666668,1723880.5970149254,1214,7700000,"YEIMY CAROLINA AGUDELO HERNANDEZ","ERIKA ANDREA RISCANEVO VIRACACHA","COMUNICACION Y PRENSA","\t21-44-101329665","2020-08-14","2021-12-31","NA",0,"NA","NA","NA","NA","NA","NA","NA","NA","NA","NA","NA","NA","NA","NA","NA","NA"]
["CONTRATACION DIRECTA","Contratos de prestación de servicios","EN EJECUCION","FDLK-CD-243-2020","CPS-243-2020",{"$f":"VLOOKUP(E241,[1]Hoja1!D$3:E$393,2,0)","v":0.8482142857142857}," YACKELIN QUIMBAYO CIFUENTES",52193043," YACKELIN QUIMBAYO CIFUENTES",52193043,null,"https://community.secop.gov.co/Public/Tendering/OpportunityDetail/Index?noticeUID=CO1.NTC.1393005&isFromPublicArea=True&isModal=False","PRESTAR LOS SERVICIOS DE APOYO A LOS ARCHIVOS DE GESTIÓN DE LA ENTIDAD EN LA IMPLEMENTACIÓN DE LOS PROCESOS DE CLASIFICACIÓN, ORDENACIÓN, SELECCIÓN NATURAL, FOLIACIÓN, IDENTIFICACIÓN, LEVANTAMIENTO DE INVENTARIOS, ALMACENAMIENTO Y APLICACIÓN DE PROTOCOLOS DE ELIMINACIÓN Y TRANSFERENCIAS DOCUMENTALES.","INVERSIÓN ",934,149820000,1363,"Fortalecimiento de la gestión local y de las acciones de vigilancia y control","2020-08-14","2020-08-19","2021-03-31",14982000,4.4666666666666668,3354179.1044776118,1206,14982000,"YEIMY CAROLINA AGUDELO HERNANDEZ","MARIA DEL PILAR MUÑOZ TORRES","ADMINISTRATIVO Y FINANCIERO","\t380-47-994000107131","2020-08-14","2021-07-03","NA",0,"NA","NA","NA","NA","NA","2021-01-01",3,"MESES",7491000,"2021-01-01",3,"MESES","NA","NA","NA","NA"]
["CONTRATACION DIRECTA","Contratos de prestación de servicios","TERMINADO","FDLK-CD-244-2020","CPS-244-2020",{"$f":"VLOOKUP(E242,[1]Hoja1!D$3:E$393,2,0)","v":1},"FABIO HERNAN RODRIGUEZ VALDERRAMA",79500442,"FABIO HERNAN RODRIGUEZ VALDERRAMA",79500442,null,"https://community.secop.gov.co/Public/Tendering/OpportunityDetail/Index?noticeUID=CO1.NTC.1392547&isFromPublicArea=True&isModal=False","PRESTAR LOS SERVICIOS DE APOYO A LOS ARCHIVOS DE GESTIÓN DE LA ENTIDAD EN LA IMPLEMENTACIÓN DE LOS PROCESOS DE CLASIFICACIÓN, ORDENACIÓN, SELECCIÓN NATURAL, FOLIACIÓN, IDENTIFICACIÓN, LEVANTAMIENTO DE INVENTARIOS, ALMACENAMIENTO Y APLICACIÓN DE PROTOCOLOS DE ELIMINACIÓN Y TRANSFERENCIAS DOCUMENTALES.","INVERSIÓN ",934,149820000,1363,"Fortalecimiento de la gestión local y de las acciones de vigilancia y control","2020-08-14","2020-08-19","2020-12-31",14982000,4.4666666666666668,3354179.1044776118,1207,14982000,"YEIMY CAROLINA AGUDELO HERNANDEZ","MARIA DEL PILAR MUÑOZ TORRES","ADMINISTRATIVO Y FINANCIERO","\t38047994000107118","2020-08-18","2021-07-03","NA",0,"NA","NA","NA","NA","NA","NA","NA","NA","NA","NA","NA","NA","NA","NA","NA","NA"]
["CONTRATACION DIRECTA","Contratos de prestación de servicios","EN EJECUCION","FDLK-CD-245-2020","CPS-245-2020",{"$f":"VLOOKUP(E243,[1]Hoja1!D$3:E$393,2,0)","v":0.8482142857142857},"JAQUELINE REYES PINEDA",51730860,"JAQUELINE REYES PINEDA",51730860,null,"https://community.secop.gov.co/Public/Tendering/OpportunityDetail/Index?noticeUID=CO1.NTC.1392656&isFromPublicArea=True&isModal=False","PRESTAR LOS SERVICIOS DE APOYO A LA OFICINA DE RADICACIÓN Y CORRESPONDENCIA DE LA ALCALDIA LOCAL DE KENNEDY EN TEMAS DE GESTIÓN DOCUMENTAL Y TRÁMITES DE SU COMPETENCIA.","INVERSIÓN ",935,59825000,1363,"Fortalecimiento de la gestión local y de las acciones de vigilancia y control","2020-08-14","2020-08-19","2021-03-31",14982000,4.4666666666666668,3354179.1044776118,1208,14982000,"YEIMY CAROLINA AGUDELO HERNANDEZ","MARIA DEL PILAR MUÑOZ TORRES","ADMINISTRATIVO Y FINANCIERO","\t380-47-994000107107","2020-08-15","2021-07-03","NA",0,"NA","NA","NA","NA","NA","2021-01-01",3,"MESES",7491000,"2021-01-01",3,"MESES","NA","NA","NA","NA"]
["CONTRATACION DIRECTA","Contratos de prestación de servicios","TERMINADO","FDLK-CD-246-2020","CPS-246-2020",{"$f":"VLOOKUP(E244,[1]Hoja1!D$3:E$393,2,0)","v":1},"ARLEX ENRIQUE MORENO JULIO",1010178433,"ARLEX ENRIQUE MORENO JULIO",1010178433,null,"https://community.secop.gov.co/Public/Tendering/OpportunityDetail/Index?noticeUID=CO1.NTC.1392574&isFromPublicArea=True&isModal=False","PRESTAR SUS SERVICIOS PROFESIONALES A LA ALCALDÍA LOCAL DE KENNEDY APOYANDO LA EJECUCIÓN DEL PROYECTO 1380 MI CASA ME PERTENECE EN EL COMPONENTE JURÍDICO TENDIENTE A LA TITULACIÓN DE PREDIOS CONFORME A GARANTIZAR EL CUMPLIMIENTO DEL PLAN DE DESARROLLO LOCAL","INVERSIÓN ",956,120000000,1380,"Mi casa me pertenece","2020-08-14","2020-08-21","2020-12-31",22833333,4.3666666666666663,5229007.5572519088,1229,22833333,"YEIMY CAROLINA AGUDELO HERNANDEZ","YULLIET PATRICIA LLERENA AVENDAÑO","PLANEACION","75-46-101005297","2020-08-15","2021-06-30","NA",0,"NA","NA","NA","NA","NA","NA","NA","NA","NA","NA","NA","NA","NA","NA","NA","NA"]
["CONTRATACION DIRECTA","Contratos de prestación de servicios","EN EJECUCION","FDLK-CD-247-2020","CPS-247-2020",{"$f":"VLOOKUP(E245,[1]Hoja1!D$3:E$393,2,0)","v":1},"YEZID ROLANDO PUERTO JIMENEZ",79746963,"YEZID ROLANDO PUERTO JIMENEZ",79746963,null,"https://community.secop.gov.co/Public/Tendering/OpportunityDetail/Index?noticeUID=CO1.NTC.1392583&isFromPublicArea=True&isModal=False","PRESTAR LOS SERVICIOS DE APOYO PROFESIONAL EN LOS TEMAS RELACIONADOS CON GESTION DEL RIESGO DE LA LOCALIDAD DE KENNEDY","INVERSIÓN ",962,22048000,1363,"Fortalecimiento de la gestión local y de las acciones de vigilancia y control","2020-08-14","2020-08-19","2021-02-18",22048000,4,5512000,1204,22048000,"YEIMY CAROLINA AGUDELO HERNANDEZ","JAVIER VELASQUEZ","GESTION POLICIVA Y JURIDICA","380 47 994000107106","2020-08-15","2021-07-03","NA",0,"NA","NA","NA","NA","NA","2020-12-19",2,"MESES",11024000,"2020-12-19",2,"MESES","NA","NA","NA","NA"]
["CONTRATACION DIRECTA","Contratos de prestación de servicios","TERMINADO","FDLK-CD-248-2020","CPS-248-2020",{"$f":"VLOOKUP(E246,[1]Hoja1!D$3:E$393,2,0)","v":1},"DIANA CAROLINA PALACIOS ROMERO",52979097,"DIANA CAROLINA PALACIOS ROMERO",52979097,null,"https://community.secop.gov.co/Public/Tendering/OpportunityDetail/Index?noticeUID=CO1.NTC.1393074&isFromPublicArea=True&isModal=False","PRESTAR LOS SERVICIOS PROFESIONALES PARA LA OPERACIÓN, PRESTACIÓN Y SEGUIMIENTO Y CUMPLIMIENTO DE LOS PROCEDIMIENTOS ADMINISTRATIVOS, OPERATIVOS Y PROGRAMÁTICOS DE LOS SERVICIOS SOCIALES DEL PROYECTO DE SUBSIDIO/APOYO ECONÓMICO TIPO C, QUE CONTRIBUYAN A LA GARANTÍA DE LOS DERECHOS DE LA POBLACIÓN MAYOR EN EL MARCO DE LA POLÍTICA PÚBLICA SOCIAL PARA EL ENVEJECIMIENTO Y LA VEJEZ EN EL DISTRITO CAPITAL A CARGO DE LA ALCALDÍA LOCAL DE KENNEDY.","INVERSIÓN ",950,226800000,1378,"Igualdad y autonomía para una Kennedy incluyente","2020-08-14","2020-08-20","2020-12-31",18620000,4.3666666666666663,4264122.1374045806,1205,18620000,"YEIMY CAROLINA AGUDELO HERNANDEZ","RICARDO RODRIGUEZ","PLANEACION","380 47 994000107109","2020-08-15","2021-07-03","NA",0,"NA","NA","NA","NA","NA","NA","NA","NA","NA","NA","NA","NA","NA","NA","NA","NA"]
["CONTRATACION DIRECTA","Contratos de prestación de servicios","EN EJECUCION","FDLK-CD.249-2020","CPS-249-2020",{"$f":"VLOOKUP(E247,[1]Hoja1!D$3:E$393,2,0)","v":0.94499999999999995},"HECTOR DUARTE MENDEZ",1030523881,"HECTOR DUARTE MENDEZ",1030523881,null,"https://community.secop.gov.co/Public/Tendering/OpportunityDetail/Index?noticeUID=CO1.NTC.1393307&isFromPublicArea=True&isModal=False","PRESTAR SUS SERVICIOS PROFESIONALES A LA ALCALDÍA LOCAL DE KENNEDY APOYANDO LA EJECUCIÓN DEL PROYECTO 1380 MI CASA ME PERTENECE EN EL COMPONENTE JURÍDICO TENDIENTE A LA TITULACIÓN DE PREDIOS CONFORME A GARANTIZAR EL CUMPLIMIENTO DEL PLAN DE DESARROLLO LOCAL","INVERSIÓN ",956,120000000,1380,"Mi casa me pertenece","2020-08-14","2020-08-20","2021-03-08",22833333,4.4000000000000004,5189393.8636363633,1196,22833333,"YEIMY CAROLINA AGUDELO HERNANDEZ","YULLIET PATRICIA LLERENA AVENDAÑO","PLANEACION","12-46-101039250","2020-08-18","2021-07-05","NA",0,"NA","NA","NA","HECTOR DUARTE MENDEZ","NA","2021-01-01",67,"DIAS",11333334,"2021-01-01",67,"DIAS","NA","NA","NA","NA"]
["CONTRATACION DIRECTA","Contratos de prestación de servicios","TERMINADO","FDLK-CD-250-2020","CPS-250-2020",{"$f":"VLOOKUP(E248,[1]Hoja1!D$3:E$393,2,0)","v":1},"JEIMY JOHANA HENAO RODRIGUEZ",53041055,"JEIMY JOHANA HENAO RODRIGUEZ",53041055,null,"https://community.secop.gov.co/Public/Tendering/OpportunityDetail/Index?noticeUID=CO1.NTC.1393322&isFromPublicArea=True&isModal=False","APOYAR AL REFERENTE DE SEGURIDAD EN LA GESTIÓN DE LOS ASUNTOS RELACIONADOS CON SEGURIDAD CIUDADANA, CONVIVENCIA Y PREVENCIÓN DE CONFLICTIVIDADES, VIOLENCIAS Y DELITOS EN LA LOCALIDAD DE KENNEDY","INVERSIÓN ",948,132288000,1376,"Fortalecimiento de seguridad e iniciativa de convivencia en la localidad de\nKennedy","2020-08-14","2020-08-20","2020-12-19",22048000,4,5512000,1209,22048000,"YEIMY CAROLINA AGUDELO HERNANDEZ","NORMA LETICIA GUZMAN RIMOLLI","SEGURIDAD","\t36-44-101047868","2020-08-18","2021-06-20","NA",0,"NA","NA","NA","NA","NA","NA","NA","NA","NA","NA","NA","NA","NA","NA","NA","NA"]
["CONTRATACION DIRECTA","Contratos de prestación de servicios","TERMINADO","FDLK-CD-251-2020","CPS-251-2020",{"$f":"VLOOKUP(E249,[1]Hoja1!D$3:E$393,2,0)","v":1},"ANDREA KATERIN CARDENAS ALMANSA",52957250,"ANDREA KATERIN CARDENAS ALMANSA",52957250,null,"https://community.secop.gov.co/Public/Tendering/OpportunityDetail/Index?noticeUID=CO1.NTC.1393316&isFromPublicArea=True&isModal=False","PRESTAR LOS SERVICIOS DE APOYO A LOS ARCHIVOS DE GESTIÓN DE LA ENTIDAD EN LA IMPLEMENTACIÓN DE LOS PROCESOS DE CLASIFICACIÓN, ORDENACIÓN, SELECCIÓN NATURAL, FOLIACIÓN, IDENTIFICACIÓN, LEVANTAMIENTO DE INVENTARIOS, ALMACENAMIENTO Y APLICACIÓN DE PROTOCOLOS DE ELIMINACIÓN Y TRANSFERENCIAS DOCUMENTALES.","INVERSIÓN ",934,149820000,1363,"Fortalecimiento de la gestión local y de las acciones de vigilancia y control","2020-08-14","2020-08-20","2020-12-31",10986800,4.4666666666666668,2459731.343283582,1215,10986800,"YEIMY CAROLINA AGUDELO HERNANDEZ","MARIA DEL PILAR MUÑOZ TORRES","GESTION POLICIVA Y JURIDICA","380-47-994000107119","2020-08-18","2021-07-03","NA",0,"NA","NA","NA","NA","NA","NA","NA","NA","NA","NA","NA","NA","NA","NA","NA","NA"]
["CONTRATACION DIRECTA","Contratos de prestación de servicios","TERMINADO","FDLK-CD-252-2020","CPS-252-2020",{"$f":"VLOOKUP(E250,[1]Hoja1!D$3:E$393,2,0)","v":1},"JEFFERSON ALFONSO TORRES BAQUERO",1022378582,"JEFFERSON ALFONSO TORRES BAQUERO",1022378582,null,"https://community.secop.gov.co/Public/Tendering/OpportunityDetail/Index?noticeUID=CO1.NTC.1393320&isFromPublicArea=True&isModal=False","PRESTAR LOS SERVICIOS TÉCNICO Y ADMINISTRATIVO EN LOS ASUNTOS RELACIONADOS CON ESPACIO PÚBLICO EN EL ÁREA DE GESTIÓN POLICIVA JURÍDICA DE LA ALCALDÍA LOCAL DE KENNEDY.","INVERSIÓN ",1096,61600000,1363,"Fortalecimiento de la gestión local y de las acciones de vigilancia y control","2020-08-14","2020-08-20","2020-12-19",15400000,4,3850000,1216,15400000,"YEIMY CAROLINA AGUDELO HERNANDEZ","NORMA LETICIA GUZMAN RIMOLLI","GESTION POLICIVA Y JURIDICA","380-47-994000107121","2020-08-18","2021-06-21","NA",0,"NA","NA","NA","NA","NA","NA","NA","NA","NA","NA","NA","NA","NA","NA","NA","NA"]
["CONTRATACION DIRECTA","Contratos de prestación de servicios","EN EJECUCION","FDLK-CD-253-2020","CPS-253-2020",{"$f":"VLOOKUP(E251,[1]Hoja1!D$3:E$393,2,0)","v":1},"ANCIZAR  MONTAÑA CUERVO",79563673,"ANCIZAR  MONTAÑA CUERVO",79563673,null,"https://community.secop.gov.co/Public/Tendering/OpportunityDetail/Index?noticeUID=CO1.NTC.1393317&isFromPublicArea=True&isModal=False","PRESTAR LOS SERVICIOS TÉCNICO Y ADMINISTRATIVO EN LOS ASUNTOS RELACIONADOS CON ESPACIO PÚBLICO EN EL ÁREA DE GESTIÓN POLICIVA JURÍDICA DE LA ALCALDÍA LOCAL DE KENNEDY","INVERSIÓN ",1096,61600000,1363,"Fortalecimiento de la gestión local y de las acciones de vigilancia y control","2020-08-14","2020-08-20","2021-02-19",15400000,4,3850000,1217,15400000,"YEIMY CAROLINA AGUDELO HERNANDEZ","NORMA LETICIA GUZMAN RIMOLLI","GESTION POLICIVA Y JURIDICA","\t380-47-994000107143","2020-08-18","2021-06-21","NA",0,"NA","NA","NA","NA","NA","2020-12-20",2,"MESES",7700000,"2020-12-20",2,"MESES","NA","NA","NA","NA"]
["CONTRATACION DIRECTA","Contratos de prestación de servicios","EN EJECUCION","FDLK-CD-254-2020","CPS-254-2020",{"$f":"VLOOKUP(E252,[1]Hoja1!D$3:E$393,2,0)","v":0.98429319371727753},"MARÍA ALEJANDRA RODRÍGUEZ BARRIOS","1.020.787.884","MARÍA ALEJANDRA RODRÍGUEZ BARRIOS","1.020.787.884",null,"https://community.secop.gov.co/Public/Tendering/OpportunityDetail/Index?noticeUID=CO1.NTC.1401366&isFromPublicArea=True&isModal=False","APOYAR AL EQUIPO DE PRENSA Y COMUNICACIONES DE LA ALCALDÍA LOCAL EN LA REALIZACIÓN Y PUBLICACIÓN DE CONTENIDOS DE REDES SOCIALES Y CANALES DE DIVULGACIÓN DIGITAL (SITIO WEB) DE LA ALCALDÍA LOCAL","INVERSIÓN ",1086,26950000,1363,"Fortalecimiento de la gestión local y de las acciones de vigilancia y control","2020-08-19","2020-08-21","2021-02-28",23536333,4.333333333333333,5431461.461538462,1223,23536333,"YEIMY CAROLINA AGUDELO HERNANDEZ","ERIKA ANDREA RISCANEVO VIRACACHA","COMUNICACION Y PRENSA","380-47-994000107205","2020-08-20","2021-07-03","NA",0,"NA","NA","NA","NA","NA","2021-01-01",2,"MESES",10780000,"2021-01-01",2,"MESES","NA","NA","NA","NA"]
["CONTRATACION DIRECTA","Contratos de prestación de servicios","EN EJECUCION","FDLK-CD-255-2020","CPS-255-2020",{"$f":"VLOOKUP(E253,[1]Hoja1!D$3:E$393,2,0)","v":0.91262135922330101},"JORGE EDUARDO ARROYO MARLES",79276308,"JORGE EDUARDO ARROYO MARLES",79276308,null,"https://community.secop.gov.co/Public/Tendering/OpportunityDetail/Index?noticeUID=CO1.NTC.1404373&isFromPublicArea=True&isModal=False","APOYAR LA GESTIÒN DOCUMENTAL DE LA ALCALDÌA LOCAL, ACOMPAÑANDO AL EQUIPO JURÌDICO DE DEPURACIÒN EN LAS LABORES OPERATIVAS QUE GENERA EL PROCESO DE IMPULSO DE LAS ACTUACIONES ADMINISTRATIVAS EXISTENTES EN LAS DIFERENTES ALCALDÌAS LOCALES","INVERSIÓN ",1066,12500000,1363,"Fortalecimiento de la gestión local y de las acciones de vigilancia y control","2020-08-20","2020-08-21","2021-03-15",12500000,4.333333333333333,2884615.384615385,1231,12500000,"YEIMY CAROLINA AGUDELO HERNANDEZ","NORMA LETICIA GUZMAN RIMOLLI","GESTION POLICIVA Y JURIDICA","380-47-994000107234","2020-08-21","2021-02-10","NA",0,"NA","NA","NA","NA","NA","2021-01-01",73,"DIAS",6250000,"2021-01-01",73,"DIAS","NA","NA","NA","NA"]
["CONTRATACION DIRECTA","Contratos de prestación de servicios","TERMINADO","FDLK-CD-256-2020","CPS-256-2020",{"$f":"VLOOKUP(E254,[1]Hoja1!D$3:E$393,2,0)","v":1},"WILSON JAVIER ACERO DÍAZ","79.634.728","WILSON JAVIER ACERO DÍAZ","79.634.728",null,"https://community.secop.gov.co/Public/Tendering/OpportunityDetail/Index?noticeUID=CO1.NTC.1404438&isFromPublicArea=True&isModal=False","PRESTACIÓN DE SERVICIOS PROFESIONALES PARA APOYAR A LA ALCALDÍA LOCAL DE KENNEDY EN LOS ASUNTOS RELACIONADOS CON EL CONTROL ADMINISTRACIÓN Y REGISTRO DE BIENES ADQUIRIDOS CON RECURSOS DEL PRESUPUESTO DEL FONDO DE DESARROLLO LOCAL DE KENNEDY.","INVERSIÓN ",1088,30000000,1363,"Fortalecimiento de la gestión local y de las acciones de vigilancia y control","2020-08-20","2020-08-24","2020-12-31",26000000,4.333333333333333,6000000,1235,26000000,"YEIMY CAROLINA AGUDELO HERNANDEZ","NILBA ALIET AREVALO CASTELLANOS","ALMACEN","380-47-994000107235","2020-08-21","2021-06-30","NA",0,"NA","NA","NA","NA","NA","NA","NA","NA","NA","NA","NA","NA","NA","NA","NA","NA"]
["CONTRATACION DIRECTA","Contratos de prestación de servicios","EN EJECUCION","FDLK-CD-257-2020","CPS-257-2020",{"$f":"VLOOKUP(E255,[1]Hoja1!D$3:E$393,2,0)","v":0.95811518324607325},"HERLEY MOLANO GARZÓN","79.901.146","HERLEY MOLANO GARZÓN","79.901.146",null,"https://community.secop.gov.co/Public/Tendering/OpportunityDetail/Index?noticeUID=CO1.NTC.1404615&isFromPublicArea=True&isModal=False","PRESTAR LOS SERVICIOS DE APOYO EN EL MANTENIMIENTO DE LOS INMUEBLES EN LOS CUALES SE DESARROLLE LA MISIONALIDAD DE LA ALCALDÍA LOCAL DE KENNEDY Y LA JUNTA ADMINISTRADORA LOCAL DE KENNEDY","INVERSIÓN ",972,15270000,1363,"Fortalecimiento de la gestión local y de las acciones de vigilancia y control","2020-08-20","2020-08-26","2021-03-05",11028333,4.2,2625793.5714285714,1230,11028333,"YEIMY CAROLINA AGUDELO HERNANDEZ","MARIA DEL PILAR MUÑOZ TORRES","ADMINISTRATIVO Y FINANCIERO","33-46-101025110","2020-09-01","2021-12-31","NA",0,"NA","NA","NA","NA","NA","2021-01-01",64,"DIAS",5514167,"2021-01-01",64,"DIAS","NA","NA","NA","NA"]
["CONTRATACION DIRECTA","Contratos de prestación de servicios","TERMINADO","FDLK-CD-258-2020","CPS-258-2020",{"$f":"VLOOKUP(E256,[1]Hoja1!D$3:E$393,2,0)","v":1},"DANNA BRIGITH CANCHALA RUIZ","1.013.669.642","DANNA BRIGITH CANCHALA RUIZ","1.013.669.642",null,"https://community.secop.gov.co/Public/Tendering/OpportunityDetail/Index?noticeUID=CO1.NTC.1404396&isFromPublicArea=True&isModal=False","PRESTACIÓN DE SERVICIOS PROFESIONALES A LA ALCALDÍA LOCAL DE KENNEDY APOYANDO EL SEGUIMIENTO Y EJECUCIÓN DEL PROYECTO 1361: SOSTENIBILIDAD AMBIENTAL BASADA EN LA EFICIENCIA ENERGÉTICA","INVERSIÓN ",1063,20000000,1361,"Sostenibilidad ambiental basada en la eficiencia energética","2020-08-20","2020-08-25","2021-01-31",16933334,4.2,4031746.1904761903,1233,16993334,"YEIMY CAROLINA AGUDELO HERNANDEZ","HENRY ALEXANDER ESLAVA PULIDO","ADMINISTRATIVO Y FINANCIERO","21-44-101330043","2020-08-24","2021-06-30","NA",0,"NA","NA","NA","NA","NA","2021-01-01",1,"MESES",4000000,"2021-01-01",1,"MESES","NA","NA","NA","NA"]
["CONTRATACION DIRECTA","Contratos de prestación de servicios","EN EJECUCION","FDLK-CD-259-2020","CPS-259-2020",{"$f":"VLOOKUP(E257,[1]Hoja1!D$3:E$393,2,0)","v":0.98404255319148937},"LUIS FERNANDO PEÑATA LOPEZ",15618990,"LUIS FERNANDO PEÑATA LOPEZ",15618990,null,"https://community.secop.gov.co/Public/Tendering/OpportunityDetail/Index?noticeUID=CO1.NTC.1405164&isFromPublicArea=True&isModal=False","APOYAR LAS LABORES COMO NOTIFICADOR PARA LA DISTRIBUCIÓN DE LAS COMUNICACIONES EMITIDAS O RECIBIDAS POR LA ALCALDÍA LOCAL DE KENNEDY","INVERSIÓN ",974,45000000,1363,"Fortalecimiento de la gestión local y de las acciones de vigilancia y control","2020-08-20","2020-08-24","2021-02-28",10670000,4.333333333333333,2462307.6923076925,1232,10670000,"YEIMY CAROLINA AGUDELO HERNANDEZ","MARIA DEL PILAR MUÑOZ TORRES","COMUNICACION Y PRENSA","15-44-101230744","2020-08-21","2021-07-05","NA",0,"NA","NA","NA","NA","NA","2021-01-01",2,"MESES",5000000,"2021-01-01",2,"MESES","NA","NA","NA","NA"]
["CONTRATACION DIRECTA","Contratos de prestación de servicios","TERMINADO","FDLK-CD-260-2020","CPS-260-2020",{"$f":"VLOOKUP(E258,[1]Hoja1!D$3:E$393,2,0)","v":1},"CRISTIAN JAVIER SANCHEZ BERRIO","1.032.366.779","CRISTIAN JAVIER SANCHEZ BERRIO","1.032.366.779",null,"https://community.secop.gov.co/Public/Tendering/OpportunityDetail/Index?noticeUID=CO1.NTC.1406179&isFromPublicArea=True&isModal=False","APOYAR A LA ALCALDESA LOCAL EN LA PROMOCIÓN, ACOMPAÑAMIENTO, COORDINACIÓN Y ATENCIÓN DE LOS PROCESOS DE MEDIOS COMUNITARIOS DE LA LOCALIDAD","INVERSIÓN ",1079,26950000,1371,"Fortalecimiento de la participación","2020-08-21","2020-08-26","2020-12-31",26950000,4.2,6416666.666666666,1234,26950000,"YEIMY CAROLINA AGUDELO HERNANDEZ","ERIKA ANDREA RISCANEVO VIRACACHA","REFERENTE MEDIOS COMUNITARIOS","15-44-101230765","2020-08-21","2021-07-06","NA",0,"NA","NA","NA","NA","NA","NA","NA","NA","NA","NA","NA","NA","NA","NA","NA","NA"]
["CONTRATACION DIRECTA","Contratos de prestación de servicios","TERMINADO","FDLK-CD-261-2020","CPS-261-2020",{"$f":"VLOOKUP(E259,[1]Hoja1!D$3:E$393,2,0)","v":1},"EDWIN MAURICIO ALFONSO MALDONADO","80.237.668","EDWIN MAURICIO ALFONSO MALDONADO","80.237.668",null,"https://community.secop.gov.co/Public/Tendering/OpportunityDetail/Index?noticeUID=CO1.NTC.1407855&isFromPublicArea=True&isModal=False","PRESTAR SUS SERVICIOS PROFESIONALES A LA ALCALDÍA LOCAL DE KENNEDY APOYANDO LA FORMULACIÓN Y SEGUIMIENTO DEL PROYECTO DE RECUPERACIÓN DE LA MALLA VIAL LOCAL TENDIENTE A GARANTIZAR EL CUMPLIMIENTO DEL PLAN DE DESARROLLO LOCAL.","INVERSIÓN ",1080,30000000,1367,"Recuperación de la malla vial local","2020-08-20","2020-08-26","2020-12-31",26000000,4.333333333333333,6000000,1236,26000000,"YEIMY CAROLINA AGUDELO HERNANDEZ","JOSÉ TARCICIO QUIROGA VELAZQUES","FORMULADOR PUENTES","\t15-44-101230816","2020-08-24","2021-06-30","NA",0,"NA","NA","NA","NA","NA","NA","NA","NA","NA","NA","NA","NA","NA","NA","NA","NA"]
["CONTRATACION DIRECTA","Contratos realizados por medio de la modalidad de Urgencia Manifiesta","EN EJECUCION","FDLK-CD-262-2020","CPS-262-2020",{"$f":"VLOOKUP(E260,[1]Hoja1!D$3:E$393,2,0)","v":0.44931506849315067},"COMPENSAR","860066942-7","CARLOS MAURICIO VASQUEZ PÁEZ",79541640,null,"https://www.contratos.gov.co/consultas/detalleProceso.do?numConstancia=20-22-18054","COMPENSAR SE OBLIGA A PRESTAR LOS SERVICIOS REQUERIDOS PARA OPERAR EL PROGRAMA DE INCENTIVOS PARA EL EMPLEO CON EL CUAL SE BUSCA APOYAR AL TEJIDO PRODUCTIVO DE LAS LOCALIDADES DE BOGOTÁ D.C., CON ESPECIAL ÉNFASIS EN LOS EMPRESARIOS, E INCLUIR Y/O MANTENER LABORALMENTE A TRABAJADORES MAYORES DE 50 AÑOS, MUJERES Y JÓVENES (18-28 AÑOS) PRINCIPALMENTE, A TRAVÉS DE LA TRANSFERENCIA DE INCENTIVOS A LA NÓMINA, EN EL MARCO DE LA CONTENCIÓN Y MITIGACIÓN DE LOS EFECTOS DEL COVID-19, LA DECLARATORIA DE EMERGENCIA SANITARIA EN TODO EL TERRITORIO NACIONAL Y LA CALAMIDAD PÚBLICA DECLARADA EN LA CIUDAD DE BOGOTÁ D.C.","INVERSIÓN ",1113,4500000000,1371,"Fortalecimiento de la participación","2020-09-14","2020-09-14","2021-09-14",4500000000,10,450000000,1238,4500000000,"YEIMY CAROLINA AGUDELO HERNANDEZ","AYDEE MILENA SARMIENTO ORTIZ // CRISTIAN DARIO DUARTE LESMES // JOSE WILMAN TORRES GOMEZ","NA","SGPL-11200974-1","2020-08-27","2021-12-27","NA",0,"NA","NA","NA","NA","NA","NA","NA","NA","NA","NA","NA","NA","NA","NA","NA","NA"]
["CONCURSO DE MÉRITOS ABIERTO","INTERVENTORIA","EN EJECUCION","FDLK-CMA-1-2020","CIS-264-2020",{"$f":"VLOOKUP(E261,[1]Hoja1!D$3:E$393,2,0)","v":0.46153846153846156},"JARGU S.A. CORREDORES DE SEGUROS","800.018.165-8","Juan Carlos Alvarez Jaramillo",79717208,null,"https://community.secop.gov.co/Public/Tendering/OpportunityDetail/Index?noticeUID=CO1.NTC.1399023&isFromPublicArea=True&isModal=False","CONTRATAR LOS SERVICIOS ESPECIALIZADOS DE INTERMEDIACIÓN DE SEGUROS Y ASESORÍA PARA LA FORMULACIÓN Y EL MANEJO DEL PROGRAMA DE SEGUROS, DESTINADOS A PROTEGER LAS PERSONAS, BIENES E INTERESES PATRIMONIALES DEL FONDO DE DESARROLLO LOCAL DE KENNEDY O AQUELLOS POR LOS QUE SEA RESPONSABLE EN VIRTUD DE LA DISPOSICIÓN LEGAL VIGENTE.","INVERSIÓN ",null,null,null,{"$error":"#N/A"},"2020-09-08","2020-09-10","2021-09-09",0,12,0,null,null,"YEIMY CAROLINA AGUDELO HERNANDEZ","YULLIET PATRICIA LLERENA AVENDAÑO","NA",2144101331579,"2020-09-09","2024-09-09","NA",0,"NA","NA","NA","NA","NA","NA","NA","NA","NA","NA","NA","NA","NA","NA","NA","NA"]
["CONTRATACION DIRECTA","Contratos de prestación de servicios","TERMINADO","FDLK-CD-265-2020","CPS-265-2020",{"$f":"VLOOKUP(E262,[1]Hoja1!D$3:E$393,2,0)","v":1},"JESUS HERNANDO ROJAS ",19499408,"JESUS HERNANDO ROJAS ",19499408,null,"https://community.secop.gov.co/Public/Tendering/OpportunityDetail/Index?noticeUID=CO1.NTC.1441526&isFromPublicArea=True&isModal=False","PRESTAR SERVICIOS PROFESIONALES PARA APOYAR LA GESTIÓN DE LOS ASUNTOS RELACIONADOS CON SEGURIDAD CIUDADANA, CONVIVENCIA Y PREVENCIÓN DE CONFLICTIVIDADES, VIOLENCIAS Y DELITOS EN LA LOCALIDAD, DE CONFORMIDAD CON EL MARCO NORMATIVO APLICABLE EN LA MATERIA","INVERSIÓN ",1064,24000000,1376,"Fortalecimiento de seguridad e iniciativa de convivencia en la localidad de\nKennedy","2020-09-10","2020-09-15","2020-12-31",22000000,3.6,6111111.111111111,1247,22000000,"YEIMY CAROLINA AGUDELO HERNANDEZ","NORMA LETICIA GUZMAN RIMOLLI","JURIDICA","\t21-44-101331717","2020-09-11","2021-06-30","NA",0,"NA","NA","NA","NA","NA","NA","NA","NA","NA","NA","NA","NA","NA","NA","NA","NA"]
["CONTRATACION DIRECTA","Contratos de prestación de servicios","EN EJECUCION","FDLK-CD-266-2020","CPS-266-2020",{"$f":"VLOOKUP(E263,[1]Hoja1!D$3:E$393,2,0)","v":1},"JUDITH JACKELIN RAMOS ANGULO",1089512891,"JUDITH JACKELIN RAMOS ANGULO",1089512891,null,"https://community.secop.gov.co/Public/Tendering/OpportunityDetail/Index?noticeUID=CO1.NTC.1447000&isFromPublicArea=True&isModal=False","PRESTACIÓN DE SERVICIOS PROFESIONALES APOYANDO AL(A) ALCALDE(SA) LOCAL EN EL FORTALECIMIENTO E INCLUSIÓN DE LAS COMUNIDADES NEGRAS, AFROCOLOMBIANAS Y PALEQUERAS EN EL MARCO DE LA POLÍTICA PÚBLICA DISTRITAL AFRODESCENDIENTES Y LOS ESPACIOS DE PARTICIPACIÓN","INVERSIÓN ",1081,21000000,1371,"Fortalecimiento de la participación","2020-09-14","2020-09-16","2021-02-22",14700000,3.5,4200000,1257,14700000,"YEIMY CAROLINA AGUDELO HERNANDEZ","LUIS ALEJANDRO VENEGAS ROBAYO","PARTICIPACION","\t33-44-101204331","2020-09-15","2021-06-30","NA",0,"NA","NA","NA","NA","NA","2021-01-01",53,"DIAS",7280000,"2021-01-01",53,"DIAS","NA","NA","NA","NA"]
["CONTRATACION DIRECTA","Contratos de prestación de servicios","TERMINADO","FDLK-CD-267-2020","CPS-267-2020",{"$f":"VLOOKUP(E264,[1]Hoja1!D$3:E$393,2,0)","v":1},"SANDRA PATRICIA RINCON GOMEZ",52021745,"SANDRA PATRICIA RINCON GOMEZ",52021745,null,"https://community.secop.gov.co/Public/Tendering/OpportunityDetail/Index?noticeUID=CO1.NTC.1450015&isFromPublicArea=True&isModal=False","PRESTACIÓN DE SERVICIOS PROFESIONALES A LA ALCALDÍA LOCAL DE KENNEDY APOYANDO AL DESPACHO DEL ALCALDE LOCAL EN LO RELACIONADO CON LOS PROCESOS, PROYECTOS, PROGRAMAS O PLANES Y ACCIONES DE PARTICIPACIÓN LOCAL","INVERSIÓN ",1122,18000000,1371,"Fortalecimiento de la participación","2020-09-16","2020-09-18","2021-02-01",18000000,3,6000000,1260,18000000,"YEIMY CAROLINA AGUDELO HERNANDEZ","LUIS ALEJANDRO VENEGAS ROBAYO","PARTICIPACION","15-44-101231904","2020-09-16","2021-06-20","NA",0,"NA","NA","NA","NA","NA","2020-12-18",46,"DIAS",9000000,"2020-12-18",46,"DIAS","NA","NA","NA","NA"]
["CONTRATACION DIRECTA","Contratos de prestación de servicios","TERMINADO","FDLK-CD-268-2020","CPS-268-2020",{"$f":"VLOOKUP(E265,[1]Hoja1!D$3:E$393,2,0)","v":1},"JASBLEIDY JOANNA GOMEZ",52772018,"JASBLEIDY JOANNA GOMEZ",52772018,null,"https://community.secop.gov.co/Public/Tendering/OpportunityDetail/Index?noticeUID=CO1.NTC.1451803&isFromPublicArea=True&isModal=False","PRESTAR APOYO EN LOS PROCESOS ADMINISTRATIVOS DEL ALMACÉN DEL FONDO DE DESARROLLO LOCAL DE KENNEDY","INVERSIÓN ",1089,25000000,1363,"Fortalecimiento de la gestión local y de las acciones de vigilancia y control","2020-09-16","2020-09-21","2020-12-31",8333333,3.4,2450980.2941176472,1263,8583333,"YEIMY CAROLINA AGUDELO HERNANDEZ","ALIET AREVALO","ALMACEN","12-46-101040267","2020-09-16","2021-07-10","NA",0,"NA","NA","NA","NA","NA","NA","NA","NA","NA","NA","NA","NA","NA","NA","NA","NA"]
["CONTRATACION DIRECTA","Contratos de prestación de servicios","EN EJECUCION","FDLK-CD-269-2020","CPS-269-2020",{"$f":"VLOOKUP(E266,[1]Hoja1!D$3:E$393,2,0)","v":1},"CESAR EDUARDO ARANGO TORRES",80830361,"CESAR EDUARDO ARANGO TORRES",80830361,null,"https://community.secop.gov.co/Public/Tendering/OpportunityDetail/Index?noticeUID=CO1.NTC.1451858&isFromPublicArea=True&isModal=False","PRESTAR APOYO EN LOS PROCESOS ADMINISTRATIVOS DEL ALMACÉN DEL FONDO DE DESARROLLO LOCAL DE KENNEDY","INVERSIÓN ",1089,25000000,1363,"Fortalecimiento de la gestión local y de las acciones de vigilancia y control","2020-09-16","2020-09-18","2021-02-21",8583333,3.5,2452380.8571428573,1259,8583333,"YEIMY CAROLINA AGUDELO HERNANDEZ","YULLIET PATRICIA LLERENA AVENDAÑO","ALMACEN","\t390-47-994000054478","2020-09-17","2021-07-05","NA",0,"NA","NA","NA","NA","NA","NA",52,"DIAS",4250000,"NA",52,"DIAS","NA","NA","NA","NA"]
["CONTRATACION DIRECTA","Contratos de prestación de servicios","EN EJECUCION","FDLK-CD-270-2020","CPS-270-2020",{"$f":"VLOOKUP(E267,[1]Hoja1!D$3:E$393,2,0)","v":1},"JEISON ENRIQUE MORA VARGAS",79610780,"JEISON ENRIQUE MORA VARGAS",79610780,null,"https://community.secop.gov.co/Public/Tendering/OpportunityDetail/Index?noticeUID=CO1.NTC.1460484&isFromPublicArea=True&isModal=False","PRESTAR LOS SERVICIOS DE APOYO EN LA CONDUCCIÓN DE LOS VEHÍCULOS PESADOS DEL PARQUE AUTOMOTOR DE PROPIEDAD DEL FONDO DE DESARROLLO LOCAL DE KENNEDY","INVERSIÓN ",1093,9988000,1363,"Fortalecimiento de la gestión local y de las acciones de vigilancia y control","2020-09-21","2020-09-24","2021-02-19",8240100,3.2333333333333334,2548484.536082474,1265,8240100,"YEIMY CAROLINA AGUDELO HERNANDEZ","JOSÉ TARCICIO QUIROGA VELAZQUES","INFRAESTRUCTURA","\t380 - 47 - 994000107752","2020-09-22","2021-07-03","NA",0,"NA","NA","NA","NA","NA","2021-01-01",50,"DIAS",4078433,"2021-01-01",50,"DIAS","NA","NA","NA","NA"]
["CONTRATACION DIRECTA","Contratos de prestación de servicios","TERMINADO","FDLK-CD-271-2020","CPS-271-2020",{"$f":"VLOOKUP(E268,[1]Hoja1!D$3:E$393,2,0)","v":1},"LUZ KARIME LOPEZ RODRIGUEZ  ",1018492884,"LUZ KARIME LOPEZ RODRIGUEZ  ",1018492884,null,"https://community.secop.gov.co/Public/Tendering/OpportunityDetail/Index?noticeUID=CO1.NTC.1461680&isFromPublicArea=True&isModal=False","PRESTAR SUS SERVICIOS PROFESIONALES PARA APOYAR A LA ALCALDÍA LOCAL DE KENNEDY LLEVANDO A CABO LAS ACCIONES PERTINENTES PARA LA ARTICULACION Y FORTALECIMIENTO DE LAS INSTANCIAS Y ORGANIZACIONES DE VÍCTIMAS, DEFENSORAS DE DERECHOS DE LAS VÍCTIMAS, PAZ Y RECONCILIACIÓN PRESENTES EN LA LOCALIDAD Y APOYAR LA SUPERVISIÓN DE LAS ACTIVIDADES ADELANTADAS EN EL MARCO DEL PROYECTO 1381 KENNEDY MEJOR PARA LAS VÍCTIMAS, LA PAZ Y LA RECONCILIACIÓN","INVERSIÓN ",1068,42000000,1381,"Kennedy mejor para las víctimas, la paz y la reconciliación","2020-09-22","2020-09-25","2020-12-31",13440000,3.2666666666666666,4114285.7142857146,1266,13440000,"YEIMY CAROLINA AGUDELO HERNANDEZ","SINDY JHOANA TORRES ALVAREZ","DDHH","12-46-101040467","2020-09-23","2021-07-10","NA",0,"NA","NA","NA","NA","NA","NA","NA","NA","NA","NA","NA","NA","NA","NA","NA","NA"]
["CONTRATACION DIRECTA","Contratos de prestación de servicios","TERMINADO","FDLK-CD-272-2020","CPS-272-2020",{"$f":"VLOOKUP(E269,[1]Hoja1!D$3:E$393,2,0)","v":1},"EDILBERTO RODRIGUEZ GARZON",79325319,"EDILBERTO RODRIGUEZ GARZON",79325319,null,"https://community.secop.gov.co/Public/Tendering/OpportunityDetail/Index?noticeUID=CO1.NTC.1463252&isFromPublicArea=True&isModal=False","\tPRESTAR SUS SERVICIOS PROFESIONALES A LA ALCALDÍA LOCAL DE KENNEDY APOYANDO LOS PROCESOS, PROYECTOS Y PROGRAMAS DE PARTICIPACIÓN LOCAL","INVERSIÓN ",1083,55120000,1371,"Fortalecimiento de la participación","2020-09-22","2020-09-28","2020-12-31",17638400,3.1,5689806.4516129028,1270,17638400,"YEIMY CAROLINA AGUDELO HERNANDEZ","LUIS ALEJANDRO VENEGAS ROBAYO","PARTICIPACION",3.8047994000107696E+16,"2020-09-23","2021-07-03","NA",0,"NA","NA","NA","NA","NA","NA","NA","NA","NA","NA","NA","NA","NA","NA","NA","NA"]
["CONTRATACION DIRECTA","Contratos de prestación de servicios","TERMINADO","FDLK-CD-273-2020","CPS-273-2020",{"$f":"VLOOKUP(E270,[1]Hoja1!D$3:E$393,2,0)","v":1},"DIANA PATRICIA DIAZ GARCIA",52073277,"DIANA PATRICIA DIAZ GARCIA",52073277,null,"https://community.secop.gov.co/Public/Tendering/OpportunityDetail/Index?noticeUID=CO1.NTC.1463255&isFromPublicArea=True&isModal=False","PRESTAR SUS SERVICIOS PROFESIONALES A LA ALCALDÍA LOCAL DE KENNEDY APOYANDO LOS PROCESOS, PROYECTOS Y PROGRAMAS DE PARTICIPACIÓN LOCAL","INVERSIÓN ",1083,55120000,1371,"Fortalecimiento de la participación","2020-09-22","2020-09-28","2020-12-31",17638400,3.1,5689806.4516129028,1271,17638400,"YEIMY CAROLINA AGUDELO HERNANDEZ","LUIS ALEJANDRO VENEGAS ROBAYO","PARTICIPACION","390-47-994000054643","2020-09-23","2021-07-05","NA",0,"NA","NA","NA","NA","NA","NA","NA","NA","NA","NA","NA","NA","NA","NA","NA","NA"]
["CONTRATACION DIRECTA","Contratos de prestación de servicios","EN EJECUCION","FDLK-CD-274-2020","CPS-274-2020",{"$f":"VLOOKUP(E271,[1]Hoja1!D$3:E$393,2,0)","v":1},"NASLY NAYELY CRUZ CHAVARRO",1033732030,"NASLY NAYELY CRUZ CHAVARRO",1033732030,null,"https://community.secop.gov.co/Public/Tendering/OpportunityDetail/Index?noticeUID=CO1.NTC.1465106&isFromPublicArea=True&isModal=False","\tPRESTAR SUS SERVICIOS PROFESIONALES PARA APOYAR A LA ALCALDÍA LOCAL DE KENNEDY LLEVANDO A CABO LAS ACCIONES PERTINENTES PARA LA ARTICULACION Y FORTALECIMIENTO DE LAS INSTANCIAS Y ORGANIZACIONES DE VÍCTIMAS, DEFENSORAS DE DERECHOS DE LAS VÍCTIMAS, PAZ Y RECONCILIACIÓN PRESENTES EN LA LOCALIDAD Y APOYAR LA SUPERVISIÓN DE LAS ACTIVIDADES ADELANTADAS EN EL MARCO DEL PROYECTO 1381 KENNEDY MEJOR PARA LAS VÍCTIMAS, LA PAZ Y LA RECONCILIACIÓN","INVERSIÓN ",1068,42000000,1381,"Kennedy mejor para las víctimas, la paz y la reconciliación","2020-09-23","2020-09-28","2021-02-15",13440000,3.1666666666666665,4244210.5263157897,1273,13440000,"YEIMY CAROLINA AGUDELO HERNANDEZ","SINDY JHOANA TORRES ALVAREZ","DDHH","\t12-46-101040492","2020-09-24","2021-07-10","NA",0,"NA","NA","NA","NA","NA","2021-01-01",46,"DIAS",6300000,"2021-01-01",46,"DIAS","NA","NA","NA","NA"]
["CONTRATACION DIRECTA","Contratos de prestación de servicios","EN EJECUCION","FDLK-CD-275-2020","CPS-275-2020",{"$f":"VLOOKUP(E272,[1]Hoja1!D$3:E$393,2,0)","v":0.88235294117647056},"HECTOR JAIR PALOMA MERCHAN",79621321,"HECTOR JAIR PALOMA MERCHAN",79621321,null,"https://community.secop.gov.co/Public/Tendering/OpportunityDetail/Index?noticeUID=CO1.NTC.1466622&isFromPublicArea=True&isModal=False","APOYAR A LA ALCALDESA LOCAL EN LA PROMOCIÓN, ACOMPAÑAMIENTO, COORDINACIÓN Y ATENCIÓN DE LAS FORMAS ORGANIZATIVAS DE LA ACCIÓN COMUNAL EN LA LOCALIDAD DE KENNEDY.","INVERSIÓN ",1087,27560000,1371,"Fortalecimiento de la participación","2020-09-24","2020-10-13","2021-03-15",27560000,2.6333333333333333,10465822.784810126,1275,27560000,"YEIMY CAROLINA AGUDELO HERNANDEZ","LUIS ALEJANDRO VENEGAS ROBAYO","PARTICIPACION","33-46-101025646","2020-09-25","2021-07-05","NA",0,"NA","NA","NA","NA","NA","2021-01-01",74,"DIAS",13780000,"2021-01-01",74,"DIAS","NA","NA","NA","NA"]
["CONTRATACION DIRECTA","Contratos de prestación de servicios","EN EJECUCION","FDLK-CD-276-2020","CPS-276-2020",{"$f":"VLOOKUP(E273,[1]Hoja1!D$3:E$393,2,0)","v":1},"JULIO ANDRES ARAGON",1032368561,"JULIO ANDRES ARAGON",1032368561,null,"https://community.secop.gov.co/Public/Tendering/OpportunityDetail/Index?noticeUID=CO1.NTC.1466233&isFromPublicArea=True&isModal=False","PRESTAR SUS SERVICIOS PROFESIONALES A LA ALCALDÍA LOCAL DE KENNEDY APOYANDO LAS ETAPAS PRECONTRACTUAL, CONTRACTUAL Y POSCONTRACTUAL DEL PROYECTO DE INFRAESTRUCTURA Y ESPACIO PÚBLICO TENDIENTE A GARANTIZAR EL CUMPLIMIENTO DEL PLAN DE DESARROLLO LOCAL","INVERSIÓN ",1090,27500000,1367,"Recuperación de la malla vial local","2020-09-24","2020-09-25","2021-02-18",17600000,3.2666666666666666,5387755.1020408161,1272,17600000,"YEIMY CAROLINA AGUDELO HERNANDEZ","JOSÉ TARCICIO QUIROGA VELAZQUES","INFRAESTRUCTURA","12-46-101040535","2020-09-24","2021-07-10","NA",0,"NA","NA","NA","NA","NA","2021-01-01",49,"DIAS",8800000,"2021-01-01",49,"DIAS","NA","NA","NA","NA"]
["CONTRATACION DIRECTA","Contratos de prestación de servicios","EN EJECUCION","FDLK-CD-277-2020","CPS-277-2020",{"$f":"VLOOKUP(E274,[1]Hoja1!D$3:E$393,2,0)","v":0.89473684210526316},"RAFAEL EDUARDO VARGAS MENDEZ",4166152,"RAFAEL EDUARDO VARGAS MENDEZ",4166152,null,"https://community.secop.gov.co/Public/Tendering/OpportunityDetail/Index?noticeUID=CO1.NTC.1466330&isFromPublicArea=True&isModal=False","PRESTAR LOS SERVICIOS DE APOYO EN LA CONDUCCIÓN DE LOS VEHÍCULOS LIVIANOS DEL PARQUE AUTOMOTOR DE PROPIEDAD DEL FONDO DE DESARROLLO LOCAL DE KENNEDY.","INVERSIÓN ",1091,37455000,1363,"Fortalecimiento de la gestión local y de las acciones de vigilancia y control","2020-09-24","2020-09-25","2021-03-15",12485000,3.2666666666666666,3821938.775510204,1272,12485000,"YEIMY CAROLINA AGUDELO HERNANDEZ","YULLIET PATRICIA LLERENA AVENDAÑO","ALMACEN","\t12-46-101040535","2020-09-24","2021-07-10","NA",0,"NA","NA","NA","NA","NA","2021-01-01",73,"DIAS",6242500,"2021-01-01",73,"DIAS","NA","NA","NA","NA"]
["CONTRATACION DIRECTA","Contratos de prestación de servicios","TERMINADO","FDLK-CD-278-2020","CPS-278-2020",{"$f":"VLOOKUP(E275,[1]Hoja1!D$3:E$393,2,0)","v":1},"JENNIFER CAROLINA GERENA ORTIZ",1026274745,"JENNIFER CAROLINA GERENA ORTIZ",1026274745,null,"https://community.secop.gov.co/Public/Tendering/OpportunityDetail/Index?noticeUID=CO1.NTC.1467346&isFromPublicArea=True&isModal=False","PRESTAR SUS SERVICIOS PROFESIONALES A LA ALCALDÍA LOCAL PARA APOYAR LOS PROCESOS E INSTANCIAS DE PARTICIPACIÓN Y COORDINACIÓN INTERINSTITUCIONAL","INVERSIÓN ",1084,19310000,1371,"Fortalecimiento de la participación","2020-09-24","2020-10-01","2020-12-31",12229666,3.1666666666666665,3861999.7894736845,1274,12229666,"YEIMY CAROLINA AGUDELO HERNANDEZ","LUIS ALEJANDRO VENEGAS ROBAYO","PARTICIPACION","21-44-101333131","2020-09-25","2021-07-01","NA",0,"NA","NA","NA","NA","NA","NA","NA","NA","NA","NA","NA","NA","NA","NA","NA","NA"]
["CONTRATACION DIRECTA","Contratos de prestación de servicios","TERMINADO","FDLK-CD-279-2020","CPS-279-2020",{"$f":"VLOOKUP(E276,[1]Hoja1!D$3:E$393,2,0)","v":1},"JOHN CAMILO PEÑA GALINDO",1016039921,"JOHN CAMILO PEÑA GALINDO",1016039921,null,"https://community.secop.gov.co/Public/Tendering/OpportunityDetail/Index?noticeUID=CO1.NTC.1466234&isFromPublicArea=True&isModal=False","PRESTAR LOS SERVICIOS DE APOYO EN LA CONDUCCIÓN DE LOS VEHÍCULOS LIVIANOS DEL PARQUE AUTOMOTOR DE PROPIEDAD DEL FONDO DE DESARROLLO LOCAL DE KENNEDY","INVERSIÓN ",1091,37455000,1363,"Fortalecimiento de la gestión local y de las acciones de vigilancia y control","2020-09-24","2020-09-29","2021-01-31",12485000,3.1,4027419.3548387093,1277,12485000,"YEIMY CAROLINA AGUDELO HERNANDEZ","YULLIET PATRICIA LLERENA AVENDAÑO","ALMACEN","380-47-994000107792","2020-09-24","2021-07-03","NA",0,"NA","NA","NA","NA","NA","2021-01-01",1,"MESES",2497000,"2021-01-01",1,"MESES","NA","NA","NA","NA"]
["CONTRATACION DIRECTA","Contratos realizados por medio de la modalidad de Urgencia Manifiesta","EN EJECUCION","FDLK-CD-280-2020","CPS-280-2020",{"$f":"VLOOKUP(E277,[1]Hoja1!D$3:E$393,2,0)","v":0.7944444444444444},"COMPENSAR","860066942-7","CARLOS MAURICIO VASQUEZ PÁEZ",79541640,null,"https://www.contratos.gov.co/consultas/detalleProceso.do?numConstancia=20-22-19169&g-recaptcha-response=03AGdBq25KZ129gGeGwfDWObSelqfaV_UpddcJVuumvu6gNPjdC_7d0pGZb1J8BIHvn6B2CJZazc9oKYd6ryVKYXb0cdze4i9GR_tgYSiZzQ81InGcY7q-1ZnncMIoNc5exWoUhCnZxqNm10an9fhKj8k6acmavZX2hX_cwnXZ4wcGRxwhGicXsJqWeXLXL0m3Nv3qPtmYBdElbYvNhfr7rr5YaevGJ0EZaKfOPja0jwY1zWp9AQ61j6cwqTcBs7InebFEiqOc5q4RFcKsrf2s7Rq0zDMYMnLfCjhkDdRvU76OjWce7pG44McqkddefrTjOkeYlv_GPHopkxz4osYCUSaqcFkr91Vrr4wtxLXSFfkWpjem9A8fPiltW0JlEbK1SPeU13CZP3VBzs_vZoQnhKgEUvhSMSX33DZBQlPjWxu2eO-6853-2AjdWmxT9QppLUlf_KAyJsEE","COMPENSAR SE OBLIGA A PRESTAR LOS SERVICIOS REQUERIDOS PARA OPERAR EL PROGRAMA EMPLEOS DE EMERGENCIA QUE BUSCA GENERAR EMPLEO LOCAL TEMPORAL A TRABAJADORES DE BAJA CUALIFICACION DE LAS LOCALIDADES QUE SUSCRIBEN ESTE CONTRATO, EN EL MARCO DE LA CONTENCIÓN Y MITIGACION DEL COVID 19, LA DECLARATORIA DE EMERGENCIA SANITARIA EN TODO EL TERRITORIO NACIONAL Y LA CALAMIDAD PUBLICA DECLARADA EN LA CIUDAD DE BOGOTA D.C. PARA PROMOVER LA REACTIVACION ECONOMICA LOCAL.","FUNCIONAMIENTO","1116-1115-1114",2658582120,"1367-1376-1361","Sostenibilidad ambiental basada en la eficiencia energética/Fortalecimiento de seguridad e iniciativa de convivencia en la localidad de\nKennedy/ Recuperación de la malla vial local","2020-09-24","2020-10-05","2021-04-03",2656609085,6,442768180.83333331,1279,2656609085,"YEIMY CAROLINA AGUDELO HERNANDEZ","AYDEE MILENA SARMIENTO ORTIZ","NA",null,null,null,"NA",0,"NA","NA","NA","NA","NA","NA","NA","NA","NA","NA","NA","NA","NA","NA","NA","NA"]
["CONTRATACION DIRECTA","Contratos de prestación de servicios","EN EJECUCION","FDLK-CD-281-2020","CPS-281-2020",{"$f":"VLOOKUP(E278,[1]Hoja1!D$3:E$393,2,0)","v":0.89221556886227549},"DIEGO MANUEL GUERRERO GONZALEZ",79618942,"DIEGO MANUEL GUERRERO GONZALEZ",79618942,null,"https://community.secop.gov.co/Public/Tendering/OpportunityDetail/Index?noticeUID=CO1.NTC.1469016&isFromPublicArea=True&isModal=False","PRESTAR LOS SERVICIOS DE APOYO EN LA CONDUCCIÓN DE LOS VEHÍCULOS LIVIANOS DEL PARQUE AUTOMOTOR DE PROPIEDAD DEL FONDO DE DESARROLLO LOCAL DE KENNEDY.","INVERSIÓN ",1091,37455000,1363,"Fortalecimiento de la gestión local y de las acciones de vigilancia y control","2020-09-25","2020-09-29","2021-03-15",12485000,3.1,4027419.3548387093,1287,12485000,"YEIMY CAROLINA AGUDELO HERNANDEZ","YULLIET PATRICIA LLERENA AVENDAÑO","ALMACEN","380-47994000107825","2020-09-25","2021-06-30","NA",0,"NA","NA","NA","NA","NA","2021-01-01",74,"DIAS",6242500,"2021-01-01",74,"DIAS","NA","NA","NA","NA"]
["CONTRATACION DIRECTA","Contratos de prestación de servicios","EN EJECUCION","FDLK-CD-282-2020","CPS-282-2020",{"$f":"VLOOKUP(E279,[1]Hoja1!D$3:E$393,2,0)","v":1},"NANCY ESTELLA QUEVEDO JARA",52100652,"NANCY ESTELLA QUEVEDO JARA",52100652,null,"https://community.secop.gov.co/Public/Tendering/OpportunityDetail/Index?noticeUID=CO1.NTC.1468916&isFromPublicArea=True&isModal=False","PRESTAR LOS SERVICIOS PROFESIONALES PARA LA OPERACIÓN, PRESTACIÓN, SEGUIMIENTO Y CUMPLIMIENTO DE LOS PROCEDIMIENTOS ADMINISTRATIVOS, OPERATIVOS Y PROGRAMÁTICOS DEL SERVICIO APOYO ECONÓMICO TIPO C, QUE CONTRIBUYAN A LA GARANTÍA DE LOS DERECHOS DE LA POBLACIÓN MAYOR EN EL MARCO DE LA POLÍTICA PÚBLICA SOCIAL PARA EL ENVEJECIMIENTO Y LA VEJEZ1 EN EL DISTRITO CAPITAL A CARGO DE LA ALCALDÍA LOCAL","INVERSIÓN ",1141,63000000,1378,"Igualdad y autonomía para una Kennedy incluyente","2020-09-25","2020-09-29","2021-02-12",12600000,3,4200000,1282,12600000,"YEIMY CAROLINA AGUDELO HERNANDEZ","RICARDO RODRIGUEZ","Planeacion","380-47-994000107845","2020-09-26","2021-07-03","NA",0,"NA","NA","NA","NA","NA","2020-12-29",46,"DIAS",6300000,"2020-12-29",46,"DIAS","NA","NA","NA","NA"]
["CONTRATACION DIRECTA","Contratos de prestación de servicios","TERMINADO","FDLK-CD-283-2020","CPS-283-2020",{"$f":"VLOOKUP(E280,[1]Hoja1!D$3:E$393,2,0)","v":1},"MARIA ANGELICA MORENO SUAREZ",1030669243,"MARIA ANGELICA MORENO SUAREZ",1030669243,null,"https://community.secop.gov.co/Public/Tendering/OpportunityDetail/Index?noticeUID=CO1.NTC.1468711&isFromPublicArea=True&isModal=False","PRESTAR LOS SERVICIOS PROFESIONALES PARA LA OPERACIÓN, PRESTACIÓN, SEGUIMIENTO Y CUMPLIMIENTO DE LOS PROCEDIMIENTOS ADMINISTRATIVOS, OPERATIVOS Y PROGRAMÁTICOS DEL SERVICIO APOYO ECONÓMICO TIPO C, QUE CONTRIBUYAN A LA GARANTÍA DE LOS DERECHOS DE LA POBLACIÓN MAYOR EN EL MARCO DE LA POLÍTICA PÚBLICA SOCIAL PARA EL ENVEJECIMIENTO Y LA VEJEZ EN EL DISTRITO CAPITAL A CARGO DE LA ALCALDÍA LOCAL","INVERSIÓN ",1141,63000000,1378,"Igualdad y autonomía para una Kennedy incluyente","2020-09-25","2020-09-29","2020-12-28",12600000,3,4200000,1288,12600000,"YEIMY CAROLINA AGUDELO HERNANDEZ","RICARDO RODRIGUEZ","Planeacion","380-47-994000107829","2020-09-25","2021-06-26","NA",0,"NA","NA","NA","NA","NA","NA","NA","NA","NA","NA","NA","NA","NA","NA","NA","NA"]
["CONTRATACION DIRECTA","Contratos de prestación de servicios","TERMINADO","FDLK-CD-284-2020","CPS-284-2020",{"$f":"VLOOKUP(E281,[1]Hoja1!D$3:E$393,2,0)","v":1},"LUISA FERNANDA HERNANDEZ PARRA",1030667522,"LUISA FERNANDA HERNANDEZ PARRA",1030667522,null,"https://community.secop.gov.co/Public/Tendering/ContractNoticePhases/View?PPI=CO1.PPI.10448284&isFromPublicArea=True&isModal=False","PRESTAR LOS SERVICIOS PROFESIONALES PARA LA OPERACIÓN, PRESTACIÓN, SEGUIMIENTO Y CUMPLIMIENTO DE LOS PROCEDIMIENTOS ADMINISTRATIVOS, OPERATIVOS Y PROGRAMÁTICOS DEL SERVICIO APOYO ECONÓMICO TIPO C, QUE CONTRIBUYAN A LA GARANTÍA DE LOS DERECHOS DE LA POBLACIÓN MAYOR EN EL MARCO DE LA POLÍTICA PÚBLICA SOCIAL PARA EL ENVEJECIMIENTO Y LA VEJEZ1 EN EL DISTRITO CAPITAL A CARGO DE LA ALCALDÍA LOCAL","INVERSIÓN ",1141,63000000,1378,"Igualdad y autonomía para una Kennedy incluyente","2020-09-25","2020-09-29","2020-12-28",12600000,3,4200000,1285,12600000,"YEIMY CAROLINA AGUDELO HERNANDEZ","RICARDO RODRIGUEZ","Planeacion","\t380-47-994000107831","2020-09-25","2021-06-28","NA",0,"NA","NA","NA","NA","NA","NA","NA","NA","NA","NA","NA","NA","NA","NA","NA","NA"]
["CONTRATACION DIRECTA","Contratos de prestación de servicios","EN EJECUCION","FDLK-CD-285-2020","CPS-285-2020",{"$f":"VLOOKUP(E282,[1]Hoja1!D$3:E$393,2,0)","v":1},"DIANA MILENA DIAZ FERNANDEZ",52736157,"DIANA MILENA DIAZ FERNANDEZ",52736157,null,"https://community.secop.gov.co/Public/Tendering/OpportunityDetail/Index?noticeUID=CO1.NTC.1469395&isFromPublicArea=True&isModal=False","PRESTAR SERVICIOS PROFESIONALES A LA ALCALDÍA LOCAL DE KENNEDY, PARA EL ANÁLISIS DE LA IMPLEMENTACIÓN DEL SISTEMA INTEGRADO DE GESTIÓN Y CONFORMACIÓN DE ACCIONES E INSTRUMENTOS PARA LA MEJORA DE LOS PROCESOS, ASÍ COMO APOYAR LA ATENCIÓN REQUERIMIENTOS DENTRO DE LA GESTIÓN ADMINISTRATIVA.","INVERSIÓN ",1107,24000000,1363,"Fortalecimiento de la gestión local y de las acciones de vigilancia y control","2020-09-25","2020-09-30","2021-02-15",18200000,3.1,5870967.7419354841,1290,18200000,"YEIMY CAROLINA AGUDELO HERNANDEZ","Andrea Gordillo","Despacho","\t61-44-101035716","2020-09-25","2021-06-30","NA",0,"NA","NA","NA","NA","NA","2021-01-01",46,"DIAS",9000000,"2021-01-01",46,"DIAS","NA","NA","NA","NA"]
["CONTRATACION DIRECTA","Contratos de prestación de servicios","TERMINADO","FDLK-CD-286-2020","CPS-286-2020",{"$f":"VLOOKUP(E283,[1]Hoja1!D$3:E$393,2,0)","v":1},"OMAR ARTURO DIAZ MARTINEZ",1032436686,"OMAR ARTURO DIAZ MARTINEZ",1032436686,null,"https://community.secop.gov.co/Public/Tendering/OpportunityDetail/Index?noticeUID=CO1.NTC.1469670&isFromPublicArea=True&isModal=False","PRESTAR LOS SERVICIOS PROFESIONALES PARA LA OPERACIÓN, PRESTACIÓN, SEGUIMIENTO Y CUMPLIMIENTO DE LOS PROCEDIMIENTOS ADMINISTRATIVOS, OPERATIVOS Y PROGRAMÁTICOS DEL SERVICIO APOYO ECONÓMICO TIPO C, QUE CONTRIBUYAN A LA GARANTÍA DE LOS DERECHOS DE LA POBLACIÓN MAYOR EN EL MARCO DE LA POLÍTICA PÚBLICA SOCIAL PARA EL ENVEJECIMIENTO Y LA VEJEZ EN EL DISTRITO CAPITAL A CARGO DE LA ALCALDÍA LOCAL","INVERSIÓN ",1141,63000000,1378,"Igualdad y autonomía para una Kennedy incluyente","2020-09-25","2020-09-29","2020-12-28",12600000,3,4200000,1284,12600000,"YEIMY CAROLINA AGUDELO HERNANDEZ","RICARDO RODRIGUEZ","Planeacion","11-46-101015269","2020-09-28","2021-07-02","NA",0,"NA","NA","NA","NA","NA","NA","NA","NA","NA","NA","NA","NA","NA","NA","NA","NA"]
["CONTRATACION DIRECTA","Contratos de prestación de servicios","EN EJECUCION","FDLK-CD-287-2020","CPS-287-2020",{"$f":"VLOOKUP(E284,[1]Hoja1!D$3:E$393,2,0)","v":1},"HELBERT CAMILO MEDRANO CARDENAS",1022388129,"HELBERT CAMILO MEDRANO CARDENAS",1022388129,null,"https://community.secop.gov.co/Public/Tendering/OpportunityDetail/Index?noticeUID=CO1.NTC.1469830&isFromPublicArea=True&isModal=False","PRESTAR SUS SERVICIOS PROFESIONALES PARA APOYAR A LA ALCALDÍA LOCAL DE KENNEDY EN LAS ETAPAS PRECONTRACTUAL, CONTRACTUAL Y POSCONTRACTUAL DEL PROYECTO 1381 KENNEDY MEJOR PARA LAS VÍCTIMAS, LA PAZ Y LA RECONCILIACIÓN TENDIENTE A GARANTIZAR EL CUMPLIMIENTO DEL PLAN DE DESARROLLO LOCAL","INVERSIÓN ",1092,22048000,1381,"Kennedy mejor para las víctimas, la paz y la reconciliación","2020-09-25","2020-10-01","2021-02-15",17087200,3,5695733.333333333,1289,17087200,"YEIMY CAROLINA AGUDELO HERNANDEZ","SINDY JHOANA TORRES ALVAREZ","Planeacion","11-46-101015270","2020-09-26","2021-07-05","NA",0,"NA","NA","NA","NA","NA","2021-01-01",46,"DIAS",8268000,"2021-01-01",46,"DIAS","NA","NA","NA","NA"]
["CONTRATACION DIRECTA","Contratos de prestación de servicios","TERMINADO","FDLK-CD-288-2020","CPS-288-2020",{"$f":"VLOOKUP(E285,[1]Hoja1!D$3:E$393,2,0)","v":1},"LEIDY MIREYA PACHON BAQUERO",1018415363,"LEIDY MIREYA PACHON BAQUERO",1018415363,null,"https://community.secop.gov.co/Public/Tendering/OpportunityDetail/Index?noticeUID=CO1.NTC.1470403&isFromPublicArea=True&isModal=False","PRESTAR SUS SERVICIOS TÉCNICOS PARA APOYAR LOS PROCESOS DE MANEJO DEL PRESUPUESTO DISTRITAL LOCAL QUE SE ENCUENTRAN A CARGO DE LA OFICINA DE PRESUPUESTO DEL FONDO DE DESARROLLO LOCAL DE KENNEDY.","INVERSIÓN ",1154,11400000,1363,"Fortalecimiento de la gestión local y de las acciones de vigilancia y control","2020-09-25","2020-09-30","2020-12-29",11400000,3,3800000,1293,11400000,"YEIMY CAROLINA AGUDELO HERNANDEZ","ANDREA CASAS DURAN","Presupuesto","\t15-44-101232430","2020-09-25","2021-07-10","NA",0,"NA","NA","NA","NA","NA","NA","NA","NA","NA","NA","NA","NA","NA","NA","NA","NA"]
["CONTRATACION DIRECTA","Contratos de prestación de servicios","TERMINADO","FDLK-CD-289-2020","CPS-289-2020",{"$f":"VLOOKUP(E286,[1]Hoja1!D$3:E$393,2,0)","v":1},"RICAURTE MACHADO PORRAS",79395173,"RICAURTE MACHADO PORRAS",79395173,null,"https://community.secop.gov.co/Public/Tendering/OpportunityDetail/Index?noticeUID=CO1.NTC.1469948&isFromPublicArea=True&isModal=False","PRESTAR LOS SERVICIOS PROFESIONALES PARA LA OPERACIÓN, PRESTACIÓN, SEGUIMIENTO Y CUMPLIMIENTO DE LOS PROCEDIMIENTOS AD-MINISTRATIVOS, OPERATIVOS Y PROGRAMÁTICOS DEL SERVICIO APOYO ECONÓMICO TIPO C, QUE CONTRIBUYAN A LA GARANTÍA DE LOS DERECHOS DE LA POBLACIÓN MAYOR EN EL MARCO DE LA POLÍTICA PÚBLICA SOCIAL PARA EL ENVEJECIMIENTO Y LA VEJEZ EN EL DISTRITO CAPITAL A CARGO DE LA ALCALDÍA LOCAL","INVERSIÓN ",1141,63000000,1378,"Igualdad y autonomía para una Kennedy incluyente","2020-09-25","2020-09-30","2020-12-29",12600000,3,4200000,1286,12600000,"YEIMY CAROLINA AGUDELO HERNANDEZ","RICARDO RODRIGUEZ","Planeacion","15-44-101232390","2020-09-25","2021-06-30","NA",0,"NA","NA","NA","NA","NA","NA","NA","NA","NA","NA","NA","NA","NA","NA","NA","NA"]
["CONTRATACION DIRECTA","Contratos de prestación de servicios","EN EJECUCION","FDLK-CD-290-2020","CPS-290-2020",{"$f":"VLOOKUP(E287,[1]Hoja1!D$3:E$393,2,0)","v":1},"HILDA ALEXANDRA MORENO MURCIA",1033759343,"HILDA ALEXANDRA MORENO MURCIA",1033759343,null,"https://community.secop.gov.co/Public/Tendering/OpportunityDetail/Index?noticeUID=CO1.NTC.1470609&isFromPublicArea=True&isModal=False","PRESTAR SUS SERVICIOS PROFESIONALES PARA BRINDAR ACOMPAÑAMIENTO Y SOPORTE A LOS REQUERIMIENTOS SOLICITADOS POR LOS ENTES DE CONTROL DE CUALQUIER ORDEN QUE CORRESPONDAN A LA COMPETENCIA DE LA ALCALDÍA LOCAL","INVERSIÓN ",1159,12000000,1363,"Fortalecimiento de la gestión local y de las acciones de vigilancia y control","2020-09-25","2020-09-29","2021-02-13",12000000,3,4000000,1292,12000000,"YEIMY CAROLINA AGUDELO HERNANDEZ","MARIA DEL PILAR MUÑOZ TORRES","ADMINISTRATIVO Y FINANCIERO","380-47-994000107857","2020-09-28","2021-07-03","NA",0,"NA","NA","NA","NA","NA","2020-12-29",46,"DIAS",6000000,"2020-12-29",46,"DIAS","NA","NA","NA","NA"]
["CONTRATACION DIRECTA","Contratos de prestación de servicios","EN EJECUCION","FDLK-CD-291-2020","CPS-291-2020",{"$f":"VLOOKUP(E288,[1]Hoja1!D$3:E$393,2,0)","v":1},"ALEXANDER CANTOR CASTILLO",79919129,"ALEXANDER CANTOR CASTILLO",79919129,null,"https://community.secop.gov.co/Public/Tendering/OpportunityDetail/Index?noticeUID=CO1.NTC.1470114&isFromPublicArea=True&isModal=False","PRESTACIÓN DE SERVICIOS PROFESIONALES PARA APOYAR EL SEGUIMIENTO DE ACTIVIDADES ENFOCADAS A LA GESTION AMBIENTAL EXTERNA Y LA MITIGACIONES DE IMPACTOS AMBIENTALES EN LA LOCALIDAD.","INVERSIÓN ",1136,16536000,1363,"Fortalecimiento de la gestión local y de las acciones de vigilancia y control","2020-09-25","2020-10-01","2021-02-15",16536000,3,5512000,1291,16536000,"YEIMY CAROLINA AGUDELO HERNANDEZ","NORMA LETICIA GUZMAN RIMOLLI","Juridica","\t1244101199410","2020-09-29","2021-06-30","NA",0,"NA","NA","NA","NA","NA","2021-01-01",45,"DIAS",8268000,"2021-01-01",45,"DIAS","NA","NA","NA","NA"]
["CONTRATACION DIRECTA","Contratos de prestación de servicios","EN EJECUCION","FDLK-CD-292-2020","CPS-292-2020",{"$f":"VLOOKUP(E289,[1]Hoja1!D$3:E$393,2,0)","v":1},"GABRIELA BOLIVAR RAMIREZ",52516888,"GABRIELA BOLIVAR RAMIREZ",52516888,null,"https://community.secop.gov.co/Public/Tendering/OpportunityDetail/Index?noticeUID=CO1.NTC.1479573&isFromPublicArea=True&isModal=False","Prestar los servicios técnicos para la operación, seguimiento y cumplimiento de los procesos y procedimientos del Servicio Apoyos para la Seguridad Económica Tipo C, requeridos para el oportuno y adecuado registro, cruce y reporte de los datos en el Sistema Misional SIRBE, que contribuyan a la garantía de los derechos de la población mayor en el marco de la Política Pública Social para el Envejecimiento y la Vejez 1 en el Distrito Capital a cargo de la Alcaldía Loca","INVERSIÓN ",1133,17400000,1378,"Igualdad y autonomía para una Kennedy incluyente","2020-10-02","2020-10-19","2021-02-13",8410000,2.4666666666666668,3409459.4594594594,1299,8410000,"YEIMY CAROLINA AGUDELO HERNANDEZ","RICARDO RODRIGUEZ","PLANEACION","64-46-101009855","2020-10-02","2021-06-30","NA",0,"NA","NA","NA","NA","NA","2021-01-01",43,"DIAS",4156667,"2021-01-01",43,"DIAS","NA","NA","NA","NA"]
["CONTRATACION DIRECTA","Contratos de prestación de servicios","TERMINADO","FDLK-CD-293-2020","CPS-293-2020",{"$f":"VLOOKUP(E290,[1]Hoja1!D$3:E$393,2,0)","v":1},"CESAR HUMBERTO CUELLAR",14223636,"CESAR HUMBERTO CUELLAR",14223636,null,"https://community.secop.gov.co/Public/Tendering/OpportunityDetail/Index?noticeUID=CO1.NTC.1481738&isFromPublicArea=True&isModal=False","Prestar los servicios técnicos para la operación, seguimiento y cumplimiento de los procesos y procedimientos del Servicio Apoyos para la Seguridad Económica Tipo C, requeridos para el oportuno y adecuado registro, cruce y reporte de los datos en el Sistema Misional SIRBE, que contribuyan a la garantía de los derechos de la población mayor en el marco de la Política Pública Social para el Envejecimiento y la Vejez 1 en el Distrito Capital a cargo de la Alcaldía Local","INVERSIÓN ",1133,17400000,1378,"Igualdad y autonomía para una Kennedy incluyente","2020-10-02","2020-10-19","2020-12-31",8410000,2.4666666666666668,3409459.4594594594,1300,8410000,"YEIMY CAROLINA AGUDELO HERNANDEZ","RICARDO RODRIGUEZ","PLANEACION","\t390-47-994000054806","2020-10-02","2021-07-05","NA",0,"NA","NA","NA","NA","NA","NA","NA","DIAS","NA","NA","NA","DIAS","NA","NA","NA","NA"]
["CONTRATACION DIRECTA","Contratos de prestación de servicios","EN EJECUCION","FDLK-CD-294-2020","CPS-294-2020",{"$f":"VLOOKUP(E291,[1]Hoja1!D$3:E$393,2,0)","v":1},"PAULA ALEJANDRA BOTERO SAMUDIO",1010224451,"PAULA ALEJANDRA BOTERO SAMUDIO",1010224451,null,"https://community.secop.gov.co/Public/Tendering/OpportunityDetail/Index?noticeUID=CO1.NTC.1482126&isFromPublicArea=True&isModal=False","APOYAR JURÍDICAMENTE LA EJECUCIÓN DE LAS ACCIONES REQUERIDAS PARA EL TRÁMITE E IMPULSO PROCESAL DE LAS ACTUACIONES CONTRAVENCIONALES Y/O QUERELLAS QUE CURSEN EN LAS INSPECCIONES DE POLICÍA DE LA LOCALIDAD","INVERSIÓN ",1106,33600000,1363,"Fortalecimiento de la gestión local y de las acciones de vigilancia y control","2020-10-02","2020-10-19","2021-02-13",12040000,2.4666666666666668,4881081.0810810812,1298,12040000,"YEIMY CAROLINA AGUDELO HERNANDEZ","GUSTAVO VANEGAS RUIZ","INSPECCIONES","\t380-47994000107986","2020-10-02","2021-07-03","NA",0,"NA","NA","NA","NA","NA","2021-01-01",44,"DIAS",6020000,"2021-01-01",44,"DIAS","NA","NA","NA","NA"]
["CONTRATACION DIRECTA","Contratos de prestación de servicios","EN EJECUCION","FDLK-CD-295-2020","CPS-295-2020",{"$f":"VLOOKUP(E292,[1]Hoja1!D$3:E$393,2,0)","v":1},"GLORIA ALEJANDRA CASTAÑEDA ALVAREZ",1030546484,"GLORIA ALEJANDRA CASTAÑEDA ALVAREZ",1030546484,null,"https://community.secop.gov.co/Public/Tendering/OpportunityDetail/Index?noticeUID=CO1.NTC.1481758&isFromPublicArea=True&isModal=False","PRESTAR SUS SERVICIOS PROFESIONALES PARA APOYAR A LA ALCALDIA LOCAL DE KENNEDY, DE CONFORMIDAD AL CONVENIO INTERADMINISTRATIVO ESPECIFICO Nro. 1377 de 2016 Y EL DECRETO 633 DE 2017","INVERSIÓN ",1108,22048000,1363,"Fortalecimiento de la gestión local y de las acciones de vigilancia y control","2020-10-02","2020-10-16","2021-02-13",15801067,2.5333333333333332,6237263.2894736845,1294,22048000,"YEIMY CAROLINA AGUDELO HERNANDEZ","JULIAN ADOLFO RAMIREZ BEDOYA","CASA DEL CONSUMIDOR","\t380-47-994000108001","2020-10-06","2021-07-03","NA",0,"NA","NA","NA","NA","NA","2021-01-01",44,"DIAS",7900534,"2021-01-01",44,"DIAS","NA","NA","NA","NA"]
["CONTRATACION DIRECTA","Contratos de prestación de servicios","EN EJECUCION","FDLK-CD-296-2020","CPS-296-2020",{"$f":"VLOOKUP(E293,[1]Hoja1!D$3:E$393,2,0)","v":1},"ANDRES OROZCO BAQUERO",1022330622,"ANDRES OROZCO BAQUERO",1022330622,null,"https://community.secop.gov.co/Public/Tendering/OpportunityDetail/Index?noticeUID=CO1.NTC.1485227&isFromPublicArea=True&isModal=False","APOYAR JURÍDICAMENTE LA EJECUCIÓN DE LAS ACCIONES REQUERIDAS PARA EL TRÁMITE E IMPULSO PROCESAL DE LAS ACTUACIONES CONTRAVENCIONALES Y/O QUERELLAS QUE CURSEN EN LAS INSPECCIONES DE POLICÍA DE LA LOCALIDAD","INVERSIÓN ",1106,33600000,1363,"Fortalecimiento de la gestión local y de las acciones de vigilancia y control","2020-10-05","2020-10-19","2021-02-13",12040000,2.4666666666666668,4881081.0810810812,1297,12040000,"YEIMY CAROLINA AGUDELO HERNANDEZ","GUSTAVO VANEGAS RUIZ","INSPECCIONES","380-47-994000108031","2020-10-07","2021-06-30","NA",0,"NA","NA","NA","NA","NA","2021-01-01",43,"DIAS",6020000,"2021-01-01",43,"DIAS","NA","NA","NA","NA"]
["SELECCION ABREVIADA","CONTRATO DE SEGUROS","EN EJECUCION","FDLK-SAMC-3-2020","CSE-297-2020",{"$f":"VLOOKUP(E294,[1]Hoja1!D$3:E$393,2,0)","v":0.27974947807933193},"LA PREVISORA S.A. COMPAÑIA DE SEGUROS","860.002.400-2","RAFAEL ARMANDO RODRIGUEZ MENDEZ",80421019,null,"https://community.secop.gov.co/Public/Tendering/OpportunityDetail/Index?noticeUID=CO1.NTC.1473820&isFromPublicArea=True&isModal=False","CONTRATAR LOS SEGUROS QUE AMPAREN LOS INTERESES PATRIMONIALES ACTUALES Y FUTUROS, ASÍ COMO LOS BIENES DE PROPIEDAD DEL FONDO DE DESARROLLO LOCAL DE KENNEDY, QUE ESTÉN BAJO SU RESPONSABILIDAD Y CUSTODIA Y AQUELLOS QUE SEAN ADQUIRIDOS PARA DESARROLLAR LAS FUNCIONES INHERENTES A SU ACTIVIDAD, ASÍ COMO LA EXPEDICIÓN DE CUALQUIER OTRA PÓLIZA DE SEGUROS QUE REQUIERA LA ENTIDAD EN EL DESARROLLO DE SU ACTIVIDAD.” GRUPO 1: TODO RIESGO DAÑOS MATERIALES, TODO RIESGO EQUIPO Y MAQUINARIA; AUTOMOVILES, MANEJOGLOBAL, RESPONSABILIDAD CIVIL EXTRACONTRACTUAL, RESPONSABILIDAD CIVIL PARA SERVIDORES PUBLICOS SOAT.","INVERSIÓN ",1158,245784839,"005/007/008/009/010","Servicio de seguros de vida colectiva de los Ediles / vehiculos automotores / contra incendio, terremoto o sustraccion / generales de responsabilidad civil / obligatorio de accidentes de transito ","2020-10-14","2020-10-14","2022-02-05",231525407,15.966666666666667,14500547.411273487,1284,231525407,"YEIMY CAROLINA AGUDELO HERNANDEZ","YULLIET PATRICIA LLERENA AVENDAÑO","NA","123644 / \t123210","2020-10-13","2023-01-25","NA",0,"NA","NA","NA","NA","NA","NA","NA","NA","NA","NA","NA","NA","NA","NA","NA","NA"]
["SELECCION ABREVIADA","CONTRATO DE SEGUROS","EN EJECUCION","FDLK-SAMC-3-2020","CSE-298-2020",{"$f":"VLOOKUP(E295,[1]Hoja1!D$3:E$393,2,0)","v":0.12535612535612536},"MUNDIAL DE SEGUROS",860037013,"MUNDIAL DE SEGUROS",860037013,null,"https://community.secop.gov.co/Public/Tendering/OpportunityDetail/Index?noticeUID=CO1.NTC.1473820&isFromPublicArea=True&isModal=False","CONTRATAR LOS SEGUROS QUE AMPAREN LOS INTERESES PATRIMONIALES ACTUALES Y FUTUROS, ASÍ COMO LOS BIENES DE PROPIEDAD DEL FONDO DE DESARROLLO LOCAL DE KENNEDY, QUE ESTÉN BAJO SU RESPONSABILIDAD Y CUSTODIA Y AQUELLOS QUE SEAN ADQUIRIDOS PARA DESARROLLAR LAS FUNCIONES INHERENTES A SU ACTIVIDAD, ASÍ COMO LA EXPEDICIÓN DE CUALQUIER OTRA PÓLIZA DE SEGUROS QUE REQUIERA LA ENTIDAD EN EL DESARROLLO DE SU ACTIVIDAD.” GRUPO 1: TODO RIESGO DAÑOS MATERIALES, TODO RIESGO EQUIPO Y MAQUINARIA; AUTOMOVILES, MANEJOGLOBAL, RESPONSABILIDAD CIVIL EXTRACONTRACTUAL, RESPONSABILIDAD CIVIL PARA SERVIDORES PUBLICOS SOAT.","INVERSIÓN ",1158,245784839,"005/007/008/009/010","Servicio de seguros de vida colectiva de los Ediles / vehiculos automotores / contra incendio, terremoto o sustraccion / generales de responsabilidad civil / obligatorio de accidentes de transito ","2020-10-14","2021-01-12","2021-12-29",9821295,11,892845,null,null,"YEIMY CAROLINA AGUDELO HERNANDEZ","YULLIET PATRICIA LLERENA AVENDAÑO","NA",null,null,null,"NA",0,"NA","NA","NA","NA","NA","NA","NA","NA","NA","NA","NA","NA","NA","NA","NA","NA"]
["CONTRATACION DIRECTA","CONTRATO INTERADMINISTRATIVO","EN EJECUCION","FDLK-CD-299-2020","CIA-299-2020",{"$f":"VLOOKUP(E296,[1]Hoja1!D$3:E$393,2,0)","v":0.29429429429429427},"SERVICIOS POSTALES NACIONALES 472","900.062.917-9","SERVICIOS POSTALES NACIONALES 472","900.062.917-9",null,"https://community.secop.gov.co/Public/Tendering/OpportunityDetail/Index?noticeUID=CO1.NTC.1513819&isFromPublicArea=True&isModal=False\n","PRESTACION DE SERVICIOS POSTALES URBANO, REGIONAL Y NACIONAL, CON EL FIN DE ATENDER LAS NECESIDADES DEL SERVICIO DE CORREO EN GENERAL, DE ACUERDO CON LOS REQUERIMIENTOS QUE SON DE COMPETENCIA DEL FONDO DE DESARROLLO LOCAL DE KENNEDY, CUMPLIENDO CON LA DISTRIBUCION Y TRAMITE A LA COMUNIDAD DE REMISIONES, COMUNICACIONES, CITACIONES Y RESPUESTA PRONTA A SOLICITUDES DE LA MISMA.","INVERSIÓN ",1137,6000000,null,{"$error":"#N/A"},"2020-10-28","2020-11-19","2021-10-18",6000000,11,545454.54545454541,1401,6000000,"YEIMY CAROLINA AGUDELO HERNANDEZ","JOSE FERNANDO ROCAS HOYOS","NA",null,null,null,"NA",0,"NA","NA","NA","NA","NA","NA","NA","NA","NA","NA","NA","NA","NA","NA","NA","NA"]
["CONTRATACION DIRECTA","Contratos de prestación de servicios","TERMINADO","FDLK-CD-300-2020","CPS-300-2020",{"$f":"VLOOKUP(E297,[1]Hoja1!D$3:E$393,2,0)","v":1},"SANDRA PATRICIA GAITAN FAJARDO ",51933177,"SANDRA PATRICIA GAITAN FAJARDO ",51933177,null,"https://community.secop.gov.co/Public/Tendering/OpportunityDetail/Index?noticeUID=CO1.NTC.1514579&isFromPublicArea=True&isModal=False","PRESTACIÓN DE SERVICIOS PROFESIONALES PARA APOYAR JURÍDICAMENTE A LA ALCALDÍA LOCAL DE KENNEDY-FONDO DE DESARROLLO LOCAL DE KENNEDY EN LOS ASUNTOS CONSTITUCIONALES, LEGALES Y REGLAMENTARIOS DE SU COMPETENCIA, PARTICULARMENTE LOS RELACIONADOS CON EL APOYO A LA COORDINACIÓN DE LAS ETAPAS PRECONTRACTUAL, CONTRACTUAL Y POSCONTRACTUAL DE LOS PROCESOS DE CONTRATACIÓN","INVERSIÓN ",1189,19500000,1363,"Fortalecimiento de la gestión local y de las acciones de vigilancia y control","2020-10-22","2020-10-23","2021-01-31",15166666,2.3333333333333335,6499999.7142857136,1318,15166666,"YEIMY CAROLINA AGUDELO HERNANDEZ","MONICA JOHANNA HERNANDEZ PERAZA","CONTRATACION","33-44-101205712","2020-10-22","2021-07-05","NA",0,"NA","NA","NA","NA","NA","2021-01-01",1,"MESES",6500000,"2021-01-01",1,"MESES","NA","NA","NA","NA"]
["CONTRATACION DIRECTA","Contratos de prestación de servicios","EN EJECUCION","FDLK-CD-301-2020","CPS-301-2020",{"$f":"VLOOKUP(E298,[1]Hoja1!D$3:E$393,2,0)","v":1},"ERIKA VANESSA USECHE TRIANA",1024540712,"ERIKA VANESSA USECHE TRIANA",1024540712,null,"https://community.secop.gov.co/Public/Tendering/OpportunityDetail/Index?noticeUID=CO1.NTC.1521186&isFromPublicArea=True&isModal=False","\tPRESTAR LOS SERVICIOS PROFESIONALES A LA ALCALDÍA LOCAL DE KENNEDY EN EL DESARROLLO DE ACTIVIDADES Y TRAMITES ADMINISTRATIVOS RELACIONADOS CON LA PLANEACIÓN Y ESTRUCTURACIÓN DEL PROYECTOS DE INVERSIÓN Y FUNCIONAMIENTO, NECESARIOS EN EL ÁREA DE GESTIÓN DE DESARROLLO LOCAL PARA DAR ALCANCE A LAS METAS ESTABLECIDAS EN EL PLAN DE DESARROLLO LOCAL DE KENNEDY Y LAS NECESIDADES DE FUNCIONAMIENTO","INVERSIÓN ",1172,32500000,1363,"Fortalecimiento de la gestión local y de las acciones de vigilancia y control","2020-10-26","2020-10-28","2021-02-02",14083333,2.1666666666666665,6499999.8461538469,1323,14083333,"YEIMY CAROLINA AGUDELO HERNANDEZ","PILAR MUJICA","PLANEACION","15-46-101017624","2020-10-26","2021-06-30","NA",0,"NA","NA","NA","NA","NA","2021-01-01",33,"DIAS",6933334,"2021-01-01",33,"DIAS","NA","NA","NA","NA"]
["CONTRATACION DIRECTA","Contratos de prestación de servicios","EN EJECUCION","FDLK-CD-302-2020","CPS-302-2020",{"$f":"VLOOKUP(E299,[1]Hoja1!D$3:E$393,2,0)","v":1},"MARITZA RUIZ POSADA",1073678229,"MARITZA RUIZ POSADA",1073678229,null,"https://community.secop.gov.co/Public/Tendering/OpportunityDetail/Index?noticeUID=CO1.NTC.1530166&isFromPublicArea=True&isModal=False","PRESTAR LOS SERVICIOS PROFESIONALES Y/O DE APOYO EN LAS ACCIONES ENCAMINADAS AL RESTABLECIMIENTO DE LA ARMONIA, PAZ, SEGURIDAD Y CONVIVENCIA EN LA LOCALIDAD DE KENNEDY","INVERSIÓN ",1176,33072000,1376,"Fortalecimiento de seguridad e iniciativa de convivencia en la localidad de\nKennedy","2020-10-30","2020-11-04","2021-02-15",16536000,1.9666666666666666,8408135.5932203401,1340,16536000,"YEIMY CAROLINA AGUDELO HERNANDEZ","NORMA GUZMAN","JURIDICA",1444101122859,"2020-11-03","2021-06-30","NA",0,"NA","NA","NA","NA","NA","2021-01-01",46,"DIAS",8268000,"2021-01-01",46,"DIAS","NA","NA","NA","NA"]
["CONTRATACION DIRECTA","Contratos de prestación de servicios","TERMINADO","FDLK-CD-303-2020","CPS-303-2020",{"$f":"VLOOKUP(E300,[1]Hoja1!D$3:E$393,2,0)","v":1},"JENIFFER PAOLA MAYORGA SARAZA",1018449693,"JENIFFER PAOLA MAYORGA SARAZA",1018449693,null,"https://community.secop.gov.co/Public/Tendering/OpportunityDetail/Index?noticeUID=CO1.NTC.1526346&isFromPublicArea=True&isModal=False","PRESTACIÓN DE SERVICIOS PROFESIONALES A LA ALCALDÍA LOCAL DE KENNEDY COORDINANDO LA ARTICULACION, ASISTENCIA Y ACOMPAÑAMIENTO DE LOS PROCESOS DE PLANEACION LOCAL, PARA LA PROMOCION DE LA PARTICIPACION DE LAS MUJERES Y DE LA EQUIDAD DE GENERO, PARA MATERIALIZAR EN LA LOCALIDAD LAS ESTRATEGIAS DE TERRITORIALIZACION Y TRANSVERSALIZACION DE LA POLITICA PUBLICA DE MUJERES Y EQUIDAD DE GENERO, PPMYEG","INVERSIÓN ",1174,11024000,1371,"Fortalecimiento de la participación","2020-10-28","2020-11-03","2021-01-31",11024000,2,5512000,1333,11024000,"YEIMY CAROLINA AGUDELO HERNANDEZ","LUIS ALEJANDRO VENEGAS ROBAYO","PARTICIPACION","380 47 994000108481","2020-10-28","2021-07-03","NA",0,"NA","NA","NA","NA","NA","2021-01-01",2,"MESES",5512000,"2021-01-01",2,"MESES","NA","NA","NA","NA"]
["CONTRATACION DIRECTA","Contratos de prestación de servicios","TERMINADO","FDLK-CD-304-2020","CPS-304-2020",{"$f":"VLOOKUP(E301,[1]Hoja1!D$3:E$393,2,0)","v":1},"YAMILE FORERO GUZMAN",52770087,"YAMILE FORERO GUZMAN",52770087,null,"https://community.secop.gov.co/Public/Tendering/OpportunityDetail/Index?noticeUID=CO1.NTC.1531023&isFromPublicArea=True&isModal=False","\tAPOYAR LA GESTION ADMINISTRATIVA DE LA ALCALDIA LOCAL PARA LA IMPLEMENTACION DE PROCESOS DE VERIFICACION, SOPORTE Y ACOMPAÑAMIENTO EN EL DESARROLLO DE LAS ACTIVIDADES PROPIAS DEL FONDO DE DESARROLLO LOCAL.","INVERSIÓN ",1134,7500000,1363,"Fortalecimiento de la gestión local y de las acciones de vigilancia y control","2020-10-30","2020-11-04","2021-01-29",4833333,1.9333333333333333,2499999.8275862071,1341,4833333,"YEIMY CAROLINA AGUDELO HERNANDEZ","MARIA DEL PILAR MUÑOZ TORRES","GERENCIA ADMINISTRATIVA Y FINANCIERA","12-46-101041558","2020-10-31","2021-07-10","NA",0,"NA","NA","NA","NA","NA","2021-01-01",29,"DIAS",2416667,"2021-01-01",29,"DIAS","NA","NA","NA","NA"]
["CONTRATACION DIRECTA","Contratos de prestación de servicios","TERMINADO","FDLK-CD-305-2020","CPS-305-2020",{"$f":"VLOOKUP(E302,[1]Hoja1!D$3:E$393,2,0)","v":1},"BELLANIT PATIÑO BALLESTEROS",55225039,"BELLANIT PATIÑO BALLESTEROS",55225039,null,"https://community.secop.gov.co/Public/Tendering/OpportunityDetail/Index?noticeUID=CO1.NTC.1530972&isFromPublicArea=True&isModal=False","PRESTAR SUS SERVICIOS AL ÁREA DE GESTIÓN AL DESARROLLO LOCAL BRINDANDO APOYO EN LAS LABORES CONTABLES DEL FONDO DE DESARROLLO LOCAL DE KENNEDY","INVERSIÓN ",1144,11400000,1363,"Fortalecimiento de la gestión local y de las acciones de vigilancia y control","2020-10-30","2020-11-04","2021-01-29",7346666,1.9333333333333333,3799999.6551724137,1342,7346666,"YEIMY CAROLINA AGUDELO HERNANDEZ","LUZ MYRIAM ORTEGA","CONTABILIDAD","12-46-101041552","2020-10-31","2021-07-10","NA",0,"NA","NA","NA","NA","NA","2021-01-01",29,"DIAS",3673333,"2021-01-01",29,"DIAS","NA","NA","NA","NA"]
["CONTRATACION DIRECTA","Contratos de prestación de servicios","TERMINADO","FDLK-CD-306-2020","CPS-306-2020",{"$f":"VLOOKUP(E303,[1]Hoja1!D$3:E$393,2,0)","v":1},"DIEGO ALEJANDRO PEDRAZA CARDENAS",1030558598,"DIEGO ALEJANDRO PEDRAZA CARDENAS",1030558598,null,"https://community.secop.gov.co/Public/Tendering/OpportunityDetail/Index?noticeUID=CO1.NTC.1535628&isFromPublicArea=True&isModal=False","PRESTAR LOS SERVICIOS DE APOYO EN LAS ACCIONES ENCAMINADAS AL RESTABLECIMIENTO DE LA ARMONÍA, PAZ, SEGURIDAD Y CONVIVENCIA CIUDADANA, EN LA LOCALIDAD DE KENNEDY","INVERSIÓN ",1184,51639000,1376,"Fortalecimiento de seguridad e iniciativa de convivencia en la localidad de\nKennedy","2020-11-01","2020-11-05","2021-01-29",4754066,1.8666666666666667,2546821.0714285714,1345,4754006,"YEIMY CAROLINA AGUDELO HERNANDEZ","MARITZA RUIZ","SEGURIDAD","\t12-46-101041621","2020-11-04","2021-07-10","NA",0,"NA","NA","NA","NA","NA","2021-01-01",29,"DIAS",2377033,"2021-01-01",29,"DIAS","NA","NA","NA","NA"]
["CONTRATACION DIRECTA","Contratos de prestación de servicios","TERMINADO","FDLK-CD-307-2020","CPS-307-2020",{"$f":"VLOOKUP(E304,[1]Hoja1!D$3:E$393,2,0)","v":1},"WILSON ESTEVEN LADINO CRIOLLO",1030586777,"WILSON ESTEVEN LADINO CRIOLLO",1030586777,null,"https://community.secop.gov.co/Public/Tendering/OpportunityDetail/Index?noticeUID=CO1.NTC.1534800&isFromPublicArea=True&isModal=False","PRESTAR LOS SERVICIOS TÉCNICO Y ADMINISTRATIVO EN LOS ASUNTOS RELACIONADOS CON ESPACIO PÚBLICO EN EL ÁREA DE GESTIÓN POLICIVA JURÍDICA DE LA ALCALDÍA LOCAL DE KENNEDY","INVERSIÓN ",1152,17400000,1363,"Fortalecimiento de la gestión local y de las acciones de vigilancia y control","2020-11-03","2020-11-04","2021-01-31",5800000,1.9,3052631.5789473685,1343,5800000,"YEIMY CAROLINA AGUDELO HERNANDEZ","NORMA LETICIA GUZMAN","JURIDICA","\t380-47-99400108502","2020-11-03","2021-07-06","NA",0,"NA","NA","NA","NA","NA","2021-01-01",1,"MESES",2900000,"2021-01-01",1,"MESES","NA","NA","NA","NA"]
["CONTRATACION DIRECTA","Contratos de prestación de servicios","TERMINADO","FDLK-CD-308-2020","CPS-308-2020",{"$f":"VLOOKUP(E305,[1]Hoja1!D$3:E$393,2,0)","v":1},"DANIEL FELIPE VASQUEZ MURCIA",1030622530,"DANIEL FELIPE VASQUEZ MURCIA",1030622530,null,"https://community.secop.gov.co/Public/Tendering/OpportunityDetail/Index?noticeUID=CO1.NTC.1534397&isFromPublicArea=True&isModal=False","PRESTAR LOS SERVICIOS TÉCNICO Y ADMINISTRATIVO EN LOS ASUNTOS RELACIONADOS CON ESPACIO PÚBLICO EN EL ÁREA DE GESTIÓN POLICIVA JURÍDICA DE LA ALCALDÍA LOCAL DE KENNEDY.","INVERSIÓN ",1152,17400000,1363,"Fortalecimiento de la gestión local y de las acciones de vigilancia y control","2020-11-03","2020-11-04","2021-01-31",5800000,1.9,3052631.5789473685,1344,5800000,"YEIMY CAROLINA AGUDELO HERNANDEZ","NORMA LETICIA GUZMAN","JURIDICA","\t380-47-994000108512","2020-11-03","2021-07-03","NA",0,"NA","NA","NA","NA","NA","2021-01-01",1,"MESES",2900000,"2021-01-01",1,"MESES","NA","NA","NA","NA"]
["CONTRATACION DIRECTA","Contratos de prestación de servicios","TERMINADO","FDLK-CD-309-2020","CPS-309-2020",{"$f":"VLOOKUP(E306,[1]Hoja1!D$3:E$393,2,0)","v":1},"SANDRA MILENA URREGO CARDENAS",1022326309,"SANDRA MILENA URREGO CARDENAS",1022326309,null,"https://community.secop.gov.co/Public/Tendering/OpportunityDetail/Index?noticeUID=CO1.NTC.1535532&isFromPublicArea=True&isModal=False","APOYAR EN LAS TAREAS OPERATIVAS DE CARÁCTER ARCHIVÍSTICO DESARROLLADAS EN LA ALCALDÍA LOCAL PARA GARANTIZAR LA APLICACIÓN CORRECTA DE LOS PROCEDIMIENTOS TÉCNICOS","INVERSIÓN ",1132,11560665,1363,"Fortalecimiento de la gestión local y de las acciones de vigilancia y control","2020-11-03","2020-11-09","2021-01-28",7321755,1.9,3853555.2631578948,1347,7321755,"YEIMY CAROLINA AGUDELO HERNANDEZ","MARIA DEL PILAR MUÑOZ TORRES","GERENCIA ADMINISTRATIVA Y FINANCIERA","380-47-994000108561","2020-11-03","2021-06-30","NA",0,"NA","NA","NA","NA","NA","2021-01-01",28,"DIAS",3596652,"2021-01-01",28,"DIAS","NA","NA","NA","NA"]
["CONTRATACION DIRECTA","Contratos de prestación de servicios","TERMINADO","FDLK-CD-310-2020","CPS-310-2020",{"$f":"VLOOKUP(E307,[1]Hoja1!D$3:E$393,2,0)","v":1},"ADRIANA GORDILLO HUERTAS",52108025,"ADRIANA GORDILLO HUERTAS",52108025,null,"https://community.secop.gov.co/Public/Tendering/OpportunityDetail/Index?noticeUID=CO1.NTC.1537150&isFromPublicArea=True&isModal=False","PRESTAR LOS SERVICIOS PROFESIONALES A LA ALCALDÍA LOCAL DE KENNEDY EN EL DESARROLLO DE ACTIVIDADES Y TRAMITES ADMINISTRATIVOS RELACIONADOS CON LA PLANEACIÓN Y ESTRUCTURACIÓN DEL PROYECTOS DE INVERSIÓN Y FUNCIONAMIENTO, NECESARIOS EN EL ÁREA DE GESTIÓN DE DESARROLLO LOCAL PARA DAR ALCANCE A LAS METAS ESTABLECIDAS EN EL PLAN DE DESARROLLO LOCAL DE KENNEDY Y LAS NECESIDADES DE FUNCIONAMIENTO","INVERSIÓN ",1172,32500000,1363,"Fortalecimiento de la gestión local y de las acciones de vigilancia y control","2020-11-04","2020-11-06","2021-01-28",12133333,1.9,6385964.7368421052,1346,12133333,"YEIMY CAROLINA AGUDELO HERNANDEZ","MARIA DEL PILAR MUJICA","PLANEACION"," 21-46-101018767","2020-11-05","2021-07-10","NA",0,"NA","NA","NA","NA","NA","2021-01-01",28,"DIAS",6066667,"2021-01-01",28,"DIAS","NA","NA","NA","NA"]
["CONTRATACION DIRECTA","Contratos de prestación de servicios","TERMINADO","FDLK-CD-311-2020","CPS-311-2020",{"$f":"VLOOKUP(E308,[1]Hoja1!D$3:E$393,2,0)","v":1},"BETHY ASTRID MOLINA CASALLAS ",40034873,"BETHY ASTRID MOLINA CASALLAS ",40034873,null,"https://community.secop.gov.co/Public/Tendering/OpportunityDetail/Index?noticeUID=CO1.NTC.1537151&isFromPublicArea=True&isModal=False","PRESTAR SUS SERVICIOS PROFESIONALES A LA ALCALDÍA LOCAL DE KENNEDY APOYANDO LA EJECUCIÓN DEL PROYECTO 1380 MI CASA ME PERTENECE EN EL COMPONENTE JURÍDICO TENDIENTE A LA TITULACIÓN DE PREDIOS CONFORME A GARANTIZAR EL CUMPLIMIENTO DEL PLAN DE DESARROLLO LOCAL","INVERSIÓN ",1175,10000000,1380,"Mi casa me pertenece","2020-11-04","2020-11-10","2021-01-28",9333334,1.7,5490196.4705882352,1356,9333334,"YEIMY CAROLINA AGUDELO HERNANDEZ","HUGO SALINAS","MI CASA ME PERTENECE","33-44-101206156","2020-11-05","2021-06-30","NA",0,"NA","NA","NA","NA","NA","2021-01-01",28,"DIAS",4666667,"2021-01-01",28,"DIAS","NA","NA","NA","NA"]
["CONTRATACION DIRECTA","Contratos de prestación de servicios","TERMINADO","FDLK-CD-312-2020","CPS-312-2020",{"$f":"VLOOKUP(E309,[1]Hoja1!D$3:E$393,2,0)","v":1},"SANDRA MILENA SANDOVAL",34609611,"SANDRA MILENA SANDOVAL",34609611,null,"https://community.secop.gov.co/Public/Tendering/OpportunityDetail/Index?noticeUID=CO1.NTC.1537164&isFromPublicArea=True&isModal=False","PRESTAR LOS SERVICIOS DE APOYO A LA JUNTA ADMINISTRADORA LOCAL DE KENNEDY DE CONFORMIDAD CON EL TRÁMITE DE LOS ASUNTOS DE SU COMPETENCIA","INVERSIÓN ",1185,7491000,1363,"Fortalecimiento de la gestión local y de las acciones de vigilancia y control","2020-11-04","2020-11-10","2021-01-28",4661067,1.7,2741804.1176470588,1355,4661067,"YEIMY CAROLINA AGUDELO HERNANDEZ","MARIA DEL PILAR MUÑOZ TORRES","JUNTA ADMINISTRADORA LOCAL","12-46-101041735","2020-11-05","2021-07-10","NA",0,"NA","NA","NA","NA","NA","2021-01-01",28,"DIAS",2330533,"2021-01-01",28,"DIAS","NA","NA","NA","NA"]
["CONTRATACION DIRECTA","Contratos de prestación de servicios","TERMINADO","FDLK-CD-313-2020","CPS-313-2020",{"$f":"VLOOKUP(E310,[1]Hoja1!D$3:E$393,2,0)","v":1},"JAYCE ENRIQUE QUEVEDO RODRIGUEZ",1022343444,"JAYCE ENRIQUE QUEVEDO RODRIGUEZ",1022343444,null,"https://community.secop.gov.co/Public/Tendering/OpportunityDetail/Index?noticeUID=CO1.NTC.1540523&isFromPublicArea=True&isModal=False","\tAPOYAR JURÍDICAMENTE LA EJECUCIÓN DE LAS ACCIONES REQUERIDAS PARA LA DEPURACIÓN DE LAS ACTUACIONES ADMINISTRATIVAS QUE CURSAN EN LA ALCALDÍA LOCAL.","INVERSIÓN ",1127,12600000,1363,"Fortalecimiento de la gestión local y de las acciones de vigilancia y control","2020-11-05","2020-11-10","2021-01-26",7280000,1.7666666666666666,4120754.716981132,1385,7280000,"YEIMY CAROLINA AGUDELO HERNANDEZ","NORMA LETICIA GUZMAN","JURIDICA"," 380- 47- 994000108597","2020-11-05","2021-07-03","NA",0,"NA","NA","NA","NA","NA","2021-01-01",26,"DIAS",3640000,"2021-01-01",26,"DIAS","NA","NA","NA","NA"]
["CONTRATACION DIRECTA","Contratos de prestación de servicios","TERMINADO","FDLK-CD-315-2020","CPS-315-2020",{"$f":"VLOOKUP(E311,[1]Hoja1!D$3:E$393,2,0)","v":1},"GLORIA ROCIA CARDENAS TORRES",1030610342,"GLORIA ROCIA CARDENAS TORRES",1030610342,null,"https://community.secop.gov.co/Public/Tendering/OpportunityDetail/Index?noticeUID=CO1.NTC.1541780&isFromPublicArea=True&isModal=False","\tPRESTAR LOS SERVICIOS DE APOYO EN LAS ACCIONES ENCAMINADAS AL RESTABLECIMIENTO DE LA ARMONÍA, PAZ, SEGURIDAD Y CONVIVENCIA CIUDADANA, EN LA LOCALIDAD DE KENNEDY","INVERSIÓN ",1184,51639000,1376,"Fortalecimiento de seguridad e iniciativa de convivencia en la localidad de\nKennedy","2020-11-06","2020-11-10","2021-01-26",4262266,1.7333333333333334,2458999.6153846155,1397,4262266,"YEIMY CAROLINA AGUDELO HERNANDEZ","FABIAN GARCIA","SEGURIDAD","12-46-101041773","2020-11-06","2021-07-10","NA",0,"NA","NA","NA","NA","NA","2021-01-01",26,"DIAS",2131133,"2021-01-01",26,"DIAS","NA","NA","NA","NA"]
["CONTRATACION DIRECTA","Contratos de prestación de servicios","TERMINADO","FDLK-CD-316-2020","CPS-316-2020",{"$f":"VLOOKUP(E312,[1]Hoja1!D$3:E$393,2,0)","v":1},"CARLOS FERNEY ESQUIVEL RODRIGUEZ",1030588833,"CARLOS FERNEY ESQUIVEL RODRIGUEZ",1030588833,null,"https://community.secop.gov.co/Public/Tendering/OpportunityDetail/Index?noticeUID=CO1.NTC.1542511&isFromPublicArea=True&isModal=False","PRESTAR LOS SERVICIOS DE APOYO EN LAS ACCIONES ENCAMINADAS AL RESTABLECIMIENTO DE LA ARMONÍA, PAZ, SEGURIDAD Y CONVIVENCIA CIUDADANA, EN LA LOCALIDAD DE KENNEDY","INVERSIÓN ",1184,51639000,1376,"Fortalecimiento de seguridad e iniciativa de convivencia en la localidad de\nKennedy","2020-11-06","2020-11-11","2021-01-26",4262266,1.7,2507215.2941176472,1396,4262266,"YEIMY CAROLINA AGUDELO HERNANDEZ","MARITZA RUIZ","SEGURIDAD","12-46-101041787","2020-11-06","2021-07-10","NA",0,"NA","NA","NA","NA","NA","2021-01-01",26,"DIAS",2131133,"2021-01-01",26,"DIAS","NA","NA","NA","NA"]
["CONTRATACION DIRECTA","Contratos de prestación de servicios","TERMINADO","FDLK-CD-317-2020","CPS-317-2020",{"$f":"VLOOKUP(E313,[1]Hoja1!D$3:E$393,2,0)","v":1},"JENNY FERNANDA CHACÓN HERNÁNDEZ",1019029253,"JENNY FERNANDA CHACÓN HERNÁNDEZ",1019029253,null,"https://community.secop.gov.co/Public/Tendering/OpportunityDetail/Index?noticeUID=CO1.NTC.1542855&isFromPublicArea=True&isModal=False","PRESTAR APOYO PROFESIONAL PARA EL DESARROLLO TÉCNICO Y OPERATIVO DE TODOS LOS PROCESOS ADMINISTRATIVOS DEL DESPACHO DEL FONDO DE DESARROLLO LOCAL DE KENNEDY","INVERSIÓN ",1231,8400000,1363,"Fortalecimiento de la gestión local y de las acciones de vigilancia y control","2020-11-06","2020-11-10","2021-01-26",7280000,1.7333333333333334,4200000,1394,7280000,"YEIMY CAROLINA AGUDELO HERNANDEZ","MILE OVALLE","DESPACHO","21-46-101018832","2020-11-06","2021-06-30","NA",0,"NA","NA","NA","NA","NA","2021-01-01",26,"DIAS",3640000,"2021-01-01",26,"DIAS","NA","NA","NA","NA"]
["CONTRATACION DIRECTA","Contratos de prestación de servicios","TERMINADO","FDLK-CD-318-2020","CPS-318-2020",{"$f":"VLOOKUP(E314,[1]Hoja1!D$3:E$393,2,0)","v":1},"LAURA CAROLINA MANTILLA GARZON",1031182826,"LAURA CAROLINA MANTILLA GARZON",1031182826,null,"https://community.secop.gov.co/Public/Tendering/OpportunityDetail/Index?noticeUID=CO1.NTC.1543813&isFromPublicArea=True&isModal=False","PRESTAR SERVICIO DE APOYO TECNICO EN LA ADMINISTRACIÓN DEL PUNTO VIVE DIGITAL DE ACCESO A LAS TECNOLOGÍAS DE INFORMACIÓN Y LAS COMUNICACIONES TIC.","INVERSIÓN ",1125,8850000,1363,"Fortalecimiento de la gestión local y de las acciones de vigilancia y control","2020-11-06","2020-11-10","2020-12-31",5113333,1.7666666666666666,2894339.4339622641,1395,5113333,"YEIMY CAROLINA AGUDELO HERNANDEZ","ERIKA RISCANEVO","PUNTO VIVE DIGITAL",null,null,null,"NA",0,"NA","NA","NA","NA","NA","NA","NA","NA","NA","NA","NA","NA","NA","NA","NA","NA"]
["CONTRATACION DIRECTA","Contratos de prestación de servicios","TERMINADO","FDLK-CD-319-2020","CPS-319-2020",{"$f":"VLOOKUP(E315,[1]Hoja1!D$3:E$393,2,0)","v":1},"FELIX ANTONIO CORDOBA GOMEZ",79894529,"FELIX ANTONIO CORDOBA GOMEZ",79894529,null,"https://community.secop.gov.co/Public/Tendering/OpportunityDetail/Index?noticeUID=CO1.NTC.1543573&isFromPublicArea=True&isModal=False","APOYAR AL ÁREA JURIDICA EN LA FORMULACIÓN, SEGUIMIENTO E IMPLEMENTACIÓN DE LA ESTRATEGIA LOCAL PARA EL ACOMPAÑAMIENTO ADMINISTRATIVO DE LAS DIFERENTES ACTIVIDADES DEL ÁREA","INVERSIÓN ",1124,18000000,1363,"Fortalecimiento de la gestión local y de las acciones de vigilancia y control","2020-11-06","2020-11-12","2021-01-26",10400000,1.6333333333333333,6367346.9387755105,1402,10400000,"YEIMY CAROLINA AGUDELO HERNANDEZ","NORMA LETICIA GUZMAN","JURIDICA","17-44-101187400","2020-11-06","2021-06-30","NA",0,"NA","NA","NA","NA","NA","2021-01-01",26,"DIAS",5200000,"2021-01-01",26,"DIAS","NA","NA","NA","NA"]
["CONTRATACION DIRECTA","Contratos de prestación de servicios","TERMINADO","FDLK-CD-320-2020","CPS-320-2020",{"$f":"VLOOKUP(E316,[1]Hoja1!D$3:E$393,2,0)","v":1},"BRAYAN RODOLFO CABALLERO DIAZ",1022424963,"BRAYAN RODOLFO CABALLERO DIAZ",1022424963,null,"https://community.secop.gov.co/Public/Tendering/OpportunityDetail/Index?noticeUID=CO1.NTC.1543837&isFromPublicArea=True&isModal=False","APOYAR LAS LABORES COMO NOTIFICADOR PARA LA DISTRIBUCIÓN DE LAS COMUNICACIONES EMITIDAS O RECIBIDAS POR LA ALCALDIA LOCAL DE KENNEDY","INVERSIÓN ",1132,11560665,1363,"Fortalecimiento de la gestión local y de las acciones de vigilancia y control","2020-11-06","2020-11-18","2020-12-31",3666666,1.4666666666666666,2499999.5454545454,1420,3666666,"YEIMY CAROLINA AGUDELO HERNANDEZ","MARIA DEL PILAR MUÑOZ TORRES","GERENCIA ADMINISTRATIVA Y FINANCIERA","\t12-46-101041909","2020-11-11","2021-07-10","NA",0,"NA","NA","NA","NA","NA","NA","NA","NA","NA","NA","NA","NA","NA","NA","NA","NA"]
["CONTRATACION DIRECTA","Contratos de prestación de servicios","TERMINADO","FDLK-CD-321-2020","CPS-321-2020",{"$f":"VLOOKUP(E317,[1]Hoja1!D$3:E$393,2,0)","v":1},"DIEGO ARMANDO OLAYA MINOTA",1022354458,"DIEGO ARMANDO OLAYA MINOTA",1022354458,null,"https://community.secop.gov.co/Public/Tendering/OpportunityDetail/Index?noticeUID=CO1.NTC.1547163&isFromPublicArea=True&isModal=False","\tPRESTAR LOS SERVICIOS DE APOYO EN LAS ACCIONES ENCAMINADAS AL RESTABLECIMIENTO DE LA ARMONÍA, PAZ, SEGURIDAD Y CONVIVENCIA CIUDADANA, EN LA LOCALIDAD DE KENNEDY","INVERSIÓN ",1184,51639000,1376,"Fortalecimiento de seguridad e iniciativa de convivencia en la localidad de\nKennedy","2020-11-09","2020-11-13","2021-01-25",4180300,1.6333333333333333,2559367.3469387754,1399,4180300,"YEIMY CAROLINA AGUDELO HERNANDEZ","FABIAN GARCIA",null,"12-46-101041888","2020-11-11","2021-07-10","NA",0,"NA","NA","NA","NA","NA","2021-01-01",25,"DIAS",2049167,"2021-01-01",25,"DIAS","NA","NA","NA","NA"]
["CONTRATACION DIRECTA","Contratos de prestación de servicios","TERMINADO","FDLK-CD-322-2020","CPS-322-2020",{"$f":"VLOOKUP(E318,[1]Hoja1!D$3:E$393,2,0)","v":1},"MONICA ANDREA TRUJILLO GONZALEZ",1030538091,"MONICA ANDREA TRUJILLO GONZALEZ",1030538091,null,"https://community.secop.gov.co/Public/Tendering/OpportunityDetail/Index?noticeUID=CO1.NTC.1554650&isFromPublicArea=True&isModal=False","PRESTAR LOS SERVICIOS DE APOYO A LA OFICINA DE RADICACIÓN Y CORRESPONDENCIA REALIZANDO EL TRAMITE RESPECTIVO A LA CORRESPONDENCIA DE TODAS LAS DEPENDENCIAS DE ACUERDO CON LOS PROCEDIMIENTOS E INSTRUCTIVOS ESTABLECIDOS","INVERSIÓN ",1146,15750000,1363,"Fortalecimiento de la gestión local y de las acciones de vigilancia y control","2020-11-13","2020-11-19","2020-12-31",2800000,1,2800000,1419,2800000,"YEIMY CAROLINA AGUDELO HERNANDEZ","MARIA DEL PILAR MUÑOZ","GERENCIA ADMINISTRATIVA Y FINANCIERA","380-47-994000108744","2020-11-17","2021-07-02","NA",0,"NA","NA","NA","NA","NA","NA","NA","NA","NA","NA","NA","NA","NA","NA","NA","NA"]
["CONTRATACION DIRECTA","Contratos de prestación de servicios","TERMINADO","FDLK-CD-323-2020","CPS-323-2020",{"$f":"VLOOKUP(E319,[1]Hoja1!D$3:E$393,2,0)","v":1},"ANDRES FELIPE RAMIREZ MARULANDA",80831476,"ANDRES FELIPE RAMIREZ MARULANDA",80831476,null,"https://community.secop.gov.co/Public/Tendering/OpportunityDetail/Index?noticeUID=CO1.NTC.1554846&isFromPublicArea=True&isModal=False","\tPRESTAR LOS SERVICIOS DE APOYO EN LAS ACCIONES ENCAMINADAS AL RESTABLECIMIENTO DE LA ARMONÍA, PAZ, SEGURIDAD Y CONVIVENCIA CIUDADANA, EN LA LOCALIDAD DE KENNEDY","INVERSIÓN ",1184,51639000,1376,"Fortalecimiento de seguridad e iniciativa de convivencia en la localidad de\nKennedy","2020-11-12","2020-11-17","2020-12-31",3934400,1.5,2622933.3333333335,1418,3934400,"YEIMY CAROLINA AGUDELO HERNANDEZ","FABIAN GARCIA","SEGURIDAD","380-47-994000108725","2020-11-13","2021-07-03","NA",0,"NA","NA","NA","NA","NA","NA","NA","NA","NA","NA","NA","NA","NA","NA","NA","NA"]
["CONTRATACION DIRECTA","Contratos de prestación de servicios","EN EJECUCION","FDLK-CD-324-2020","CPS-324-2020",{"$f":"VLOOKUP(E320,[1]Hoja1!D$3:E$393,2,0)","v":1},"NIDIA VALENZUELA VARGAS",43160122,"NIDIA VALENZUELA VARGAS",43160122,null,"https://community.secop.gov.co/Public/Tendering/OpportunityDetail/Index?noticeUID=CO1.NTC.1561827&isFromPublicArea=True&isModal=False","PRESTAR LOS SERVICIOS DE APOYO A LA OFICINA DE RADICACIÓN Y CORRESPONDENCIA REALIZANDO EL TRAMITE RESPECTIVO A LA CORRESPONDENCIA DE TODAS LAS DEPENDENCIAS DE ACUERDO CON LOS PROCEDIMIENTOS E INSTRUCTIVOS ESTABLECIDOS","INVERSIÓN ",1146,15750000,1363,"Fortalecimiento de la gestión local y de las acciones de vigilancia y control","2020-11-17","2020-11-20","2021-02-19",5250000,3,1750000,1423,5250000,"YEIMY CAROLINA AGUDELO HERNANDEZ","MARIA DEL PILAR MUÑOZ","GERENCIA ADMINISTRATIVA Y FINANCIERA","\t380- 47- 994000108781","2020-11-19","2021-08-21","NA",0,"NA","NA","NA","NA","NA","NA","NA","NA","NA","NA","NA","NA","NA","NA","NA","NA"]
["CONTRATACION DIRECTA","Contratos de prestación de servicios","EN EJECUCION","FDLK-CD-325-2020","CPS-325-2020",{"$f":"VLOOKUP(E321,[1]Hoja1!D$3:E$393,2,0)","v":1},"VALENTINA MURCIA CADENA",1022437136,"VALENTINA MURCIA CADENA",1022437136,null,"https://community.secop.gov.co/Public/Tendering/OpportunityDetail/Index?noticeUID=CO1.NTC.1561790&isFromPublicArea=True&isModal=False","PRESTAR LOS SERVICIOS DE APOYO A LA OFICINA DE RADICACIÓN Y CORRESPONDENCIA REALIZANDO EL TRAMITE RESPECTIVO A LA CORRESPONDENCIA DE TODAS LAS DEPENDENCIAS DE ACUERDO CON LOS PROCEDIMIENTOS E INSTRUCTIVOS ESTABLECIDOS","INVERSIÓN ",1146,15750000,1363,"Fortalecimiento de la gestión local y de las acciones de vigilancia y control","2020-11-17","2020-11-20","2021-02-19",5250000,3,1750000,1424,5250000,"YEIMY CAROLINA AGUDELO HERNANDEZ","MARIA DEL PILAR MUÑOZ","GERENCIA ADMINISTRATIVA Y FINANCIERA","\t380-47-994000108784","2020-11-19","2021-08-21","NA",0,"NA","NA","NA","NA","NA","NA","NA","NA","NA","NA","NA","NA","NA","NA","NA","NA"]
["CONTRATACION DIRECTA","Contratos de prestación de servicios","EN EJECUCION","FDLK-CD-326-2020","CPS-326-2020",{"$f":"VLOOKUP(E322,[1]Hoja1!D$3:E$393,2,0)","v":1},"JUAN PABLO REALPE",80149126,"JUAN PABLO REALPE",80149126,null,"https://community.secop.gov.co/Public/Tendering/OpportunityDetail/Index?noticeUID=CO1.NTC.1562623&isFromPublicArea=True&isModal=False"," APOYAR LAS LABORES DE ENTREGA Y RECIBO DE LAS COMUNICACIONES EMITIDAS O RECIBIDAS EN LAS INSPECCIONES DE POLICIA DE LA LOCALIDAD","INVERSIÓN ",1147,7491000,1363,"Fortalecimiento de la gestión local y de las acciones de vigilancia y control","2020-11-18","2020-11-19","2021-02-18",7491000,3,2497000,1421,7491000,"YEIMY CAROLINA AGUDELO HERNANDEZ","MARIA DEL PILAR MUÑOZ","GERENCIA ADMINISTRATIVA Y FINANCIERA",null,null,null,"NA",0,"NA","NA","NA","NA","NA","NA","NA","NA","NA","NA","NA","NA","NA","NA","NA","NA"]
["CONTRATACION DIRECTA","Contratos de prestación de servicios","EN EJECUCION","FDLK-CD-327-2020","CPS-327-2020",{"$f":"VLOOKUP(E323,[1]Hoja1!D$3:E$393,2,0)","v":1},"MARYELIS MARÍA JULIO BLANCO",1131107878,"MARYELIS MARÍA JULIO BLANCO",1131107878,null,"https://community.secop.gov.co/Public/Tendering/OpportunityDetail/Index?noticeUID=CO1.NTC.1562766&isFromPublicArea=True&isModal=False","\tPRESTAR LOS SERVICIOS DE APOYO ADMINISTRATIVO EN EL DESARROLLO OPERATIVO DE LOS TRÁMITES CONTRACTUALES ADELANTADOS POR LA ALCALDÍA LOCAL DE KENNEDY - FONDO DE DESARROLLO LOCAL DE KENNEDY","INVERSIÓN ",1145,11400000,1363,"Fortalecimiento de la gestión local y de las acciones de vigilancia y control","2020-11-17","2020-11-23","2021-02-22",11400000,3,3800000,1425,11400000,"YEIMY CAROLINA AGUDELO HERNANDEZ","MONICA HERNANDEZ","CONTRATACION",null,null,null,"NA",0,"NA","NA","NA","NA","NA","NA","NA","NA","NA","NA","NA","NA","NA","NA","NA","NA"]
["CONTRATACION DIRECTA","Contratos de prestación de servicios","EN EJECUCION","FDLK-CD-328-2020","CPS-328-2020",{"$f":"VLOOKUP(E324,[1]Hoja1!D$3:E$393,2,0)","v":1},"DORIS ANDREA CRUZ",1026267217,"DORIS ANDREA CRUZ",1026267217,null,"https://community.secop.gov.co/Public/Tendering/OpportunityDetail/Index?noticeUID=CO1.NTC.1563262&isFromPublicArea=True&isModal=False","\tPRESTAR LOS SERVICIOS DE APOYO AL ÁREA DE GESTIÓN DE DESARROLLO LOCAL PARA LOS ASUNTOS RELACIONADOS CON LOS PROYECTOS DE INFRAESTRUCTURA DE LA ALCALDÍA LOCAL DE KENNEDY Y LOS TRÁMITES DE SU COMPETENCIA","INVERSIÓN ",1151,7500000,1367,"Recuperación de la malla vial local","2020-11-17","2020-11-19","2021-02-18",7500000,3,2500000,1421,7500000,"YEIMY CAROLINA AGUDELO HERNANDEZ","MILE OVALLE","DESPACHO",null,null,null,"NA",0,"NA","NA","NA","NA","NA","NA","NA","NA","NA","NA","NA","NA","NA","NA","NA","NA"]
["MINIMA CUANTIA","Compra y venta de suministros","EN EJECUCION","FDLK-MC-06-2020","CS-329-2020",{"$f":"VLOOKUP(E325,[1]Hoja1!D$3:E$393,2,0)","v":0.35684647302904565},"MADEMUEBLES DE COLOMBIA","51937871-6","GLORIA ELIZABETH OSORIO BENAVIDES",51937871,null,"https://community.secop.gov.co/Public/Tendering/OpportunityDetail/Index?noticeUID=CO1.NTC.1548136&isFromPublicArea=True&isModal=False","SUMINISTRO DE ELEMENTOS DE FERRETERIA, PLOMERIA, ELECTRICIDAD Y OTROS A MONTO AGOTABLE, NECESARIOS PARA LAS REPARACIONES LOCATIVAS MENORES DE LAS INSTALACIONES DE LA ALCALDIA LOCAL, JUNTA ADMINISTRADORA LOCAL, INSPECCIONES DE POLICIA, PUNTO VIVE DIGITAL, BODEGA Y LAS SEDES QUE SE ENCUENTREN EN ADMINISTRACION POR PARTE DEL FDLK, DE ACUERDO CON LOS ESTUDIOS PREVIOS, ANEXO TECNICO, INVITACION Y PROPUESTA PRESENTADA.","INVERSIÓN ",1190,19380000,1310,"Servicios de mantenimiento y\nreparación de otra maquinaria y otro\nequipo","2020-11-20","2020-12-01","2021-07-30",19380000,8,2422500,1452,19380000,"YEIMY CAROLINA AGUDELO HERNANDEZ","JOSE FERNANDO ROCAS HOYOS",null,null,null,null,"NA",0,"NA","NA","NA","NA","NA","NA","NA","NA","NA","NA","NA","NA","NA","NA","NA","NA"]
["CONTRATACION DIRECTA","Contratos de prestación de servicios","TERMINADO","FDLK-CD-330-2020","CPS-330-2020",{"$f":"VLOOKUP(E326,[1]Hoja1!D$3:E$393,2,0)","v":1},"MARICELA ROMERO GALEANO",1030642624,"MARICELA ROMERO GALEANO",1030642624,null,"https://community.secop.gov.co/Public/Tendering/OpportunityDetail/Index?noticeUID=CO1.NTC.1566340&isFromPublicArea=True&isModal=False","PRESTACIÓN DE SERVICIOS PROFESIONALES PARA APOYAR JURÍDICAMENTE A LA ALCALDÍA LOCAL DE KENNEDY - FONDO DE DESARROLLO LOCAL DE KENNEDY EN LOS ASUNTOS CONSTITUCIONALES, LEGALES Y REGLAMENTARIOS DE SU COMPETENCIA, PARTICULARMENTE LOS RELACIONADOS CON LAS ETAPAS PRECONTRACTUAL, CONTRACTUAL Y POSCONTRACTUAL DE LOS PROCESOS DE CONTRATACIÓN","INVERSIÓN ",1210,8400000,1363,"Fortalecimiento de la gestión local y de las acciones de vigilancia y control","2020-11-19","2020-11-24","2021-01-23",8400000,2,4200000,1431,8400000,"YEIMY CAROLINA AGUDELO HERNANDEZ","MONICA HERNANDEZ","CONTRATACION","21-44-101338094","2020-11-19","2021-07-19","NA",0,"NA","NA","NA","NA","NA","NA","NA","NA","NA","NA","NA","NA","NA","NA","NA","NA"]
["CONTRATACION DIRECTA","Contratos de prestación de servicios","EN EJECUCION","FDLK-CD-331-2020","CPS-331-2020",{"$f":"VLOOKUP(E327,[1]Hoja1!D$3:E$393,2,0)","v":1},"ANDREA MILENA ZABALA CARO","1.136.883.308","ANDREA MILENA ZABALA CARO","1.136.883.308",null,"https://community.secop.gov.co/Public/Tendering/OpportunityDetail/Index?noticeUID=CO1.NTC.1569278&isFromPublicArea=True&isModal=False","APOYAR JURÍDICAMENTE LA EJECUCIÓN DE LAS ACCIONES REQUERIDAS PARA EL TRÁMITE E IMPULSO PROCESAL DE LAS ACTUACIONES CONTRAVENCIONALES Y/O QUERELLAS QUE CURSEN EN LAS INSPECCIONES DE POLICÍA DE LA LOCALIDAD.","INVERSIÓN ",1179,25200000,1363,"Fortalecimiento de la gestión local y de las acciones de vigilancia y control","20/112020","2020-11-24","2021-02-23",12600000,3,4200000,1433,12600000,"YEIMY CAROLINA AGUDELO HERNANDEZ","GUSTAVO VANEGAS RUIZ","INSPECCIONES","11-46-101016019","2020-11-20","2021-08-28","NA",0,"NA","NA","NA","NA","NA","NA","NA","NA","NA","NA","NA","NA","NA","NA","NA","NA"]
["CONTRATACION DIRECTA","Contratos de prestación de servicios","EN EJECUCION","FDLK-CD-332-2020","CPS-332-2020",{"$f":"VLOOKUP(E328,[1]Hoja1!D$3:E$393,2,0)","v":1},"YURI ANDREA BRAHAM ",53015125,"YURI ANDREA BRAHAM",53015125,null,"https://community.secop.gov.co/Public/Tendering/OpportunityDetail/Index?noticeUID=CO1.NTC.1569351&isFromPublicArea=True&isModal=False","APOYAR JURÍDICAMENTE LA EJECUCIÓN DE LAS ACCIONES REQUERIDAS PARA EL TRÁMITE E IMPULSO PROCESAL DE LAS ACTUACIONES CONTRAVENCIONALES Y/O QUERELLAS QUE CURSEN EN LAS INSPECCIONES DE POLICÍA DE LA LOCALIDAD","INVERSIÓN ",1179,25200000,1363,"Fortalecimiento de la gestión local y de las acciones de vigilancia y control","2020-11-20","2020-11-24","2021-02-23",12600000,3,4200000,1434,12600000,"YEIMY CAROLINA AGUDELO HERNANDEZ","GUSTAVO VANEGAS RUIZ","INSPECCIONES","26-46-101019016","2020-11-23","2021-08-23","NA",0,"NA","NA","NA","NA","NA","NA","NA","NA","NA","NA","NA","NA","NA","NA","NA","NA"]
["MINIMA CUANTIA","PRESTACIÓN DE SERVICIOS","EN EJECUCION","FDLK-MC-5-2020","CPS-333-2020",{"$f":"VLOOKUP(E329,[1]Hoja1!D$3:E$393,2,0)","v":0.98901098901098905},"FUNDACION ESCUELA CULTURAL COMUN & ARTE - FUCCA","800.220.563-0","Giovanny Andrés Vega Hernández",80744173,null,"https://community.secop.gov.co/Public/Tendering/OpportunityDetail/Index?noticeUID=CO1.NTC.1555477&isFromPublicArea=True&isModal=False\n","\tLA CONTRATACIÓN DE LOS SERVICIOS PROFESIONALES Y LOGÍSTICOS CON EL FIN DE LLEVARA CABO LOS EVENTOS DE CARNAVAL POR LA VIDA Y LA DIVERSIDAD KENNEDY 2020 Y MARCHA DEL 25 DE NOVIEMBRE EN EL MARCO DE LA CONMEMORACIÓN DEL DÍA DE LA NO VIOLENCIA CONTRA LAS MUJERES.","INVERSIÓN ",1260,20000000,1371,"Fortalecimiento de la participación","2020-11-24","2020-11-27","2021-02-26",19340686,3,6446895.333333333,1454,19340686,"YEIMY CAROLINA AGUDELO HERNANDEZ","ERIKA VANESA USECHE TRIANA","PARTICIPACION","15-.44-101234967","2020-11-23","2021-08-31","NA",0,"NA","NA","NA","NA","NA","NA","NA","NA","NA","NA","NA","NA","NA","NA","NA","NA"]
["CONTRATACION DIRECTA","Contratos de prestación de servicios","TERMINADO","FDLK-CD-334-2020","CPS-334-2020",{"$f":"VLOOKUP(E330,[1]Hoja1!D$3:E$393,2,0)","v":1},"LAURA VANESA MORENO ROZO",1030687031,"LAURA VANESA MORENO ROZO",1030687031,null,"https://community.secop.gov.co/Public/Tendering/OpportunityDetail/Index?noticeUID=CO1.NTC.1572591&isFromPublicArea=True&isModal=False","PRESTAR LOS SERVICIOS DE APOYO ASISTENCIAL Y ADMINISTRATIVO AL DESPACHO DE LA ALCALDÍA LOCAL DE KENNEDY.","INVERSIÓN ",1224,3400000,1363,"Fortalecimiento de la gestión local y de las acciones de vigilancia y control","2020-11-23","2020-11-24","2021-01-23",3400000,2,1700000,1439,3400000,"YEIMY CAROLINA AGUDELO HERNANDEZ","MILE OVALLE","DESPACHO ","33-44-101206935","2020-11-23","2021-01-25","NA",0,"NA","NA","NA","NA","NA","NA","NA","NA","NA","NA","NA","NA","NA","NA","NA","NA"]
["SELECCION ABREVIADA","PRESTACIÓN DE SERVICIOS","TERMINADO","FDLK-SAMC-004-2020","CPS-335-2020",{"$f":"VLOOKUP(E331,[1]Hoja1!D$3:E$393,2,0)","v":1},"RAMIREZ TORRES CONSULTORES INMOBILIARIOS SAS.","900.619.993-1","JOHANNA ANGELICA TORRES PARDO",52700414,null,"https://community.secop.gov.co/Public/Tendering/OpportunityDetail/Index?noticeUID=CO1.NTC.1530659&isFromPublicArea=True&isModal=False","PRESTAR EL SERVICIO PARA LA TOMA FÍSICA, VERIFICACIÓN, CLASIFICACIÓN Y ACTUALIZACIÓN DE LA INFORMACIÓN DE BIENES MUEBLES E INMUEBLES DE PROPIEDAD Y/O A CARGO DEL FONDO DE DESARROLLO LOCAL DE KENNEDY Y LA MEDICIÓN POSTERIOR DE LOS BIENES CLASIFICADOS COMO PROPIEDAD, PLANTA Y EQUIPO, DE CONFORMIDAD CON LAS DISPOSICIONES LEGALES VIGENTES.","INVERSIÓN ",1192,144398345,1363,"Fortalecimiento de la gestión local y de las acciones de vigilancia y control","2020-11-23","2020-11-25","2021-01-24",120292935,2,60146467.5,1438,120292935,"YEIMY CAROLINA AGUDELO HERNANDEZ",null,null,"33-44-101206935","2020-11-23","2021-07-25","NA",0,"NA","NA","NA","NA","NA","NA","NA","NA","NA","NA","NA","NA","NA","NA","NA","NA"]
["CONTRATACION DIRECTA","Contratos de prestación de servicios","EN EJECUCION","FDLK-CD-336-2020","CPS-336-2020",{"$f":"VLOOKUP(E332,[1]Hoja1!D$3:E$393,2,0)","v":1},"ALEJANDRA MORALES MILLAN",1030616555,"ALEJANDRA MORALES MILLAN",1030616555,null,"https://community.secop.gov.co/Public/Tendering/OpportunityDetail/Index?noticeUID=CO1.NTC.1572474&isFromPublicArea=True&isModal=False","PRESTAR LOS SERVICIOS DE APOYO EN LAS ACCIONES ENCAMINADAS AL RESTABLECIMIENTO DE LA ARMONÍA, PAZ, SEGURIDAD Y CONVIVENCIA CIUDADANA, EN LA LOCALIDAD DE KENNEDY","INVERSIÓN ",1184,51639000,1376,"Fortalecimiento de seguridad e iniciativa de convivencia en la localidad de\nKennedy","2020-11-23","2020-11-25","2021-02-24",7377000,3,2459000,1440,7377000,"YEIMY CAROLINA AGUDELO HERNANDEZ","MARITZA RUIZ","SEGURIDAD","12-46-101042132","2020-11-23","2021-08-31","NA",0,"NA","NA","NA","NA","NA","NA","NA","NA","NA","NA","NA","NA","NA","NA","NA","NA"]
["CONTRATACION DIRECTA","Contratos de prestación de servicios","EN EJECUCION","FDLK-CD-337-2020","CPS-337-2020",{"$f":"VLOOKUP(E333,[1]Hoja1!D$3:E$393,2,0)","v":1},"WILMER DUVAN RODRIGUEZ MONTERO",1030558657,"WILMER DUVAN RODRIGUEZ MONTERO",1030558657,null,"https://community.secop.gov.co/Public/Tendering/OpportunityDetail/Index?noticeUID=CO1.NTC.1573216&isFromPublicArea=True&isModal=False\n","PRESTAR LOS SERVICIOS DE APOYO EN LAS ACCIONES ENCAMINADAS AL RESTABLECIMIENTO DE LA ARMONÍA, PAZ, SEGURIDAD Y CONVIVENCIA CIUDADANA, EN LA LOCALIDAD DE KENNEDY","INVERSIÓN ",1184,51639000,1376,"Fortalecimiento de seguridad e iniciativa de convivencia en la localidad de\nKennedy","2020-11-23","2020-11-25","2021-02-24",7377000,3,2459000,1441,7377000,"YEIMY CAROLINA AGUDELO HERNANDEZ","FABIAN GARCIA ","SEGURIDAD","\t12-46-101042134","2020-11-23","2021-08-31","NA",0,"NA","NA","NA","NA","NA","NA","NA","NA","NA","NA","NA","NA","NA","NA","NA","NA"]
["CONTRATACION DIRECTA","Contratos de prestación de servicios","TERMINADO","FDLK-CD-338-2020","CPS-338-2020",{"$f":"VLOOKUP(E334,[1]Hoja1!D$3:E$393,2,0)","v":1},"JOSE FILIBERTO ARDILA",79509118,"JOSE FILIBERTO ARDILA",79509118,null,"https://community.secop.gov.co/Public/Tendering/OpportunityDetail/Index?noticeUID=CO1.NTC.1574577&isFromPublicArea=True&isModal=False\n","\tPRESTAR LOS SERVICIOS PROFESIONALES PARA LIDERAR LOS ASUNTOS REFERENTES AL ESPACIO PÚBLICO, VENDEDORES INFORMALES EN LA LOCALIDAD DE KENNEDY Y ACOMPAÑAMIENTO EN OPERATIVOS IVC","INVERSIÓN ",1183,13000000,1363,"Fortalecimiento de la gestión local y de las acciones de vigilancia y control","2020-11-24","2020-11-26","2021-01-25",13000000,2,6500000,1442,13000000,"YEIMY CAROLINA AGUDELO HERNANDEZ","NORMA LETICIA GUZMAN","JURIDICA","\t380-47-994000108878-0","2020-11-24","2021-07-27","NA",0,"NA","NA","NA","NA","NA","NA","NA","NA","NA","NA","NA","NA","NA","NA","NA","NA"]
["MINIMA CUANTIA","Compra y venta de suministros","TERMINADO","FDLK-MC-7-2020\n","CCV-339-2020",{"$f":"VLOOKUP(E335,[1]Hoja1!D$3:E$393,2,0)","v":1},"CASTOR DATA SAS",830034195,"ANDRES VELASQUEZ LOPEZ",79752474,null,"https://community.secop.gov.co/Public/Tendering/OpportunityDetail/Index?noticeUID=CO1.NTC.1557602&isFromPublicArea=True&isModal=False","\tLA ADQUISICIÓN DE PLOTTER Y COMPUTADOR ESPECIALIZADO DE DISEÑO CON INSTALACIÓN, CONFIGURACIÓN, Y PUESTO EN FUNCIONAMIENTO PARA LA OFICINA DE PRENSA DE LA ALCALDÍA LOCAL DE KENNEDY","INVERSIÓN ",1197,29728850,102,"Equipos de información,\ncomputación y telecomunicaciones\nTIC","2020-11-27","2020-12-16","2021-01-29",21789200,1.5,14526133.333333334,1467,21789200,"YEIMY CAROLINA AGUDELO HERNANDEZ","SEBASTIAN JOSE PEREZ BERNAL / WOLFRANG PULIDO AVENDANO","SISTEMAS","\tCSC-100008002","2020-11-25","2021-07-10","NA",0,"NA","NA","NA","NA","NA","NA","NA","NA","NA","NA","NA","NA","NA","NA","NA","NA"]
["CONTRATACION DIRECTA","Contratos de prestación de servicios","EN EJECUCION","FDLK-CD-341-2020","CPS-341-2020",{"$f":"VLOOKUP(E336,[1]Hoja1!D$3:E$393,2,0)","v":1},"JUAN CAMILO GONZÁLEZ REINOSO",1030649029,"JUAN CAMILO GONZÁLEZ REINOSO",1030649029,null,"https://community.secop.gov.co/Public/Tendering/OpportunityDetail/Index?noticeUID=CO1.NTC.1601243&isFromPublicArea=True&isModal=False","APOYAR PROFESIONALMENTE AL EQUIPO DE PARTICIPACIÓN EN LA GEORREFERENCIACIÓN DE LOS RESULTADOS DE ENCUENTROS CIUDADANOS Y ENCUENTROS PARTICIPATIVOS","INVERSIÓN ",1217,7800000,1371,"Fortalecimiento de la participación","2020-12-09","2020-12-11","2021-02-10",7800000,2,3900000,1469,7800000,"YEIMY CAROLINA AGUDELO HERNANDEZ","LUIS ALEJANDRO VENEGAS ROBAYO","PARTICIPACION","63-44-101010698","2020-12-10","2021-08-10","NA",0,"NA","NA","NA","NA","NA","NA","NA","NA","NA","NA","NA","NA","NA","NA","NA","NA"]
["CONTRATACION DIRECTA","Contratos de prestación de servicios","EN EJECUCION","FDLK-CD-343-2020","CPS-343-2020",{"$f":"VLOOKUP(E337,[1]Hoja1!D$3:E$393,2,0)","v":1},"ANNE PAOLA MENDOZA GONZALEZ",52850630,"ANNE PAOLA MENDOZA GONZALEZ",52850630,null,"https://community.secop.gov.co/Public/Tendering/OpportunityDetail/Index?noticeUID=CO1.NTC.1603833&isFromPublicArea=True&isModal=False","PRESTAR SERVICIOS PROFESIONALES DE APOYO AL EQUIPO DE PARTICIPACIÓN Y PLANEACIÓN EN LO RELACIONADO CON LOS TEMAS DE MUJER, GÉNERO Y DIVERSIDADES DE LA LOCALIDAD","INVERSIÓN ",1330,8400000,1371,"Fortalecimiento de la participación","2020-12-10","2020-12-16","2021-02-15",8400000,2,4200000,1477,8400000,"YEIMY CAROLINA AGUDELO HERNANDEZ","LUIS ALEJANDRO VENEGAS ROBAYO","PARTICIPACION","475-47-994000044679","2020-12-11","2021-08-11","NA",0,"NA","NA","NA","NA","NA","NA","NA","NA","NA","NA","NA","NA","NA","NA","NA","NA"]
["CONTRATACION DIRECTA","Contratos de prestación de servicios","TERMINADO","FDLK-CD-344-2020","CPS-344-2020",{"$f":"VLOOKUP(E338,[1]Hoja1!D$3:E$393,2,0)","v":1},"MARISOL DELGADO FANDIÑO",52740749,"MARISOL DELGADO FANDIÑO",52740749,null,"https://community.secop.gov.co/Public/Tendering/OpportunityDetail/Index?noticeUID=CO1.NTC.1605602&isFromPublicArea=True&isModal=False","PRESTAR LOS SERVICIOS PROFESIONALES PARA EL SEGUIMIENTO ADMINISTRATIVO Y FINANCIERO DEL ÁREA DE GESTIÓN DE DESARROLLO LOCAL","INVERSIÓN ",1327,4200000,1363,"Fortalecimiento de la gestión local y de las acciones de vigilancia y control","2020-12-14","2020-12-15","2021-01-14",4200000,1,4200000,1476,4200000,"YEIMY CAROLINA AGUDELO HERNANDEZ","MILENA SARMIENTO","Planeacion","11-46-101016277","2020-12-14","2021-07-16","NA",0,"NA","NA","NA","NA","NA","NA","NA","NA","NA","NA","NA","NA","NA","NA","NA","NA"]
["CONTRATACION DIRECTA","Contratos de prestación de servicios","EN EJECUCION","FDLK-CD-346-2020","CPS-346-2020",{"$f":"VLOOKUP(E339,[1]Hoja1!D$3:E$393,2,0)","v":1},"SARA JUDITH CARPETA ORJUELA",53039533,"SARA JUDITH CARPETA ORJUELA",53039533,null,"https://community.secop.gov.co/Public/Tendering/OpportunityDetail/Index?noticeUID=CO1.NTC.1608725&isFromPublicArea=True&isModal=False","APOYAR ADMINISTRATIVA Y ASISTENCIALMENTE LAS INSPECCIONES DE POLICIA DE LA LOCALIDAD","INVERSION",1218,7000000,1363,"Fortalecimiento de la gestión local y de las acciones de vigilancia y control","2020-12-14","2020-12-17","2021-02-16",3500000,2,1750000,1483,3500000,"YEIMY CAROLINA AGUDELO HERNANDEZ","GUSTAVO VANEGAS RUIZ","INSPECCIONES","390-47-994000056150","2020-12-15","2021-08-15","NA",0,"NA","NA","NA","NA","NA","NA","NA","NA","NA","NA","NA","NA","NA","NA","NA","NA"]
["CONTRATACION DIRECTA","Contratos de prestación de servicios","EN EJECUCION","FDLK-CD-347-2020","CPS-347-2020",{"$f":"VLOOKUP(E340,[1]Hoja1!D$3:E$393,2,0)","v":0.96721311475409832},"LISSET ANDREA GONZALEZ ROJAS",52817880,"LISSET ANDREA GONZALEZ ROJAS",52817880,null,"https://community.secop.gov.co/Public/Tendering/OpportunityDetail/Index?noticeUID=CO1.NTC.1612381&isFromPublicArea=True&isModal=False","PRESTAR SUS SERVICIOS PROFESIONALES A LA ALCALDÍA LOCAL DE\nKENNEDY DE LOS PROCESOS, PROYECTOS, PROGRAMAS DE DOTACIÓN DE\nINSTITUCIONES EDUCATIVAS DE LA LOCALIDAD TENDIENTES A GARANTIZAR\nEL CUMPLIMIENTO DEL PLAN DE DESARROLLO LOCAL.","INVERSION",1215,11000000,1360,"Fortalecimiento de las instituciones educativas distritales, para una inclusión\neducativa","2020-12-17","2020-12-28","2021-02-27",11000000,2,5500000,1497,11000000,"YEIMY CAROLINA AGUDELO HERNANDEZ","CRISTIAN DARIO DUARTE","PLANEACION","380-47994000109563","2020-12-21","2021-08-21","NA",0,"NA","NA","NA","NA","NA","NA","NA","NA","NA","NA","NA","NA","NA","NA","NA","NA"]
["CONTRATACION DIRECTA","Contratos de prestación de servicios","EN EJECUCION","FDLK-CD-348-2020","CPS-348-2020",{"$f":"VLOOKUP(E341,[1]Hoja1!D$3:E$393,2,0)","v":1},"SANDRA PATRICIA ALFONSO",52074183,"SANDRA PATRICIA ALFONSO",52074183,null,"https://community.secop.gov.co/Public/Tendering/OpportunityDetail/Index?noticeUID=CO1.NTC.1612624&isFromPublicArea=True&isModal=False","APOYAR ADMINISTRATIVA Y ASISTENCIALMENTE A LAS INSPECCIONES DE POLICÍA DE LA LOCALIDAD","INVERSION",1218,7000000,1363,"Fortalecimiento de la gestión local y de las acciones de vigilancia y control","2020-12-18","2020-12-21","2021-02-20",3500000,2,1750000,1496,3500000,"YEIMY CAROLINA AGUDELO HERNANDEZ","GUSTAVO VANEGAS","INSPECCIONES","15-46-101018237","2020-12-17","2021-08-17","NA",0,"NA","NA","NA","NA","NA","NA","NA","NA","NA","NA","NA","NA","NA","NA","NA","NA"]
["CONTRATACION DIRECTA","Contratos de prestación de servicios","EN EJECUCION","FDLK-CD-349-2020","CPS-349-2020",{"$f":"VLOOKUP(E342,[1]Hoja1!D$3:E$393,2,0)","v":1},"HUGO HERRERA BRAVO",80271724,"HUGO HERRERA BRAVO",80271724,null,"https://community.secop.gov.co/Public/Tendering/OpportunityDetail/Index?noticeUID=CO1.NTC.1613132&isFromPublicArea=True&isModal=False","PRESTAR LOS SERVICIOS DE APOYO ADMINISTRATIVO Y ASISTENCIAL EN ASUNTOS RELACIONADOS CON ESPACIO PÚBLICO Y/O GESTIÓN DEL RIESGO EN EL ÁREA DE GESTIÓN POLICIVA JURÍDICA DE LA ALCALDÍA LOCAL DE KENNEDY","INVERSION",1212,4994000,1363,"Fortalecimiento de la gestión local y de las acciones de vigilancia y control","2020-12-18","2020-12-21","2021-02-20",4994000,2,2497000,1500,4994000,"YEIMY CAROLINA AGUDELO HERNANDEZ","HOLGUER ALFONSO","JURIDICO POLICIVA","390 47 994000056223","2020-12-17","2021-08-20","NA",0,"NA","NA","NA","NA","NA","NA","NA","NA","NA","NA","NA","NA","NA","NA","NA","NA"]
["CONTRATACION DIRECTA","Contratos de prestación de servicios","EN EJECUCION","FDLK-CD-350-2020","CPS-350-2020",{"$f":"VLOOKUP(E343,[1]Hoja1!D$3:E$393,2,0)","v":0.96721311475409832},"LAURA CRISTINA CASTILLO HERRERA",1033732279,"LAURA CRISTINA CASTILLO HERRERA",1033732279,null,"https://community.secop.gov.co/Public/Tendering/OpportunityDetail/Index?noticeUID=CO1.NTC.1613462&isFromPublicArea=True&isModal=False","PRESTAR LOS SERVICIOS DE APOYO EN LAS ACCIONES ENCAMINADAS AL RESTABLECIMIENTO DE LA ARMONÍA, PAZ, SEGURIDAD Y CONVIVENCIA CIUDADANA, EN LA LOCALIDAD DE KENNEDY","INVERSION",1228,83606000,1376,"Fortalecimiento de seguridad e iniciativa de convivencia en la localidad de\nKennedy","2020-12-18","2020-12-28","2021-02-27",4918000,2,2459000,1501,4918000,"YEIMY CAROLINA AGUDELO HERNANDEZ","MARITZA RUIZ","SEGURIDAD","2827861–2","2020-12-18","2021-08-31","NA",0,"NA","NA","NA","NA","NA","NA","NA","NA","NA","NA","NA","NA","NA","NA","NA","NA"]
["CONTRATACION DIRECTA","Contratos de prestación de servicios","EN EJECUCION","FDLK-CD-351-2020","CPS-351-2020",{"$f":"VLOOKUP(E344,[1]Hoja1!D$3:E$393,2,0)","v":1},"JONATHAN ANDRES CARDENAS TORRES",80829330,"JONATHAN ANDRES CARDENAS TORRES",80829330,null,"https://community.secop.gov.co/Public/Tendering/OpportunityDetail/Index?noticeUID=CO1.NTC.1614712&isFromPublicArea=True&isModal=False","“PRESTAR LOS SERVICIOS DE APOYO EN LAS ACCIONES ENCAMINADAS AL RESTABLECIMIENTO DE LA ARMONÍA, PAZ, SEGURIDAD Y CONVIVENCIA CIUDADANA, EN LA LOCALIDAD DE KENNEDY","INVERSION",1228,83606000,1376,"Fortalecimiento de seguridad e iniciativa de convivencia en la localidad de\nKennedy","2020-12-18","2020-12-24","2021-02-23",4918000,2,2459000,1502,4918000,"YEIMY CAROLINA AGUDELO HERNANDEZ","MARITZA RUIZ","SEGURIDAD","12-46-101042504","2020-12-21","2021-09-11","NA",0,"NA","NA","NA","NA","NA","NA","NA","NA","NA","NA","NA","NA","NA","NA","NA","NA"]
["CONTRATACION DIRECTA","Contratos de prestación de servicios","EN EJECUCION","FDLK-CD-352-2020","CPS-352-2020",{"$f":"VLOOKUP(E345,[1]Hoja1!D$3:E$393,2,0)","v":1},"JAIRO ANDRES LOPEZ CRUZ",80154531,"JAIRO ANDRES LOPEZ CRUZ",80154531,null,"https://community.secop.gov.co/Public/Tendering/OpportunityDetail/Index?noticeUID=CO1.NTC.1614512&isFromPublicArea=True&isModal=False","“PRESTAR LOS SERVICIOS DE APOYO EN LAS ACCIONES ENCAMINADAS AL RESTABLECIMIENTO DE LA ARMONÍA, PAZ, SEGURIDAD Y CONVIVENCIA CIUDADANA, EN LA LOCALIDAD DE KENNEDY.”","INVERSION ",1228,83606000,1376,"Fortalecimiento de seguridad e iniciativa de convivencia en la localidad de\nKennedy","2020-12-18","2020-12-24","2021-02-23",4918000,2,2459000,1506,4918000,"YEIMY CAROLINA AGUDELO HERNANDEZ","MARITZA RUIZ","SEGURIDAD","15-46-101018266","2020-12-22","2021-08-30","NA",0,"NA","NA","NA","NA","NA","NA","NA","NA","NA","NA","NA","NA","NA","NA","NA","NA"]
["CONTRATACION DIRECTA","Contratos de prestación de servicios","EN EJECUCION","FDLK-CD-353-2020","CPS-353-2020",{"$f":"VLOOKUP(E346,[1]Hoja1!D$3:E$393,2,0)","v":1},"GUISELLE LORENA GOMEZ CRUZ",1026268329,"GUISELLE LORENA GOMEZ CRUZ",1026268329,null,"https://community.secop.gov.co/Public/Tendering/OpportunityDetail/Index?noticeUID=CO1.NTC.1614611&isFromPublicArea=True&isModal=False","“PRESTAR LOS SERVICIOS DE APOYO EN LAS ACCIONES ENCAMINADAS AL RESTABLECIMIENTO DE LA ARMONÍA, PAZ, SEGURIDAD Y CONVIVENCIA CIUDADANA, EN LA LOCALIDAD DE KENNEDY.”","INVERSION ",1228,83606000,1376,"Fortalecimiento de seguridad e iniciativa de convivencia en la localidad de\nKennedy","2020-12-18","2020-12-24","2021-02-23",4918000,2,2459000,1507,4918000,"YEIMY CAROLINA AGUDELO HERNANDEZ","MARITZA RUIZ","SEGURIDAD","CBO-100007372","2020-12-18","2021-08-31","NA",0,"NA","NA","NA","NA","NA","NA","NA","NA","NA","NA","NA","NA","NA","NA","NA","NA"]
["Selección Abreviada por acuerdo marco","Selección Abreviada por acuerdo marco","EN EJECUCION",null,"OC-340-2020",{"$f":"VLOOKUP(E347,[1]Hoja1!D$3:E$393,2,0)","v":0.47222222222222221},"ORGANIZACION TERPEL S.A",830095213,null,null,null,"TIENDA VIRTUAL","CONTRATAR EL SUMINISTRO DE CONBUSTIBLE PARA EL PARQUE AUTOMOTOR LIVIANO, PESADO Y MAQUINARIA DE LA ALCALDIA LOCAL DE KENNEDY","INVERSIÓN ",1300,112500000,"1367 - 0203","1367 - Recuperación de la malla vial\nlocal   - Productos de hornos de coque, de\nrefinación de petróleo y combustible","2020-12-02","2020-12-02","2021-05-31",112500000,6,18750000,1466,112500000,"YEIMY CAROLINA AGUDELO HERNANDEZ","YULLIET PATRICIA LLERENA AVENDAÑO","ALMACEN",null,null,null,"NA",0,"NA","NA",null,"NA","NA","NA","NA","NA","NA","NA","NA","NA","NA","NA","NA","NA"]
["Selección Abreviada por acuerdo marco","Selección Abreviada por acuerdo marco","EN EJECUCION",null,"OC-342-2020",{"$f":"VLOOKUP(E348,[1]Hoja1!D$3:E$393,2,0)","v":0.34710743801652894},"Computel System SAS",8300499164,null,null,null,"TIENDA VIRTUAL","CONTRATAR EL ALQUILER DE ESCANER REQUERIDOS POR EL FONDO DE DESARROLLO LOCAL DE KENNEDY. LA ALCALDIA LOCAL DENTRO DE SUS ACTIVIDADES DE EXPANSIÓN, MODERNIZACION, MEJORA Y OPTIMIZACIÓN DE SU PLATAFORMA TECNOLOGICA, ESTIMA CONVENIENTE SEGUIR CONTANDO CON EQUIPOS DE DIGITALIZACIÓN EN ALQUILER QUE PERMITAN REDUCIR EL CONSUMO DE PAPEL Y AHORRO ENERGETICO CON LAS NUEVAS TECNOLOGIAS.","INVERSION",1234,6784785,303,"Servicios de arrendamiento sin opción de compra de computadores sin operario","2020-12-03","2020-12-03","2021-08-02",6784785,8.0666666666666664,841089.04958677688,1468,6784785,"YEIMY CAROLINA AGUDELO HERNANDEZ","WOLFRANG LIZANDRO PULIDO AVENDAÑO","SISTEMAS",null,null,null,"NA",6,{"$error":"#VALUE!"},"NA","NA","NA","NA","NA","NA","NA","NA","NA","NA","NA","NA","NA","NA","NA"]
["CONTRATACION DIRECTA","Contratos de prestación de servicios","EN EJECUCION","FDLK-CD-356-2020","CPS-356-2020",{"$f":"VLOOKUP(E349,[1]Hoja1!D$3:E$393,2,0)","v":1},"LUCAS WILSON GONZALEZ MENDOZA",79737571,"LUCAS WILSON GONZALEZ MENDOZA",79737571,null,"https://community.secop.gov.co/Public/Tendering/OpportunityDetail/Index?noticeUID=CO1.NTC.1619756&isFromPublicArea=True&isModal=False","PRESTAR LOS SERVICIOS DE APOYO EN LA CONDUCCIÓN DE LOS VEHÍCULOS PESADOS DEL PARQUE AUTOMOTOR DE PROPIEDAD DEL FONDO DE DESARROLLO LOCAL DE KENNEDY","INVERSION ",1323,7491000,1363,"Fortalecimiento de la gestión local y de las acciones de vigilancia y control","2020-12-23","2021-01-08","2021-02-22",3745500,1,3745500,1551,3745500,"YEIMY CAROLINA AGUDELO HERNANDEZ","JOSE QUIROGA","INFRAESTRUCTURA - MAQ AMARILLA","21-44-101341637","2020-12-24","2021-08-08","NA",1,{"$error":"#VALUE!"},"NA","NA","NA","NA","NA","NA","NA","NA","NA","NA","NA","NA","NA","NA","NA"]
["CONTRATACION DIRECTA","Contratos de prestación de servicios","EN EJECUCION","FDLK-CD-357-2020","CPS-357-2020",{"$f":"VLOOKUP(E350,[1]Hoja1!D$3:E$393,2,0)","v":1},"SNEYDER SIERRA",1022980936,"SNEYDER SIERRA",1022980936,null,"https://community.secop.gov.co/Public/Tendering/OpportunityDetail/Index?noticeUID=CO1.NTC.1620606&isFromPublicArea=True&isModal=False","PRESTAR LOS SERVICIOS DE APOYO EN LA CONDUCCIÓN DE LOS VEHÍCULOS PESADOS DEL PARQUE AUTOMOTOR DE PROPIEDAD DEL FONDO DE DESARROLLO LOCAL DE KENNEDY.","INVERSION ",1323,7491000,1363,"Fortalecimiento de la gestión local y de las acciones de vigilancia y control","2020-12-24","2021-01-08","2021-02-22",3745500,1,3745500,1552,3745500,"YEIMY CAROLINA AGUDELO HERNANDEZ","JOSE QUIROGA","INFRAESTRUCTURA - MAQ AMARILLA","21-46-101019554","2020-12-24","2021-08-08","NA",2,{"$error":"#VALUE!"},"NA","NA","NA","NA","NA","NA","NA","NA","NA","NA","NA","NA","NA","NA","NA"]
["SELECCION ABREVIADA","CONTRATO DE OBRA PUBLICA ","SUSCRITO / PDTE EJECUCION","FDLK-SAMC-006-2020","COP-358-2020",{"$f":"VLOOKUP(E351,[1]Hoja1!D$3:E$393,2,0)","v":0.18487394957983194},"CESAR AUGUSTO VELASQUEZ TORO // CAVT",10114484,"CESAR AUGUSTO VELASQUEZ TORO // CAVT",10114484,null,"https://community.secop.gov.co/Public/Tendering/OpportunityDetail/Index?noticeUID=CO1.NTC.1601987&isFromPublicArea=True&isModal=False","\tEJECUTAR A MONTO AGOTABLE POR EL SISTEMA DE PRECIOS UNITARIOS FIJOS LAS OBRAS Y ACTIVIDADES PARA LA CONSERVACIÓN DE PUENTES VEHICULARES Y/O PEATONALES SOBRE CUERPOS DE AGUA DE LA LOCALIDAD DE KENNEDY.\t ","INVERSION ",1293,347308992,1367,"Recuperación de la malla vial local","2020-12-28",null,null,347308992,null,{"$error":"#DIV/0!"},null,347308992,"YEIMY CAROLINA AGUDELO HERNANDEZ","JUAN CARLOS MORENO","INFRAESTUCTURA",null,null,null,"NA",3,{"$error":"#VALUE!"},"NA","NA","NA","NA","NA","NA","NA","NA","NA","NA","NA","NA","NA","NA","NA"]
["CONTRATACION DIRECTA","Contratos de prestación de servicios","EN EJECUCION","FDLK-CD-359-2020","CPS-359-2020",{"$f":"VLOOKUP(E352,[1]Hoja1!D$3:E$393,2,0)","v":0.95454545454545459},"JENNY LIZETH DELGADO BOHORQUEZ ",37618379,"JENNY LIZETH DELGADO BOHORQUEZ ",37618379,null,"https://community.secop.gov.co/Public/Tendering/OpportunityDetail/Index?noticeUID=CO1.NTC.1621725&isFromPublicArea=True&isModal=False","“PRESTACIÓN DE SERVICIOS DE APOYO TÉCNICO A LA ALCALDÍA LOCAL DE KENNEDY EN LA ARTICULACIÓN DE ACTIVIDADES REALIZADAS POR LOS MONITORES Y OPERARIOS COMO GESTORES AMBIENTALES EN EL MARCO DE LA ESTRATEGIA DE MITIGACIÓN Y REACTIVACIÓN ECONÓMICA EMRE LOCAL - EN SU PROGRAMA DE EMPLEO DE EMERGENCIA; RELACIONADOS A LA EJECUCIÓN DEL PROYECTO DE INVERSIÓN 1361”","INVERSION ",1206,5800000,1361,"Sostenibilidad ambiental basada en la eficiencia energética","2020-12-24","2020-12-24","2021-02-28",5800000,2,2900000,1542,5800000,"YEIMY CAROLINA AGUDELO HERNANDEZ","CRISTIAN DARIO DUARTE","PLANEACION","33-46-101026967","2020-12-28","2021-08-28","NA",4,{"$error":"#VALUE!"},"NA","NA","NA","NA","NA","NA","NA","NA","NA","NA","NA","NA","NA","NA","NA"]
["CONTRATACION DIRECTA","Contratos de prestación de servicios","EN EJECUCION","FDLK-CD-360-2020","CPS-360-2020",{"$f":"VLOOKUP(E353,[1]Hoja1!D$3:E$393,2,0)","v":0.95081967213114749},"JAMES ALONSO VARGAS RONCANCIO",79819009,"JAMES ALONSO VARGAS RONCANCIO",79819009,null,"https://community.secop.gov.co/Public/Tendering/OpportunityDetail/Index?noticeUID=CO1.NTC.1621723&isFromPublicArea=True&isModal=False","“PRESTACIÓN DE SERVICIOS PROFESIONALES A LA ALCALDÍA LOCAL DE KENNEDY APOYANDO LAS ETAPAS PRECONTRACTUAL, CONTRACTUAL Y POSCONTRACTUAL DE LOS PROCESOS RECREODEPORTIVOS, ARTÍSTICOS Y CULTURALES TENDIENTE A GARANTIZAR EL CUMPLIMIENTO DEL PLAN DE DESARROLLO LOCAL”","INVERSION ",1213,24000000,1362,"Promoción y desarrollo local de la cultura, la recreación y el deporte","2020-12-24","2020-12-29","2021-02-28",12000000,2,6000000,1541,12000000,"YEIMY CAROLINA AGUDELO HERNANDEZ","MARIA DEL PILAR MUJICA","PLANEACION","21-44-101341805","2020-12-28","2021-08-28","NA",5,{"$error":"#VALUE!"},"NA","NA","NA","NA","NA","NA","NA","NA","NA","NA","NA","NA","NA","NA","NA"]
["Selección Abreviada por acuerdo marco","Selección Abreviada por acuerdo marco","EN EJECUCION","CONTRATO DE ALQUILER DE IMPRESORAS","OC-345-2020",{"$f":"VLOOKUP(E354,[1]Hoja1!D$3:E$393,2,0)","v":0.60330578512396693},"SOLUTION COPY LTDA",830053669,"ALEIDA CASTILLO","NA",null,"TIENDA VIRTUAL","CONTRATAR EL ALQUILER DE IMPRESORAS LASER O LED REQUERIDOS POR EL FONDO DE DESARROLLO LOCAL DE KENNEDY","INVERSIÓN ",1234,29132009,1310,"Servicios de arrendamiento sin\nopción de compra de computadores\nsin operario","2020-12-14","2020-12-14","2021-04-14",15976464,4.0333333333333332,3961106.7768595042,1475,15976464,"YEIMY CAROLINA AGUDELO HERNANDEZ","WOLFRANG LIZANDRO PULIDO AVENDAÑO","SISTEMAS","NA","NA","NA","NA",0,"NA","NA","NA","NA","NA","NA","NA","NA","NA","NA","NA","NA","NA","NA","NA","NA"]
["CONTRATACION DIRECTA","CONTRATO INTERADMINISTRATIVO","SUSCRITO / PDTE EJECUCION","FDLK-CD-362-2020","CIA-362-2020",{"$f":"VLOOKUP(E355,[1]Hoja1!D$3:E$393,2,0)","v":6.25E-2},"INSTITUTO DISTRITAL PARA LA PROTECCIÓN DE LA NIÑEZ Y LA JUVENTUD - IDIPRON//IDIPRON",899999333,"HUGO ALBERTO CARRILLO GOMEZ",88153092,null,"https://community.secop.gov.co/Public/Tendering/OpportunityDetail/Index?noticeUID=CO1.NTC.1628801&isFromPublicArea=True&isModal=False","AUNAR LOS ESFUERZOS TÉCNICOS, ADMINISTRATIVOS Y FINANCIEROS PARA REALIZAR LA INTERVENCIÓN CON ACCIONES DE RESTAURACIÓN, REHABILITACIÓN Y/O RECUPERACIÓN ECOLÓGICA Y, ACCIONES DE JARDINERÍA EN ESPACIOS DE LA LOCALIDAD DE KENNEDY CON LA PARTICIPACIÓN DE LA POBLACIÓN BENEFICIARIA Y VINCULADA EN LAS DIFERENTES ESTRATEGIAS PEDAGÓGICAS DEL INSTITUTO DISTRITAL PARA LA PROTECCIÓN DE LA NIÑEZ Y LA JUVENTUD - IDIPRON.","INVERSION",1448,412860539,1361,"Sostenibilidad ambiental basada en la eficiencia energética","2020-12-30",null,null,621202114,null,{"$error":"#DIV/0!"},null,621202114,"YEIMY CAROLINA AGUDELO HERNANDEZ","DANNA BRIGITH CANCHALA RUIZ","NA",null,null,null,"NA",7,{"$error":"#VALUE!"},"NA","NA","NA","NA","NA","NA","NA","NA","NA","NA","NA","NA","NA","NA","NA"]
["LICITACION PUBLICA","CONTRATO DE OBRA PUBLICA ","SUSCRITO / PDTE EJECUCION","FDLK-LP-03-2020","COP-363-2020",{"$f":"VLOOKUP(E356,[1]Hoja1!D$3:E$393,2,0)","v":"0%"},"PROFESIONALES ASOCIADOS LTDA.",813008120,"JUAN MANUEL PERDOMO BONILLA",79787980,null,"https://community.secop.gov.co/Public/Tendering/OpportunityDetail/Index?noticeUID=CO1.NTC.1562895&isFromPublicArea=True&isModal=False","EJECUTAR A PRECIOS UNITARIOS FIJOS Y A MONTO AGOTABLE, LAS OBRAS Y ACTIVIDADES NECESARIAS PARA LA CONSERVACIÓN DE LA MALLA VIAL DE LA LOCALIDAD DE KENNEDY Y SU ESPACIO PÚBLICO ASOCIADO","INVERSION",1247,5660353967,1367,"Recuperación de la malla vial local","2020-12-29",null,null,5660353967,null,{"$error":"#DIV/0!"},null,5660353967,"YEIMY CAROLINA AGUDELO HERNANDEZ","JULIO ANDRES ARAGON RUIZ","INFRAESTUCTURA",null,null,null,"NA",8,{"$error":"#VALUE!"},"NA","NA","NA","NA","NA","NA","NA","NA","NA","NA","NA","NA","NA","NA","NA"]
["SELECCION ABREVIADA","PRESTACIÓN DE SERVICIOS","SUSCRITO / PDTE EJECUCION","FDLK-SAMC-007-2020","CPS-364-2020",{"$f":"VLOOKUP(E357,[1]Hoja1!D$3:E$393,2,0)","v":"0%"},"SOPORTE TECNICO DE COLOMBIA S.A.S. //SOPORTCOL S.A.S.","900.128.501-4"," IVON ASTRID ROJAS\nMONCADA",52024902,null,"https://community.secop.gov.co/Public/Tendering/OpportunityDetail/Index?noticeUID=CO1.NTC.1603548&isFromPublicArea=True&isModal=False","PRESTACIÓN DEL SERVICIO DE MANTENIMIENTO PREVENTIVO Y/O CORRECTIVO DE LA INFRAESTRUCTURA TECNOLÓGICA, INCLUIDO EL SUMINISTRO DE REPUESTOS PARA LA ALCALDÍA LOCAL DE KENNEDY","FUNCIONAMIENTO",1332,55817595,1310,"Servicios de mantenimiento y\nreparación de computadores y\nequipo periférico","2020-12-29",null,null,51967969,null,{"$error":"#DIV/0!"},null,51967969,"YEIMY CAROLINA AGUDELO HERNANDEZ",null,null,null,null,null,"NA",9,{"$error":"#VALUE!"},"NA","NA","NA","NA","NA","NA","NA","NA","NA","NA","NA","NA","NA","NA","NA"]
["SELECCION ABREVIADA","PRESTACIÓN DE SERVICIOS","SUSCRITO / PDTE EJECUCION","FDLK-SAMC-5-2020","CPS-365-2020",{"$f":"VLOOKUP(E358,[1]Hoja1!D$3:E$393,2,0)","v":"0%"},"UNIÓN TEMPORAL MANTENIMIENTO AUTOMOTOR","901.187.302-0,","HERNANDO BULLA ORJUELA",4831,"Hernando Bulla Orjuela y/o Almacen y Talleres El Norte (50.00%)//\nINVERSIONES EL NORTE SAS (50.00%)","https://community.secop.gov.co/Public/Tendering/OpportunityDetail/Index?noticeUID=CO1.NTC.1595416&isFromPublicArea=True&isModal=False","“CONTRATAR A PRECIOS UNITARIOS Y MONTO AGOTABLE EL MANTENIMIENTO INTEGRAL PREVENTIVO Y CORRECTIVO CON SUMINISTRO DE REPUESTOS Y ACCESORIOS NUEVOS, GENUINOS Y\nORIGINALES DE CADA UNA DE LAS MARCAS DE LA MAQUINARIA RODANTE DE CONSTRUCCIÓN,\nVEHICULOS DE TRANSPORTE DE CARGA TERRESTRE Y SUS ACCESORIOS DE INTERVENCIÓN\nVIAL QUE HACEN PARTE DEL PARQUE AUTOMOTOR DEL FONDO DE DESARROLLO LOCAL DE\nKENNEDY”.","INVERSION",1299,385000000,1367,"Recuperación de la malla vial local","2020-12-29",null,null,385000000,null,{"$error":"#DIV/0!"},null,385000000,"YEIMY CAROLINA AGUDELO HERNANDEZ","ANIBAL FERNANDO OSPINA ARDILA","INFRAESTUCTURA",null,null,null,"NA",10,{"$error":"#VALUE!"},"NA","NA","NA","NA","NA","NA","NA","NA","NA","NA","NA","NA","NA","NA","NA"]
["Selección Abreviada por acuerdo marco","Selección Abreviada por acuerdo marco","TERMINADO",null,"OC-361-2020",{"$f":"VLOOKUP(E359,[1]Hoja1!D$3:E$393,2,0)","v":1},"ESRI COLOMBIA SAS",8300499164,830122983,null,null,"TIENDA VIRTUAL","“ADQUISICIÓN DE LICENCIA DE ARCGIS PARA LA ALCALDÍA LOCAL DE KENNEDY”","INVERSION",1409,32915978,302,"Servicios de tecnología de la información (TI) de consultoría y de apoyo","2020-12-28","2020-12-28","2021-01-06",26221235,0.3,87404116.666666672,1543,26221235,"YEIMY CAROLINA AGUDELO HERNANDEZ","WOLFRANG LIZANDRO PULIDO AVENDAÑO","SISTEMAS",null,null,null,"NA",6,{"$error":"#VALUE!"},"NA","NA","NA","NA","NA","NA","NA","NA","NA","NA","NA","NA","NA","NA","NA"]
["Selección Abreviada por acuerdo marco","Selección Abreviada por acuerdo marco","TERMINADO",null,"OC-366-2020",{"$f":"VLOOKUP(E360,[1]Hoja1!D$3:E$393,2,0)","v":1},"PANAMERICANA LIBRERÍA YPAPELERÍA S.A.",830037946,null,null,null,"TIENDA VIRTUAL","ADQUISICION E INSTALACION DE LICENCIA DE ADOBE CREATIVE CLOUD PARA MAC EN LA ALCALDIA LOCAL DE KENNEDY",null,1386,4598500,302,"Servicios de tecnologia de la informacion TI de consultoria y de apoyo","2020-12-29","2020-12-29","2021-01-27",4598500,0.96666666666666667,4757068.9655172415,1554,4598500,"YEIMY CAROLINA AGUDELO HERNANDEZ","WOLFRANG LIZANDRO PULIDO AVENDAÑO","SISTEMAS",null,null,null,"NA",11,{"$error":"#VALUE!"},"NA","NA","NA","NA","NA","NA","NA","NA","NA","NA","NA","NA","NA","NA","NA"]
["CONTRATACION DIRECTA","CONTRATO INTERADMINISTRATIVO","SUSCRITO / PDTE EJECUCION","FDLK-CD-368-2020","CIA-368-2020",{"$f":"VLOOKUP(E361,[1]Hoja1!D$3:E$393,2,0)","v":"0%"},"SUBRED INTEGRADA DE SERVICIOS DE SALUD SUR OCCIDENTE ESE.","900.959.048-4","OMAR BENIGNO PERILLA BALLESTEROS",79347264,null,"https://community.secop.gov.co/Public/Tendering/OpportunityDetail/Index?noticeUID=CO1.NTC.1628238&isFromPublicArea=True&isModal=False","AUNAR ESFUERZOS TÉCNICOS, ADMINISTRATIVOS Y FINANCIEROS ENTRE EL FONDO DE DESARROLLO LOCAL DE KENNEDY Y LA SUBRED INTEGRADA DE SERVICIOS DE SALUD SUR OCCIDENTE E.S.E, PARA BRINDAR ATENCION A PERSONAS CON DISCAPACIDAD Y SUS FAMILIAS Y/O CUIDADORES DE LA LOCALIDAD DE KENNEDY” de acuerdo con lo establecido en el anexo técnico y estudios previos.","INVERSION",1285,955654600,1373,"Fortalecimiento al mejoramiento de la calidad de vida","2020-12-30",null,null,1060095600,9,117788400,null,1060095600,"YEIMY CAROLINA AGUDELO HERNANDEZ","ERIKA VANESA USECHE TRIANA","NA",null,null,null,"NA",13,{"$error":"#VALUE!"},"NA","NA","NA","NA","NA","NA","NA","NA","NA","NA","NA","NA","NA","NA","NA"]
["MINIMA CUANTIA","Compra y venta de suministros","SUSCRITO / PDTE EJECUCION","FDLK-MC-10-2020","CCV-369-2020",{"$f":"VLOOKUP(E362,[1]Hoja1!D$3:E$393,2,0)","v":"0%"},"FEC SUMINISTROS Y SERVICIOS S.A.S.","900975944-6","DEISY AVENDAÑO PARRA",53071576,null,"https://community.secop.gov.co/Public/Tendering/OpportunityDetail/Index?noticeUID=CO1.NTC.1617547&isFromPublicArea=True&isModal=False","COMPRAVENTA DE ELEMENTOS DE DOTACIÓN Y COMPLEMENTARIOS DE SEGURIDAD PARA PREVENIR Y MITIGAR LOS RIESGOS ASOCIADOS A LA EXPOSICIÓN DE AGENTES INFECCIOSOS DE LOS BENEFIARIOS DEL PROGRAMA EMPLEO DE EMERGENCIA COMO PARTE DE LA ESTRATEGIA DE MITIGACIÓN Y REACTIVACIÓN ECONÓMICA – EMRE LOCAL, GUARDIANES DEL ESPACIO PÚBLICO, TRABAJADORES SOCIALES, GUARDIANES DEL MEDIO AMBIENTE, MONITORES Y PERSONAL DE APOYO.","INVERSION",1351,37551342,1376,"Fortalecimiento de seguridad e iniciativa de convivencia en la localidad de\nKennedy","2020-12-29",null,null,12190207,null,{"$error":"#DIV/0!"},null,12190207,"YEIMY CAROLINA AGUDELO HERNANDEZ","MARITZA RUIZ POSADA","Policiva Jurídica",null,null,null,"NA",14,{"$error":"#VALUE!"},"NA","NA","NA","NA","NA","NA","NA","NA","NA","NA","NA","NA","NA","NA","NA"]
["MINIMA CUANTIA","Compra y venta de suministros","SUSCRITO / PDTE EJECUCION","FDLK-MC-11-2020","CCV-370-2020",{"$f":"VLOOKUP(E363,[1]Hoja1!D$3:E$393,2,0)","v":"0%"},"DIEGO CASTRO INDUSTRIA Y CONSTRUCCIÓN  S.A.S.","900.960.810-2","DIEGO ALEXANDER CASTRO NEIRA",1013589092,null,"https://community.secop.gov.co/Public/Tendering/OpportunityDetail/Index?noticeUID=CO1.NTC.1617548&isFromPublicArea=True&isModal=False","COMPRAVENTA DE HERRAMIENTAS E INSUMOS NECESARIOS PARA EL CUMPLIMIENTO DE LAS ACTIVIDADES DEL PROGRAMA EMPLEO DE EMERGENCIA COMO PARTE DE LA ESTRATEGIA DE MITIGACIÓN Y REACTIVACIÓN ECONÓMICA – EMRE LOCAL, CON DESTINO A LOS BENEFICIARIOS DEL MISMO: GUARDIANES DEL MEDIO AMBIENTE, OPERARIOS DE MANTENIMIENTO DE MALLA VIAL LOCAL, MONITORES Y PERSONAL DE APOYO.","INVERSION",1349,19423991,"1367-1361","Recuperación de la malla vial\nlocal //- Sostenibilidad ambiental\nbasada en la eficiencia energética","2020-12-30",null,null,14060735,null,{"$error":"#DIV/0!"},null,14060735,"YEIMY CAROLINA AGUDELO HERNANDEZ",null,null,null,null,null,"NA",15,{"$error":"#VALUE!"},"NA","NA","NA","NA","NA","NA","NA","NA","NA","NA","NA","NA","NA","NA","NA"]
["SELECCION ABREVIADA","CONTRATO DE SUMINISTRO ","SUSCRITO / PDTE EJECUCION","FDLK-SASI-1-2020","CSU-371-2020",{"$f":"VLOOKUP(E364,[1]Hoja1!D$3:E$393,2,0)","v":"0%"},"CONSORCIO P & C","901.208.854-6","Plutarco\nLandinez Martínez",6765018,"Jefe de grupo:\nPLUSEL INGENIEROS SAS (50.00%)\n//\nplutarco landinez martinez (50.00%)","https://community.secop.gov.co/Public/Tendering/OpportunityDetail/Index?noticeUID=CO1.NTC.1591969&isFromPublicArea=True&isModal=False","TRANSPORTE, SUMINISTRO EN SITIO DE EMULSIÓN ASFALTICA TIPO CRL-1, PARA EL MANTENIMIENTO DE LA MALLA VIAL NO PRIORIZADA, EN LA LOCALIDAD DE KENNEDY DE LA CIUDAD DE BOGOTÁ D.C., A MONTO AGOTABLE.","INVERSION",1296,149998956,1367,"Recuperación de la malla vial local","2020-12-29",null,null,149998817,null,{"$error":"#DIV/0!"},null,149998817,"YEIMY CAROLINA AGUDELO HERNANDEZ","ALEXANDER VASQUEZ ROJAS","INFRAESTUCTURA",null,null,null,"NA",16,{"$error":"#VALUE!"},"NA","NA","NA","NA","NA","NA","NA","NA","NA","NA","NA","NA","NA","NA","NA"]
["Selección Abreviada por acuerdo marco","Selección Abreviada por acuerdo marco","EN EJECUCION",null,"OC-367-2020",{"$f":"VLOOKUP(E365,[1]Hoja1!D$3:E$393,2,0)","v":0.98305084745762716},"Nueva Era Soluciones S.A.S.",830037278,null,null,null,"TIENDA VIRTUAL","ADQUIRIR CATORCE (14) PORTATILES PARA PARA LA ALCALDIA LOCALIDAD DE KENNEDY",null,1331,59595835,"1363 -  0102","Fortalecimiento de la gestion local y de las acciones de vigilancia y control.                                                                              Equipos de informacion, computacion y telcomunicaciones TIC","2020-12-29","2020-12-29","2021-02-26",57001007,1.9666666666666666,28983562.881355934,1619,57001007,"YEIMY CAROLINA AGUDELO HERNANDEZ","MIGUEL ANGEL GARCIA MURILLO","SISTEMAS",null,null,null,"NA",12,{"$error":"#VALUE!"},"NA","NA","NA","NA","NA","NA","NA","NA","NA","NA","NA","NA","NA","NA","NA"]
["CONCURSO DE MÉRITOS ABIERTO","INTERVENTORIA","SUSCRITO / PDTE EJECUCION","FDLK-CMA-004-2020","CI-373-2020",{"$f":"VLOOKUP(E366,[1]Hoja1!D$3:E$393,2,0)","v":0.1476510067114094},"INGEORBE  SAS","901.402.216-8","JORGE ALEJANDRO SALAMANCA GUZMÁN",1020820338,null,"https://community.secop.gov.co/Public/Tendering/OpportunityDetail/Index?noticeUID=CO1.NTC.1599825&isFromPublicArea=True&isModal=False","REALIZAR LA INTERVENTORÍA TÉCNICA, ADMINISTRATIVA, FINANCIERA, JURÍDICA, SOCIAL, AMBIENTAL Y SST AL CONTRATO DE OBRA PÚBLICA QUE TENDRÁ POR OBJETO CONTRACTUAL: \"EJECUTAR A MONTO AGOTABLE POR EL SISTEMA DE PRECIOS UNITARIOS FIJOS LAS OBRAS Y ACTIVIDADES PARA LA CONSERVACIÓN DE PUENTES VEHICULARES Y/O PEATONALES SOBRE CUERPOS DE AGUA DE LA LOCALIDAD DE KENNEDY.”.","INVERSION",1295,90214183,1367,"Recuperación de la malla vial local","2020-12-31",null,null,90214183,null,{"$error":"#DIV/0!"},null,90214183,"YEIMY CAROLINA AGUDELO HERNANDEZ","JUAN CARLOS MORENO","INFRAESTUCTURA",null,null,null,"NA",18,{"$error":"#VALUE!"},"NA","NA","NA","NA","NA","NA","NA","NA","NA","NA","NA","NA","NA","NA","NA"]
["MINIMA CUANTIA","Compra y venta de suministros","SUSCRITO / PDTE EJECUCION","FDLK-MC-09-2020","CSU-374-2020",{"$f":"VLOOKUP(E367,[1]Hoja1!D$3:E$393,2,0)","v":"0%"},"INVERSIONES DIAS POSADA S.A.S.","830061287-9","RAMIRO ARMANDO DÍAS HURTADO","438-408",null,"https://community.secop.gov.co/Public/Tendering/OpportunityDetail/Index?noticeUID=CO1.NTC.1611056&isFromPublicArea=True&isModal=False","CONTRATAR EL SUMINISTRO DE IMPRESOS, PUBLICACIONES, MATERIAL LITOGRAFICO Y ELEMENTOS DE PUBLICIDAD INSTITUCIONAL A MONTO AGOTABLE, QUE REQUIERA LA ALCALDIA LOCAL DE KENNEDY, DE CONFORMIDAD CON LAS CONDICIONES, CANTIDADES Y ESPECIFICACIONES TECNICAS ESTABLECIDAS A PRECIOS FIJOS","INVERSION",1337,35770355,1310,"Servicios de publicidad y el\nsuministro de espacio o tiempo\npublicitarios","2020-12-30",null,null,35770355,null,{"$error":"#DIV/0!"},null,35770355,"YEIMY CAROLINA AGUDELO HERNANDEZ","NA","NA",null,null,null,"NA",19,{"$error":"#VALUE!"},"NA","NA","NA","NA","NA","NA","NA","NA","NA","NA","NA","NA","NA","NA","NA"]
["CONCURSO DE MÉRITOS ABIERTO","INTERVENTORIA","SUSCRITO / PDTE EJECUCION","FDLK-CMA-3-2020","CIN-375-2020",{"$f":"VLOOKUP(E368,[1]Hoja1!D$3:E$393,2,0)","v":"0%"},"CONSORCIO MVEPK ICG","830.046.422-4","Jorge Mauricio Casas Vera",79367006,"Intecsa Colombia Internacional S.A.S. (50.00%) // CAYCO SAS (40.00%)\nGESTION DE PROYECTOS DE INGENIERIA GPI SAS (10.00%)","https://community.secop.gov.co/Public/Tendering/OpportunityDetail/Index?noticeUID=CO1.NTC.1589610&isFromPublicArea=True&isModal=False","INTERVENTORÍA TÉCNICA, ADMINISTRATIVA, LEGAL, FINANCIERA, SOCIAL, AMBIENTAL Y DE SEGURIDAD Y SALUD EN EL TRABAJO PARA EL CONTRATO DE OBRA RESULTANTE DEL PROCESO QUE TENDRÁ POR OBJETO: EJECUTAR A PRECIOS UNITARIOS FIJOS Y A MONTO AGOTABLE, LAS OBRAS Y ACTIVIDADES NECESARIAS PARA LA CONSERVACIÓN DE LA MALLA VIAL DE LA LOCALIDAD DE KENNEDY Y SU ESPACIO PÚBLICO ASOCIADO","INVERSION",1294,675833294,1367,"Recuperación de la malla vial local","2020-12-30",null,null,675833294,null,{"$error":"#DIV/0!"},null,675833294,"YEIMY CAROLINA AGUDELO HERNANDEZ","JULIO ANDRES ARAGON RUIZ","INFRAESTRUCTURA",null,null,null,"NA",20,{"$error":"#VALUE!"},"NA","NA","NA","NA","NA","NA","NA","NA","NA","NA","NA","NA","NA","NA","NA"]
["SELECCION ABREVIADA","COMPRA VENTA ","SUSCRITO / PDTE EJECUCION","FDLK-SASI-003-2020","CCV-376-2020",{"$f":"VLOOKUP(E369,[1]Hoja1!D$3:E$393,2,0)","v":0.25},"CARLOS ALBERTO PINZÓN MOLINA",79867234,"CARLOS ALBERTO PINZÓN MOLINA",79867234,null,"https://community.secop.gov.co/Public/Tendering/OpportunityDetail/Index?noticeUID=CO1.NTC.1605074&isFromPublicArea=True&isModal=False","COMPRAVENTA DE ELEMENTOS LOGÍSTICOS PARA EL DESARROLLO DE LAS ACTIVIDADES DE LA ALCALDÍA LOCAL DE KENNEDY.","INVERSION",1333,240000000,1363,"Fortalecimiento de la gestión local y de las acciones de vigilancia y control","2020-12-31",null,null,240000000,null,{"$error":"#DIV/0!"},null,240000000,"YEIMY CAROLINA AGUDELO HERNANDEZ","NA","NA",null,null,null,"NA",21,{"$error":"#VALUE!"},"NA","NA","NA","NA","NA","NA","NA","NA","NA","NA","NA","NA","NA","NA","NA"]
["LICITACION PUBLICA","CONTRATO DE OBRA PUBLICA ","SUSCRITO / PDTE EJECUCION","FDLK-LP-2-2020","COP-377-2020",{"$f":"VLOOKUP(E370,[1]Hoja1!D$3:E$393,2,0)","v":"0%"},"ADRIANA ELENA ALVAREZ RIVERA ",24050401,"ADRIANA ELENA ALVAREZ RIVERA ",24050401,null,"https://community.secop.gov.co/Public/Tendering/OpportunityDetail/Index?noticeUID=CO1.NTC.1522325&isFromPublicArea=True&isModal=False","CONTRATAR MEDIANTE EL SISTEMA DE PRECIOS\nFIJOS UNITARIOS Y A MONTO AGOTABLE LAS\nACTIVIDADES PARA ADECUAR Y/O REPARAR LA\nESTRUCTURA FISICA DE TRES (3) JARDINES\nINFANTILES DE LA SECRETARIA DISTRITAL DE\nINTEGRACION SOCIAL PARA LA ATENCION DE LA\nPRIMERA INFANCIA EN LA LOCALIDAD DE KENNEDY,\nSEGÚN LOS ESTUDIOS PREVIOS, ANEXO TECNICO,\nPLIEGO DE CONDICIONES Y DEMAS DOCUMENTOS QUE\nHACEN PARTE INTEGRAL DEL PROCESO”.","INVERSION",1194,1427667408,1365,"Fortalecimiento pedagógico y estructural a jardines infantiles y prevención de\nviolencia infantil y promoción del buen trato","2020-12-30",null,null,1427667408,null,{"$error":"#DIV/0!"},null,1427667408,"YEIMY CAROLINA AGUDELO HERNANDEZ","YANETH ESPERANZA ECHAVERRIA BECERRA","NA",null,null,null,"NA",22,{"$error":"#VALUE!"},"NA","NA","NA","NA","NA","NA","NA","NA","NA","NA","NA","NA","NA","NA","NA"]
["Selección Abreviada por acuerdo marco","Selección Abreviada por acuerdo marco","EN EJECUCION",null,"OC-378-2020",{"$f":"VLOOKUP(E371,[1]Hoja1!D$3:E$393,2,0)","v":1},"FANALCA SA",890301886,null,null,null,"TIENDA VIRTUAL","ADQUISICIÓN DE MOTOCICLETAS Y VEHÍCULOS PARA EL FONDO DE DESARROLLO LOCAL DE KENNEDY EN VIRTUD DEL ACUERDO MARCO DE PRECIOS CCE-971-1-AMP-2019 Y CCE-163-III-AMP-2020, PARA FORTALECER LAS ACCIONES DE SEGURIDAD EN LAS LOCALIDADES DE BOGOTÁ DISTRITO CAPITAL” ","INVERSION",1463,945053771,1376,"Fortalecimiento de seguridad e iniciativa de convivencia en la localidad de\nKennedy","2020-12-30","2020-12-30","2021-02-09",629481231,1.3666666666666667,460596022.68292683,1617,629481231,"YEIMY CAROLINA AGUDELO HERNANDEZ","JULIAN ADOLFO RAMIREZ BEDOYA","JURIDICA POLICIVA ",null,null,null,"NA",23,{"$error":"#VALUE!"},"NA","NA","NA","NA","NA","NA","NA","NA","NA","NA","NA","NA","NA","NA","NA"]
["Selección Abreviada por acuerdo marco","Selección Abreviada por acuerdo marco","EN EJECUCION",null,"OC-379-2020",{"$f":"VLOOKUP(E372,[1]Hoja1!D$3:E$393,2,0)","v":0.375},"AUTOMAYOR S.A",860034604,null,null,null,"TIENDA VIRTUAL","“ADQUISICIÓN DE MOTOCICLETAS Y VEHÍCULOS PARA EL FONDO DE DESARROLLO LOCAL DE KENNEDY EN VIRTUD DEL ACUERDO MARCO DE PRECIOS CCE-971-1-AMP-2019 Y CCE-163-III-AMP-2020, PARA FORTALECER LAS ACCIONES DE SEGURIDAD EN LAS LOCALIDADES DE BOGOTÁ DISTRITO CAPITAL” ","INVERSION",1463,945053771,1376,"Fortalecimiento de seguridad e iniciativa de convivencia en la localidad de\nKennedy","2020-12-30","2020-12-30","2021-05-31",283233482,5.0666666666666664,55901345.131578952,1618,283233482,"YEIMY CAROLINA AGUDELO HERNANDEZ","JULIAN ADOLFO RAMIREZ BEDOYA","JURIDICA POLICIVA ",null,null,null,"NA",24,{"$error":"#VALUE!"},"NA","NA","NA","NA","NA","NA","NA","NA","NA","NA","NA","NA","NA","NA","NA"]
["Selección Abreviada por acuerdo marco","Selección Abreviada por acuerdo marco","EN EJECUCION",null,"OC-380-2020",{"$f":"VLOOKUP(E373,[1]Hoja1!D$3:E$393,2,0)","v":0.98275862068965514},"Nueva Era Soluciones S.A.S.",830037278,null,null,null,"TIENDA VIRTUAL","ADQUIRIR CUARENTA Y DOS (42) EQUIPOS DE COMPUTO AIO PARA LA ALCALDIA LOCALIDAD DE KENNEDY","INVERSION",1314,170389038,1363,"Fortalecimiento de la gestión local y de las acciones de vigilancia y control","2020-12-30","2020-12-30","2021-02-26",170272420,1.9333333333333333,88071941.37931034,1616,170272420,"YEIMY CAROLINA AGUDELO HERNANDEZ","MIGUEL ANGEL GARCIA MURILLO","SISTEMAS",null,null,null,"NA",25,{"$error":"#VALUE!"},"NA","NA","NA","NA","NA","NA","NA","NA","NA","NA","NA","NA","NA","NA","NA"]
["CONCURSO DE MÉRITOS ABIERTO","INTERVENTORIA","SUSCRITO / PDTE EJECUCION","FDLK-CMA-2-2020","CIN-381-2020",{"$f":"VLOOKUP(E374,[1]Hoja1!D$3:E$393,2,0)","v":"0%"},"ortega roldan y cia sas",860090531,"Jaime Antonio Ortega Restrepo",19073486,null,"https://community.secop.gov.co/Public/Tendering/OpportunityDetail/Index?noticeUID=CO1.NTC.1582675&isFromPublicArea=True&isModal=False","“REALIZAR LA INTERVENTORIA TECNICA,\nADMINISTRATIVA, JURIDICA, FINANCIERA,\nSOCIAL, AMBIENTAL Y DE SEGURIDAD Y\nSALUD EN EL TRABAJO AL CONTRATO DE\nOBRA PUBLICA RESULTANTE DEL PROCESO\nDE LICITACIÓN PUBLICA FDLK-LP-2-2020\nCUYO OBJETO ES: CONTRATAR MEDIANTE EL\nSISTEMA DE PRECIOS FIJOS UNITARIOS Y A\nMONTO AGOTABLE LAS ACTIVIDADES PARA\nADECUAR Y/O REPARAR LA ESTRUCTURA\nFISICA DE TRES (3) JARDINES INFANTILES DE\nLA SECRETARIA DISTRITAL DE INTEGRACION\nSOCIAL PARA LA ATENCION DE LA PRIMERA\nINFANCIA EN LA LOCALIDAD DE KENNEDY,\nSEGÚN LOS ESTUDIOS PREVIOS, ANEXO\nTECNICO, PLIEGO DE CONDICIONES Y DEMAS\nDOCUMENTOS QUE HACEN PARTE INTEGRAL\nDEL PROCESO”","INVERSION",1315,269637504,1365,"Fortalecimiento pedagógico y estructural a jardines infantiles y prevención de\nviolencia infantil y promoción del buen trato","2020-12-31",null,null,269212121,null,{"$error":"#DIV/0!"},null,269212121,"YEIMY CAROLINA AGUDELO HERNANDEZ","YANETH ESPERANZA ECHAVERRIA BECERRA","NA",null,null,null,"NA",26,{"$error":"#VALUE!"},"NA","NA","NA","NA","NA","NA","NA","NA","NA","NA","NA","NA","NA","NA","NA"]
["LICITACION PUBLICA","CONTRATO DE PRESTACION DE SERVICIOS","SUSCRITO / PDTE EJECUCION","FDLK-LP-4-2020","CPS-382-2020",{"$f":"VLOOKUP(E375,[1]Hoja1!D$3:E$393,2,0)","v":9.9264705882352935E-2},"BETA GROUP SERVICES SAS","900.883.191-1","JORGE MAURICIO GARCÍA BETANCUR",1020757540,null,"https://community.secop.gov.co/Public/Tendering/OpportunityDetail/Index?noticeUID=CO1.NTC.1582247&isFromPublicArea=True&isModal=False","“IMPLEMENTAR EL PROGRAMA DE ESQUEMAS Y PROYECTOS PRODUCTIVOS QUE CONTRIBUYA EN LA INCLUSIÓN PRODUCTIVA Y SOCIAL DE LA POBLACIÓN VÍCTIMAS DEL CONFLICTO ARMADO Y REINCORPORADA QUE HABITAN EN LA LOCALIDAD DE KENNEDY DESDE UN ENFOQUE DE RECONCILIACIÓN Y PAZ TERRITORIAL\".","INVERSION",1237,1100000000,1381,"Kennedy mejor para las víctimas, la paz y la reconciliación","2020-12-31",null,null,1076530510,null,{"$error":"#DIV/0!"},null,1076530510,"YEIMY CAROLINA AGUDELO HERNANDEZ","PAULA CAMILA CAMARGO LOPEZ","CONTRATACION",null,null,null,"NA",27,{"$error":"#VALUE!"},"NA","NA","NA","NA","NA","NA","NA","NA","NA","NA","NA","NA","NA","NA","NA"]
["SELECCION ABREVIADA","PRESTACIÓN DE SERVICIOS","SUSCRITO / PDTE EJECUCION","FDLK-SAMC-8-2020","CPS-383-2020",{"$f":"VLOOKUP(E376,[1]Hoja1!D$3:E$393,2,0)","v":0.13333333333333333},"FUNDACION ESPACIOS DE VIDA SAMC-8-2020","830.112.276-8","JAVIER ANDRES CABEZAS ORTIZ",79801109,null,"https://community.secop.gov.co/Public/Tendering/OpportunityDetail/Index?noticeUID=CO1.NTC.1605130&isFromPublicArea=True&isModal=False","CONTRATAR A MONTO AGOTABLE LA PRESTACIÓN DE SERVICIOS Y ALQUILER,\nINSTALACIÓN Y DESINSTALACIÓN DE ELEMENTOS Y DE BIENES INTEGRALES DE APOYO\nLOGISTICO REQUERIDO PARA PROMOVER Y FORTALECER LOS PROCESOS PARTICIPATIVOS E\nINSTITUCIONALES EN LA LOCALIDAD DE KENNEDY EN EL MARCO DEL PROYECTO 1371\nFORTALECIMIENTO DE LA PARTICIPACIÓN”.","INVERSION",1334,240000000,1371,"Fortalecimiento de la participación","2020-12-31",null,null,240000000,null,{"$error":"#DIV/0!"},null,240000000,"YEIMY CAROLINA AGUDELO HERNANDEZ","LUIS ALEJANDRO VENEGAS ROBAYO","NA",null,null,null,"NA",28,{"$error":"#VALUE!"},"NA","NA","NA","NA","NA","NA","NA","NA","NA","NA","NA","NA","NA","NA","NA"]
["CONTRATACION DIRECTA","CONTRATO INTERADMINISTRATIVO","SUSCRITO / PDTE EJECUCION","FDLK-CD-384-2020","CIA-384-2020",{"$f":"VLOOKUP(E377,[1]Hoja1!D$3:E$393,2,0)","v":"0%"},"AGENCIA NACIONAL INMOBILIARIA VIRGILIO BARCO VARGAS (ANIM)","900483991-0","VICTORIA EUGENIA RESTREPO URIBE",42899987,null,"https://community.secop.gov.co/Public/Tendering/OpportunityDetail/Index?noticeUID=CO1.NTC.1629915&isFromPublicArea=True&isModal=False","AUNAR ESFUERZOS PARA DESARROLLAR DE MANERA CONJUNTA LA ADECUACIÓN Y DOTACIÓN FINAL DEL PROYECTO DE GESTIÓN INMOBILIARIA INTEGRAL E INFRAESTRUCTURA FÍSICA EN LA NUEVA SEDE ADMINISTRATIVA DE LA ALCALDÍA LOCAL DE KENNEDY EN LA CIUDAD DE BOGOTÁ D.C","INVERSION",1339,10000000000,1363,"Fortalecimiento de la gestión local y de las acciones de vigilancia y control","2020-12-31",null,null,10000000000,30,333333333.33333331,null,10000000000,"YEIMY CAROLINA AGUDELO HERNANDEZ","ANIBAL FERNANDO OSPINA ARDILA","NA",null,null,null,"NA",29,{"$error":"#VALUE!"},"NA","NA","NA","NA","NA","NA","NA","NA","NA","NA","NA","NA","NA","NA","NA"]
["CONTRATACION DIRECTA","CONTRATO INTERADMINISTRATIVO","EN EJECUCION","FDLK-CD-385-2020","CIA-385-2020",{"$f":"VLOOKUP(E378,[1]Hoja1!D$3:E$393,2,0)","v":0.10294117647058823},"UNIVERSIDAD PEDAGÓGICA NACIONAL","899.999.124-4","LEONARDO FABIO MARTÍNEZ PÉREZ",80229991,null,"https://community.secop.gov.co/Public/Tendering/OpportunityDetail/Index?noticeUID=CO1.NTC.1629439&isFromPublicArea=True&isModal=False","“AUNAR ESFUERZOS TÉCNICOS, ADMINISTRATIVOS Y FINANCIEROS PARA REALIZAR EL DIAGNÓSTICO DE NECESIDADES, LA DOTACIÓN Y FUNCIONAMIENTO ADECUADO DE LOS AMBIENTES PEDAGÓGICOS DEL NUEVO EDIFICIO MÚLTIPLE PÚBLICO SEDE UNIVERSITARIA DE KENNEDY, UBICADO EN LA CALLE 6C # 94 A -25, SECTOR EL TINTAL, LOCALIDAD DE KENNEDY; PARA EL DESARROLLO DE PROGRAMAS ACADÉMICOS DE EDUCACIÓN SUPERIOR”.","INVERSION",1471,5760132200,1360,"Fortalecimiento de las instituciones educativas distritales, para una inclusión\neducativa","2020-12-31","2021-01-28","2021-10-27",5780132200,9,642236911.11111116,1644,5780132200,"YEIMY CAROLINA AGUDELO HERNANDEZ","LISETH ANDREA GONZALEZ ROJAS","NA","18-44-101073507","2020-12-30","2022-03-30","NA",30,{"$error":"#VALUE!"},"NA","NA","NA","NA","NA","NA","NA","NA","NA","NA","NA","NA","NA","NA","NA"]
["CONTRATACION DIRECTA","CONTRATO INTERADMINISTRATIVO","SUSCRITO / PDTE EJECUCION","FDLK-CD-386-2020","CIA-386-2020",{"$f":"VLOOKUP(E379,[1]Hoja1!D$3:E$393,2,0)","v":"0%"},"UNIVERSIDAD NACIONAL DE COLOMBIA","899.999.063-3","CARLOS GUILLERMO PARAMO BONILLA",79569751,null,"https://community.secop.gov.co/Public/Tendering/OpportunityDetail/Index?noticeUID=CO1.NTC.1629764&isFromPublicArea=True&isModal=False","AUNAR ESFUERZOS TÉCNICOS, ADMINISTRATIVOS, LOGÍSTICOS Y FINANCIEROS ENTRE EL FONDO DE DESARROLLO LOCAL DE KENNEDY Y LA UNIVERSIDAD NACIONAL PARA DISEÑAR EL PLAN CURRICULAR, METODOLÓGICO Y LA EJECUCIÓN DE “PROCESOS DE FORMACIÓN CIUDADANA Y/O DE CONTROL SOCIAL DE KENNEDY Y PARA PROMOVER Y FORTALECER LOS PROCESOS PARTICIPATIVOS DE LA POBLACIÓN EN LA LOCALIDAD DE KENNEDY”, EN EL MARCO DEL PROYECTO 1371 VIGENCIA 2020 “FORTALECIMIENTO DE LA PARTICIPACIÓN”.","INVERSION",1462,1035000000,1371,"Fortalecimiento de la participación","2020-12-31",null,null,1149660000,null,{"$error":"#DIV/0!"},1650,1149660000,"YEIMY CAROLINA AGUDELO HERNANDEZ","LUIS ALEJANDRO VENEGAS ROBAYO","NA","14-44-101124957 // 14-40-101035169","2020-12-31","2021-10-31","NA",31,{"$error":"#VALUE!"},"NA","NA","NA","NA","NA","NA","NA","NA","NA","NA","NA","NA","NA","NA","NA"]
["LICITACION PUBLICA","CONTRATO DE PRESTACION DE SERVICIOS","SUSCRITO / PDTE EJECUCION","FDLK-LP-5-2020","CPS-387-2020",{"$f":"VLOOKUP(E380,[1]Hoja1!D$3:E$393,2,0)","v":"0%"},"UNION TEMPORAL G3-JUGANDO EN SERIO","9001443092-7","DANIEL EDUARDO LOPEZ FERRER",1023881209,"Fundacion G3 (50.00%) //FUNDACION JUGANDO EN SERIO CON SENTIDO SOCIAL (50.00%)","https://community.secop.gov.co/Public/Tendering/OpportunityDetail/Index?noticeUID=CO1.NTC.1594120&isFromPublicArea=True&isModal=False","REALIZAR EVENTOS ARTÍSTICOS - CULTURALES Y DEPORTIVOS y ESCUELAS DE FORMACIÓN CULTURAL - ARTÍSTICA Y DEPORTIVAS EN LA LOCALIDAD DE KENNEDY, EN EL MARCO DEL CUMPLIMENTO DEL PLAN DE DESARROLLO KENNEDY MEJOR PARA TODOS 2017-2020","INVERSION",1317,960000000,1362,"Promoción y desarrollo local de la cultura, la recreación y el deporte","2020-12-31",null,null,946935887,null,{"$error":"#DIV/0!"},1649,946935887,"YEIMY CAROLINA AGUDELO HERNANDEZ","NA","NA","21-44-101340403","2020-12-15","2021-03-30","NA",32,{"$error":"#VALUE!"},"NA","NA","NA","NA","NA","NA","NA","NA","NA","NA","NA","NA","NA","NA","NA"]
["Selección Abreviada por acuerdo marco","Selección Abreviada por acuerdo marco","EN EJECUCION",null,"OC-388-2020",{"$f":"VLOOKUP(E381,[1]Hoja1!D$3:E$393,2,0)","v":0.23045267489711935},"UNIÓN TEMPORAL GREEN TECH",9013886880,null,null,null,"TIENDA VIRTUAL","ADQUIRIR A TITULO DE COMPRAVENTA MEDIANTE EL MECANISMO DE ACUERDO MARCO DE PRECIOS, UN VEHICULO NUEVO TIPO BUS ELÉCTRICO MODELO 2021 DEBIDAMENTE MATRICULADO CON PLACAS OFICIALES, CON SOAT VIGENTE, CARGADOR Y PLATAFORMA DE PARA EL FONDO DE DESARROLLO LOCAL DE KENNEDY, DE CONFORMIDAD CON LAS CARACTERÍSTICAS TÉCNICAS ESTABLECIDAS EN EL ESTUDIO PREVIO Y LA COTIZACIÓN SOLICITADA EN LA PAGINA DE COLOMBIA COMPRA EFICIENTE ","INVERSION",1479,784012828,1363,"Fortalecimiento de la gestión local y de las acciones de vigilancia y control","2020-12-30","2020-12-31","2021-08-31",784012828,8.1,96791707.160493836,1648,784012828,"YEIMY CAROLINA AGUDELO HERNANDEZ","YEIMY CAROLINA AGUDELO HERNANDEZ","NA",null,null,null,"NA",33,{"$error":"#VALUE!"},"NA","NA","NA","NA","NA","NA","NA","NA","NA","NA","NA","NA","NA","NA","NA"]
["CONTRATACION DIRECTA","CONTRATO INTERADMINISTRATIVO","SUSCRITO / PDTE EJECUCION","FDLK-CD-389-2020","CIA-389-2020",{"$f":"VLOOKUP(E382,[1]Hoja1!D$3:E$393,2,0)","v":0.1440443213296399},"UNIDAD ADMINISTRATIVA ESPECIAL DE REHABILITACIÓN Y MANTENIMIENTO VIAL (UMV)",900127032,"ALVARO SANDOVAL REYES",9519622,null,"https://www.contratos.gov.co/consultas/detalleProceso.do?numConstancia=21-22-22432","AUNAR ESFUERZOS TÉCNICOS, ADMINISTRATIVOS, FINANCIEROS Y AMBIENTALES ENTRE LA UNIDAD ADMINISTRATIVA ESPECIAL DE REHABILITACIÓN Y MANTENIMIENTO VIAL - UAERMV Y EL FONDO DE DESARROLLO LOCAL DE KENNEDY PARA REALIZAR EL DIAGNÓSTICO, DISEÑO, REHABILITACIÓN Y MANTENIMIENTO DE LAS VÍAS DE LA MALLA VIAL LOCAL E INTERMEDIA DE LA LOCALIDAD DE KENNEDY, EN EL MARCO DE LA REACTIVACIÓN ECONÓMICA DEL D.C., EN BOGOTÁ D.C.","INVERSION",1477,4650000000,1367,"Recuperación de la malla vial local","2020-12-31",null,null,4650000000,12,387500000,null,null,"YEIMY CAROLINA AGUDELO HERNANDEZ","JUAN CARLOS MORENO","INFRAESTUCTURA",null,null,null,"NA",34,{"$error":"#VALUE!"},"NA","NA","NA","NA","NA","NA","NA","NA","NA","NA","NA","NA","NA","NA","NA"]
[]
[]
[]
[]
[]
[null,null,null,"  "]